Workbook

Sheet Disclaimer
B4: Disclaimer
B5: 1 | C5: Neither the U.S. Department of Energy (DOE) National Energy Technology Laboratory (NETL) nor any person acting on behalf of these organizations:
C6: A. Makes any warranty or representation, express or implied, with respect to the accuracy, completeness, or usefulness of the information contained in this document, or that the use of any information, apparatus, method, or process disclosed in this document may not infringe on privately owned rights; or
C7: B. Assumes any liability with this report as to its use, or damages resulting from the use of any information, apparatus, method, or process disclosed in this document.
B8: 2 | C8: Reference herein to any specific commercial product, process, or service by trade name, trademark, manufacturer, or otherwise, does not necessarily constitute or imply its endorsement, recommendation, or favoring by NETL. The views and opinions of the authors expressed herein do not necessarily state or reflect those of NETL.
B10: Contact Information

Sheet Inputs

Sheet Dashboard
B2: Include RMA | C2: On | E2: Include RMA 2* | F2: Off | H2: Include RMT | I2: On | L2: Include ECF | M2: Off
B3: RMA Process List | C3: Illinois No. 6 Coal | E3: RMA Process List | F3: Not Set | H3: Num of Transp. Mode | I3: 1 | L3: ECF Process List | M3: Not Set
H4: RMA Suggested RMT | I4: Coal Train
B6: Parameters | C6: Value | E6: Parameters | F6: Value | H6: Transportation Mode** | I6: Unit | J6: Value | L6: Parameters | M6: Option
B7: =IF($C$3<>"",HLOOKUP($C$3,Parameters!B17:S21,2, FALSE),"") -> Coal Mine Methane (scf/ton) | C7: 422 | E7: Not Set | F7: Not Set | H7: Coal Train | I7: =IF($H7<>"",VLOOKUP(H7,Parameters!$A$71:$C$81, 2, FALSE),"") -> mi, round trip | J7: =IF($H7<>"",VLOOKUP(H7,Parameters!$A$71:$C$81, 3, FALSE),"") -> 400 | L7: Not Set | M7: Not Set
B8: =IF($C$3<>"",HLOOKUP($C$3,Parameters!B17:S21,3, FALSE),"") -> Methane Capture (%) | C8: 0 | E8: Not Set | F8: Not Set | L8: Not Set | M8: Not Set
B9: =IF($C$3<>"",HLOOKUP($C$3,Parameters!B17:S21,4, FALSE),"") ->  | C9: Not Set | E9: Not Set | F9: Not Set | L9: Not Set | M9: Not Set
B10: =IF($C$3<>"",HLOOKUP($C$3,Parameters!B17:S21,5, FALSE),"") ->  | C10: Not Set | E10: Not Set | F10: Not Set
B14: Units | C14: SI
G15: Life Cycle Inventory | I15: Total | J15: RMA | K15: RMT | L15: ECF
G16: Air Emissions | H16: =SUBSTITUTE(Data!D37,"(kg)","") -> Carbon Dioxide | I16: =Data!E37 -> 0.03815635384 | J16: =Data!F37 -> 0.0255123351 | K16: =Data!G37 -> 0.01264401873 | L16: =Data!H37 -> 0
H17: =SUBSTITUTE(Data!D38,"(kg)","") -> Methane | I17: =Data!E38 -> 0.008967193511 | J17: =Data!F38 -> 0.008960309058 | K17: =Data!G38 -> 6.884452696e-06 | L17: =Data!H38 -> 0
H18: =SUBSTITUTE(Data!D39,"(kg)","") -> Nitrous Oxide | I18: =Data!E39 -> 7.549728398e-07 | J18: =Data!F39 -> 4.490630708e-07 | K18: =Data!G39 -> 3.05909769e-07 | L18: =Data!H39 -> 0
H19: =SUBSTITUTE(Data!D40,"(kg)","") -> Total GWP | I19: =Data!E40 -> 0.2625611735 | J19: =Data!F40 -> 0.2496538823 | K19: =Data!G40 -> 0.01290729116 | L19: =Data!H40 -> 0
H20: =SUBSTITUTE(Data!D41,"(kg)","") -> Nitrogen Oxides | I20: =Data!E41 -> 7.377539022e-05 | J20: =Data!F41 -> 4.243953092e-05 | K20: =Data!G41 -> 3.133585931e-05 | L20: =Data!H41 -> 0
H21: =SUBSTITUTE(Data!D42,"(kg)","") -> Sulfur Dioxide | I21: =Data!E42 -> 8.449176455e-05 | J21: =Data!F42 -> 7.668560888e-05 | K21: =Data!G42 -> 7.806155675e-06 | L21: =Data!H42 -> 0
H22: =SUBSTITUTE(Data!D43,"(kg)","") -> Carbon Monoxide | I22: =Data!E43 -> 6.106776626e-05 | J22: =Data!F43 -> 2.339405595e-05 | K22: =Data!G43 -> 3.767371031e-05 | L22: =Data!H43 -> 0
H23: =SUBSTITUTE(Data!D44,"(kg)","") -> Particulate Matter | I23: =Data!E44 -> 4.388938734e-05 | J23: =Data!F44 -> 2.743404816e-06 | K23: =Data!G44 -> 4.114598253e-05 | L23: =Data!H44 -> 0
H24: =SUBSTITUTE(Data!D45,"(kg)","") -> Lead | I24: =Data!E45 -> 3.583825546e-09 | J24: =Data!F45 -> 3.455493613e-09 | K24: =Data!G45 -> 1.283319329e-10 | L24: =Data!H45 -> 0
H25: =SUBSTITUTE(Data!D46,"(kg)","") -> Mercury | I25: =Data!E46 -> 6.258762084e-10 | J25: =Data!F46 -> 6.149491397e-10 | K25: =Data!G46 -> 1.092706865e-11 | L25: =Data!H46 -> 0
H26: =SUBSTITUTE(Data!D47,"(kg)","") -> Ammonia | I26: =Data!E47 -> 4.98196974e-07 | J26: =Data!F47 -> 5.313056293e-08 | K26: =Data!G47 -> 4.450664111e-07 | L26: =Data!H47 -> 0
H27: =SUBSTITUTE(Data!D48,"(kg)","") -> Radiation | I27: =Data!E48 -> 4.482568475e-11 | J27: =Data!F48 -> 6.300519778e-12 | K27: =Data!G48 -> 3.852516498e-11 | L27: =Data!H48 -> 0
H28: =SUBSTITUTE(Data!D49,"(kg)","") -> Non Methane VOC | I28: =Data!E49 -> 8.858268555e-06 | J28: =Data!F49 -> 6.349166985e-06 | K28: =Data!G49 -> 2.50910157e-06 | L28: =Data!H49 -> 0
G29: Solid Waste | H29: =SUBSTITUTE(Data!D50,"(kg)","") -> Heavy Metals to Soil | I29: =Data!E50 -> 0.0001486437534 | J29: =Data!F50 -> 0.0001486292374 | K29: =Data!G50 -> 1.451597249e-08 | L29: =Data!H50 -> 0
H30: =SUBSTITUTE(Data!D51,"(kg)","") -> Solid Waste | I30: =Data!E51 -> 1.822538711e-06 | J30: =Data!F51 -> 9.177196043e-07 | K30: =Data!G51 -> 9.048191063e-07 | L30: =Data!H51 -> 0
G31: Water Emissions | H31: =SUBSTITUTE(Data!D52,"(kg)","") -> Aluminum | I31: =Data!E52 -> 1.438122e-08 | J31: =Data!F52 -> 1.134418033e-08 | K31: =Data!G52 -> 3.037039668e-09 | L31: =Data!H52 -> 0
H32: =SUBSTITUTE(Data!D53,"(kg)","") -> Ammonium/ammonia | I32: =Data!E53 -> 3.739083752e-06 | J32: =Data!F53 -> 3.734736837e-06 | K32: =Data!G53 -> 4.346915387e-09 | L32: =Data!H53 -> 0
H33: =SUBSTITUTE(Data!D54,"(kg)","") -> Heavy Metals | I33: =Data!E54 -> 1.064436999e-05 | J33: =Data!F54 -> 3.563367034e-06 | K33: =Data!G54 -> 7.081002951e-06 | L33: =Data!H54 -> 0
H34: =SUBSTITUTE(Data!D55,"(kg)","") -> Nitrate | I34: =Data!E55 -> 4.086527306e-08 | J34: =Data!F55 -> 2.888322693e-08 | K34: =Data!G55 -> 1.198204613e-08 | L34: =Data!H55 -> 0
H35: =SUBSTITUTE(Data!D56,"(kg)","") -> Nitrogen | I35: =Data!E56 -> 1.141735663e-07 | J35: =Data!F56 -> 1.140941226e-07 | K35: =Data!G56 -> 7.944364841e-11 | L35: =Data!H56 -> 0
H36: =SUBSTITUTE(Data!D57,"(kg)","") -> Phosphate | I36: =Data!E57 -> 4.206434459e-10 | J36: =Data!F57 -> 2.857985404e-10 | K36: =Data!G57 -> 1.348449055e-10 | L36: =Data!H57 -> 0
H37: =SUBSTITUTE(Data!D58,"(kg)","") -> Phosphorus | I37: =Data!E58 -> 1.618595436e-06 | J37: =Data!F58 -> 1.459394908e-07 | K37: =Data!G58 -> 1.472655945e-06 | L37: =Data!H58 -> 0
G38: Water | H38: =IF($C$14="SI","Water Withdrawal (L)","Water Withdrawal (Gal.)") -> Water Withdrawal (L) | I38: =Data!E59 -> 1.155966468 | J38: =Data!F59 -> 1.14462235 | K38: =Data!G59 -> 0.0113441182 | L38: =Data!H59 -> 0
H39: =IF($C$14="SI","Water Consumption (L)","Water Consumption (Gal.)") -> Water Consumption (L) | I39: =Data!E60 -> -0.5743777054 | J39: =Data!F60 -> -0.5791954196 | K39: =Data!G60 -> 0.004817714251 | L39: =Data!H60 -> 0
G40: Land Use | H40: =IF($C$14="SI","Area Changes (Km^2)","Area Changes (Acres)") -> Area Changes (Km^2) | I40: =IF($C$14="SI",Data!E61*0.0040468564224,Data!E61) -> 5.638046806e-08 | J40: =IF($C$14="SI",Data!F61*0.0040468564224,Data!F61) -> 5.638046806e-08 | K40: =IF($C$14="SI",Data!G61*0.0040468564224,Data!G61) -> 0 | L40: =IF($C$14="SI",Data!H61*0.0040468564224,Data!H61) -> 0
G41: EROI | H41: =IF($C$14="SI",Data!D62,SUBSTITUTE(Data!D62,"(MJ)","(MMBtu)")) -> Energy Input (MJ) | I41: =IF($C$14="SI",Data!E62,Data!E62*0.00094708628903179) -> 0.227623592 | J41: =IF($C$14="SI",Data!F62,Data!F62*0.00094708628903179) -> 0.1671765521 | K41: =IF($C$14="SI",Data!G62,Data!G62*0.00094708628903179) -> 0.06044703989 | L41: =IF($C$14="SI",Data!H62,Data!H62*0.00094708628903179) -> 0
G45: GHG Inventory | I45: Total | J45: RMA | K45: RMT | L45: ECF
G46: Air Emissions | H46: Carbon Dioxide | I46: =SUM(J46:L46) -> 0.03815635384 | J46: =J16 -> 0.0255123351 | K46: =K16 -> 0.01264401873 | L46: =L16 -> 0
H47: Methane | I47: =SUM(J47:L47) -> 0.2241798378 | J47: =J17*Calculations!$C$38 -> 0.2240077264 | K47: =K17*Calculations!$C$38 -> 0.0001721113174 | L47: =L17*Calculations!$C$38 -> 0
H48: Nitrous Oxide | I48: =SUM(J48:L48) -> 0.0002249819063 | J48: =J18*Calculations!$C$39 -> 0.0001338207951 | K48: =K18*Calculations!$C$39 -> 9.116111117e-05 | L48: =L18*Calculations!$C$39 -> 0
H49: Total | I49: 0.2625611735 | J49: =SUM(J46:J48) -> 0.2496538823 | K49: =SUM(K46:K48) -> 0.01290729116 | L49: =SUM(L46:L48) -> 0

Sheet Dashboard - Petro Baseline
B2: Include RMA | C2: On | E2: Include RMA 2* | F2: Off | H2: Include RMT | I2: On | L2: Include ECF | M2: On
B3: RMA Process List | C3: Not Set | E3: RMA Process List | F3: Not Set | H3: Num of Transp. Mode | I3: 0 | L3: ECF Process List | M3: Petroleum
H4: RMA Suggested RMT
B6: Parameters | C6: Value | E6: Parameters | F6: Value | H6: Transportation Mode** | I6: Unit | J6: Value | L6: Parameters | M6: Option
B7: Not Set | C7: Not Set | E7: Not Set | F7: Not Set | I7: =IF($H7<>"",VLOOKUP(H7,Parameters!$A$71:$C$81, 2, FALSE),"") ->  | L7: =IF($M$3<>"",INDIRECT(SUBSTITUTE($M$3," ","_")),"") -> Refinery Product | M7: Gasoline
B8: Not Set | C8: Not Set | E8: Not Set | F8: Not Set
B9: Not Set | C9: Not Set | E9: Not Set | F9: Not Set
B10: Not Set | C10: Not Set | E10: Not Set | F10: Not Set
B14: Units | C14: SI
G15: Life Cycle Inventory | I15: Total | J15: RMA | K15: RMT | L15: ECF
G16: Air Emissions | H16: =SUBSTITUTE(Data!D37,"(kg)","") -> Carbon Dioxide | I16: =SUM(J16:L16) -> 0.6329835722 | J16: ='Petro Baseline'!F3 -> 0.186497544 | K16: ='Petro Baseline'!G3 -> 0.05340301928 | L16: ='Petro Baseline'!H3 -> 0.393083009
H17: =SUBSTITUTE(Data!D38,"(kg)","") -> Methane | I17: =SUM(J17:L17) -> 0.004136629015 | J17: ='Petro Baseline'!F4 -> 0.003629076647 | K17: ='Petro Baseline'!G4 -> 2.902815896e-05 | L17: ='Petro Baseline'!H4 -> 0.000478524209
H18: =SUBSTITUTE(Data!D39,"(kg)","") -> Nitrous Oxide | I18: 1.243052065e-05 | J18: ='Petro Baseline'!F5 -> 5.008599051e-06 | K18: ='Petro Baseline'!G5 -> 1.078148341e-06 | L18: ='Petro Baseline'!H5 -> 6.343773261e-06
H19: =SUBSTITUTE(Data!D40,"(kg)","") -> Total GWP | I19: 0.7401035928 | J19: ='Petro Baseline'!F6 -> 0.2787170227 | K19: ='Petro Baseline'!G6 -> 0.05445001146 | L19: ='Petro Baseline'!H6 -> 0.4069365586
H20: =SUBSTITUTE(Data!D41,"(kg)","") -> Nitrogen Oxides | I20: 0.0008067987592 | J20: ='Petro Baseline'!F7 -> 0.0005814016717 | K20: ='Petro Baseline'!G7 -> 0.000111340882 | L20: ='Petro Baseline'!H7 -> 0.0001140562055
H21: =SUBSTITUTE(Data!D42,"(kg)","") -> Sulfur Dioxide | I21: 0.001620352954 | J21: ='Petro Baseline'!F8 -> 0.0009310026078 | K21: ='Petro Baseline'!G8 -> 0.0001444365418 | L21: ='Petro Baseline'!H8 -> 0.0005449138039
H22: =SUBSTITUTE(Data!D43,"(kg)","") -> Carbon Monoxide | I22: 0.0005937060167 | J22: ='Petro Baseline'!F9 -> 0.0004033550829 | K22: ='Petro Baseline'!G9 -> 2.79887199e-05 | L22: ='Petro Baseline'!H9 -> 0.0001623622139
H23: =SUBSTITUTE(Data!D44,"(kg)","") -> Particulate Matter | I23: 1.424708739e-05 | J23: ='Petro Baseline'!F10 -> 6.672260278e-06 | K23: ='Petro Baseline'!G10 -> 2.5323409e-06 | L23: ='Petro Baseline'!H10 -> 5.042486213e-06
H24: =SUBSTITUTE(Data!D45,"(kg)","") -> Lead | I24: 1.364658841e-08 | J24: ='Petro Baseline'!F11 -> 7.65242737e-09 | K24: ='Petro Baseline'!G11 -> 1.257857206e-09 | L24: ='Petro Baseline'!H11 -> 4.736303835e-09
H25: =SUBSTITUTE(Data!D46,"(kg)","") -> Mercury | I25: 1.168062513e-09 | J25: ='Petro Baseline'!F12 -> 2.793151359e-10 | K25: ='Petro Baseline'!G12 -> 2.1654604e-10 | L25: ='Petro Baseline'!H12 -> 6.722013371e-10
H26: =SUBSTITUTE(Data!D47,"(kg)","") -> Ammonia | I26: 6.957936262e-06 | J26: ='Petro Baseline'!F13 -> 2.01327183e-06 | K26: ='Petro Baseline'!G13 -> 1.009619e-06 | L26: ='Petro Baseline'!H13 -> 3.935045432e-06
H27: =SUBSTITUTE(Data!D48,"(kg)","") -> Radiation | I27: 4.611696135e-09 | J27: ='Petro Baseline'!F14 -> 3.295880817e-10 | K27: ='Petro Baseline'!G14 -> 1.426448405e-09 | L27: ='Petro Baseline'!H14 -> 2.855659648e-09
H28: =SUBSTITUTE(Data!D49,"(kg)","") -> Non Methane VOC | I28: 0.001723209804 | J28: ='Petro Baseline'!F15 -> 0.0007839778519 | K28: ='Petro Baseline'!G15 -> 0.0007628478526 | L28: ='Petro Baseline'!H15 -> 0.0001763840993
G29: Solid Waste | H29: =SUBSTITUTE(Data!D50,"(kg)","") -> Heavy Metals to Soil | I29: 1.218330593e-05 | J29: ='Petro Baseline'!F16 -> 1.104296168e-05 | K29: ='Petro Baseline'!G16 -> 8.481915627e-07 | L29: ='Petro Baseline'!H16 -> 2.921526926e-07
H30: =SUBSTITUTE(Data!D51,"(kg)","") -> Solid Waste | I30: 0.0001191344561 | J30: ='Petro Baseline'!F17 -> 0.0001191344561 | K30: ='Petro Baseline'!G17 -> 0 | L30: ='Petro Baseline'!H17 -> 0
G31: Water Emissions | H31: =SUBSTITUTE(Data!D52,"(kg)","") -> Aluminum | I31: 3.723824234e-07 | J31: ='Petro Baseline'!F18 -> 2.717064858e-08 | K31: ='Petro Baseline'!G18 -> 1.148427055e-07 | L31: ='Petro Baseline'!H18 -> 2.303690693e-07
H32: =SUBSTITUTE(Data!D53,"(kg)","") -> Ammonium/ammonia | I32: 1.35747713e-06 | J32: ='Petro Baseline'!F19 -> 1.008340604e-06 | K32: ='Petro Baseline'!G19 -> 1.478002827e-07 | L32: ='Petro Baseline'!H19 -> 2.01336243e-07
H33: =SUBSTITUTE(Data!D54,"(kg)","") -> Heavy Metals | I33: 0.002384339806 | J33: ='Petro Baseline'!F20 -> 3.443637741e-06 | K33: ='Petro Baseline'!G20 -> 4.772736576e-06 | L33: ='Petro Baseline'!H20 -> 0.002376123432
H34: =SUBSTITUTE(Data!D55,"(kg)","") -> Nitrate | I34: 2.105422424e-06 | J34: ='Petro Baseline'!F21 -> 1.250964048e-07 | K34: ='Petro Baseline'!G21 -> 6.391105379e-07 | L34: ='Petro Baseline'!H21 -> 1.341215481e-06
H35: =SUBSTITUTE(Data!D56,"(kg)","") -> Nitrogen | I35: 1.880991961e-09 | J35: ='Petro Baseline'!F22 -> 1.699256253e-09 | K35: ='Petro Baseline'!G22 -> 2.531052061e-11 | L35: ='Petro Baseline'!H22 -> 1.564251871e-10
H36: =SUBSTITUTE(Data!D57,"(kg)","") -> Phosphate | I36: 1.419927815e-08 | J36: ='Petro Baseline'!F23 -> 8.540177312e-09 | K36: ='Petro Baseline'!G23 -> 1.672728992e-09 | L36: ='Petro Baseline'!H23 -> 3.986371844e-09
H37: =SUBSTITUTE(Data!D58,"(kg)","") -> Phosphorus | I37: 0.0005130683214 | J37: ='Petro Baseline'!F24 -> 1.090151634e-07 | K37: ='Petro Baseline'!G24 -> 6.679493031e-09 | L37: ='Petro Baseline'!H24 -> 0.0005129526267
G38: Water | H38: =IF($C$14="SI","Water Withdrawal (L)","Water Withdrawal (Gal.)") -> Water Withdrawal (L) | I38: 0.5803327843 | J38: ='Petro Baseline'!F25 -> 0.1234746839 | K38: ='Petro Baseline'!G25 -> 0.1521752263 | L38: ='Petro Baseline'!H25 -> 0.3046828741
H39: =IF($C$14="SI","Water Consumption (L)","Water Consumption (Gal.)") -> Water Consumption (L) | I39: 2.541614241 | J39: ='Petro Baseline'!F26 -> 0.2340729712 | K39: ='Petro Baseline'!G26 -> 0.2035962737 | L39: ='Petro Baseline'!H26 -> 2.103944996
G40: Land Use | H40: =IF($C$14="SI","Area Changes (Km^2)","Area Changes (Acres)") -> Area Changes (Km^2) | I40: 1.099299861 | J40: ='Petro Baseline'!F27 -> 1.008696646 | K40: ='Petro Baseline'!G27 -> 0.03797374202 | L40: ='Petro Baseline'!H27 -> 0.05262947273
G41: EROI | H41: =IF($C$14="SI",Data!D62,SUBSTITUTE(Data!D62,"(MJ)","(MMBtu)")) -> Energy Input (MJ) | I41: 46.28551575 | J41: ='Petro Baseline'!F28 -> 42.56184103 | K41: ='Petro Baseline'!G28 -> 1.603242814 | L41: ='Petro Baseline'!H28 -> 2.120431906
G45: GHG Inventory | I45: Total | J45: RMA | K45: RMT | L45: ECF
G46: Air Emissions | H46: Carbon Dioxide | I46: =SUM(J46:L46) -> 0.6329835722 | J46: =J16 -> 0.186497544 | K46: =K16 -> 0.05340301928 | L46: =L16 -> 0.393083009
H47: Methane | I47: =SUM(J47:L47) -> 0.1034157254 | J47: =J17*Calculations!$C$38 -> 0.09072691618 | K47: =K17*Calculations!$C$38 -> 0.0007257039739 | L47: =L17*Calculations!$C$38 -> 0.01196310523
H48: Nitrous Oxide | I48: =SUM(J48:L48) -> 0.003704295155 | J48: =J18*Calculations!$C$39 -> 0.001492562517 | K48: =K18*Calculations!$C$39 -> 0.0003212882057 | L48: =L18*Calculations!$C$39 -> 0.001890444432
H49: Total | I49: 0.7401035928 | J49: =SUM(J46:J48) -> 0.2787170227 | K49: =SUM(K46:K48) -> 0.05445001146 | L49: =SUM(L46:L48) -> 0.4069365586

Sheet Macro Enabling

Sheet Unit Reference
B2: Feedstock | C2: Energy Density (SI Units) | E2: Energy Density (English Units) | H2: Volume Conversion Factors | I2: Density (SI Units) | K2: Density (English Units)
B3: Illinois 6 | C3: =E3/$K$14*$I$11 -> 27.135116 | D3: MJ/kg | E3: 11666 | F3: Btu/lb | H3: Natural Gas | I3: =K3/I11/K11 -> 0.6727754617 | J3: kg/m3 | K3: 0.042 | L3: lb/scf
B4: Powder River Basin | C4: =E4/$K$14*$I$11 -> 19.919864 | D4: MJ/kg | E4: 8564 | F4: Btu/lb | H4: Gasoline | I4: 117 | J4: kg/barrel | K4: =I4*$I$11 -> 257.9408468 | L4: lb/barrel
B5: Petroleum Domestic | C5: 42.08256163 | D5: MJ/kg | E5: 18092.2449 | F5: Btu/lb | H5: Diesel | I5: 135 | J5: kg/barrel | K5: =I5*$I$11 -> 297.6240539 | L5: lb/barrel
B6: Petroleum Foreign | C6: 42.08256163 | D6: MJ/kg | E6: 18092.2449 | F6: Btu/lb | H6: Jet Fuel | I6: 128 | J6: kg/barrel | K6: =I6*$I$11 -> 282.1916956 | L6: lb/barrel
B7: Gasoline | C7: 44.08837723 | D7: MJ/kg | E7: 18954.59038 | F7: Btu/lb | H7: Ethanol | I7: 0.789 | J7: kg/L | K7: =I7*$I$11*$K$13 -> 6.584524113 | L7: lb/gal
B8: Natural Gas | C8: 56.87845774 | D8: MJ/kg | E8: 24453.33523 | F8: Btu/lb | H8: Petroleum | I8: 139.1207568 | J8: kg/barrel | K8: =I8*$I$11 -> 306.7087676 | L8: lb/barrel
B9: Corn Grain | C9: 15.22367 | D9: MJ/kg | E9: 6545 | F9: Btu/lb
B10: Corn Stover | C10: 17.054232 | D10: MJ/kg | E10: 7332 | F10: Btu/lb | H10: Mass Conversions Factors | I10: 1 kg = * | K10: Other Conversions
B11: Switchgrass | C11: 17.595027 | D11: MJ/kg | E11: 7564.5 | F11: Btu/lb | H11: Pounds (lb) | I11: 2.204622622 | K11: =CONVERT(CONVERT(CONVERT(1,"ft","m"),"ft","m"),"ft","m") -> 0.02831684659 | L11: scf/m3
B12: Short Rotation Woody Crops | C12: 18.463788 | D12: MJ/kg | E12: 7938 | F12: Btu/lb | H12: Short ton | I12: 0.00110231131 | K12: 42 | L12: gal/barrel
B13: Ethanol | C13: =E13/$K$14*$I$11 -> 26.22201122 | D13: MJ/kg | E13: 11273.4356 | F13: Btu/lb | H13: Tonne | I13: 0.001 | K13: =CONVERT(1,"gal","l") -> 3.785411784 | L13: L/gal
B14: Uranium Fuel Assemblies | C14: =E14/$K$14*$I$11 -> 86385200.87 | D14: MJ/kg 235U | E14: 3.713895136e+10 | F14: Btu/lb 235U | K14: =CONVERT(1,"MJ","BTU") -> 947.8171203 | L14: Btu/MJ
B15: Diesel | C15: 43.05453935 | D15: MJ/kg | E15: 18510.1201 | F15: Btu/lb
B16: Jet Fuel | C16: =E16/$K$14*$I$11 -> 43.10154478 | D16: MJ/kg | E16: 18530.3288 | F16: Btu/lb
B18: IPCC 2007 Factor | C18: 20 Year | D18: 100 Year | E18: 500 Year
B19: CO2 | C19: 1 | D19: 1 | E19: 1
B20: CH4 | C20: 72 | D20: 25 | E20: 7.6
B21: N2O | C21: 289 | D21: 298 | E21: 153
B23: IPCC 2001 Factor | C23: 20 Year | D23: 100 Year | E23: 500 Year
B24: CO₂ | C24: 1 | D24: 1 | E24: 1
B25: CH₄ | C25: 62 | D25: 23 | E25: 7
B26: N₂O | C26: 275 | D26: 296 | E26: 156

Sheet Petro Baseline (hidden)
D1: Units: kg/kg fuel refined | F1: Gasoline | I1: Diesel | L1: Kero/Jet
F2: RMA | G2: RMT | H2: ECF | I2: RMA | J2: RMT | K2: ECF | L2: RMA | M2: RMT | N2: ECF
D3: Carbon dioxide | E3: Emission to air | F3: =SUM(F115:F117) -> 0.186497544 | G3: =SUM(G115:G117) -> 0.05340301928 | H3: 0.393083009 | I3: 0.1923707642 | J3: 0.05543629403 | K3: 0.3787254791 | L3: 0.1860085552 | M3: 0.05366232444 | N3: 0.2385651691
D4: Methane | E4: Emission to air | F4: =F154 -> 0.003629076647 | G4: =G154 -> 2.902815896e-05 | H4: 0.000478524209 | I4: 0.003689825798 | J4: 2.986356756e-05 | K4: 0.0004653383473 | L4: 0.003554977609 | M4: 2.882823034e-05 | N4: 0.0002930050794
D5: Nitrous oxide (laughing gas) | E5: Emission to air | F5: =F140 -> 5.008599051e-06 | G5: =G140 -> 1.078148341e-06 | H5: 6.343773261e-06 | I5: 5.205936093e-06 | J5: 1.115735456e-06 | K5: 5.828040352e-06 | L5: 5.002835829e-06 | M5: 1.083089673e-06 | N5: 3.681674005e-06
D6: GWP | F6: =F3+F4*25+F5*298 -> 0.2787170227 | G6: =G3+G4*25+G5*298 -> 0.05445001146 | H6: 0.4069365586 | I6: 0.2861677781 | J6: 0.05651537238 | K6: 0.3920956938 | L6: 0.2763738405 | M6: 0.05470579092 | N6: 0.2469874349
D7: Nitrogen oxides | E7: Emission to air | F7: =F139 -> 0.0005814016717 | G7: =G139 -> 0.000111340882 | H7: 0.0001140562055 | I7: 0.0005893061703 | J7: 0.0001094181211 | K7: 0.0001084279865 | L7: 0.0005704689455 | M7: 0.0001067454981 | N7: 6.83856702e-05
D8: Sulphur dioxide | E8: Emission to air | F8: =F145 -> 0.0009310026078 | G8: =G145 -> 0.0001444365418 | H8: 0.0005449138039 | I8: 0.0009437946069 | J8: 0.0001384856049 | K8: 0.000505764239 | L8: 0.0009011665056 | M8: 0.0001345931296 | N8: 0.0003194506156
D9: Carbon monoxide | E9: Emission to air | F9: =F119 -> 0.0004033550829 | G9: =G119 -> 2.79887199e-05 | H9: 0.0001623622139 | I9: 0.0004175769389 | J9: 2.548627038e-05 | K9: 0.000152541872 | L9: 0.0004023004183 | M9: 2.508875144e-05 | N9: 9.627671352e-05
D10: Dust (unspecified) | E10: Emission to air | F10: =F162 -> 6.672260278e-06 | G10: =G162 -> 2.5323409e-06 | H10: 5.042486213e-06 | I10: 6.532706281e-06 | J10: 2.520630195e-06 | K10: 5.218651433e-06 | L10: 6.38082127e-06 | M10: 2.434979819e-06 | N10: 3.285063841e-06
D11: Lead (+II) | E11: Emission to air | F11: =F92 -> 7.65242737e-09 | G11: =G92 -> 1.257857206e-09 | H11: 4.736303835e-09 | I11: 7.857089982e-09 | J11: 1.228236446e-09 | K11: 4.480157061e-09 | L11: 7.556375797e-09 | M11: 1.205870542e-09 | N11: 2.826492374e-09
D12: Mercury (+II) | E12: Emission to air | F12: =F94 -> 2.793151359e-10 | G12: =G94 -> 2.1654604e-10 | H12: 6.722013371e-10 | I12: 2.816645744e-10 | J12: 2.277253169e-10 | K12: 6.289874746e-10 | L12: 2.696395988e-10 | M12: 2.178556374e-10 | N12: 3.970845964e-10
D13: Ammonia | E13: Emission to air | F13: =F108 -> 2.01327183e-06 | G13: =G108 -> 1.009619e-06 | H13: 3.935045432e-06 | I13: 2.178760838e-06 | J13: 1.09498739e-06 | K13: 3.572996609e-06 | L13: 2.03894413e-06 | M13: 1.053702521e-06 | N13: 2.259847762e-06
D14: Radioactive emissions to air | E14: Emission to air | F14: =F165 -> 3.295880817e-10 | G14: =G165 -> 1.426448405e-09 | H14: 2.855659648e-09 | I14: 2.35715279e-10 | J14: 1.503680917e-09 | K14: 2.682566539e-09 | L14: 2.547019134e-10 | M14: 1.43659668e-09 | N14: 1.69311954e-09
D15: Group NMVOC to air | E15: Emission to air | F15: =F153 -> 0.0007839778519 | G15: =G153 -> 0.0007628478526 | H15: 0.0001763840993 | I15: 0.0008066154035 | J15: 0.0008183844681 | K15: 0.000163627551 | L15: 0.0007676125735 | M15: 0.0007676392597 | N15: 0.0001033534969
D16: Heavy metals to industrial soil | E16: Solid Waste | F16: =F213 -> 1.104296168e-05 | G16: =G213 -> 8.481915627e-07 | H16: 2.921526926e-07 | I16: 1.034339358e-05 | J16: 3.795900396e-07 | K16: 3.178976211e-07 | L16: 1.082068364e-05 | M16: 4.339634402e-07 | N16: 1.989784566e-07
D17: Waste (solid) | E17: Solid Waste | F17: =F77 -> 0.0001191344561 | G17: =G77 -> 0 | H17: 0 | I17: 0.0001294672682 | J17: 0 | K17: 0 | L17: 0.0001210863612 | M17: 0 | N17: 0
D18: Aluminum (+III) | E18: Emission to water | F18: =F171 -> 2.717064858e-08 | G18: =G171 -> 1.148427055e-07 | H18: 2.303690693e-07 | I18: 2.000222123e-08 | J18: 1.211755509e-07 | K18: 0.0004680006205 | L18: 2.139632566e-08 | M18: 1.157455378e-07 | N18: 0.0004917126258
D19: Ammonium / ammonia | E19: Emission to water | F19: =F174 -> 1.008340604e-06 | G19: =G174 -> 1.478002827e-07 | H19: 2.01336243e-07 | I19: 9.707177047e-07 | J19: 1.195336219e-07 | K19: 1.914934997e-07 | L19: 9.976259852e-07 | M19: 1.191870821e-07 | N19: 1.207718955e-07
D20: Heavy metals to fresh water | E20: Emission to water | F20: =F168 -> 3.443637741e-06 | G20: =G168 -> 4.772736576e-06 | H20: 0.002376123432 | I20: 3.457697675e-06 | J20: 5.081824994e-06 | K20: 0.002072253431 | L20: 3.315932512e-06 | M20: 4.84390302e-06 | N20: 0.002172032967
D21: Nitrate | E21: Emission to water | F21: =F192 -> 1.250964048e-07 | G21: =G192 -> 6.391105379e-07 | H21: 1.341215481e-06 | I21: 1.207931964e-07 | J21: 6.872226166e-07 | K21: 1.258227798e-06 | L21: 1.189913709e-07 | M21: 6.536827135e-07 | N21: 7.942035468e-07
D22: Nitrogen | E22: Emission to water | F22: =F193 -> 1.699256253e-09 | G22: 2.531052061e-11 | H22: 1.564251871e-10 | I22: 1.806463204e-09 | J22: 1.941327045e-11 | K22: 1.6908889e-10 | L22: 1.68902632e-09 | M22: 1.967319339e-11 | N22: 1.058731622e-10
D23: Phosphate | E23: Emission to water | F23: =F195 -> 8.540177312e-09 | G23: =G195 -> 1.672728992e-09 | H23: 3.986371844e-09 | I23: 8.6685401e-09 | J23: 1.642704462e-09 | K23: 3.805205954e-09 | L23: 8.329965107e-09 | M23: 1.590564667e-09 | N23: 2.399364259e-09
D24: Phosphorus | E24: Emission to water | F24: =F196 -> 1.090151634e-07 | G24: 6.679493031e-09 | H24: 0.0005129526267 | I24: 1.0536193e-07 | J24: 2.993749939e-09 | K24: 0.0004470135034 | L24: 1.082828989e-07 | M24: 3.423343844e-09 | N24: 0.0004697478485
D25: Water Out | E25: Emission to water | F25: =F68 -> 0.1234746839 | G25: =G68 -> 0.1521752263 | H25: 0.3046828741 | I25: 0.1162469307 | J25: 0.1590853516 | K25: 0.2874636905 | L25: 0.11941795 | M25: 0.1525112825 | N25: 0.1813867567
D26: Water In | F26: =F48 -> 0.2340729712 | G26: =G48 -> 0.2035962737 | H26: 2.103944996 | I26: 0.2293625853 | J26: 0.2124575998 | K26: 1.866203969 | L26: 0.2281748709 | M26: 0.2036034066 | N26: 1.79318829
D27: Energy resources (kg) | F27: =F41 -> 1.008696646 | G27: =G41 -> 0.03797374202 | H27: 0.05262947273 | I27: 1.023177209 | J27: 0.0218980363 | K27: 0.05539157422 | L27: 1.020071087 | M27: 0.02365296335 | N27: 0.03473272646
D28: Energy resources (MJ) | F28: =F42 -> 42.56184103 | G28: 1.603242814 | H28: 2.120431906 | I28: 43.1428975 | J28: 0.9164071279 | K28: 2.229768683 | L28: 43.03682582 | M28: 0.9920339049 | N28: 1.398220506
F37: Gasoline | I37: Diesel | L37: Kero/Jet
F38: RMA | G38: RMT | H38: ECF | I38: RMA | J38: RMT | K38: ECF | L38: RMA | M38: RMT | N38: ECF
A39: Flows | B39: Flows | C39: Flows | D39: Flows | E39: Flows | F39: 1.550031466 | G39: 0.524202785 | H39: 2.51184414 | I39: 1.568837669 | J39: 0.4492894522 | K39: 2.238877311 | L39: 1.549784208 | M39: 0.4963008859 | N39: 2.028805003
B40: Resources | C40: Resources | D40: Resources | E40: Resources | F40: 1.550031466 | G40: 0.524202785 | H40: 2.51184414 | I40: 1.568837669 | J40: 0.4492894522 | K40: 2.238877311 | L40: 1.549784208 | M40: 0.4963008859 | N40: 2.028805003
C41: Energy resources | D41: Energy resources | E41: Energy resources | F41: 1.008696646 | G41: 0.03797374202 | H41: 0.05262947273 | I41: 1.023177209 | J41: 0.0218980363 | K41: 0.05539157422 | L41: 1.020071087 | M41: 0.02365296335 | N41: 0.03473272646
F42: 42.56184103 | G42: 1.603242814 | H42: 2.120431906 | I42: 43.1428975 | J42: 0.9164071279 | K42: 2.229768683 | L42: 43.03682582 | M42: 0.9920339049 | N42: 1.398220506
C43: Land use | D43: Land use | E43: Land use | F43: 0 | G43: 0 | H43: 0 | I43: 0 | J43: 0 | K43: 0 | L43: 0 | M43: 0 | N43: 0
C44: Material resources | D44: Material resources | E44: Material resources | F44: 0.5413348195 | G44: 0.359029043 | H44: 2.459214667 | I44: 0.5456604601 | J44: 0.3758914159 | K44: 2.183485737 | L44: 0.5297131204 | M44: 0.3597479225 | N44: 1.994072277
D45: Non renewable elements | E45: Non renewable elements | F45: 1.906968414e-11 | G45: 2.096636964e-12 | H45: 4.389497808e-12 | I45: 1.801356584e-11 | J45: 1.399861322e-12 | K45: 4.54808874e-12 | L45: 1.719023271e-11 | M45: 1.39849063e-12 | N45: 2.85428687e-12
D46: Non renewable resources | E46: Non renewable resources | F46: 0.1962360792 | G46: 0.03721049891 | H46: 0.08784523226 | I46: 0.2065743383 | J46: 0.0386586743 | K46: 0.08521227561 | L46: 0.1939819035 | M46: 0.03704923291 | N46: 0.05367916871
D47: Renewable resources | E47: Renewable resources | F47: 0.3450987403 | G47: 0.321818544 | H47: 2.371369435 | I47: 0.3390861217 | J47: 0.3372327416 | K47: 2.098273462 | L47: 0.3357312169 | M47: 0.3226986896 | N47: 1.940393108
E48: Water | F48: 0.2340729712 | G48: 0.2035962737 | H48: 2.103944996 | I48: 0.2293625853 | J48: 0.2124575998 | K48: 1.866203969 | L48: 0.2281748709 | M48: 0.2036034066 | N48: 1.79318829
E49: Air | F49: 0.1108629706 | G49: 0.1181761995 | H49: 0.2671998644 | I49: 0.1095916512 | J49: 0.124740271 | K49: 0.2318271322 | L49: 0.1074194325 | M49: 0.1190590421 | N49: 0.1470530536
E50: Carbon dioxide | F50: 0.0001627984416 | G50: 4.585697795e-05 | H50: 0.0002241896513 | I50: 0.0001318852295 | J50: 3.463927458e-05 | K50: 0.0002420106264 | L50: 0.0001369134638 | M50: 3.602101624e-05 | N50: 0.0001515432725
E51: Nitrogen | F51: 4.097349046e-11 | G51: 1.054034143e-12 | H51: 2.639906512e-12 | I51: 4.25904981e-11 | J51: 5.828852645e-13 | K51: 2.856369978e-12 | L51: 4.042193964e-11 | M51: 6.241257167e-13 | N51: 1.788393539e-12
E52: Oxygen | F52: 1.096091143e-13 | G52: 2.13830697e-07 | H52: 3.847216124e-07 | I52: 2.828495652e-14 | J52: 2.315463169e-07 | K52: 3.502616687e-07 | L52: 3.520699042e-14 | M52: 2.198891692e-07 | N52: 2.214967528e-07
C53: Crude Oil Virgin Islands | D53: Crude Oil Virgin Islands | E53: Crude Oil Virgin Islands | F53: 0 | G53: 0 | H53: 0 | I53: 0 | J53: 0 | K53: 0 | L53: 0 | M53: 0 | N53: 0
C54: Finished Fuels Average Crude Oil | D54: Finished Fuels Average Crude Oil | E54: Finished Fuels Average Crude Oil | F54: 0 | G54: 0 | H54: 0 | I54: 0 | J54: 0 | K54: 0 | L54: 0 | M54: 0 | N54: 0
C55: Finished Fuels Average Crude Oil to RMT - Gasoline | D55: Finished Fuels Average Crude Oil to RMT - Gasoline | E55: Finished Fuels Average Crude Oil to RMT - Gasoline | F55: 0 | G55: 0.1272 | H55: 0 | I55: 0 | J55: 0.0515 | K55: 0 | L55: 0 | M55: 0.1129 | N55: 0
C56: Finished Fuels Canadian Crude Oil | D56: Finished Fuels Canadian Crude Oil | E56: Finished Fuels Canadian Crude Oil | F56: 0 | G56: 0 | H56: 0 | I56: 0 | J56: 0 | K56: 0 | L56: 0 | M56: 0 | N56: 0
C57: Finished Fuels South Korean Crude Oil | D57: Finished Fuels South Korean Crude Oil | E57: Finished Fuels South Korean Crude Oil | F57: 0 | G57: 0 | H57: 0 | I57: 0 | J57: 0 | K57: 0 | L57: 0 | M57: 0 | N57: 0
C58: Finished Fuels Virgin Islands Crude Oil | D58: Finished Fuels Virgin Islands Crude Oil | E58: Finished Fuels Virgin Islands Crude Oil | F58: 0 | G58: 0 | H58: 0 | I58: 0 | J58: 0 | K58: 0 | L58: 0 | M58: 0 | N58: 0
A60: &Outputs
F62: RMA | G62: RMT | H62: ECF | I62: RMA | J62: RMT | K62: ECF | L62: RMA | M62: RMT | N62: ECF
A63: Flows | B63: Flows | C63: Flows | D63: Flows | E63: Flows | F63: 0.5238970407 | G63: 0.4877119616 | H63: 1.041805506 | I63: 0.4406912539 | J63: 0.4294529743 | K63: 0.9711876954 | L63: 0.4987393115 | M63: 0.4750712751 | N63: 0.6165163617
B64: Resources | C64: Resources | D64: Resources | E64: Resources | F64: 0.2506746839 | G64: 0.2793752263 | H64: 0.3046828741 | I64: 0.1677469307 | J64: 0.2105853516 | K64: 0.2874636905 | L64: 0.23231795 | M64: 0.2654112825 | N64: 0.1813867567
C65: Energy resources | D65: Energy resources | E65: Energy resources | F65: 0 | G65: 0 | H65: 0 | I65: 0 | J65: 0 | K65: 0 | L65: 0 | M65: 0 | N65: 0
C66: Material resources | D66: Material resources | E66: Material resources | F66: 0.1234746839 | G66: 0.1521752263 | H66: 0.3046828741 | I66: 0.1162469307 | J66: 0.1590853516 | K66: 0.2874636905 | L66: 0.11941795 | M66: 0.1525112825 | N66: 0.1813867567
D67: Renewable resources | E67: Renewable resources | F67: 0.1234746839 | G67: 0.1521752263 | H67: 0.3046828741 | I67: 0.1162469307 | J67: 0.1590853516 | K67: 0.2874636905 | L67: 0.11941795 | M67: 0.1525112825 | N67: 0.1813867567
E68: Water | F68: 0.1234746839 | G68: 0.1521752263 | H68: 0.3046828741 | I68: 0.1162469307 | J68: 0.1590853516 | K68: 0.2874636905 | L68: 0.11941795 | M68: 0.1525112825 | N68: 0.1813867567
C69: Crude Oil Virgin Islands | D69: Crude Oil Virgin Islands | E69: Crude Oil Virgin Islands | F69: 0 | G69: 0 | H69: 0 | I69: 0 | J69: 0 | K69: 0 | L69: 0 | M69: 0 | N69: 0
C70: Finished Fuels Average Crude Oil | D70: Finished Fuels Average Crude Oil | E70: Finished Fuels Average Crude Oil | F70: 0 | G70: 0.1272 | H70: 0 | I70: 0 | J70: 0.0515 | K70: 0 | L70: 0 | M70: 0.1129 | N70: 0
C71: Finished Fuels Average Crude Oil to RMT - Gasoline | D71: Finished Fuels Average Crude Oil to RMT - Gasoline | E71: Finished Fuels Average Crude Oil to RMT - Gasoline | F71: 0.1272 | G71: 0 | H71: 0 | I71: 0.0515 | J71: 0 | K71: 0 | L71: 0.1129 | M71: 0 | N71: 0
C72: Finished Fuels Canadian Crude Oil | D72: Finished Fuels Canadian Crude Oil | E72: Finished Fuels Canadian Crude Oil | F72: 0 | G72: 0 | H72: 0 | I72: 0 | J72: 0 | K72: 0 | L72: 0 | M72: 0 | N72: 0
C73: Finished Fuels South Korean Crude Oil | D73: Finished Fuels South Korean Crude Oil | E73: Finished Fuels South Korean Crude Oil | F73: 0 | G73: 0 | H73: 0 | I73: 0 | J73: 0 | K73: 0 | L73: 0 | M73: 0 | N73: 0
C74: Finished Fuels Virgin Islands Crude Oil | D74: Finished Fuels Virgin Islands Crude Oil | E74: Finished Fuels Virgin Islands Crude Oil | F74: 0 | G74: 0 | H74: 0 | I74: 0 | J74: 0 | K74: 0 | L74: 0 | M74: 0 | N74: 0
B75: Production residues in life cycle | C75: Production residues in life cycle | D75: Production residues in life cycle | E75: Production residues in life cycle | F75: 0.0001191344561 | G75: 0 | H75: 0 | I75: 0.0001294672682 | J75: 0 | K75: 0 | L75: 0.0001210863612 | M75: 0 | N75: 0
C76: Waste for disposal | D76: Waste for disposal | E76: Waste for disposal | F76: 0.0001191344561 | G76: 0 | H76: 0 | I76: 0.0001294672682 | J76: 0 | K76: 0 | L76: 0.0001210863612 | M76: 0 | N76: 0
D77: Waste (solid) | E77: Waste (solid) | F77: 0.0001191344561 | G77: 0 | H77: 0 | I77: 0.0001294672682 | J77: 0 | K77: 0 | L77: 0.0001210863612 | M77: 0 | N77: 0
B78: Emissions to air | C78: Emissions to air | D78: Emissions to air | E78: Emissions to air | F78: 0.2475694768 | G78: 0.2066127897 | H78: 0.7267574876 | I78: 0.2483394752 | J78: 0.2180380404 | K78: 0.6744915055 | L78: 0.2417542935 | M78: 0.2087206614 | N78: 0.4259167905
C79: Heavy metals to air | D79: Heavy metals to air | E79: Heavy metals to air | F79: 1.124738979e-07 | G79: 2.649998416e-08 | H79: 6.183434799e-08 | I79: 1.085369327e-07 | J79: 2.435386646e-08 | K79: 5.805903774e-08 | L79: 1.132318235e-07 | M79: 2.40710939e-08 | N79: 3.664538298e-08
D80: Antimony | E80: Antimony | F80: 1.266941832e-10 | G80: 2.234424566e-10 | H80: 3.843986658e-10 | I80: 8.742481285e-11 | J80: 2.242755474e-10 | K80: 3.62291333e-10 | L80: 1.26668771e-10 | M80: 2.227813617e-10 | N80: 2.286168712e-10
D81: Arsenic (+V) | E81: Arsenic (+V) | F81: 9.190809056e-10 | G81: 2.2208598e-09 | H81: 4.801794982e-09 | I81: 8.212867723e-10 | J81: 2.345992124e-09 | K81: 4.500492715e-09 | L81: 8.657381583e-10 | M81: 2.242985945e-09 | N81: 2.840908073e-09
D82: Arsenic trioxide | E82: Arsenic trioxide | F82: 4.634630703e-13 | G82: 5.064139197e-15 | H82: 3.953124324e-14 | I82: 4.928453373e-13 | J82: 3.34992792e-15 | K82: 4.336464952e-14 | L82: 4.607475401e-13 | M82: 3.508718034e-15 | N82: 2.713122775e-14
D83: Cadmium (+II) | E83: Cadmium (+II) | F83: 1.657801933e-10 | G83: 1.243611431e-10 | H83: 2.53551512e-10 | I83: 1.641717782e-10 | J83: 1.295059748e-10 | K83: 2.406744417e-10 | L83: 1.617478928e-10 | M83: 1.249104746e-10 | N83: 1.518078001e-10
D84: Chromium (+III) | E84: Chromium (+III) | F84: 9.61487484e-11 | G84: 1.41988347e-12 | H84: 8.919183817e-12 | I84: 1.022071906e-10 | J84: 1.082504829e-12 | K84: 9.648682016e-12 | L84: 9.556376737e-11 | M84: 1.098465383e-12 | N84: 6.04116955e-12
D85: Chromium (unspecified) | E85: Chromium (unspecified) | F85: 5.233274483e-10 | G85: 2.382288725e-10 | H85: 4.77640527e-10 | I85: 4.820731932e-10 | J85: 2.298738586e-10 | K85: 4.579419078e-10 | L85: 4.975735894e-10 | M85: 2.270445576e-10 | N85: 2.886785448e-10
D86: Cobalt | E86: Cobalt | F86: 3.21800198e-10 | G86: 1.363711848e-10 | H86: 2.790599744e-10 | I86: 2.867733558e-10 | J86: 1.26926308e-10 | K86: 2.633319161e-10 | L86: 3.132787168e-10 | M86: 1.281481913e-10 | N86: 1.66158189e-10
D87: Copper (+II) | E87: Copper (+II) | F87: 1.605826716e-09 | G87: 2.641412451e-10 | H87: 5.788888563e-10 | I87: 1.67763374e-09 | J87: 2.65398867e-10 | K87: 5.598403716e-10 | L87: 1.597766869e-09 | M87: 2.586386421e-10 | N87: 3.527323915e-10
D88: Heavy metals to air (unspecified) | E88: Heavy metals to air (unspecified) | F88: 4.225785843e-12 | G88: 1.227929393e-12 | H88: 2.593797566e-12 | I88: 4.373241026e-12 | J88: 1.268663078e-12 | K88: 2.474808487e-12 | L88: 4.11834549e-12 | M88: 1.213170133e-12 | N88: 1.560527003e-12
D89: Hydrogen arsenic (arsine) | E89: Hydrogen arsenic (arsine) | F89: 3.84681196e-11 | G89: 4.203235534e-13 | H89: 3.280998336e-12 | I89: 4.090690716e-11 | J89: 2.780440174e-13 | K89: 3.599412303e-12 | L89: 3.824274181e-11 | M89: 2.912235968e-13 | N89: 2.251975288e-12
D90: Iron | E90: Iron | F90: 1.048600322e-09 | G90: 8.599903174e-11 | H90: 3.219429496e-10 | I90: 1.073352476e-09 | J90: 7.503448682e-11 | K90: 3.14325173e-10 | L90: 1.024041921e-09 | M90: 7.441164192e-11 | N90: 1.979326158e-10
D91: Lanthanides | E91: Lanthanides | F91: 1.374560938e-13 | G91: 1.364360395e-14 | H91: 2.774979611e-14 | I91: 1.333150283e-13 | J91: 9.640082276e-15 | K91: 2.85354908e-14 | L91: 1.267968809e-13 | M91: 9.944533128e-15 | N91: 1.791581973e-14
D92: Lead (+II) | E92: Lead (+II) | F92: 7.65242737e-09 | G92: 1.257857206e-09 | H92: 4.736303835e-09 | I92: 7.857089982e-09 | J92: 1.228236446e-09 | K92: 4.480157061e-09 | L92: 7.556375797e-09 | M92: 1.205870542e-09 | N92: 2.826492374e-09
D93: Manganese (+II) | E93: Manganese (+II) | F93: 2.945901322e-09 | G93: 5.873731911e-10 | H93: 1.263073178e-09 | I93: 2.974816547e-09 | J93: 5.674238594e-10 | K93: 1.216255447e-09 | L93: 2.85575582e-09 | M93: 5.559323303e-10 | N93: 7.665079973e-10
D94: Mercury (+II) | E94: Mercury (+II) | F94: 2.793151359e-10 | G94: 2.1654604e-10 | H94: 6.722013371e-10 | I94: 2.816645744e-10 | J94: 2.277253169e-10 | K94: 6.289874746e-10 | L94: 2.696395988e-10 | M94: 2.178556374e-10 | N94: 3.970845964e-10
D95: Molybdenum | E95: Molybdenum | F95: 6.992518534e-11 | G95: 4.900256679e-12 | H95: 2.140390902e-11 | I95: 7.196396385e-11 | J95: 4.251039558e-12 | K95: 2.087751568e-11 | L95: 6.874613895e-11 | M95: 4.23011251e-12 | N95: 1.314744299e-11
D96: Nickel (+II) | E96: Nickel (+II) | F96: 1.333798979e-08 | G96: 1.298218293e-09 | H96: 2.868186823e-09 | I96: 1.312376745e-08 | J96: 9.676992921e-10 | K96: 2.68839331e-09 | L96: 1.348992396e-08 | M96: 1.007560608e-09 | N96: 1.697024442e-09
D97: Palladium | E97: Palladium | F97: 1.804572825e-18 | G97: 3.789029128e-19 | H97: 4.454029773e-18 | I97: 1.746528454e-18 | J97: 3.372840189e-19 | K97: 4.864237809e-18 | L97: 1.752457253e-18 | M97: 3.405079228e-19 | N97: 3.044037619e-18
D98: Rhodium | E98: Rhodium | F98: 1.742014479e-18 | G98: 3.657675623e-19 | H98: 4.299649391e-18 | I98: 1.685982357e-18 | J98: 3.255914622e-19 | K98: 4.695569261e-18 | L98: 1.691705594e-18 | M98: 3.287036036e-19 | N98: 2.93848723e-18
D99: Selenium | E99: Selenium | F99: 1.115258039e-09 | G99: 5.49275911e-09 | H99: 1.108342927e-08 | I99: 8.871565192e-10 | J99: 5.837035231e-09 | K99: 1.04194646e-08 | L99: 9.970285268e-10 | M99: 5.579455066e-09 | N99: 6.576013101e-09
D100: Silver | E100: Silver | F100: 3.926856396e-19 | G100: 4.669918253e-19 | H100: 8.829990242e-19 | I100: 3.307190402e-19 | J100: 4.754939816e-19 | K100: 8.319939176e-19 | L100: 3.351027187e-19 | M100: 4.575366426e-19 | N100: 5.25022013e-19
D101: Tellurium | E101: Tellurium | F101: 1.282051933e-11 | G101: 1.893163549e-13 | H101: 1.189221175e-12 | I101: 1.362837178e-11 | J101: 1.443326384e-13 | K101: 1.286459169e-12 | L101: 1.274253335e-11 | M101: 1.464607184e-13 | N101: 8.054703199e-13
D102: Thallium | E102: Thallium | F102: 9.432414938e-11 | G102: 1.355092017e-12 | H102: 8.710205296e-12 | I102: 1.002696067e-10 | J102: 1.021531185e-12 | K102: 9.433176731e-12 | L102: 9.375037928e-11 | M102: 1.038977004e-12 | N102: 5.905887264e-12
D103: Tin (+IV) | E103: Tin (+IV) | F103: 4.769659322e-10 | G103: 2.0754375e-09 | H103: 4.18815477e-09 | I103: 3.753776113e-10 | J103: 2.199258887e-09 | K103: 3.936562009e-09 | L103: 3.888232963e-10 | M103: 2.096082877e-09 | N103: 2.484500147e-09
D104: Titanium | E104: Titanium | F104: 7.979768957e-12 | G104: 9.911475453e-13 | H104: 2.114614691e-12 | I104: 7.821679307e-12 | J104: 8.040948694e-13 | K104: 2.127082828e-12 | L104: 7.421781718e-12 | M104: 8.044500032e-13 | N104: 1.337134003e-12
D105: Vanadium (+III) | E105: Vanadium (+III) | F105: 7.62415506e-08 | G105: 9.312366537e-09 | H105: 2.384453087e-08 | I105: 7.287250311e-08 | J105: 6.924889835e-09 | K105: 2.221124152e-08 | L105: 7.751658641e-08 | M105: 7.193718082e-09 | N105: 1.402596988e-08
D106: Zinc (+II) | E106: Zinc (+II) | F106: 5.388886532e-09 | G106: 2.955499894e-09 | H106: 6.032911213e-09 | I106: 5.230043702e-09 | J106: 2.99572723e-09 | K106: 5.729559408e-09 | L106: 5.249700916e-09 | M106: 2.926861633e-09 | N106: 3.613861296e-09
C107: Inorganic emissions to air | D107: Inorganic emissions to air | E107: Inorganic emissions to air | F107: 0.2022201406 | G107: 0.1090146891 | H107: 0.5069153647 | I107: 0.2056742587 | J107: 0.1144140359 | K107: 0.483677471 | L107: 0.1998183184 | M107: 0.1099315626 | N107: 0.3048824489
D108: Ammonia | E108: Ammonia | F108: 2.01327183e-06 | G108: 1.009619e-06 | H108: 3.935045432e-06 | I108: 2.178760838e-06 | J108: 1.09498739e-06 | K108: 3.572996609e-06 | L108: 2.03894413e-06 | M108: 1.053702521e-06 | N108: 2.259847762e-06
D109: Ammonium | E109: Ammonium | F109: 3.310550215e-14 | G109: 7.334184333e-14 | H109: 1.395793711e-13 | I109: 2.68030343e-14 | J109: 7.636457839e-14 | K109: 1.304001402e-13 | L109: 2.772820794e-14 | M109: 7.292223493e-14 | N109: 8.233044253e-14
D110: Ammonium nitrate | E110: Ammonium nitrate | F110: 5.347544255e-14 | G110: 6.128466085e-15 | H110: 1.250533067e-14 | I110: 5.017473972e-14 | J110: 4.078188351e-15 | K110: 1.293715756e-14 | L110: 4.793585875e-14 | M110: 4.074201915e-15 | N110: 8.119787883e-15
D111: Barium | E111: Barium | F111: 5.26217177e-06 | G111: 6.089647788e-08 | H111: 4.541457098e-07 | I111: 5.595466332e-06 | J111: 4.160377033e-08 | K111: 4.971364512e-07 | L111: 5.231303668e-06 | M111: 4.328050417e-08 | N111: 3.110693631e-07
D112: Beryllium | E112: Beryllium | F112: 4.714850328e-11 | G112: 2.852741057e-11 | H112: 6.434696466e-11 | I112: 4.548557186e-11 | J112: 2.904415393e-11 | K112: 6.051754403e-11 | L112: 4.657541537e-11 | M112: 2.817681242e-11 | N112: 3.819332767e-11
D113: Boron compounds (unspecified) | E113: Boron compounds (unspecified) | F113: 8.991172849e-09 | G113: 3.787895888e-08 | H113: 7.738103674e-08 | I113: 7.434247656e-09 | J113: 4.023322028e-08 | K113: 7.289962481e-08 | L113: 7.800024232e-09 | M113: 3.840511016e-08 | N113: 4.600307277e-08
D114: Bromine | E114: Bromine | F114: 3.783901135e-09 | G114: 1.634433769e-08 | H114: 3.296083807e-08 | I114: 3.104202957e-09 | J114: 1.735360897e-08 | K114: 3.101624595e-08 | L114: 3.482863268e-09 | M114: 1.661084258e-08 | N114: 1.957406609e-08
D115: Carbon dioxide | E115: Carbon dioxide | F115: 0.1864622237 | G115: 0.05337731461 | H115: 0.3930061771 | I115: 0.1923587063 | J115: 0.05541743573 | K115: 0.3786422317 | L115: 0.1859896692 | M115: 0.05364293814 | N115: 0.2385130511
D116: Carbon dioxide (biotic) | E116: Carbon dioxide (biotic) | F116: 2.877122356e-05 | G116: 3.169065734e-07 | H116: 0 | I116: 4.940837077e-06 | J116: 2.454321657e-07 | K116: 0 | L116: 1.222964098e-05 | M116: 3.032270454e-07 | N116: 0
D117: Carbon dioxide (biotic) | E117: Carbon dioxide (biotic) | F117: 6.549067891e-06 | G117: 2.5387762e-05 | H117: 7.683184611e-05 | I117: 7.117083976e-06 | J117: 1.8612867e-05 | K117: 8.324735776e-05 | L117: 6.656368155e-06 | M117: 1.908306432e-05 | N117: 5.211800381e-05
D118: Carbon disulphide | E118: Carbon disulphide | F118: 4.758288073e-13 | G118: 1.329008069e-13 | H118: 1.9683884e-13 | I118: 4.599928938e-13 | J118: 1.247060846e-13 | K118: 1.90124137e-13 | L118: 4.842434314e-13 | M118: 1.298596068e-13 | N118: 1.197982552e-13
D119: Carbon monoxide | E119: Carbon monoxide | F119: 0.0004033550829 | G119: 2.79887199e-05 | H119: 0.0001623622139 | I119: 0.0004175769389 | J119: 2.548627038e-05 | K119: 0.000152541872 | L119: 0.0004023004183 | M119: 2.508875144e-05 | N119: 9.627671352e-05
D120: Chloride (unspecified) | E120: Chloride (unspecified) | F120: 1.377528233e-08 | G120: 7.301362174e-10 | H120: 2.024261347e-09 | I120: 1.402230882e-08 | J120: 5.387447781e-10 | K120: 1.998866406e-09 | L120: 1.351528947e-08 | M120: 5.558970664e-10 | N120: 1.257869816e-09
D121: Chlorine | E121: Chlorine | F121: 2.190947835e-12 | G121: 1.253402786e-13 | H121: 4.893121396e-13 | I121: 2.312516287e-12 | J121: 1.188545261e-13 | K121: 5.03235273e-13 | L121: 2.124956144e-12 | M121: 1.147336724e-13 | N121: 3.159504877e-13
D122: Cyanide (unspecified) | E122: Cyanide (unspecified) | F122: 3.975853348e-10 | G122: 3.115711592e-11 | H122: 1.408155231e-10 | I122: 4.121191161e-10 | J122: 2.862465501e-11 | K122: 1.340719986e-10 | L122: 3.91282044e-10 | M122: 2.808482416e-11 | N122: 8.45517627e-11
D123: Fluoride | E123: Fluoride | F123: 1.423735254e-09 | G123: 4.529123279e-09 | H123: 9.013083754e-09 | I123: 8.157293896e-10 | J123: 4.657350731e-09 | K123: 8.526906127e-09 | L123: 9.751783585e-10 | M123: 4.47043122e-09 | N123: 5.379509362e-09
D124: Fluorides | E124: Fluorides | F124: 5.823659444e-09 | G124: 0 | H124: 4.410676679e-12 | I124: 6.228295524e-09 | J124: 0 | K124: -6.80725457e-12 | L124: 5.925045306e-09 | M124: 0 | N124: -3.877379789e-12
D125: Fluorine | E125: Fluorine | F125: 4.123879215e-12 | G125: 3.797652189e-13 | H125: 1.04823221e-12 | I125: 4.34915029e-12 | J125: 3.798573e-13 | K125: 1.046415134e-12 | L125: 4.076608166e-12 | M125: 3.660576674e-13 | N125: 6.580872679e-13
D126: Helium | E126: Helium | F126: 1.836873756e-09 | G126: 8.326680755e-11 | H126: 2.073765841e-10 | I126: 1.866428286e-09 | J126: 5.266114556e-11 | K126: 2.212726829e-10 | L126: 1.790311789e-09 | M126: 5.625603772e-11 | N126: 1.386437784e-10
D127: Hydrogen | E127: Hydrogen | F127: 4.834553978e-07 | G127: 2.188409911e-08 | H127: 2.65819226e-08 | I127: 4.82126797e-07 | J127: 1.033852888e-08 | K127: 2.909491102e-08 | L127: 4.770209894e-07 | M127: 1.163200963e-08 | N127: 1.82054442e-08
D128: Hydrogen bromine (hydrobromic acid) | E128: Hydrogen bromine (hydrobromic acid) | F128: 1.011912488e-10 | G128: 2.785742182e-12 | H128: 2.109163743e-11 | I128: 1.061753246e-10 | J128: 2.009118042e-12 | K128: 2.29961018e-11 | L128: 9.730983687e-11 | M128: 2.021081271e-12 | N128: 1.439220254e-11
D129: Hydrogen chloride | E129: Hydrogen chloride | F129: 3.05031422e-07 | G129: 1.638863553e-07 | H129: 3.244830627e-07 | I129: 2.602325485e-07 | J129: 1.536931173e-07 | K129: 3.18446565e-07 | L129: 2.729621394e-07 | M129: 1.528868604e-07 | N129: 2.004674105e-07
D130: Hydrogen cyanide (prussic acid) | E130: Hydrogen cyanide (prussic acid) | F130: 3.897792913e-11 | G130: 1.291075644e-12 | H130: 5.962916532e-12 | I130: 4.130559992e-11 | J130: 1.168147758e-12 | K130: 6.187956149e-12 | L130: 3.860672025e-11 | M130: 1.144907715e-12 | N130: 3.883097483e-12
D131: Hydrogen fluoride | E131: Hydrogen fluoride | F131: 4.755083142e-08 | G131: 2.83085292e-08 | H131: 5.412209375e-08 | I131: 4.105463894e-08 | J131: 2.708059088e-08 | K131: 5.265743354e-08 | L131: 4.40506567e-08 | M131: 2.705616025e-08 | N131: 3.316551813e-08
D132: Hydrogen iodide | E132: Hydrogen iodide | F132: 7.313921662e-15 | G132: 2.260495601e-15 | H132: 1.385276831e-14 | I132: 5.550537656e-15 | J132: 1.641119843e-15 | K132: 1.503547844e-14 | L132: 5.759213468e-15 | M132: 1.667096234e-15 | N132: 9.412262969e-15
D133: Hydrogen phosphorous | E133: Hydrogen phosphorous | F133: 1.942088942e-14 | G133: 4.14401642e-15 | H133: 8.897040059e-15 | I133: 1.982959122e-14 | J133: 4.128777227e-15 | K133: 8.615835983e-15 | L133: 1.878260945e-14 | M133: 3.988137073e-15 | N133: 5.428054439e-15
D134: Hydrogen sulphide | E134: Hydrogen sulphide | F134: 4.530433407e-06 | G134: 1.77361776e-07 | H134: 3.459159816e-07 | I134: 4.585187094e-06 | J134: 1.0571862e-07 | K134: 3.764882062e-07 | L134: 4.415654026e-06 | M134: 1.223138837e-07 | N134: 2.356485105e-07
D135: Lead dioxide | E135: Lead dioxide | F135: 4.101311942e-15 | G135: 4.87621536e-15 | H135: 9.220000052e-15 | I135: 3.454357065e-15 | J135: 4.964992813e-15 | K135: 8.687573686e-15 | L135: 3.500061168e-15 | M135: 4.777486635e-15 | N135: 5.482206625e-15
D136: Nitrogen (atmospheric nitrogen) | E136: Nitrogen (atmospheric nitrogen) | F136: 5.455181401e-05 | G136: 5.55914815e-06 | H136: 1.52663066e-05 | I136: 5.619449431e-05 | J136: 5.341791485e-06 | K136: 1.536554929e-05 | L136: 5.207971608e-05 | M136: 5.194402063e-06 | N136: 9.658815054e-06
D137: Nitrogen dioxide | E137: Nitrogen dioxide | F137: 4.9325967e-16 | G137: 5.249314453e-15 | H137: 0.0002046252979 | I137: 5.245849811e-16 | J137: 5.681962546e-15 | K137: 0.0002005629575 | L137: 4.904122814e-16 | M137: 5.396250732e-15 | N137: 0.0001266218225
D138: Nitrogen monoxide | E138: Nitrogen monoxide | F138: 1.653196432e-11 | G138: 3.519152068e-13 | H138: 1.561991505e-12 | I138: 1.746824003e-11 | J138: 2.661184978e-13 | K138: 1.671946222e-12 | L138: 1.642241907e-11 | M138: 2.69784109e-13 | N138: 1.047420175e-12
D139: Nitrogen oxides | E139: Nitrogen oxides | F139: 0.0005814016717 | G139: 0.000111340882 | H139: 0.0001140562055 | I139: 0.0005893061703 | J139: 0.0001094181211 | K139: 0.0001084279865 | L139: 0.0005704689455 | M139: 0.0001067454981 | N139: 6.83856702e-05
D140: Nitrous oxide (laughing gas) | E140: Nitrous oxide (laughing gas) | F140: 5.008599051e-06 | G140: 1.078148341e-06 | H140: 6.343773261e-06 | I140: 5.205936093e-06 | J140: 1.115735456e-06 | K140: 5.828040352e-06 | L140: 5.002835829e-06 | M140: 1.083089673e-06 | N140: 3.681674005e-06
D141: Oxygen | E141: Oxygen | F141: 0.0001090881576 | G141: 2.243512033e-05 | H141: 0.0001567618678 | I141: 9.650508189e-05 | J141: 1.700408232e-05 | K141: 0.00017111157 | L141: 9.819863519e-05 | M141: 1.810719393e-05 | N141: 0.0001070844287
D142: Scandium | E142: Scandium | F142: 6.92034602e-14 | G142: 5.811208091e-15 | H142: 1.184293171e-14 | I142: 6.719512517e-14 | J142: 3.735262929e-15 | K142: 1.237365053e-14 | L142: 6.388329455e-14 | M142: 3.937945869e-15 | N142: 7.761875988e-15
D143: Steam | E143: Steam | F143: 0.01362550705 | G143: 0.0545877787 | H143: 0.1126227638 | I143: 0.01118173063 | J143: 0.05790741993 | K143: 0.1037874277 | L143: 0.01176802873 | M143: 0.05523074595 | N143: 0.06558298896
D144: Strontium | E144: Strontium | F144: 2.642118302e-12 | G144: 2.488278014e-13 | H144: 4.983775014e-13 | I144: 2.555141951e-12 | J144: 1.681565779e-13 | K144: 5.159834809e-13 | L144: 2.43160257e-12 | M144: 1.753095844e-13 | N144: 3.238345021e-13
D145: Sulphur dioxide | E145: Sulphur dioxide | F145: 0.0009310026078 | G145: 0.0001444365418 | H145: 0.0005449138039 | I145: 0.0009437946069 | J145: 0.0001384856049 | K145: 0.000505764239 | L145: 0.0009011665056 | M145: 0.0001345931296 | N145: 0.0003194506156
D146: Sulphur hexafluoride | E146: Sulphur hexafluoride | F146: 2.840901005e-13 | G146: 3.332395053e-13 | H146: 6.374128369e-13 | I146: 2.399236354e-13 | J146: 3.392089958e-13 | K146: 6.018989592e-13 | L146: 2.429868565e-13 | M146: 3.264300542e-13 | N146: 3.797728767e-13
D147: sulphur oxide | E147: sulphur oxide | F147: 0 | G147: 0.0007095309568 | H147: 0 | I147: 0 | J147: 0.0007719739971 | K147: 0 | L147: 0 | M147: 0.0007462091355 | N147: 0
D148: Sulphuric acid | E148: Sulphuric acid | F148: 2.475051861e-09 | G148: 2.824917864e-11 | H148: 2.143907862e-10 | I148: 2.631794164e-09 | J148: 1.913525888e-11 | K148: 2.346762776e-10 | L148: 2.46037497e-09 | M148: 1.992987576e-11 | N148: 1.468424824e-10
D149: Tin oxide | E149: Tin oxide | F149: 3.567113285e-16 | G149: 4.242979359e-16 | H149: 8.022748521e-16 | I149: 3.004035193e-16 | J149: 4.320227978e-16 | K149: 7.559266187e-16 | L149: 3.043916148e-16 | M149: 4.157071763e-16 | N149: 4.770206828e-16
D150: Zinc oxide | E150: Zinc oxide | F150: 7.136301631e-16 | G150: 8.485958718e-16 | H150: 1.604549704e-15 | I150: 6.010325422e-16 | J150: 8.640455956e-16 | K150: 1.511853237e-15 | L150: 6.089941354e-16 | M150: 8.314143525e-16 | N150: 9.540413655e-16
D151: Zinc sulphate | E151: Zinc sulphate | F151: 9.692863878e-10 | G151: 1.056142601e-11 | H151: 8.244352172e-11 | I151: 1.030751421e-09 | J151: 6.979438645e-12 | K151: 9.044431839e-11 | L151: 9.63618587e-10 | M151: 7.311918165e-12 | N151: 5.658656822e-11
C152: Organic emissions to air (group VOC) | D152: Organic emissions to air (group VOC) | E152: Organic emissions to air (group VOC) | F152: 0.004466228167 | G152: 0.0007940629907 | H152: 0.0006550156739 | I152: 0.004554197338 | J152: 0.0008506188418 | K152: 0.0006290836784 | L152: 0.004376606969 | M152: 0.0007986858453 | N152: 0.0003964322657
D153: Group NMVOC to air | E153: Group NMVOC to air | F153: 0.0007839778519 | G153: 0.0007628478526 | H153: 0.0001763840993 | I153: 0.0008066154035 | J153: 0.0008183844681 | K153: 0.000163627551 | L153: 0.0007676125735 | M153: 0.0007676392597 | N153: 0.0001033534969
D154: Methane | E154: Methane | F154: 0.003629076647 | G154: 2.902815896e-05 | H154: 0.000478524209 | I154: 0.003689825798 | J154: 2.986356756e-05 | K154: 0.0004653383473 | L154: 0.003554977609 | M154: 2.882823034e-05 | N154: 0.0002930050794
D155: Organic chlorine compounds | E155: Organic chlorine compounds | F155: 2.675971324e-14 | G155: 3.068248536e-15 | H155: 6.293410148e-15 | I155: 2.510926627e-14 | J155: 2.04276582e-15 | K155: 6.512933068e-15 | L155: 2.398958683e-14 | M155: 2.040774015e-15 | N155: 4.087655549e-15
D156: VOC (unspecified) | E156: VOC (unspecified) | F156: 5.317366769e-05 | G156: 2.186979124e-06 | H156: 1.073655965e-07 | I156: 5.775613649e-05 | J156: 2.37080618e-06 | K156: 1.177801313e-07 | L156: 5.401678629e-05 | M156: 2.218355218e-06 | N156: 7.368940284e-08
C157: Other emissions to air | D157: Other emissions to air | E157: Other emissions to air | F157: 0.04086217944 | G157: 0.09675492459 | H157: 0.2191783883 | I157: 0.03808988388 | J157: 0.1027204266 | K157: 0.1901762171 | L157: 0.03753888338 | M157: 0.09793919723 | N157: 0.1206324082
C158: Particles to air | D158: Particles to air | E158: Particles to air | F158: 2.081582448e-05 | G158: 4.90851207e-05 | H158: 8.654175296e-06 | I158: 2.102649518e-05 | J158: 5.29332277e-05 | K158: 8.672953094e-06 | L158: 2.037129378e-05 | M158: 5.119015511e-05 | N158: 5.462910233e-06
D159: Dust (PM10) | E159: Dust (PM10) | F159: 4.396108084e-06 | G159: 2.56149974e-07 | H159: 5.852033899e-07 | I159: 4.529828494e-06 | J159: 2.176791674e-07 | K159: 5.691173623e-07 | L159: 4.368686393e-06 | M159: 2.193967845e-07 | N159: 3.584594787e-07
D160: Dust (PM2,5 - PM10) | E160: Dust (PM2,5 - PM10) | F160: 0 | G160: 4.490471798e-05 | H160: 0 | I160: 0 | J160: 4.885642992e-05 | K160: 0 | L160: 0 | M160: 4.722111266e-05 | N160: 0
D161: Dust (PM2.5) | E161: Dust (PM2.5) | F161: 9.747455866e-06 | G161: 1.391911674e-06 | H161: 3.026485349e-06 | I161: 9.963960197e-06 | J161: 1.338488248e-06 | K161: 2.885183967e-06 | L161: 9.6217859e-06 | M161: 1.314665686e-06 | N161: 1.819386704e-06
D162: Dust (unspecified) | E162: Dust (unspecified) | F162: 6.672260278e-06 | G162: 2.5323409e-06 | H162: 5.042486213e-06 | I162: 6.532706281e-06 | J162: 2.520630195e-06 | K162: 5.218651433e-06 | L162: 6.38082127e-06 | M162: 2.434979819e-06 | N162: 3.285063841e-06
D163: Metals (unspecified) | E163: Metals (unspecified) | F163: 1.178885774e-13 | G163: 1.886081638e-14 | H163: 4.860637468e-14 | I163: 9.983621774e-14 | J163: 1.153671497e-14 | K163: 5.270733791e-14 | L163: 1.009554012e-13 | M163: 1.271502733e-14 | N163: 3.299660224e-14
D164: Wood (dust) | E164: Wood (dust) | F164: 1.316790479e-13 | G164: 1.566012033e-13 | H164: 2.961050218e-13 | I164: 1.108987743e-13 | J164: 1.594523194e-13 | K164: 2.790014147e-13 | L164: 1.123691006e-13 | M164: 1.53430499e-13 | N164: 1.76061227e-13
C165: Radioactive emissions to air | D165: Radioactive emissions to air | E165: Radioactive emissions to air | F165: 3.295880817e-10 | G165: 1.426448405e-09 | H165: 2.855659648e-09 | I165: 2.35715279e-10 | J165: 1.503680917e-09 | K165: 2.682566539e-09 | L165: 2.547019134e-10 | M165: 1.43659668e-09 | N165: 1.69311954e-09
B166: Emissions to fresh water | C166: Emissions to fresh water | D166: Emissions to fresh water | E166: Emissions to fresh water | F166: 0.005705461613 | G166: 0.0003443660985 | H166: 0.01023396479 | I166: 0.00575876933 | J166: 0.0002621718236 | K166: 0.009092623555 | L166: 0.005550878103 | M166: 0.0002726019307 | N166: 0.009125168691
C167: Analytical measures to fresh water | D167: Analytical measures to fresh water | E167: Analytical measures to fresh water | F167: 4.307579164e-05 | G167: 8.772007411e-06 | H167: 2.470076372e-05 | I167: 4.337205414e-05 | J167: 8.730421173e-06 | K167: 2.474916778e-05 | L167: 4.068385255e-05 | M167: 8.429713722e-06 | N167: 1.556138711e-05
C168: Heavy metals to fresh water | D168: Heavy metals to fresh water | E168: Heavy metals to fresh water | F168: 3.443637741e-06 | G168: 4.772736576e-06 | H168: 0.002376123432 | I168: 3.457697675e-06 | J168: 5.081824994e-06 | K168: 0.002072253431 | L168: 3.315932512e-06 | M168: 4.84390302e-06 | N168: 0.002172032967
C169: Inorganic emissions to fresh water | D169: Inorganic emissions to fresh water | E169: Inorganic emissions to fresh water | F169: 0.003310980915 | G169: 0.0002532816108 | H169: 0.007196853782 | I169: 0.003326277486 | J169: 0.0001955577772 | K169: 0.006298309498 | L169: 0.003302411533 | M169: 0.0002049591146 | N169: 0.006501277043
D170: Acid (calculated as H+) | E170: Acid (calculated as H+) | F170: 1.361559021e-09 | G170: 4.356802857e-10 | H170: 6.066024797e-10 | I170: 1.259885402e-09 | J170: 3.999362103e-10 | K170: 5.571762354e-10 | L170: 1.335286768e-09 | M170: 3.895995975e-10 | N170: 3.521503688e-10
D171: Aluminum (+III) | E171: Aluminum (+III) | F171: 2.717064858e-08 | G171: 1.148427055e-07 | H171: 2.303690693e-07 | I171: 2.000222123e-08 | J171: 1.211755509e-07 | K171: 0.0004680006205 | L171: 2.139632566e-08 | M171: 1.157455378e-07 | N171: 0.0004917126258
D172: Aluminum ion (+III) | E172: Aluminum ion (+III) | F172: 0 | G172: 0 | H172: 0.0005367878235 | I172: 0 | J172: 0 | K172: 0 | L172: 0 | M172: 0 | N172: 0
D173: Ammonia | E173: Ammonia | F173: 4.00680396e-09 | G173: 2.56293388e-10 | H173: 0.005814272682 | I173: 4.246100777e-09 | J173: 2.518530001e-10 | K173: 0.005066853121 | L173: 3.957505414e-09 | M173: 2.42664095e-10 | N173: 0.005324556053
D174: Ammonium / ammonia | E174: Ammonium / ammonia | F174: 1.008340604e-06 | G174: 1.478002827e-07 | H174: 2.01336243e-07 | I174: 9.707177047e-07 | J174: 1.195336219e-07 | K174: 1.914934997e-07 | L174: 9.976259852e-07 | M174: 1.191870821e-07 | N174: 1.207718955e-07
D175: Barium | E175: Barium | F175: 6.158342858e-07 | G175: 2.659079956e-08 | H175: 2.068376299e-09 | I175: 6.185776686e-07 | J175: 1.393206914e-08 | K175: 1.999544169e-09 | L175: 6.16398336e-07 | M175: 1.691817274e-08 | N175: 1.259859271e-09
D176: Beryllium | E176: Beryllium | F176: 9.81380422e-13 | G176: 4.274416776e-12 | H176: 8.556567296e-12 | I176: 6.99795092e-13 | J176: 4.505912937e-12 | K176: 8.037861654e-12 | L176: 7.571299734e-13 | M176: 4.304885917e-12 | N176: 5.073151527e-12
D177: Boron | E177: Boron | F177: 5.183882629e-09 | G177: 3.983790155e-08 | H177: 8.468871288e-08 | I177: 5.10049818e-09 | J177: 4.296549139e-08 | K177: 7.947578031e-08 | L177: 4.890354757e-09 | M177: 4.083982721e-08 | N177: 5.016471164e-08
D178: Bromine | E178: Bromine | F178: 7.255547533e-11 | G178: 4.801941622e-12 | H178: 1.083279971e-12 | I178: 6.943658352e-11 | J178: 2.13863063e-12 | K178: 1.168965959e-12 | L178: 7.219710803e-11 | M178: 2.451637892e-12 | N178: 7.32002355e-13
D179: Calcium (+II) | E179: Calcium (+II) | F179: 9.359664268e-07 | G179: 6.205112419e-06 | H179: 1.31547258e-05 | I179: 9.185328201e-07 | J179: 6.687435717e-06 | K179: 1.234568521e-05 | L179: 8.820048914e-07 | M179: 6.357572296e-06 | N179: 7.792507917e-06
D180: Carbonate | E180: Carbonate | F180: 3.87359102e-05 | G180: 1.658929281e-06 | H180: 1.024979625e-07 | I180: 3.890936581e-05 | J180: 8.618795525e-07 | K180: 9.983627959e-08 | L180: 3.877212076e-05 | M180: 1.050370459e-06 | N180: 6.28762731e-08
D181: Chloride | E181: Chloride | F181: 0.003172446957 | G181: 0.000197795594 | H181: 0.0001663131293 | I181: 0.00318714011 | J181: 0.0001384307342 | K181: 0.000160533314 | L181: 0.003168481679 | M181: 0.0001500879108 | N181: 0.0001011568811
D182: Chlorine (dissolved) | E182: Chlorine (dissolved) | F182: 7.232100292e-08 | G182: 1.530652554e-07 | H182: 3.087728472e-07 | I182: 6.462709945e-08 | J182: 1.611950923e-07 | K182: 2.905538116e-07 | L182: 6.409349057e-08 | M182: 1.540283216e-07 | N182: 1.833659141e-07
D183: Cyanide | E183: Cyanide | F183: 7.793891447e-11 | G183: 3.916658978e-12 | H183: 4.32023199e-05 | I183: 7.90009224e-11 | J183: 2.717170802e-12 | K183: 3.764869991e-05 | L183: 7.640378551e-11 | M183: 2.847930775e-12 | N183: 3.956353523e-05
D184: Fluoride | E184: Fluoride | F184: 1.895427287e-06 | G184: 1.808555974e-05 | H184: 3.818000884e-05 | I184: 1.822317794e-06 | J184: 1.950604903e-05 | K184: 3.581377155e-05 | L184: 1.76763271e-06 | M184: 1.854109629e-05 | N184: 2.26060895e-05
D185: Fluorine | E185: Fluorine | F185: 5.057749801e-09 | G185: 6.504476277e-11 | H185: 4.517849344e-10 | I185: 5.376667518e-09 | J185: 4.65474616e-11 | K185: 4.926539179e-10 | L185: 5.026855998e-09 | M185: 4.786035552e-11 | N185: 3.083269499e-10
D186: Hydrogen chloride | E186: Hydrogen chloride | F186: 9.682965542e-11 | G186: 1.457470261e-12 | H186: 9.035032288e-12 | I186: 1.029280019e-10 | J186: 1.118977497e-12 | K186: 9.766034798e-12 | L186: 9.623841739e-11 | M186: 1.13373224e-12 | N186: 6.114910872e-12
D187: Hydrogen fluoride (hydrofluoric acid) | E187: Hydrogen fluoride (hydrofluoric acid) | F187: 7.177166939e-11 | G187: 5.954427307e-12 | H187: 1.519761418e-12 | I187: 6.639528168e-11 | J187: 2.660188059e-12 | K187: 1.6449217e-12 | L187: 7.040488352e-11 | M187: 3.044977881e-12 | N187: 1.029879107e-12
D188: Hydroxide | E188: Hydroxide | F188: 2.656022398e-09 | G188: 5.213626911e-11 | H188: 2.65441696e-10 | I188: 2.82469344e-09 | J188: 4.432787501e-11 | K188: 2.827944193e-10 | L188: 2.640686183e-09 | M188: 4.395566053e-11 | N188: 1.772063583e-10
D189: Magnesium (+III) | E189: Magnesium (+III) | F189: 6.691739321e-07 | G189: 1.242475791e-06 | H189: 2.739942761e-06 | I189: 6.731911417e-07 | J189: 1.332827359e-06 | K189: 2.593083731e-06 | L189: 6.278811109e-07 | M189: 1.267896913e-06 | N189: 1.63590554e-06
D190: Magnesium chloride | E190: Magnesium chloride | F190: 4.908846439e-13 | G190: 1.030701015e-13 | H190: 1.211583484e-12 | I190: 4.750952966e-13 | J190: 9.174882754e-14 | K190: 1.3232014e-12 | L190: 4.767080407e-13 | M190: 9.262580177e-14 | N190: 8.280576872e-13
D191: Neutral salts | E191: Neutral salts | F191: 0 | G191: 1.059925165e-17 | H191: 1.898034075e-17 | I191: 0 | J191: 1.147738863e-17 | K191: 1.7280558e-17 | L191: 0 | M191: 1.089956209e-17 | N191: 1.092778218e-17
D192: Nitrate | E192: Nitrate | F192: 1.250964048e-07 | G192: 6.391105379e-07 | H192: 1.341215481e-06 | I192: 1.207931964e-07 | J192: 6.872226166e-07 | K192: 1.258227798e-06 | L192: 1.189913709e-07 | M192: 6.536827135e-07 | N192: 7.942035468e-07
D193: Nitrogen | E193: Nitrogen | F193: 1.699256253e-09 | G193: 2.531052061e-11 | H193: 1.564251871e-10 | I193: 1.806463204e-09 | J193: 1.941327045e-11 | K193: 1.6908889e-10 | L193: 1.68902632e-09 | M193: 1.967319339e-11 | N193: 1.058731622e-10
D194: Nitrogen organic bounded | E194: Nitrogen organic bounded | F194: 9.403139256e-08 | G194: 5.376873498e-09 | H194: 1.71255605e-08 | I194: 9.600789039e-08 | J194: 4.188225317e-09 | K194: 1.670815425e-08 | L194: 9.229452633e-08 | M194: 4.262985077e-09 | N194: 1.052168313e-08
D195: Phosphate | E195: Phosphate | F195: 8.540177312e-09 | G195: 1.672728992e-09 | H195: 3.986371844e-09 | I195: 8.6685401e-09 | J195: 1.642704462e-09 | K195: 3.805205954e-09 | L195: 8.329965107e-09 | M195: 1.590564667e-09 | N195: 2.399364259e-09
D196: Phosphorus | E196: Phosphorus | F196: 1.090151634e-07 | G196: 6.679493031e-09 | H196: 0.0005129526267 | I196: 1.0536193e-07 | J196: 2.993749939e-09 | K196: 0.0004470135034 | L196: 1.082828989e-07 | M196: 3.423343844e-09 | N196: 0.0004697478485
D197: Potassium | E197: Potassium | F197: 3.098273694e-08 | G197: 2.392193248e-09 | H197: 1.158246733e-09 | I197: 2.95988508e-08 | J197: 1.266104403e-09 | K197: 1.158557352e-09 | L197: 3.081202265e-08 | M197: 1.385774945e-09 | N197: 7.285295711e-10
D198: Silicate particles | E198: Silicate particles | F198: 2.108855661e-11 | G198: 2.369347298e-13 | H198: 1.786919812e-12 | I198: 2.242671844e-11 | J198: 1.599035343e-13 | K198: 1.957576218e-12 | L198: 2.096605467e-11 | M198: 1.666660094e-13 | N198: 1.224849737e-12
D199: Sodium (+I) | E199: Sodium (+I) | F199: 6.107264917e-05 | G199: 4.353333643e-06 | H199: 2.10293513e-05 | I199: 6.192779231e-05 | J199: 3.843447031e-06 | K199: 2.230585006e-05 | L199: 5.732110944e-05 | M199: 3.775833882e-06 | N199: 1.398074774e-05
D200: Sodium chloride (rock salt) | E200: Sodium chloride (rock salt) | F200: 0 | G200: 2.022741476e-12 | H200: 3.622172935e-12 | I200: 0 | J200: 2.190323503e-12 | K200: 3.297789556e-12 | L200: 0 | M200: 2.080052162e-12 | N200: 2.085437631e-12
D201: Sodium hypochlorite | E201: Sodium hypochlorite | F201: 6.442972844e-13 | G201: 1.32754523e-13 | H201: 3.180601353e-13 | I201: 6.636166699e-13 | J201: 1.334756648e-13 | K201: 3.098793865e-13 | L201: 6.157200203e-13 | M201: 1.284467723e-13 | N201: 1.951571948e-13
D202: Sulphate | E202: Sulphate | F202: 2.601986894e-05 | G202: 2.248746464e-05 | H202: 4.588229744e-05 | I202: 2.570603126e-05 | J202: 2.356876535e-05 | K202: 4.321471198e-05 | L202: 2.538139129e-05 | M202: 2.256303239e-05 | N202: 2.727090066e-05
D203: Sulphide | E203: Sulphide | F203: 7.079029411e-06 | G203: 3.026250017e-07 | H203: 1.712149986e-08 | I203: 7.109763666e-06 | J203: 1.565499192e-07 | K203: 1.681226297e-08 | L203: 7.085487589e-06 | M203: 1.910249331e-07 | N203: 1.058325757e-08
D204: Sulphite | E204: Sulphite | F204: 1.255097013e-09 | G204: 1.204273435e-08 | H204: 2.542369149e-08 | I204: 1.206462356e-09 | J204: 1.298880219e-08 | K204: 2.384815888e-08 | L204: 1.170272504e-09 | M204: 1.234621325e-08 | N204: 1.505324416e-08
D205: Sulphur | E205: Sulphur | F205: 5.522071759e-10 | G205: 5.954334027e-11 | H205: 4.381106927e-10 | I205: 5.924961129e-10 | J205: 6.296858603e-11 | K205: 4.294797943e-10 | L205: 5.445567186e-10 | M205: 5.986029115e-11 | N205: 2.703822588e-10
D206: Sulphuric acid | E206: Sulphuric acid | F206: 1.248440924e-08 | G206: 1.878907445e-10 | H206: 1.164747461e-09 | I206: 1.327071606e-08 | J206: 1.442537255e-10 | K206: 1.259009839e-09 | L206: 1.240821479e-08 | M206: 1.46155843e-10 | N206: 7.883163265e-10
C207: Organic emissions to fresh water | D207: Organic emissions to fresh water | E207: Organic emissions to fresh water | F207: 1.256953716e-05 | G207: 2.245015753e-07 | H207: 9.739759947e-07 | I207: 1.323919158e-05 | J207: 1.439060848e-07 | K207: 1.059953689e-06 | L207: 1.249232477e-05 | M207: 1.558461539e-07 | N207: 6.634411713e-07
C208: Other emissions to fresh water | D208: Other emissions to fresh water | E208: Other emissions to fresh water | F208: 0 | G208: 0 | H208: 0 | I208: 0 | J208: 0 | K208: 0 | L208: 0 | M208: 0 | N208: 0
C209: Particles to fresh water | D209: Particles to fresh water | E209: Particles to fresh water | F209: 0.002335391732 | G209: 7.731524212e-05 | H209: 0.0006353128346 | I209: 0.002372422901 | J209: 5.26578941e-05 | K209: 0.0006962515045 | L209: 0.00219197446 | M209: 5.421335325e-05 | N209: 0.0004356338532
C210: Radioactive emissions to fresh water | D210: Radioactive emissions to fresh water | E210: Radioactive emissions to fresh water | F210: 0 | G210: 0 | H210: 0 | I210: 0 | J210: 0 | K210: 0 | L210: 0 | M210: 0 | N210: 0
... 5 more rows

Sheet Calculations (hidden)
F1: Illinois No. 6 Coal | H1: Powder River Basin | J1: Coal Train | L1: CMB RMA | N1: Natural Gas Pipeline | P1: Switchgrass | R1: Bale Truck | T1: Container Truck | V1: Short Rotation Woody Crops | X1: Corn Stover | Z1: Corn Grain | AB1: FT Diesel | AD1: Ethanol | AF1: Uranium Fuel Assemblies | AH1: Train enclosed | AJ1: Ocean freighter | AL1: Truck 8B enclosed | AN1: Petroleum Pipeline | AP1: Petroleum Tanker Truck | AR1: Petroleum Water carrier | AT1: Petroleum Rail | AV1: Petroleum Domestic | AX1: Petroleum National Average | AZ1: Diesel | BB1: Gasoline | BD1: Kerosene | BF1: Natural Gas. Conv Onshore | BH1: Natural Gas. Associated | BJ1: Natural Gas. Conv Offshore | BL1: Natural Gas. Barnett | BN1: Natural Gas. Coal Bed Methane | BP1: Natural Gas. Marecellus | BR1: Natural Gas. Imported LNG | BT1: Natural Gas. Tight Gas | BV1: Natural Gas. 2010 Avg
F2: RMA | H2: RMA | J2: RMT | L2: RMA | N2: RMT | P2: RMA | R2: RMT | T2: RMT | V2: RMA | X2: RMA | Z2: RMA | AB2: ECF | AD2: ECF | AF2: RMA | AH2: RMT | AJ2: RMT | AL2: RMT | AN2: RMT | AP2: RMT | AR2: RMT | AT2: RMT | AV2: RMA | AX2: RMA | AZ2: ECF | BB2: ECF | BD2: ECF | BF2: RMA | BH2: RMA | BJ2: RMA | BL2: RMA | BN2: RMA | BP2: RMA | BR2: RMA | BT2: RMA | BV2: RMA
AW3: North | AX3: =IF(Dashboard!$C$3=Calculations!AX$1,Dashboard!$C7,IF(Dashboard!$F$3=Calculations!AX$1,Dashboard!$F7,0)) -> 0 | AZ3: Diesel | BB3: Gasoline | BD3: Kerosene | BE3: production | BF3: =IF(Dashboard!$C$3=Calculations!BF$1,Dashboard!$C7,IF(Dashboard!$F$3=Calculations!BF$1,Dashboard!$F7,0)) -> 0 | BG3: production | BH3: =IF(Dashboard!$C$3=Calculations!BH$1,Dashboard!$C7,IF(Dashboard!$F$3=Calculations!BH$1,Dashboard!$F7,0)) -> 0 | BI3: production | BJ3: =IF(Dashboard!$C$3=Calculations!BJ$1,Dashboard!$C7,IF(Dashboard!$F$3=Calculations!BJ$1,Dashboard!$F7,0)) -> 0 | BK3: production | BL3: =IF(Dashboard!$C$3=Calculations!BL$1,Dashboard!$C7,IF(Dashboard!$F$3=Calculations!BL$1,Dashboard!$F7,0)) -> 0 | BM3: production | BN3: =IF(Dashboard!$C$3=Calculations!BN$1,Dashboard!$C7,IF(Dashboard!$F$3=Calculations!BN$1,Dashboard!$F7,0)) -> 0 | BO3: production | BP3: =IF(Dashboard!$C$3=Calculations!BP$1,Dashboard!$C7,IF(Dashboard!$F$3=Calculations!BP$1,Dashboard!$F7,0)) -> 0 | BQ3: production | BR3: =IF(Dashboard!$C$3=Calculations!BR$1,Dashboard!$C7,IF(Dashboard!$F$3=Calculations!BR$1,Dashboard!$F7,0)) -> 0 | BS3: production | BT3: =IF(Dashboard!$C$3=Calculations!BT$1,Dashboard!$C7,IF(Dashboard!$F$3=Calculations!BT$1,Dashboard!$F7,0)) -> 0 | BU3: production | BV3: 1
E4: CBM (scf/ton) | F4: =IF(Dashboard!$C$3=Calculations!F$1,Dashboard!$C$7,IF(Dashboard!$F$3=Calculations!F$1,Dashboard!$F$7,0)) -> 422 | G4: CBM (scf/ton) | H4: =IF(Dashboard!$C$3=Calculations!H$1,Dashboard!$C$7,IF(Dashboard!$F$3=Calculations!H$1,Dashboard!$F$7,0)) -> 0 | I4: Round Trip Distance (mi) | J4: =IF(ISERROR(VLOOKUP(J$1,Dashboard!H$7:J$10,3,FALSE)),0,VLOOKUP(J$1,Dashboard!H$7:J$10,3,FALSE)) -> 400 | K4: H2S content | L4: 3 | M4: distance (mi) | N4: =IF(ISERROR(VLOOKUP(N$1,Dashboard!H$7:J$10,3,FALSE)),0,VLOOKUP(N$1,Dashboard!H$7:J$10,3,FALSE)) -> 0 | O4: biomass yield | P4: =IF(Dashboard!$C$3=Calculations!P$1,Dashboard!$C$7,IF(Dashboard!$F$3=Calculations!P$1,Dashboard!$F$7,0)) -> 0 | Q4: distance | R4: =IF(ISERROR(VLOOKUP(R$1,Dashboard!H$7:J$10,3,FALSE)),0,VLOOKUP(R$1,Dashboard!H$7:J$10,3,FALSE)) -> 0 | S4: distance | T4: =IF(ISERROR(VLOOKUP(T$1,Dashboard!H$7:J$10,3,FALSE)),0,VLOOKUP(T$1,Dashboard!H$7:J$10,3,FALSE)) -> 0 | U4: Biomass Yield (kg/acre-yr) | V4: =IF(Dashboard!$C$3=Calculations!V$1,Dashboard!$C$7,IF(Dashboard!$F$3=Calculations!V$1,Dashboard!$F$7,0)) -> 0 | W4: Biomass Yield (kg/acre-yr) | X4: =IF(Dashboard!$C$3=Calculations!X$1,Dashboard!$C7,IF(Dashboard!$F$3=Calculations!X$1,Dashboard!$F7,0)) -> 0 | Y4: Biomass Yield (kg/acre-yr) | Z4: =IF(Dashboard!$C$3=Calculations!Z$1,Dashboard!$C7,IF(Dashboard!$F$3=Calculations!Z$1,Dashboard!$F7,0)) -> 0 | AE4: Europe | AF4: =IF(Dashboard!$C$3=Calculations!AF$1,Dashboard!$C7,IF(Dashboard!$F$3=Calculations!AF$1,Dashboard!$F7,0)) -> 0 | AG4: dist | AH4: =IF(ISERROR(VLOOKUP(AH$1,Dashboard!H$7:J$10,3,FALSE)),0,VLOOKUP(AH$1,Dashboard!H$7:J$10,3,FALSE)) -> 0 | AI4: dist | AJ4: =IF(ISERROR(VLOOKUP(AJ$1,Dashboard!H$7:J$10,3,FALSE)),0,VLOOKUP(AJ$1,Dashboard!H$7:J$10,3,FALSE)) -> 0 | AK4: dist | AL4: =IF(ISERROR(VLOOKUP(AL$1,Dashboard!H$7:J$10,3,FALSE)),0,VLOOKUP(AL$1,Dashboard!H$7:J$10,3,FALSE)) -> 0 | AM4: dist | AN4: =IF(ISERROR(VLOOKUP(AN$1,Dashboard!H$7:J$10,3,FALSE)),0,VLOOKUP(AN$1,Dashboard!H$7:J$10,3,FALSE)) -> 0 | AO4: dist | AP4: =IF(ISERROR(VLOOKUP(AP$1,Dashboard!H$7:J$10,3,FALSE)),0,VLOOKUP(AP$1,Dashboard!H$7:J$10,3,FALSE)) -> 0 | AQ4: dist | AR4: =IF(ISERROR(VLOOKUP(AR$1,Dashboard!H$7:J$10,3,FALSE)),0,VLOOKUP(AR$1,Dashboard!H$7:J$10,3,FALSE)) -> 0 | AS4: dist | AT4: =IF(ISERROR(VLOOKUP(AT$1,Dashboard!H$7:J$10,3,FALSE)),0,VLOOKUP(AT$1,Dashboard!H$7:J$10,3,FALSE)) -> 0 | AU4: US Avg Mix | AV4: 0.25 | AW4: South | AX4: =IF(Dashboard!$C$3=Calculations!AX$1,Dashboard!$C8,IF(Dashboard!$F$3=Calculations!AX$1,Dashboard!$F8,0)) -> 0 | BE4: ext flaring | BF4: =IF(Dashboard!$C$3=Calculations!BF$1,Dashboard!$C8,IF(Dashboard!$F$3=Calculations!BF$1,Dashboard!$F8,0)) -> 0 | BG4: ext flaring | BH4: =IF(Dashboard!$C$3=Calculations!BH$1,Dashboard!$C8,IF(Dashboard!$F$3=Calculations!BH$1,Dashboard!$F8,0)) -> 0 | BI4: ext flaring | BJ4: =IF(Dashboard!$C$3=Calculations!BJ$1,Dashboard!$C8,IF(Dashboard!$F$3=Calculations!BJ$1,Dashboard!$F8,0)) -> 0 | BK4: ext flaring | BL4: =IF(Dashboard!$C$3=Calculations!BL$1,Dashboard!$C8,IF(Dashboard!$F$3=Calculations!BL$1,Dashboard!$F8,0)) -> 0 | BM4: ext flaring | BN4: =IF(Dashboard!$C$3=Calculations!BN$1,Dashboard!$C8,IF(Dashboard!$F$3=Calculations!BN$1,Dashboard!$F8,0)) -> 0 | BO4: ext flaring | BP4: =IF(Dashboard!$C$3=Calculations!BP$1,Dashboard!$C8,IF(Dashboard!$F$3=Calculations!BP$1,Dashboard!$F8,0)) -> 0 | BQ4: ext flaring | BR4: =IF(Dashboard!$C$3=Calculations!BR$1,Dashboard!$C8,IF(Dashboard!$F$3=Calculations!BR$1,Dashboard!$F8,0)) -> 0 | BS4: ext flaring | BT4: =IF(Dashboard!$C$3=Calculations!BT$1,Dashboard!$C8,IF(Dashboard!$F$3=Calculations!BT$1,Dashboard!$F8,0)) -> 0 | BU4: ext flaring | BV4: 1
E5: capture | F5: =IF(Dashboard!$C$3=Calculations!$F$1,Dashboard!$C$8,IF(Dashboard!$F$3=Calculations!$F$1,Dashboard!$F$8,0)) -> 0 | K5: NG Flaring | L5: 0.003 | W5: Corn Allocation (%) | X5: =IF(Dashboard!$C$3=Calculations!X$1,Dashboard!$C8,IF(Dashboard!$F$3=Calculations!X$1,Dashboard!$F8,0)) -> 0 | AA5: biomass | AB5: =HLOOKUP(1,'FT Diesel 2'!$H$11:$U$77,'FT Diesel 2'!V24,FALSE) ->  | AC5: biomass | AD5: =HLOOKUP(1,'Adv Ethanol'!$G$10:$O$79,2,FALSE) ->  | AF5: =IF(Dashboard!$C$3=Calculations!AF$1,Dashboard!$C8,IF(Dashboard!$F$3=Calculations!AF$1,Dashboard!$F8,0)) -> 0 | AU5: US Avg Mix | AV5: 0.25 | AW5: Middle | AX5: =IF(Dashboard!$C$3=Calculations!AX$1,Dashboard!$C9,IF(Dashboard!$F$3=Calculations!AX$1,Dashboard!$F9,0)) -> 0 | AY5: scaler | AZ5: =IF(AND(Dashboard!$M$3="Petroleum",Dashboard!$M$7=Calculations!AZ$1),1,0) -> 0 | BA5: scaler | BB5: =IF(AND(Dashboard!$M$3="Petroleum",Dashboard!$M$7=Calculations!BB$1),1,0) -> 0 | BC5: scaler | BD5: =IF(AND(Dashboard!$M$3="Petroleum",Dashboard!$M$7=Calculations!BD$1),1,0) -> 0 | BE5: process flare | BF5: =IF(Dashboard!$C$3=Calculations!BF$1,Dashboard!$C9,IF(Dashboard!$F$3=Calculations!BF$1,Dashboard!$F9,0)) -> 0 | BG5: process flare | BH5: =IF(Dashboard!$C$3=Calculations!BH$1,Dashboard!$C9,IF(Dashboard!$F$3=Calculations!BH$1,Dashboard!$F9,0)) -> 0 | BI5: process flare | BJ5: =IF(Dashboard!$C$3=Calculations!BJ$1,Dashboard!$C9,IF(Dashboard!$F$3=Calculations!BJ$1,Dashboard!$F9,0)) -> 0 | BK5: process flare | BL5: =IF(Dashboard!$C$3=Calculations!BL$1,Dashboard!$C9,IF(Dashboard!$F$3=Calculations!BL$1,Dashboard!$F9,0)) -> 0 | BM5: process flare | BN5: =IF(Dashboard!$C$3=Calculations!BN$1,Dashboard!$C9,IF(Dashboard!$F$3=Calculations!BN$1,Dashboard!$F9,0)) -> 0 | BO5: process flare | BP5: =IF(Dashboard!$C$3=Calculations!BP$1,Dashboard!$C9,IF(Dashboard!$F$3=Calculations!BP$1,Dashboard!$F9,0)) -> 0 | BQ5: process flare | BR5: =IF(Dashboard!$C$3=Calculations!BR$1,Dashboard!$C9,IF(Dashboard!$F$3=Calculations!BR$1,Dashboard!$F9,0)) -> 0 | BS5: process flare | BT5: =IF(Dashboard!$C$3=Calculations!BT$1,Dashboard!$C9,IF(Dashboard!$F$3=Calculations!BT$1,Dashboard!$F9,0)) -> 0 | BU5: process flare | BV5: 1
I6: scaler | J6: =0.00000012227*J4/2 -> 2.4454e-05 | K6: Drill Depth | L6: 15000 | M6: scaler | N6: =IF(N4<>0,0.00291364297521,0) -> 0 | Q6: scaler | R6: 0 | S6: scaler | T6: 0 | W6: Yield of corn (kg/kg) | X6: =IF(Dashboard!$C$3=Calculations!X$1,Dashboard!$C9,IF(Dashboard!$F$3=Calculations!X$1,Dashboard!$F9,0)) -> 0 | AA6: coal | AB6: =HLOOKUP(1,'FT Diesel 2'!$H$11:$U$77,'FT Diesel 2'!V25,FALSE) ->  | AC6: gasoline | AD6: =HLOOKUP(1,'Adv Ethanol'!$G$10:$O$79,10,FALSE) ->  | AG6: scaler | AH6: 0 | AI6: scaler | AJ6: 0 | AK6: scaler | AL6: 0 | AM6: scaler | AN6: 0 | AO6: scaler | AP6: 0.0001 | AR6: =1.004-1.0009 -> 0.0031 | AT6: =1.0009-1.0001 -> 0.0008 | AU6: US Avg Mix | AV6: 0.5 | AW6: Africa | AX6: =IF(Dashboard!$C$3=Calculations!AX$1,Dashboard!$C10,IF(Dashboard!$F$3=Calculations!AX$1,Dashboard!$F10,0)) -> 0
A8: Air Emissions | B8: 1 | C8: Carbon Dioxide (kg) | D8: Carbon dioxide | F8: =IF($F$4=0,0,VLOOKUP($D8,'I6 RMA'!$F$10:$O$82,4,FALSE)+(VLOOKUP($D8,'I6 RMA'!$F$10:$O$82,5,FALSE)-VLOOKUP($D8,'I6 RMA'!$F$10:$O$82,4,FALSE))/'I6 RMA'!$L$4*(Calculations!$F$4-'I6 RMA'!$J$4))+(F9/(1-F5)-F9)*44/16 -> 0.02551171124 | H8: =IF($H$4=0,0,VLOOKUP($D8,'PRB RMA'!$F$10:$O$82,4,FALSE)+(VLOOKUP($D8,'PRB RMA'!$F$10:$O$82,5,FALSE)-VLOOKUP($D8,'PRB RMA'!$F$10:$O$82,4,FALSE))/'PRB RMA'!$L$4*(Calculations!$H$4-'PRB RMA'!$J$4)) -> 0 | J8: =IF($J$4=0,0,VLOOKUP($D8,'Coal TrainRMT'!$F$10:$O$82,4,FALSE)+(VLOOKUP($D8,'Coal TrainRMT'!$F$10:$O$82,5,FALSE)-VLOOKUP($D8,'Coal TrainRMT'!$F$10:$O$82,4,FALSE))/'Coal TrainRMT'!$L$4*(Calculations!$J$4-'Coal TrainRMT'!$J$4)) -> 0.01264401873 | L8: =IF($L$4+$L$5+$L$6=0,0,VLOOKUP($D8,#REF!,6,FALSE)+(VLOOKUP($D8,#REF!,10,FALSE))/#REF!*(#REF!-#REF!)+(VLOOKUP($D8,#REF!,11,FALSE))/#REF!*(#REF!-#REF!)+(VLOOKUP($D8,#REF!,10,FALSE))/#REF!*($L$4-#REF!)) ->  | N8: =IF($N$4=0,0,VLOOKUP($D8,'NG Pipeline RMT'!$F$10:$O$82,4,FALSE)+(VLOOKUP($D8,'NG Pipeline RMT'!$F$10:$O$82,5,FALSE)-VLOOKUP($D8,'NG Pipeline RMT'!$F$10:$O$82,4,FALSE))/'NG Pipeline RMT'!$L$4*(Calculations!$N$4-'NG Pipeline RMT'!$J$4)) -> 0 | P8: =IF($P$4=0,0,VLOOKUP($D8,'SG RMA'!$F$10:$O$82,4,FALSE)+(VLOOKUP($D8,'SG RMA'!$F$10:$O$82,5,FALSE)-VLOOKUP($D8,'SG RMA'!$F$10:$O$82,4,FALSE))/'SG RMA'!$L$4*(Calculations!$P$4-'SG RMA'!$J$4)) -> 0 | R8: =IF($R$4=0,0,VLOOKUP($D8,'Bale Truck RMT'!$F$10:$O$82,4,FALSE)+(VLOOKUP($D8,'Bale Truck RMT'!$F$10:$O$82,5,FALSE)-VLOOKUP($D8,'Bale Truck RMT'!$F$10:$O$82,4,FALSE))/'Bale Truck RMT'!$L$4*(Calculations!$R$4-'Bale Truck RMT'!$J$4)) -> 0 | T8: =IF($T$4=0,0,VLOOKUP($D8,'Cont Truck RMT'!$F$10:$O$82,4,FALSE)+(VLOOKUP($D8,'Cont Truck RMT'!$F$10:$O$82,5,FALSE)-VLOOKUP($D8,'Cont Truck RMT'!$F$10:$O$82,4,FALSE))/'Cont Truck RMT'!$L$4*(Calculations!$T$4-'Cont Truck RMT'!$J$4)) -> 0 | V8: =IF($V$4=0,0,VLOOKUP($D8,'SRWC RMA'!$F$10:$O$82,4,FALSE)+(VLOOKUP($D8,'SRWC RMA'!$F$10:$O$82,5,FALSE)-VLOOKUP($D8,'SRWC RMA'!$F$10:$O$82,4,FALSE))/'SRWC RMA'!$L$4*(Calculations!$V$4-'SRWC RMA'!$J$4)) -> 0 | X8: =IF($X$4+$X$5+$X$6=0,0,VLOOKUP($D8,'Stover RMA'!$F$9:$Q$70,6,FALSE)+(VLOOKUP($D8,'Stover RMA'!$F$9:$Q$70,10,FALSE))/'Stover RMA'!$N$4*($X$4-'Stover RMA'!$L$4)+(VLOOKUP($D8,'Stover RMA'!$F$9:$Q$70,11,FALSE))/'Stover RMA'!$N$5*($X$5-'Stover RMA'!$L$5)+(VLOOKUP($D8,'Stover RMA'!$F$9:$Q$70,12,FALSE))/'Stover RMA'!$N$6*($X$6-'Stover RMA'!$L$6)) -> 0 | Z8: =IF($Z$4=0,0,VLOOKUP($D8,'Corn RMA'!$F$10:$O$82,4,FALSE)+(VLOOKUP($D8,'Corn RMA'!$F$10:$O$82,5,FALSE)-VLOOKUP($D8,'Corn RMA'!$F$10:$O$82,4,FALSE))/'Corn RMA'!$L$4*(Calculations!$Z$4-'Corn RMA'!$J$4)) -> 0 | AB8: =HLOOKUP(1,'FT Diesel 2'!$H$11:$U$77,'FT Diesel 2'!V51,FALSE)+HLOOKUP(1,'FT Diesel 2'!$H$11:$U$77,'FT Diesel 2'!V52,FALSE) ->  | AD8: =HLOOKUP(1,'Adv Ethanol'!$G$10:$O$79,'Adv Ethanol'!Q41,FALSE)+HLOOKUP(1,'Adv Ethanol'!$G$10:$O$79,'Adv Ethanol'!Q42,FALSE) ->  | AF8: =IF($AF$4+$AF$5>0,VLOOKUP($D$8,Uranium!$F$10:$K$77,5,FALSE)*Calculations!$AF$4+VLOOKUP($D$8,Uranium!$F$10:$K$77,6,FALSE)*$AF$5,0) -> 0 | AH8: =IF($AH$4=0,0,VLOOKUP($D8,'U RMT'!$F$9:$U$64,2,FALSE)+(VLOOKUP($D8,'U RMT'!$F$10:$U$64,3,FALSE)-VLOOKUP($D8,'U RMT'!$F$10:$U$642,2,FALSE))/'U RMT'!$U$2*(Calculations!$AH$4-'U RMT'!$O$2)) -> 0 | AJ8: =IF($AJ$4=0,0,VLOOKUP($D8,'U RMT'!$F$9:$U$64,4,FALSE)+(VLOOKUP($D8,'U RMT'!$F$10:$U$64,5,FALSE)-VLOOKUP($D8,'U RMT'!$F$10:$U$64,4,FALSE))/'U RMT'!$U$3*(Calculations!$AJ$4-'U RMT'!$Q$3)) -> 0 | AL8: =IF($AL$4=0,0,VLOOKUP($D8,'U RMT'!$F$9:$U$64,6,FALSE)+(VLOOKUP($D8,'U RMT'!$F$10:$U$64,7,FALSE)-VLOOKUP($D8,'U RMT'!$F$10:$U$64,6,FALSE))/'U RMT'!$U$4*(Calculations!$AL$4-'U RMT'!$S$4)) -> 0 | AN8: =IF($AN$4=0,0,VLOOKUP($D8,'Petro Transport'!$F$10:$Z$77,2,FALSE)+(VLOOKUP($D8,'Petro Transport'!$F$10:$Z$77,3,FALSE)-VLOOKUP($D8,'Petro Transport'!$F$10:$Z$77,2,FALSE))/'Petro Transport'!$V$3*(Calculations!$AN$4-'Petro Transport'!$N$3)) -> 0 | AP8: =IF($AP$4=0,0,VLOOKUP($D8,'Petro Transport'!$F$10:$Z$77,12,FALSE)+(VLOOKUP($D8,'Petro Transport'!$F$10:$Z$77,13,FALSE)-VLOOKUP($D8,'Petro Transport'!$F$10:$Z$77,12,FALSE))/'Petro Transport'!$V$4*(Calculations!$AP$4-'Petro Transport'!$P$4)) -> 0 | AR8: =IF($AR$4=0,0,VLOOKUP($D8,'Petro Transport'!$F$10:$Z$77,14,FALSE)+(VLOOKUP($D8,'Petro Transport'!$F$10:$Z$77,15,FALSE)-VLOOKUP($D8,'Petro Transport'!$F$10:$Z$77,14,FALSE))/'Petro Transport'!$V$5*(Calculations!$AR$4-'Petro Transport'!$R$5)) -> 0 | AT8: =IF($AT$4=0,0,VLOOKUP($D8,'Petro Transport'!$F$10:$Z$77,16,FALSE)+(VLOOKUP($D8,'Petro Transport'!$F$10:$Z$77,17,FALSE)-VLOOKUP($D8,'Petro Transport'!$F$10:$Z$77,16,FALSE))/'Petro Transport'!$V$6*(Calculations!$AT$4-'Petro Transport'!$T$6)) -> 0 | AV8: =VLOOKUP($D8,'Dom Petro'!$F$11:$J$65,3,FALSE)*Calculations!$AV$4+VLOOKUP($D8,'Dom Petro'!$F$11:$J$65,4,FALSE)*Calculations!$AV$5+VLOOKUP($D8,'Dom Petro'!$F$11:$J$65,5,FALSE)*Calculations!$AV$6 -> 0.1571385753 | AX8: =VLOOKUP($D8,'For Petro'!$F$9:$K$77,3,FALSE)*Calculations!$AX$3+VLOOKUP($D8,'For Petro'!$F$9:$K$77,4,FALSE)*Calculations!$AX$4+VLOOKUP($D8,'For Petro'!$F$9:$K$77,5,FALSE)*Calculations!$AX$5+VLOOKUP($D8,'For Petro'!$F$9:$K$77,6,FALSE)*$AX$6 -> 0 | AZ8: =IF($AZ$5=1,VLOOKUP($D8,'Petro Ref'!$F$10:$J$77,3,FALSE),0) -> 0 | BB8: =IF($BB$5,VLOOKUP($D8,'Petro Ref'!$F$10:$J$77,4,FALSE),0) -> 0 | BD8: =IF($BD$5=1,VLOOKUP($D8,'Petro Ref'!$F$10:$J$77,5,FALSE),0) -> 0 | BF8: =IF($BF$3+$BF$4+$BF$5=0,0,VLOOKUP($D8,'onshore RMA'!$F$9:$Q$70,6,FALSE)+(VLOOKUP($D8,'onshore RMA'!$F$9:$Q$70,10,FALSE))/'onshore RMA'!$N$4*(Calculations!$BF$3-'onshore RMA'!$L$4)+(VLOOKUP($D8,'onshore RMA'!$F$9:$Q$70,11,FALSE))/'onshore RMA'!$N$5*(Calculations!$BF$4-'onshore RMA'!$L$5)+(VLOOKUP($D8,'onshore RMA'!$F$9:$Q$70,12,FALSE))/'onshore RMA'!$N$6*($BF$5-'onshore RMA'!$L$6)) -> 0 | BH8: =IF($BH$3+$BH$4+$BH$5=0,0,VLOOKUP($D8,'assoc RMA'!$F$9:$Q$70,6,FALSE)+(VLOOKUP($D8,'assoc RMA'!$F$9:$Q$70,10,FALSE))/'assoc RMA'!$N$4*(Calculations!$BH$3-'assoc RMA'!$L$4)+(VLOOKUP($D8,'assoc RMA'!$F$9:$Q$70,11,FALSE))/'assoc RMA'!$N$5*(Calculations!$BH$4-'assoc RMA'!$L$5)+(VLOOKUP($D8,'assoc RMA'!$F$9:$Q$70,12,FALSE))/'assoc RMA'!$N$6*($BH$5-'assoc RMA'!$L$6)) -> 0 | BJ8: =IF($BJ$3+$BJ$4+$BJ$5=0,0,VLOOKUP($D8,'offshore RMA'!$F$9:$Q$70,6,FALSE)+(VLOOKUP($D8,'offshore RMA'!$F$9:$Q$70,10,FALSE))/'offshore RMA'!$N$4*(Calculations!$BJ$3-'offshore RMA'!$L$4)+(VLOOKUP($D8,'offshore RMA'!$F$9:$Q$70,11,FALSE))/'offshore RMA'!$N$5*(Calculations!$BJ$4-'offshore RMA'!$L$5)+(VLOOKUP($D8,'offshore RMA'!$F$9:$Q$70,12,FALSE))/'offshore RMA'!$N$6*($BJ$5-'offshore RMA'!$L$6)) -> 0 | BL8: =IF($BL$3+$BL$4+$BL$5=0,0,VLOOKUP($D8,'barnett RMA'!$F$9:$Q$70,6,FALSE)+(VLOOKUP($D8,'barnett RMA'!$F$9:$Q$70,10,FALSE))/'barnett RMA'!$N$4*(Calculations!$BL$3-'barnett RMA'!$L$4)+(VLOOKUP($D8,'barnett RMA'!$F$9:$Q$70,11,FALSE))/'barnett RMA'!$N$5*(Calculations!$BL$4-'barnett RMA'!$L$5)+(VLOOKUP($D8,'barnett RMA'!$F$9:$Q$70,12,FALSE))/'barnett RMA'!$N$6*($BL$5-'barnett RMA'!$L$6)) -> 0 | BN8: =IF($BN$3+$BN$4+$BN$5=0,0,VLOOKUP($D8,'cbm RMA'!$F$9:$Q$70,6,FALSE)+(VLOOKUP($D8,'cbm RMA'!$F$9:$Q$70,10,FALSE))/'cbm RMA'!$N$4*(Calculations!$BN$3-'cbm RMA'!$L$4)+(VLOOKUP($D8,'cbm RMA'!$F$9:$Q$70,11,FALSE))/'cbm RMA'!$N$5*(Calculations!$BN$4-'cbm RMA'!$L$5)+(VLOOKUP($D8,'cbm RMA'!$F$9:$Q$70,12,FALSE))/'cbm RMA'!$N$6*($BN$5-'cbm RMA'!$L$6)) -> 0 | BP8: =IF($BP$3+$BP$4+$BP$5=0,0,VLOOKUP($D8,'Marc RMA'!$F$9:$Q$70,6,FALSE)+(VLOOKUP($D8,'Marc RMA'!$F$9:$Q$70,10,FALSE))/'Marc RMA'!$N$4*(Calculations!$BP$3-'Marc RMA'!$L$4)+(VLOOKUP($D8,'Marc RMA'!$F$9:$Q$70,11,FALSE))/'Marc RMA'!$N$5*(Calculations!$BP$4-'Marc RMA'!$L$5)+(VLOOKUP($D8,'Marc RMA'!$F$9:$Q$70,12,FALSE))/'Marc RMA'!$N$6*($BP$5-'Marc RMA'!$L$6)) -> 0 | BR8: =IF($BR$3+$BR$4+$BR$5=0,0,VLOOKUP($D8,'LNG RMA'!$F$9:$Q$70,6,FALSE)+(VLOOKUP($D8,'LNG RMA'!$F$9:$Q$70,10,FALSE))/'LNG RMA'!$N$4*(Calculations!$BR$3-'LNG RMA'!$L$4)+(VLOOKUP($D8,'LNG RMA'!$F$9:$Q$70,11,FALSE))/'LNG RMA'!$N$5*(Calculations!$BR$4-'LNG RMA'!$L$5)+(VLOOKUP($D8,'LNG RMA'!$F$9:$Q$70,12,FALSE))/'LNG RMA'!$N$6*($BR$5-'LNG RMA'!$L$6)) -> 0 | BT8: =IF($BT$3+$BT$4+$BT$5=0,0,VLOOKUP($D8,'tight RMA'!$F$9:$Q$70,6,FALSE)+(VLOOKUP($D8,'tight RMA'!$F$9:$Q$70,10,FALSE))/'tight RMA'!$N$4*(Calculations!$BT$3-'tight RMA'!$L$4)+(VLOOKUP($D8,'tight RMA'!$F$9:$Q$70,11,FALSE))/'tight RMA'!$N$5*(Calculations!$BT$4-'tight RMA'!$L$5)+(VLOOKUP($D8,'tight RMA'!$F$9:$Q$70,12,FALSE))/'tight RMA'!$N$6*($BT$5-'tight RMA'!$L$6)) -> 0 | BV8: =IF($BV$3+$BV$4+$BV$5=0,0,VLOOKUP($D8,'mix RMA'!$F$9:$Q$70,6,FALSE)+(VLOOKUP($D8,'mix RMA'!$F$9:$Q$70,10,FALSE))/'mix RMA'!$N$4*(Calculations!$BV$3-'mix RMA'!$L$4)+(VLOOKUP($D8,'mix RMA'!$F$9:$Q$70,11,FALSE))/'mix RMA'!$N$5*(Calculations!$BV$4-'mix RMA'!$L$5)+(VLOOKUP($D8,'mix RMA'!$F$9:$Q$70,12,FALSE))/'mix RMA'!$N$6*($BV$5-'mix RMA'!$L$6)) -> 0.141329298
B9: 2 | C9: Methane (kg) | D9: Methane | F9: =IF($F$4=0,0,VLOOKUP($D9,'I6 RMA'!$F$10:$O$82,2,FALSE)+(VLOOKUP($D9,'I6 RMA'!$F$10:$O$82,3,FALSE)-VLOOKUP($D9,'I6 RMA'!$F$10:$O$82,2,FALSE))/'I6 RMA'!$L$4*(Calculations!$F$4-'I6 RMA'!$J$4))*(1-F5/100) -> 0.008960089948 | H9: =IF($H$4=0,0,VLOOKUP($D9,'PRB RMA'!$F$10:$O$82,2,FALSE)+(VLOOKUP($D9,'PRB RMA'!$F$10:$O$82,3,FALSE)-VLOOKUP($D9,'PRB RMA'!$F$10:$O$82,2,FALSE))/'PRB RMA'!$L$4*(Calculations!$H$4-'PRB RMA'!$J$4)) -> 0 | J9: =IF($J$4=0,0,VLOOKUP($D9,'Coal TrainRMT'!$F$10:$O$82,2,FALSE)+(VLOOKUP($D9,'Coal TrainRMT'!$F$10:$O$82,3,FALSE)-VLOOKUP($D9,'Coal TrainRMT'!$F$10:$O$82,2,FALSE))/'Coal TrainRMT'!$L$4*(Calculations!$J$4-'Coal TrainRMT'!$J$4)) -> 6.884452696e-06 | L9: =IF($L$4+$L$5+$L$6=0,0,VLOOKUP($D9,#REF!,2,FALSE)+(VLOOKUP($D9,#REF!,6,FALSE)/#REF!*(#REF!-#REF!)+(VLOOKUP($D9,#REF!,8,FALSE))/#REF!*(#REF!-#REF!)+(VLOOKUP($D9,#REF!,10,FALSE))/#REF!*($L$6-#REF!))) ->  | N9: =IF($N$4=0,0,VLOOKUP($D9,'NG Pipeline RMT'!$F$10:$O$82,2,FALSE)+(VLOOKUP($D9,'NG Pipeline RMT'!$F$10:$O$82,3,FALSE)-VLOOKUP($D9,'NG Pipeline RMT'!$F$10:$O$82,2,FALSE))/'NG Pipeline RMT'!$L$4*(Calculations!$N$4-'NG Pipeline RMT'!$J$4)) -> 0 | P9: =IF($P$4=0,0,VLOOKUP($D9,'SG RMA'!$F$10:$O$82,2,FALSE)+(VLOOKUP($D9,'SG RMA'!$F$10:$O$82,3,FALSE)-VLOOKUP($D9,'SG RMA'!$F$10:$O$82,2,FALSE))/'SG RMA'!$L$4*(Calculations!$P$4-'SG RMA'!$J$4)) -> 0 | R9: =IF($R$4=0,0,VLOOKUP($D9,'Bale Truck RMT'!$F$10:$O$82,2,FALSE)+(VLOOKUP($D9,'Bale Truck RMT'!$F$10:$O$82,3,FALSE)-VLOOKUP($D9,'Bale Truck RMT'!$F$10:$O$82,2,FALSE))/'Bale Truck RMT'!$L$4*(Calculations!$R$4-'Bale Truck RMT'!$J$4)) -> 0 | T9: =IF($T$4=0,0,VLOOKUP($D9,'Cont Truck RMT'!$F$10:$O$82,2,FALSE)+(VLOOKUP($D9,'Cont Truck RMT'!$F$10:$O$82,3,FALSE)-VLOOKUP($D9,'Cont Truck RMT'!$F$10:$O$82,2,FALSE))/'Cont Truck RMT'!$L$4*(Calculations!$T$4-'Cont Truck RMT'!$J$4)) -> 0 | V9: =IF($V$4=0,0,VLOOKUP($D9,'SRWC RMA'!$F$10:$O$82,2,FALSE)+(VLOOKUP($D9,'SRWC RMA'!$F$10:$O$82,3,FALSE)-VLOOKUP($D9,'SRWC RMA'!$F$10:$O$82,2,FALSE))/'SRWC RMA'!$L$4*(Calculations!$V$4-'SRWC RMA'!$J$4)) -> 0 | X9: =IF($X$4+$X$5+$X$6=0,0,VLOOKUP($D9,'Stover RMA'!$F$9:$Q$70,2,FALSE)+(VLOOKUP($D9,'Stover RMA'!$F$9:$Q$70,10,FALSE))/'Stover RMA'!$N$4*(Calculations!$X$4-'Stover RMA'!$L$4)+(VLOOKUP($D9,'Stover RMA'!$F$9:$Q$70,11,FALSE))/'Stover RMA'!$N$5*(Calculations!$X$5-'Stover RMA'!$L$5)+(VLOOKUP($D9,'Stover RMA'!$F$9:$Q$70,12,FALSE))/'Stover RMA'!$N$6*($X$6-'Stover RMA'!$L$6)) -> 0 | Z9: =IF($Z$4=0,0,VLOOKUP($D9,'Corn RMA'!$F$10:$O$82,2,FALSE)+(VLOOKUP($D9,'Corn RMA'!$F$10:$O$82,3,FALSE)-VLOOKUP($D9,'Corn RMA'!$F$10:$O$82,2,FALSE))/'Corn RMA'!$L$4*(Calculations!$Z$4-'Corn RMA'!$J$4)) -> 0 | AB9: =HLOOKUP(1,'FT Diesel 2'!$H$11:$U$77,'FT Diesel 2'!V60,FALSE) ->  | AD9: =HLOOKUP(1,'Adv Ethanol'!$G$10:$O$79,'Adv Ethanol'!Q50,FALSE) ->  | AF9: =IF($AF$4+$AF$5>0,VLOOKUP(D9,Uranium!$F$10:$K$77,3,FALSE)*Calculations!$AF$4+VLOOKUP(D9,Uranium!$F$10:$K$77,4,FALSE)*$AF$5,0) -> 0 | AH9: =IF($AH$4=0,0,VLOOKUP($D9,'U RMT'!$F$9:$U$64,2,FALSE)+(VLOOKUP($D9,'U RMT'!$F$10:$U$64,3,FALSE)-VLOOKUP($D9,'U RMT'!$F$10:$U$64,2,FALSE))/'U RMT'!$U$2*(Calculations!$AH$4-'U RMT'!$O$2)) -> 0 | AJ9: =IF($AJ$4=0,0,VLOOKUP($D9,'U RMT'!$F$9:$U$64,4,FALSE)+(VLOOKUP($D9,'U RMT'!$F$10:$U$64,5,FALSE)-VLOOKUP($D9,'U RMT'!$F$10:$U$64,4,FALSE))/'U RMT'!$U$3*(Calculations!$AJ$4-'U RMT'!$Q$3)) -> 0 | AL9: =IF($AL$4=0,0,VLOOKUP($D9,'U RMT'!$F$9:$U$64,6,FALSE)+(VLOOKUP($D9,'U RMT'!$F$10:$U$64,7,FALSE)-VLOOKUP($D9,'U RMT'!$F$10:$U$64,6,FALSE))/'U RMT'!$U$4*(Calculations!$AL$4-'U RMT'!$S$4)) -> 0 | AN9: =IF($AN$4=0,0,VLOOKUP($D9,'Petro Transport'!$F$10:$Z$77,2,FALSE)+(VLOOKUP($D9,'Petro Transport'!$F$10:$Z$77,3,FALSE)-VLOOKUP($D9,'Petro Transport'!$F$10:$Z$77,2,FALSE))/'Petro Transport'!$V$3*(Calculations!$AN$4-'Petro Transport'!$N$3)) -> 0 | AP9: =IF($AP$4=0,0,VLOOKUP($D9,'Petro Transport'!$F$10:$Z$77,4,FALSE)+(VLOOKUP($D9,'Petro Transport'!$F$10:$Z$77,5,FALSE)-VLOOKUP($D9,'Petro Transport'!$F$10:$Z$77,4,FALSE))/'Petro Transport'!$V$4*(Calculations!$AP$4-'Petro Transport'!$P$4)) -> 0 | AR9: =IF($AR$4=0,0,VLOOKUP($D9,'Petro Transport'!$F$10:$Z$77,6,FALSE)+(VLOOKUP($D9,'Petro Transport'!$F$10:$Z$77,7,FALSE)-VLOOKUP($D9,'Petro Transport'!$F$10:$Z$77,6,FALSE))/'Petro Transport'!$V$5*(Calculations!$AR$4-'Petro Transport'!$R$5)) -> 0 | AT9: =IF($AT$4=0,0,VLOOKUP($D9,'Petro Transport'!$F$10:$Z$77,8,FALSE)+(VLOOKUP($D9,'Petro Transport'!$F$10:$Z$77,9,FALSE)-VLOOKUP($D9,'Petro Transport'!$F$10:$Z$77,8,FALSE))/'Petro Transport'!$V$6*(Calculations!$AT$4-'Petro Transport'!$T$6)) -> 0 | AV9: =VLOOKUP($D9,'Dom Petro'!$F$11:$J$65,3,FALSE)*Calculations!$AV$4+VLOOKUP($D9,'Dom Petro'!$F$11:$J$65,4,FALSE)*Calculations!$AV$5+VLOOKUP($D9,'Dom Petro'!$F$11:$J$65,5,FALSE)*Calculations!$AV$6 -> 0.0008421267803 | AX9: =VLOOKUP($D9,'For Petro'!$F$9:$K$77,3,FALSE)*Calculations!$AX$3+VLOOKUP($D9,'For Petro'!$F$9:$K$77,4,FALSE)*Calculations!$AX$4+VLOOKUP($D9,'For Petro'!$F$9:$K$77,5,FALSE)*Calculations!$AX$5+VLOOKUP($D9,'For Petro'!$F$9:$K$77,6,FALSE)*$AX$6 -> 0 | AZ9: =IF($AZ$5=1,VLOOKUP($D9,'Petro Ref'!$F$10:$J$77,3,FALSE),0) -> 0 | BB9: =IF($BB$5,VLOOKUP($D9,'Petro Ref'!$F$10:$J$77,4,FALSE),0) -> 0 | BD9: =IF($BD$5=1,VLOOKUP($D9,'Petro Ref'!$F$10:$J$77,5,FALSE),0) -> 0 | BF9: =IF($BF$3+$BF$4+$BF$5=0,0,VLOOKUP($D9,'onshore RMA'!$F$9:$Q$70,2,FALSE)+(VLOOKUP($D9,'onshore RMA'!$F$9:$Q$70,10,FALSE))/'onshore RMA'!$N$4*(Calculations!$BF$3-'onshore RMA'!$L$4)+(VLOOKUP($D9,'onshore RMA'!$F$9:$Q$70,11,FALSE))/'onshore RMA'!$N$5*(Calculations!$BF$4-'onshore RMA'!$L$5)+(VLOOKUP($D9,'onshore RMA'!$F$9:$Q$70,12,FALSE))/'onshore RMA'!$N$6*($BF$5-'onshore RMA'!$L$6)) -> 0 | BH9: =IF($BH$3+$BH$4+$BH$5=0,0,VLOOKUP($D9,'assoc RMA'!$F$9:$Q$70,2,FALSE)+(VLOOKUP($D9,'assoc RMA'!$F$9:$Q$70,10,FALSE))/'assoc RMA'!$N$4*(Calculations!$BH$3-'assoc RMA'!$L$4)+(VLOOKUP($D9,'assoc RMA'!$F$9:$Q$70,11,FALSE))/'assoc RMA'!$N$5*(Calculations!$BH$4-'assoc RMA'!$L$5)+(VLOOKUP($D9,'assoc RMA'!$F$9:$Q$70,12,FALSE))/'assoc RMA'!$N$6*($BH$5-'assoc RMA'!$L$6)) -> 0 | BJ9: =IF($BJ$3+$BJ$4+$BJ$5=0,0,VLOOKUP($D9,'offshore RMA'!$F$9:$Q$70,2,FALSE)+(VLOOKUP($D9,'offshore RMA'!$F$9:$Q$70,10,FALSE))/'offshore RMA'!$N$4*(Calculations!$BJ$3-'offshore RMA'!$L$4)+(VLOOKUP($D9,'offshore RMA'!$F$9:$Q$70,11,FALSE))/'offshore RMA'!$N$5*(Calculations!$BJ$4-'offshore RMA'!$L$5)+(VLOOKUP($D9,'offshore RMA'!$F$9:$Q$70,12,FALSE))/'offshore RMA'!$N$6*($BJ$5-'offshore RMA'!$L$6)) -> 0 | BL9: =IF($BL$3+$BL$4+$BL$5=0,0,VLOOKUP($D9,'barnett RMA'!$F$9:$Q$70,2,FALSE)+(VLOOKUP($D9,'barnett RMA'!$F$9:$Q$70,10,FALSE))/'barnett RMA'!$N$4*(Calculations!$BL$3-'barnett RMA'!$L$4)+(VLOOKUP($D9,'barnett RMA'!$F$9:$Q$70,11,FALSE))/'barnett RMA'!$N$5*(Calculations!$BL$4-'barnett RMA'!$L$5)+(VLOOKUP($D9,'barnett RMA'!$F$9:$Q$70,12,FALSE))/'barnett RMA'!$N$6*($BL$5-'barnett RMA'!$L$6)) -> 0 | BN9: =IF($BN$3+$BN$4+$BN$5=0,0,VLOOKUP($D9,'cbm RMA'!$F$9:$Q$70,2,FALSE)+(VLOOKUP($D9,'cbm RMA'!$F$9:$Q$70,10,FALSE))/'cbm RMA'!$N$4*(Calculations!$BN$3-'cbm RMA'!$L$4)+(VLOOKUP($D9,'cbm RMA'!$F$9:$Q$70,11,FALSE))/'cbm RMA'!$N$5*(Calculations!$BN$4-'cbm RMA'!$L$5)+(VLOOKUP($D9,'cbm RMA'!$F$9:$Q$70,12,FALSE))/'cbm RMA'!$N$6*($BN$5-'cbm RMA'!$L$6)) -> 0 | BP9: =IF($BP$3+$BP$4+$BP$5=0,0,VLOOKUP($D9,'Marc RMA'!$F$9:$Q$70,2,FALSE)+(VLOOKUP($D9,'Marc RMA'!$F$9:$Q$70,10,FALSE))/'Marc RMA'!$N$4*(Calculations!$BP$3-'Marc RMA'!$L$4)+(VLOOKUP($D9,'Marc RMA'!$F$9:$Q$70,11,FALSE))/'Marc RMA'!$N$5*(Calculations!$BP$4-'Marc RMA'!$L$5)+(VLOOKUP($D9,'Marc RMA'!$F$9:$Q$70,12,FALSE))/'Marc RMA'!$N$6*($BP$5-'Marc RMA'!$L$6)) -> 0 | BR9: =IF($BR$3+$BR$4+$BR$5=0,0,VLOOKUP($D9,'LNG RMA'!$F$9:$Q$70,2,FALSE)+(VLOOKUP($D9,'LNG RMA'!$F$9:$Q$70,10,FALSE))/'LNG RMA'!$N$4*(Calculations!$BR$3-'LNG RMA'!$L$4)+(VLOOKUP($D9,'LNG RMA'!$F$9:$Q$70,11,FALSE))/'LNG RMA'!$N$5*(Calculations!$BR$4-'LNG RMA'!$L$5)+(VLOOKUP($D9,'LNG RMA'!$F$9:$Q$70,12,FALSE))/'LNG RMA'!$N$6*($BR$5-'LNG RMA'!$L$6)) -> 0 | BT9: =IF($BT$3+$BT$4+$BT$5=0,0,VLOOKUP($D9,'tight RMA'!$F$9:$Q$70,2,FALSE)+(VLOOKUP($D9,'tight RMA'!$F$9:$Q$70,10,FALSE))/'tight RMA'!$N$4*(Calculations!$BT$3-'tight RMA'!$L$4)+(VLOOKUP($D9,'tight RMA'!$F$9:$Q$70,11,FALSE))/'tight RMA'!$N$5*(Calculations!$BT$4-'tight RMA'!$L$5)+(VLOOKUP($D9,'tight RMA'!$F$9:$Q$70,12,FALSE))/'tight RMA'!$N$6*($BT$5-'tight RMA'!$L$6)) -> 0 | BV9: =IF($BV$3+$BV$4+$BV$5=0,0,VLOOKUP($D9,'mix RMA'!$F$9:$Q$70,2,FALSE)+(VLOOKUP($D9,'mix RMA'!$F$9:$Q$70,10,FALSE))/'mix RMA'!$N$4*(Calculations!$BV$3-'mix RMA'!$L$4)+(VLOOKUP($D9,'mix RMA'!$F$9:$Q$70,11,FALSE))/'mix RMA'!$N$5*(Calculations!$BV$4-'mix RMA'!$L$5)+(VLOOKUP($D9,'mix RMA'!$F$9:$Q$70,12,FALSE))/'mix RMA'!$N$6*($BV$5-'mix RMA'!$L$6)) -> 0.01287438316
B10: 3 | C10: Nitrous Oxide (kg) | D10: Nitrous oxide (laughing gas) | F10: =IF($F$4=0,0,VLOOKUP($D10,'I6 RMA'!$F$10:$O$82,2,FALSE)+(VLOOKUP($D10,'I6 RMA'!$F$10:$O$82,3,FALSE)-VLOOKUP($D10,'I6 RMA'!$F$10:$O$82,2,FALSE))/'I6 RMA'!$L$4*(Calculations!$F$4-'I6 RMA'!$J$4)) -> 4.490520897e-07 | H10: =IF($H$4=0,0,VLOOKUP($D10,'PRB RMA'!$F$10:$O$82,2,FALSE)+(VLOOKUP($D10,'PRB RMA'!$F$10:$O$82,3,FALSE)-VLOOKUP($D10,'PRB RMA'!$F$10:$O$82,2,FALSE))/'PRB RMA'!$L$4*(Calculations!$H$4-'PRB RMA'!$J$4)) -> 0 | J10: =IF($J$4=0,0,VLOOKUP($D10,'Coal TrainRMT'!$F$10:$O$82,2,FALSE)+(VLOOKUP($D10,'Coal TrainRMT'!$F$10:$O$82,3,FALSE)-VLOOKUP($D10,'Coal TrainRMT'!$F$10:$O$82,2,FALSE))/'Coal TrainRMT'!$L$4*(Calculations!$J$4-'Coal TrainRMT'!$J$4)) -> 3.05909769e-07 | L10: =IF($L$4+$L$5+$L$6=0,0,VLOOKUP($D10,#REF!,2,FALSE)+(VLOOKUP($D10,#REF!,6,FALSE)/#REF!*(#REF!-#REF!)+(VLOOKUP($D10,#REF!,8,FALSE))/#REF!*(#REF!-#REF!)+(VLOOKUP($D10,#REF!,10,FALSE))/#REF!*($L$6-#REF!))) ->  | N10: =IF($N$4=0,0,VLOOKUP($D10,'NG Pipeline RMT'!$F$10:$O$82,2,FALSE)+(VLOOKUP($D10,'NG Pipeline RMT'!$F$10:$O$82,3,FALSE)-VLOOKUP($D10,'NG Pipeline RMT'!$F$10:$O$82,2,FALSE))/'NG Pipeline RMT'!$L$4*(Calculations!$N$4-'NG Pipeline RMT'!$J$4)) -> 0 | P10: =IF($P$4=0,0,VLOOKUP($D10,'SG RMA'!$F$10:$O$82,2,FALSE)+(VLOOKUP($D10,'SG RMA'!$F$10:$O$82,3,FALSE)-VLOOKUP($D10,'SG RMA'!$F$10:$O$82,2,FALSE))/'SG RMA'!$L$4*(Calculations!$P$4-'SG RMA'!$J$4)) -> 0 | R10: =IF($R$4=0,0,VLOOKUP($D10,'Bale Truck RMT'!$F$10:$O$82,2,FALSE)+(VLOOKUP($D10,'Bale Truck RMT'!$F$10:$O$82,3,FALSE)-VLOOKUP($D10,'Bale Truck RMT'!$F$10:$O$82,2,FALSE))/'Bale Truck RMT'!$L$4*(Calculations!$R$4-'Bale Truck RMT'!$J$4)) -> 0 | T10: =IF($T$4=0,0,VLOOKUP($D10,'Cont Truck RMT'!$F$10:$O$82,2,FALSE)+(VLOOKUP($D10,'Cont Truck RMT'!$F$10:$O$82,3,FALSE)-VLOOKUP($D10,'Cont Truck RMT'!$F$10:$O$82,2,FALSE))/'Cont Truck RMT'!$L$4*(Calculations!$T$4-'Cont Truck RMT'!$J$4)) -> 0 | V10: =IF($V$4=0,0,VLOOKUP($D10,'SRWC RMA'!$F$10:$O$82,2,FALSE)+(VLOOKUP($D10,'SRWC RMA'!$F$10:$O$82,3,FALSE)-VLOOKUP($D10,'SRWC RMA'!$F$10:$O$82,2,FALSE))/'SRWC RMA'!$L$4*(Calculations!$V$4-'SRWC RMA'!$J$4)) -> 0 | X10: =IF($X$4+$X$5+$X$6=0,0,VLOOKUP($D10,'Stover RMA'!$F$9:$Q$70,2,FALSE)+(VLOOKUP($D10,'Stover RMA'!$F$9:$Q$70,10,FALSE))/'Stover RMA'!$N$4*(Calculations!$X$4-'Stover RMA'!$L$4)+(VLOOKUP($D10,'Stover RMA'!$F$9:$Q$70,11,FALSE))/'Stover RMA'!$N$5*(Calculations!$X$5-'Stover RMA'!$L$5)+(VLOOKUP($D10,'Stover RMA'!$F$9:$Q$70,12,FALSE))/'Stover RMA'!$N$6*($X$6-'Stover RMA'!$L$6)) -> 0 | Z10: =IF($Z$4=0,0,VLOOKUP($D10,'Corn RMA'!$F$10:$O$82,2,FALSE)+(VLOOKUP($D10,'Corn RMA'!$F$10:$O$82,3,FALSE)-VLOOKUP($D10,'Corn RMA'!$F$10:$O$82,2,FALSE))/'Corn RMA'!$L$4*(Calculations!$Z$4-'Corn RMA'!$J$4)) -> 0 | AB10: =HLOOKUP(1,'FT Diesel 2'!$H$11:$U$76,'FT Diesel 2'!V55,FALSE) ->  | AD10: =HLOOKUP(1,'Adv Ethanol'!$G$10:$O$79,'Adv Ethanol'!Q45,FALSE) ->  | AF10: =IF($AF$4+$AF$5>0,VLOOKUP(D10,Uranium!$F$10:$K$77,3,FALSE)*Calculations!$AF$4+VLOOKUP(D10,Uranium!$F$10:$K$77,4,FALSE)*$AF$5,0) -> 0 | AH10: =IF($AH$4=0,0,VLOOKUP($D10,'U RMT'!$F$9:$U$64,2,FALSE)+(VLOOKUP($D10,'U RMT'!$F$10:$U$64,3,FALSE)-VLOOKUP($D10,'U RMT'!$F$10:$U$64,2,FALSE))/'U RMT'!$U$2*(Calculations!$AH$4-'U RMT'!$O$2)) -> 0 | AJ10: =IF($AJ$4=0,0,VLOOKUP($D10,'U RMT'!$F$9:$U$64,4,FALSE)+(VLOOKUP($D10,'U RMT'!$F$10:$U$64,5,FALSE)-VLOOKUP($D10,'U RMT'!$F$10:$U$64,4,FALSE))/'U RMT'!$U$3*(Calculations!$AJ$4-'U RMT'!$Q$3)) -> 0 | AL10: =IF($AL$4=0,0,VLOOKUP($D10,'U RMT'!$F$9:$U$64,6,FALSE)+(VLOOKUP($D10,'U RMT'!$F$10:$U$64,7,FALSE)-VLOOKUP($D10,'U RMT'!$F$10:$U$64,6,FALSE))/'U RMT'!$U$4*(Calculations!$AL$4-'U RMT'!$S$4)) -> 0 | AN10: =IF($AN$4=0,0,VLOOKUP($D10,'Petro Transport'!$F$10:$Z$77,2,FALSE)+(VLOOKUP($D10,'Petro Transport'!$F$10:$Z$77,3,FALSE)-VLOOKUP($D10,'Petro Transport'!$F$10:$Z$77,2,FALSE))/'Petro Transport'!$V$3*(Calculations!$AN$4-'Petro Transport'!$N$3)) -> 0 | AP10: =IF($AP$4=0,0,VLOOKUP($D10,'Petro Transport'!$F$10:$Z$77,4,FALSE)+(VLOOKUP($D10,'Petro Transport'!$F$10:$Z$77,5,FALSE)-VLOOKUP($D10,'Petro Transport'!$F$10:$Z$77,4,FALSE))/'Petro Transport'!$V$4*(Calculations!$AP$4-'Petro Transport'!$P$4)) -> 0 | AR10: =IF($AR$4=0,0,VLOOKUP($D10,'Petro Transport'!$F$10:$Z$77,6,FALSE)+(VLOOKUP($D10,'Petro Transport'!$F$10:$Z$77,7,FALSE)-VLOOKUP($D10,'Petro Transport'!$F$10:$Z$77,6,FALSE))/'Petro Transport'!$V$5*(Calculations!$AR$4-'Petro Transport'!$R$5)) -> 0 | AT10: =IF($AT$4=0,0,VLOOKUP($D10,'Petro Transport'!$F$10:$Z$77,8,FALSE)+(VLOOKUP($D10,'Petro Transport'!$F$10:$Z$77,9,FALSE)-VLOOKUP($D10,'Petro Transport'!$F$10:$Z$77,8,FALSE))/'Petro Transport'!$V$6*(Calculations!$AT$4-'Petro Transport'!$T$6)) -> 0 | AV10: =VLOOKUP($D10,'Dom Petro'!$F$11:$J$65,3,FALSE)*Calculations!$AV$4+VLOOKUP($D10,'Dom Petro'!$F$11:$J$65,4,FALSE)*Calculations!$AV$5+VLOOKUP($D10,'Dom Petro'!$F$11:$J$65,5,FALSE)*Calculations!$AV$6 -> 4.741374735e-06 | AX10: =VLOOKUP($D10,'For Petro'!$F$9:$K$77,3,FALSE)*Calculations!$AX$3+VLOOKUP($D10,'For Petro'!$F$9:$K$77,4,FALSE)*Calculations!$AX$4+VLOOKUP($D10,'For Petro'!$F$9:$K$77,5,FALSE)*Calculations!$AX$5+VLOOKUP($D10,'For Petro'!$F$9:$K$77,6,FALSE)*$AX$6 -> 0 | AZ10: =IF($AZ$5=1,VLOOKUP($D10,'Petro Ref'!$F$10:$J$77,3,FALSE),0) -> 0 | BB10: =IF($BB$5,VLOOKUP($D10,'Petro Ref'!$F$10:$J$77,4,FALSE),0) -> 0 | BD10: =IF($BD$5=1,VLOOKUP($D10,'Petro Ref'!$F$10:$J$77,5,FALSE),0) -> 0 | BF10: =IF($BF$3+$BF$4+$BF$5=0,0,VLOOKUP($D10,'onshore RMA'!$F$9:$Q$70,2,FALSE)+(VLOOKUP($D10,'onshore RMA'!$F$9:$Q$70,10,FALSE))/'onshore RMA'!$N$4*(Calculations!$BF$3-'onshore RMA'!$L$4)+(VLOOKUP($D10,'onshore RMA'!$F$9:$Q$70,11,FALSE))/'onshore RMA'!$N$5*(Calculations!$BF$4-'onshore RMA'!$L$5)+(VLOOKUP($D10,'onshore RMA'!$F$9:$Q$70,12,FALSE))/'onshore RMA'!$N$6*($BF$5-'onshore RMA'!$L$6)) -> 0 | BH10: =IF($BH$3+$BH$4+$BH$5=0,0,VLOOKUP($D10,'assoc RMA'!$F$9:$Q$70,2,FALSE)+(VLOOKUP($D10,'assoc RMA'!$F$9:$Q$70,10,FALSE))/'assoc RMA'!$N$4*(Calculations!$BH$3-'assoc RMA'!$L$4)+(VLOOKUP($D10,'assoc RMA'!$F$9:$Q$70,11,FALSE))/'assoc RMA'!$N$5*(Calculations!$BH$4-'assoc RMA'!$L$5)+(VLOOKUP($D10,'assoc RMA'!$F$9:$Q$70,12,FALSE))/'assoc RMA'!$N$6*($BH$5-'assoc RMA'!$L$6)) -> 0 | BJ10: =IF($BJ$3+$BJ$4+$BJ$5=0,0,VLOOKUP($D10,'offshore RMA'!$F$9:$Q$70,2,FALSE)+(VLOOKUP($D10,'offshore RMA'!$F$9:$Q$70,10,FALSE))/'offshore RMA'!$N$4*(Calculations!$BJ$3-'offshore RMA'!$L$4)+(VLOOKUP($D10,'offshore RMA'!$F$9:$Q$70,11,FALSE))/'offshore RMA'!$N$5*(Calculations!$BJ$4-'offshore RMA'!$L$5)+(VLOOKUP($D10,'offshore RMA'!$F$9:$Q$70,12,FALSE))/'offshore RMA'!$N$6*($BJ$5-'offshore RMA'!$L$6)) -> 0 | BL10: =IF($BL$3+$BL$4+$BL$5=0,0,VLOOKUP($D10,'barnett RMA'!$F$9:$Q$70,2,FALSE)+(VLOOKUP($D10,'barnett RMA'!$F$9:$Q$70,10,FALSE))/'barnett RMA'!$N$4*(Calculations!$BL$3-'barnett RMA'!$L$4)+(VLOOKUP($D10,'barnett RMA'!$F$9:$Q$70,11,FALSE))/'barnett RMA'!$N$5*(Calculations!$BL$4-'barnett RMA'!$L$5)+(VLOOKUP($D10,'barnett RMA'!$F$9:$Q$70,12,FALSE))/'barnett RMA'!$N$6*($BL$5-'barnett RMA'!$L$6)) -> 0 | BN10: =IF($BN$3+$BN$4+$BN$5=0,0,VLOOKUP($D10,'cbm RMA'!$F$9:$Q$70,2,FALSE)+(VLOOKUP($D10,'cbm RMA'!$F$9:$Q$70,10,FALSE))/'cbm RMA'!$N$4*(Calculations!$BN$3-'cbm RMA'!$L$4)+(VLOOKUP($D10,'cbm RMA'!$F$9:$Q$70,11,FALSE))/'cbm RMA'!$N$5*(Calculations!$BN$4-'cbm RMA'!$L$5)+(VLOOKUP($D10,'cbm RMA'!$F$9:$Q$70,12,FALSE))/'cbm RMA'!$N$6*($BN$5-'cbm RMA'!$L$6)) -> 0 | BP10: =IF($BP$3+$BP$4+$BP$5=0,0,VLOOKUP($D10,'Marc RMA'!$F$9:$Q$70,2,FALSE)+(VLOOKUP($D10,'Marc RMA'!$F$9:$Q$70,10,FALSE))/'Marc RMA'!$N$4*(Calculations!$BP$3-'Marc RMA'!$L$4)+(VLOOKUP($D10,'Marc RMA'!$F$9:$Q$70,11,FALSE))/'Marc RMA'!$N$5*(Calculations!$BP$4-'Marc RMA'!$L$5)+(VLOOKUP($D10,'Marc RMA'!$F$9:$Q$70,12,FALSE))/'Marc RMA'!$N$6*($BP$5-'Marc RMA'!$L$6)) -> 0 | BR10: =IF($BR$3+$BR$4+$BR$5=0,0,VLOOKUP($D10,'LNG RMA'!$F$9:$Q$70,2,FALSE)+(VLOOKUP($D10,'LNG RMA'!$F$9:$Q$70,10,FALSE))/'LNG RMA'!$N$4*(Calculations!$BR$3-'LNG RMA'!$L$4)+(VLOOKUP($D10,'LNG RMA'!$F$9:$Q$70,11,FALSE))/'LNG RMA'!$N$5*(Calculations!$BR$4-'LNG RMA'!$L$5)+(VLOOKUP($D10,'LNG RMA'!$F$9:$Q$70,12,FALSE))/'LNG RMA'!$N$6*($BR$5-'LNG RMA'!$L$6)) -> 0 | BT10: =IF($BT$3+$BT$4+$BT$5=0,0,VLOOKUP($D10,'tight RMA'!$F$9:$Q$70,2,FALSE)+(VLOOKUP($D10,'tight RMA'!$F$9:$Q$70,10,FALSE))/'tight RMA'!$N$4*(Calculations!$BT$3-'tight RMA'!$L$4)+(VLOOKUP($D10,'tight RMA'!$F$9:$Q$70,11,FALSE))/'tight RMA'!$N$5*(Calculations!$BT$4-'tight RMA'!$L$5)+(VLOOKUP($D10,'tight RMA'!$F$9:$Q$70,12,FALSE))/'tight RMA'!$N$6*($BT$5-'tight RMA'!$L$6)) -> 0 | BV10: =IF($BV$3+$BV$4+$BV$5=0,0,VLOOKUP($D10,'mix RMA'!$F$9:$Q$70,2,FALSE)+(VLOOKUP($D10,'mix RMA'!$F$9:$Q$70,10,FALSE))/'mix RMA'!$N$4*(Calculations!$BV$3-'mix RMA'!$L$4)+(VLOOKUP($D10,'mix RMA'!$F$9:$Q$70,11,FALSE))/'mix RMA'!$N$5*(Calculations!$BV$4-'mix RMA'!$L$5)+(VLOOKUP($D10,'mix RMA'!$F$9:$Q$70,12,FALSE))/'mix RMA'!$N$6*($BV$5-'mix RMA'!$L$6)) -> 4.562493936e-06
B11: 4 | C11: Total GWP (kg) | F11: =F8+F9*$C$38+F10*$C$39 -> 0.2496477775 | H11: =H8+H9*$C$38+H10*$C$39 -> 0 | J11: =J8+J9*$C$38+J10*$C$39 -> 0.01290729116 | L11: =L8+L9*$C$38+L10*$C$39 ->  | N11: =N8+N9*$C$38+N10*$C$39 -> 0 | P11: =P8+P9*$C$38+P10*$C$39 -> 0 | R11: =R8+R9*$C$38+R10*$C$39 -> 0 | T11: =T8+T9*$C$38+T10*$C$39 -> 0 | V11: =V8+V9*$C$38+V10*$C$39 -> 0 | X11: =X8+X9*$C$38+X10*$C$39 -> 0 | Z11: =Z8+Z9*$C$38+Z10*$C$39 -> 0 | AB11: =AB8+AB9*$C$38+AB10*$C$39 ->  | AD11: =AD8+AD9*$C$38+AD10*$C$39 ->  | AF11: =AF8+AF9*$C$38+AF10*$C$39 -> 0 | AH11: =AH8+AH9*$C$38+AH10*$C$39 -> 0 | AJ11: =AJ8+AJ9*$C$38+AJ10*$C$39 -> 0 | AL11: =AL8+AL9*$C$38+AL10*$C$39 -> 0 | AN11: =AN8+AN9*$C$38+AN10*$C$39 -> 0 | AP11: =AP8+AP9*$C$38+AP10*$C$39 -> 0 | AR11: =AR8+AR9*$C$38+AR10*$C$39 -> 0 | AT11: =AT8+AT9*$C$38+AT10*$C$39 -> 0 | AV11: =AV8+AV9*$C$38+AV10*$C$39 -> 0.1796046745 | AX11: =AX8+AX9*$C$38+AX10*$C$39 -> 0 | AZ11: =AZ8+AZ9*$C$38+AZ10*$C$39 -> 0 | BB11: =BB8+BB9*$C$38+BB10*$C$39 -> 0 | BD11: =BD8+BD9*$C$38+BD10*$C$39 -> 0 | BF11: =BF8+BF9*$C$38+BF10*$C$39 -> 0 | BH11: =BH8+BH9*$C$38+BH10*$C$39 -> 0 | BJ11: =BJ8+BJ9*$C$38+BJ10*$C$39 -> 0 | BL11: =BL8+BL9*$C$38+BL10*$C$39 -> 0 | BN11: =BN8+BN9*$C$38+BN10*$C$39 -> 0 | BP11: =BP8+BP9*$C$38+BP10*$C$39 -> 0 | BR11: =BR8+BR9*$C$38+BR10*$C$39 -> 0 | BT11: =BT8+BT9*$C$38+BT10*$C$39 -> 0 | BV11: =BV8+BV9*$C$38+BV10*$C$39 -> 0.4645485003
B12: 5 | C12: Nitrogen Oxides (kg) | D12: Nitrogen oxides | F12: =IF($F$4=0,0,VLOOKUP($D12,'I6 RMA'!$F$10:$O$82,2,FALSE)+(VLOOKUP($D12,'I6 RMA'!$F$10:$O$82,3,FALSE)-VLOOKUP($D12,'I6 RMA'!$F$10:$O$82,2,FALSE))/'I6 RMA'!$L$4*(Calculations!$F$4-'I6 RMA'!$J$4)) -> 4.243849313e-05 | H12: =IF($H$4=0,0,VLOOKUP($D12,'PRB RMA'!$F$10:$O$82,2,FALSE)+(VLOOKUP($D12,'PRB RMA'!$F$10:$O$82,3,FALSE)-VLOOKUP($D12,'PRB RMA'!$F$10:$O$82,2,FALSE))/'PRB RMA'!$L$4*(Calculations!$H$4-'PRB RMA'!$J$4)) -> 0 | J12: =IF($J$4=0,0,VLOOKUP($D12,'Coal TrainRMT'!$F$10:$O$82,2,FALSE)+(VLOOKUP($D12,'Coal TrainRMT'!$F$10:$O$82,3,FALSE)-VLOOKUP($D12,'Coal TrainRMT'!$F$10:$O$82,2,FALSE))/'Coal TrainRMT'!$L$4*(Calculations!$J$4-'Coal TrainRMT'!$J$4)) -> 3.133585931e-05 | L12: =IF($L$4+$L$5+$L$6=0,0,VLOOKUP($D12,#REF!,2,FALSE)+(VLOOKUP($D12,#REF!,6,FALSE)/#REF!*(#REF!-#REF!)+(VLOOKUP($D12,#REF!,8,FALSE))/#REF!*(#REF!-#REF!)+(VLOOKUP($D12,#REF!,10,FALSE))/#REF!*($L$6-#REF!))) ->  | N12: =IF($N$4=0,0,VLOOKUP($D12,'NG Pipeline RMT'!$F$10:$O$82,2,FALSE)+(VLOOKUP($D12,'NG Pipeline RMT'!$F$10:$O$82,3,FALSE)-VLOOKUP($D12,'NG Pipeline RMT'!$F$10:$O$82,2,FALSE))/'NG Pipeline RMT'!$L$4*(Calculations!$N$4-'NG Pipeline RMT'!$J$4)) -> 0 | P12: =IF($P$4=0,0,VLOOKUP($D12,'SG RMA'!$F$10:$O$82,2,FALSE)+(VLOOKUP($D12,'SG RMA'!$F$10:$O$82,3,FALSE)-VLOOKUP($D12,'SG RMA'!$F$10:$O$82,2,FALSE))/'SG RMA'!$L$4*(Calculations!$P$4-'SG RMA'!$J$4)) -> 0 | R12: =IF($R$4=0,0,VLOOKUP($D12,'Bale Truck RMT'!$F$10:$O$82,2,FALSE)+(VLOOKUP($D12,'Bale Truck RMT'!$F$10:$O$82,3,FALSE)-VLOOKUP($D12,'Bale Truck RMT'!$F$10:$O$82,2,FALSE))/'Bale Truck RMT'!$L$4*(Calculations!$R$4-'Bale Truck RMT'!$J$4)) -> 0 | T12: =IF($T$4=0,0,VLOOKUP($D12,'Cont Truck RMT'!$F$10:$O$82,2,FALSE)+(VLOOKUP($D12,'Cont Truck RMT'!$F$10:$O$82,3,FALSE)-VLOOKUP($D12,'Cont Truck RMT'!$F$10:$O$82,2,FALSE))/'Cont Truck RMT'!$L$4*(Calculations!$T$4-'Cont Truck RMT'!$J$4)) -> 0 | V12: =IF($V$4=0,0,VLOOKUP($D12,'SRWC RMA'!$F$10:$O$82,2,FALSE)+(VLOOKUP($D12,'SRWC RMA'!$F$10:$O$82,3,FALSE)-VLOOKUP($D12,'SRWC RMA'!$F$10:$O$82,2,FALSE))/'SRWC RMA'!$L$4*(Calculations!$V$4-'SRWC RMA'!$J$4)) -> 0 | X12: =IF($X$4+$X$5+$X$6=0,0,VLOOKUP($D12,'Stover RMA'!$F$9:$Q$70,2,FALSE)+(VLOOKUP($D12,'Stover RMA'!$F$9:$Q$70,10,FALSE))/'Stover RMA'!$N$4*(Calculations!$X$4-'Stover RMA'!$L$4)+(VLOOKUP($D12,'Stover RMA'!$F$9:$Q$70,11,FALSE))/'Stover RMA'!$N$5*(Calculations!$X$5-'Stover RMA'!$L$5)+(VLOOKUP($D12,'Stover RMA'!$F$9:$Q$70,12,FALSE))/'Stover RMA'!$N$6*($X$6-'Stover RMA'!$L$6)) -> 0 | Z12: =IF($Z$4=0,0,VLOOKUP($D12,'Corn RMA'!$F$10:$O$82,2,FALSE)+(VLOOKUP($D12,'Corn RMA'!$F$10:$O$82,3,FALSE)-VLOOKUP($D12,'Corn RMA'!$F$10:$O$82,2,FALSE))/'Corn RMA'!$L$4*(Calculations!$Z$4-'Corn RMA'!$J$4)) -> 0 | AB12: =HLOOKUP(1,'FT Diesel 2'!$H$11:$U$76,'FT Diesel 2'!V54,FALSE) ->  | AD12: =HLOOKUP(1,'Adv Ethanol'!$G$10:$O$79,'Adv Ethanol'!Q44,FALSE) ->  | AF12: =IF($AF$4+$AF$5>0,VLOOKUP(D12,Uranium!$F$10:$K$77,3,FALSE)*Calculations!$AF$4+VLOOKUP(D12,Uranium!$F$10:$K$77,4,FALSE)*$AF$5,0) -> 0 | AH12: =IF($AH$4=0,0,VLOOKUP($D12,'U RMT'!$F$9:$U$64,2,FALSE)+(VLOOKUP($D12,'U RMT'!$F$10:$U$64,3,FALSE)-VLOOKUP($D12,'U RMT'!$F$10:$U$64,2,FALSE))/'U RMT'!$U$2*(Calculations!$AH$4-'U RMT'!$O$2)) -> 0 | AJ12: =IF($AJ$4=0,0,VLOOKUP($D12,'U RMT'!$F$9:$U$64,4,FALSE)+(VLOOKUP($D12,'U RMT'!$F$10:$U$64,5,FALSE)-VLOOKUP($D12,'U RMT'!$F$10:$U$64,4,FALSE))/'U RMT'!$U$3*(Calculations!$AJ$4-'U RMT'!$Q$3)) -> 0 | AL12: =IF($AL$4=0,0,VLOOKUP($D12,'U RMT'!$F$9:$U$64,6,FALSE)+(VLOOKUP($D12,'U RMT'!$F$10:$U$64,7,FALSE)-VLOOKUP($D12,'U RMT'!$F$10:$U$64,6,FALSE))/'U RMT'!$U$4*(Calculations!$AL$4-'U RMT'!$S$4)) -> 0 | AN12: =IF($AN$4=0,0,VLOOKUP($D12,'Petro Transport'!$F$10:$Z$77,2,FALSE)+(VLOOKUP($D12,'Petro Transport'!$F$10:$Z$77,3,FALSE)-VLOOKUP($D12,'Petro Transport'!$F$10:$Z$77,2,FALSE))/'Petro Transport'!$V$3*(Calculations!$AN$4-'Petro Transport'!$N$3)) -> 0 | AP12: =IF($AP$4=0,0,VLOOKUP($D12,'Petro Transport'!$F$10:$Z$77,4,FALSE)+(VLOOKUP($D12,'Petro Transport'!$F$10:$Z$77,5,FALSE)-VLOOKUP($D12,'Petro Transport'!$F$10:$Z$77,4,FALSE))/'Petro Transport'!$V$4*(Calculations!$AP$4-'Petro Transport'!$P$4)) -> 0 | AR12: =IF($AR$4=0,0,VLOOKUP($D12,'Petro Transport'!$F$10:$Z$77,6,FALSE)+(VLOOKUP($D12,'Petro Transport'!$F$10:$Z$77,7,FALSE)-VLOOKUP($D12,'Petro Transport'!$F$10:$Z$77,6,FALSE))/'Petro Transport'!$V$5*(Calculations!$AR$4-'Petro Transport'!$R$5)) -> 0 | AT12: =IF($AT$4=0,0,VLOOKUP($D12,'Petro Transport'!$F$10:$Z$77,8,FALSE)+(VLOOKUP($D12,'Petro Transport'!$F$10:$Z$77,9,FALSE)-VLOOKUP($D12,'Petro Transport'!$F$10:$Z$77,8,FALSE))/'Petro Transport'!$V$6*(Calculations!$AT$4-'Petro Transport'!$T$6)) -> 0 | AV12: =VLOOKUP($D12,'Dom Petro'!$F$11:$J$65,3,FALSE)*Calculations!$AV$4+VLOOKUP($D12,'Dom Petro'!$F$11:$J$65,4,FALSE)*Calculations!$AV$5+VLOOKUP($D12,'Dom Petro'!$F$11:$J$65,5,FALSE)*Calculations!$AV$6 -> 0.0006979805247 | AX12: =VLOOKUP($D12,'For Petro'!$F$9:$K$77,3,FALSE)*Calculations!$AX$3+VLOOKUP($D12,'For Petro'!$F$9:$K$77,4,FALSE)*Calculations!$AX$4+VLOOKUP($D12,'For Petro'!$F$9:$K$77,5,FALSE)*Calculations!$AX$5+VLOOKUP($D12,'For Petro'!$F$9:$K$77,6,FALSE)*$AX$6 -> 0 | AZ12: =IF($AZ$5=1,VLOOKUP($D12,'Petro Ref'!$F$10:$J$77,3,FALSE),0) -> 0 | BB12: =IF($BB$5,VLOOKUP($D12,'Petro Ref'!$F$10:$J$77,4,FALSE),0) -> 0 | BD12: =IF($BD$5=1,VLOOKUP($D12,'Petro Ref'!$F$10:$J$77,5,FALSE),0) -> 0 | BF12: =IF($BF$3+$BF$4+$BF$5=0,0,VLOOKUP($D12,'onshore RMA'!$F$9:$Q$70,2,FALSE)+(VLOOKUP($D12,'onshore RMA'!$F$9:$Q$70,10,FALSE))/'onshore RMA'!$N$4*(Calculations!$BF$3-'onshore RMA'!$L$4)+(VLOOKUP($D12,'onshore RMA'!$F$9:$Q$70,11,FALSE))/'onshore RMA'!$N$5*(Calculations!$BF$4-'onshore RMA'!$L$5)+(VLOOKUP($D12,'onshore RMA'!$F$9:$Q$70,12,FALSE))/'onshore RMA'!$N$6*($BF$5-'onshore RMA'!$L$6)) -> 0 | BH12: =IF($BH$3+$BH$4+$BH$5=0,0,VLOOKUP($D12,'assoc RMA'!$F$9:$Q$70,2,FALSE)+(VLOOKUP($D12,'assoc RMA'!$F$9:$Q$70,10,FALSE))/'assoc RMA'!$N$4*(Calculations!$BH$3-'assoc RMA'!$L$4)+(VLOOKUP($D12,'assoc RMA'!$F$9:$Q$70,11,FALSE))/'assoc RMA'!$N$5*(Calculations!$BH$4-'assoc RMA'!$L$5)+(VLOOKUP($D12,'assoc RMA'!$F$9:$Q$70,12,FALSE))/'assoc RMA'!$N$6*($BH$5-'assoc RMA'!$L$6)) -> 0 | BJ12: =IF($BJ$3+$BJ$4+$BJ$5=0,0,VLOOKUP($D12,'offshore RMA'!$F$9:$Q$70,2,FALSE)+(VLOOKUP($D12,'offshore RMA'!$F$9:$Q$70,10,FALSE))/'offshore RMA'!$N$4*(Calculations!$BJ$3-'offshore RMA'!$L$4)+(VLOOKUP($D12,'offshore RMA'!$F$9:$Q$70,11,FALSE))/'offshore RMA'!$N$5*(Calculations!$BJ$4-'offshore RMA'!$L$5)+(VLOOKUP($D12,'offshore RMA'!$F$9:$Q$70,12,FALSE))/'offshore RMA'!$N$6*($BJ$5-'offshore RMA'!$L$6)) -> 0 | BL12: =IF($BL$3+$BL$4+$BL$5=0,0,VLOOKUP($D12,'barnett RMA'!$F$9:$Q$70,2,FALSE)+(VLOOKUP($D12,'barnett RMA'!$F$9:$Q$70,10,FALSE))/'barnett RMA'!$N$4*(Calculations!$BL$3-'barnett RMA'!$L$4)+(VLOOKUP($D12,'barnett RMA'!$F$9:$Q$70,11,FALSE))/'barnett RMA'!$N$5*(Calculations!$BL$4-'barnett RMA'!$L$5)+(VLOOKUP($D12,'barnett RMA'!$F$9:$Q$70,12,FALSE))/'barnett RMA'!$N$6*($BL$5-'barnett RMA'!$L$6)) -> 0 | BN12: =IF($BN$3+$BN$4+$BN$5=0,0,VLOOKUP($D12,'cbm RMA'!$F$9:$Q$70,2,FALSE)+(VLOOKUP($D12,'cbm RMA'!$F$9:$Q$70,10,FALSE))/'cbm RMA'!$N$4*(Calculations!$BN$3-'cbm RMA'!$L$4)+(VLOOKUP($D12,'cbm RMA'!$F$9:$Q$70,11,FALSE))/'cbm RMA'!$N$5*(Calculations!$BN$4-'cbm RMA'!$L$5)+(VLOOKUP($D12,'cbm RMA'!$F$9:$Q$70,12,FALSE))/'cbm RMA'!$N$6*($BN$5-'cbm RMA'!$L$6)) -> 0 | BP12: =IF($BP$3+$BP$4+$BP$5=0,0,VLOOKUP($D12,'Marc RMA'!$F$9:$Q$70,2,FALSE)+(VLOOKUP($D12,'Marc RMA'!$F$9:$Q$70,10,FALSE))/'Marc RMA'!$N$4*(Calculations!$BP$3-'Marc RMA'!$L$4)+(VLOOKUP($D12,'Marc RMA'!$F$9:$Q$70,11,FALSE))/'Marc RMA'!$N$5*(Calculations!$BP$4-'Marc RMA'!$L$5)+(VLOOKUP($D12,'Marc RMA'!$F$9:$Q$70,12,FALSE))/'Marc RMA'!$N$6*($BP$5-'Marc RMA'!$L$6)) -> 0 | BR12: =IF($BR$3+$BR$4+$BR$5=0,0,VLOOKUP($D12,'LNG RMA'!$F$9:$Q$70,2,FALSE)+(VLOOKUP($D12,'LNG RMA'!$F$9:$Q$70,10,FALSE))/'LNG RMA'!$N$4*(Calculations!$BR$3-'LNG RMA'!$L$4)+(VLOOKUP($D12,'LNG RMA'!$F$9:$Q$70,11,FALSE))/'LNG RMA'!$N$5*(Calculations!$BR$4-'LNG RMA'!$L$5)+(VLOOKUP($D12,'LNG RMA'!$F$9:$Q$70,12,FALSE))/'LNG RMA'!$N$6*($BR$5-'LNG RMA'!$L$6)) -> 0 | BT12: =IF($BT$3+$BT$4+$BT$5=0,0,VLOOKUP($D12,'tight RMA'!$F$9:$Q$70,2,FALSE)+(VLOOKUP($D12,'tight RMA'!$F$9:$Q$70,10,FALSE))/'tight RMA'!$N$4*(Calculations!$BT$3-'tight RMA'!$L$4)+(VLOOKUP($D12,'tight RMA'!$F$9:$Q$70,11,FALSE))/'tight RMA'!$N$5*(Calculations!$BT$4-'tight RMA'!$L$5)+(VLOOKUP($D12,'tight RMA'!$F$9:$Q$70,12,FALSE))/'tight RMA'!$N$6*($BT$5-'tight RMA'!$L$6)) -> 0 | BV12: =IF($BV$3+$BV$4+$BV$5=0,0,VLOOKUP($D12,'mix RMA'!$F$9:$Q$70,2,FALSE)+(VLOOKUP($D12,'mix RMA'!$F$9:$Q$70,10,FALSE))/'mix RMA'!$N$4*(Calculations!$BV$3-'mix RMA'!$L$4)+(VLOOKUP($D12,'mix RMA'!$F$9:$Q$70,11,FALSE))/'mix RMA'!$N$5*(Calculations!$BV$4-'mix RMA'!$L$5)+(VLOOKUP($D12,'mix RMA'!$F$9:$Q$70,12,FALSE))/'mix RMA'!$N$6*($BV$5-'mix RMA'!$L$6)) -> 0.003274073249
B13: 6 | C13: Sulfur Dioxide (kg) | D13: Sulphur dioxide | F13: =IF($F$4=0,0,VLOOKUP($D13,'I6 RMA'!$F$10:$O$82,2,FALSE)+(VLOOKUP($D13,'I6 RMA'!$F$10:$O$82,3,FALSE)-VLOOKUP($D13,'I6 RMA'!$F$10:$O$82,2,FALSE))/'I6 RMA'!$L$4*(Calculations!$F$4-'I6 RMA'!$J$4)) -> 7.668373365e-05 | H13: =IF($H$4=0,0,VLOOKUP($D13,'PRB RMA'!$F$10:$O$82,2,FALSE)+(VLOOKUP($D13,'PRB RMA'!$F$10:$O$82,3,FALSE)-VLOOKUP($D13,'PRB RMA'!$F$10:$O$82,2,FALSE))/'PRB RMA'!$L$4*(Calculations!$H$4-'PRB RMA'!$J$4)) -> 0 | J13: =IF($J$4=0,0,VLOOKUP($D13,'Coal TrainRMT'!$F$10:$O$82,2,FALSE)+(VLOOKUP($D13,'Coal TrainRMT'!$F$10:$O$82,3,FALSE)-VLOOKUP($D13,'Coal TrainRMT'!$F$10:$O$82,2,FALSE))/'Coal TrainRMT'!$L$4*(Calculations!$J$4-'Coal TrainRMT'!$J$4)) -> 7.806155675e-06 | L13: =IF($L$4+$L$5+$L$6=0,0,VLOOKUP($D13,#REF!,2,FALSE)+(VLOOKUP($D13,#REF!,6,FALSE)/#REF!*(#REF!-#REF!)+(VLOOKUP($D13,#REF!,8,FALSE))/#REF!*(#REF!-#REF!)+(VLOOKUP($D13,#REF!,10,FALSE))/#REF!*($L$6-#REF!))) ->  | N13: =IF($N$4=0,0,VLOOKUP($D13,'NG Pipeline RMT'!$F$10:$O$82,2,FALSE)+(VLOOKUP($D13,'NG Pipeline RMT'!$F$10:$O$82,3,FALSE)-VLOOKUP($D13,'NG Pipeline RMT'!$F$10:$O$82,2,FALSE))/'NG Pipeline RMT'!$L$4*(Calculations!$N$4-'NG Pipeline RMT'!$J$4)) -> 0 | P13: =IF($P$4=0,0,VLOOKUP($D13,'SG RMA'!$F$10:$O$82,2,FALSE)+(VLOOKUP($D13,'SG RMA'!$F$10:$O$82,3,FALSE)-VLOOKUP($D13,'SG RMA'!$F$10:$O$82,2,FALSE))/'SG RMA'!$L$4*(Calculations!$P$4-'SG RMA'!$J$4)) -> 0 | R13: =IF($R$4=0,0,VLOOKUP($D13,'Bale Truck RMT'!$F$10:$O$82,2,FALSE)+(VLOOKUP($D13,'Bale Truck RMT'!$F$10:$O$82,3,FALSE)-VLOOKUP($D13,'Bale Truck RMT'!$F$10:$O$82,2,FALSE))/'Bale Truck RMT'!$L$4*(Calculations!$R$4-'Bale Truck RMT'!$J$4)) -> 0 | T13: =IF($T$4=0,0,VLOOKUP($D13,'Cont Truck RMT'!$F$10:$O$82,2,FALSE)+(VLOOKUP($D13,'Cont Truck RMT'!$F$10:$O$82,3,FALSE)-VLOOKUP($D13,'Cont Truck RMT'!$F$10:$O$82,2,FALSE))/'Cont Truck RMT'!$L$4*(Calculations!$T$4-'Cont Truck RMT'!$J$4)) -> 0 | V13: =IF($V$4=0,0,VLOOKUP($D13,'SRWC RMA'!$F$10:$O$82,2,FALSE)+(VLOOKUP($D13,'SRWC RMA'!$F$10:$O$82,3,FALSE)-VLOOKUP($D13,'SRWC RMA'!$F$10:$O$82,2,FALSE))/'SRWC RMA'!$L$4*(Calculations!$V$4-'SRWC RMA'!$J$4)) -> 0 | X13: =IF($X$4+$X$5+$X$6=0,0,VLOOKUP($D13,'Stover RMA'!$F$9:$Q$70,2,FALSE)+(VLOOKUP($D13,'Stover RMA'!$F$9:$Q$70,10,FALSE))/'Stover RMA'!$N$4*(Calculations!$X$4-'Stover RMA'!$L$4)+(VLOOKUP($D13,'Stover RMA'!$F$9:$Q$70,11,FALSE))/'Stover RMA'!$N$5*(Calculations!$X$5-'Stover RMA'!$L$5)+(VLOOKUP($D13,'Stover RMA'!$F$9:$Q$70,12,FALSE))/'Stover RMA'!$N$6*($X$6-'Stover RMA'!$L$6)) -> 0 | Z13: =IF($Z$4=0,0,VLOOKUP($D13,'Corn RMA'!$F$10:$O$82,2,FALSE)+(VLOOKUP($D13,'Corn RMA'!$F$10:$O$82,3,FALSE)-VLOOKUP($D13,'Corn RMA'!$F$10:$O$82,2,FALSE))/'Corn RMA'!$L$4*(Calculations!$Z$4-'Corn RMA'!$J$4)) -> 0 | AB13: =HLOOKUP(1,'FT Diesel 2'!$H$11:$U$76,'FT Diesel 2'!V56,FALSE) ->  | AD13: =HLOOKUP(1,'Adv Ethanol'!$G$10:$O$79,'Adv Ethanol'!Q46,FALSE) ->  | AF13: =IF($AF$4+$AF$5>0,VLOOKUP(D13,Uranium!$F$10:$K$77,3,FALSE)*Calculations!$AF$4+VLOOKUP(D13,Uranium!$F$10:$K$77,4,FALSE)*$AF$5,0) -> 0 | AH13: =IF($AH$4=0,0,VLOOKUP($D13,'U RMT'!$F$9:$U$64,2,FALSE)+(VLOOKUP($D13,'U RMT'!$F$10:$U$64,3,FALSE)-VLOOKUP($D13,'U RMT'!$F$10:$U$64,2,FALSE))/'U RMT'!$U$2*(Calculations!$AH$4-'U RMT'!$O$2)) -> 0 | AJ13: =IF($AJ$4=0,0,VLOOKUP($D13,'U RMT'!$F$9:$U$64,4,FALSE)+(VLOOKUP($D13,'U RMT'!$F$10:$U$64,5,FALSE)-VLOOKUP($D13,'U RMT'!$F$10:$U$64,4,FALSE))/'U RMT'!$U$3*(Calculations!$AJ$4-'U RMT'!$Q$3)) -> 0 | AL13: =IF($AL$4=0,0,VLOOKUP($D13,'U RMT'!$F$9:$U$64,6,FALSE)+(VLOOKUP($D13,'U RMT'!$F$10:$U$64,7,FALSE)-VLOOKUP($D13,'U RMT'!$F$10:$U$64,6,FALSE))/'U RMT'!$U$4*(Calculations!$AL$4-'U RMT'!$S$4)) -> 0 | AN13: =IF($AN$4=0,0,VLOOKUP($D13,'Petro Transport'!$F$10:$Z$77,2,FALSE)+(VLOOKUP($D13,'Petro Transport'!$F$10:$Z$77,3,FALSE)-VLOOKUP($D13,'Petro Transport'!$F$10:$Z$77,2,FALSE))/'Petro Transport'!$V$3*(Calculations!$AN$4-'Petro Transport'!$N$3)) -> 0 | AP13: =IF($AP$4=0,0,VLOOKUP($D13,'Petro Transport'!$F$10:$Z$77,4,FALSE)+(VLOOKUP($D13,'Petro Transport'!$F$10:$Z$77,5,FALSE)-VLOOKUP($D13,'Petro Transport'!$F$10:$Z$77,4,FALSE))/'Petro Transport'!$V$4*(Calculations!$AP$4-'Petro Transport'!$P$4)) -> 0 | AR13: =IF($AR$4=0,0,VLOOKUP($D13,'Petro Transport'!$F$10:$Z$77,6,FALSE)+(VLOOKUP($D13,'Petro Transport'!$F$10:$Z$77,7,FALSE)-VLOOKUP($D13,'Petro Transport'!$F$10:$Z$77,6,FALSE))/'Petro Transport'!$V$5*(Calculations!$AR$4-'Petro Transport'!$R$5)) -> 0 | AT13: =IF($AT$4=0,0,VLOOKUP($D13,'Petro Transport'!$F$10:$Z$77,8,FALSE)+(VLOOKUP($D13,'Petro Transport'!$F$10:$Z$77,9,FALSE)-VLOOKUP($D13,'Petro Transport'!$F$10:$Z$77,8,FALSE))/'Petro Transport'!$V$6*(Calculations!$AT$4-'Petro Transport'!$T$6)) -> 0 | AV13: =VLOOKUP($D13,'Dom Petro'!$F$11:$J$65,3,FALSE)*Calculations!$AV$4+VLOOKUP($D13,'Dom Petro'!$F$11:$J$65,4,FALSE)*Calculations!$AV$5+VLOOKUP($D13,'Dom Petro'!$F$11:$J$65,5,FALSE)*Calculations!$AV$6 -> 0.0002636685047 | AX13: =VLOOKUP($D13,'For Petro'!$F$9:$K$77,3,FALSE)*Calculations!$AX$3+VLOOKUP($D13,'For Petro'!$F$9:$K$77,4,FALSE)*Calculations!$AX$4+VLOOKUP($D13,'For Petro'!$F$9:$K$77,5,FALSE)*Calculations!$AX$5+VLOOKUP($D13,'For Petro'!$F$9:$K$77,6,FALSE)*$AX$6 -> 0 | AZ13: =IF($AZ$5=1,VLOOKUP($D13,'Petro Ref'!$F$10:$J$77,3,FALSE),0) -> 0 | BB13: =IF($BB$5,VLOOKUP($D13,'Petro Ref'!$F$10:$J$77,4,FALSE),0) -> 0 | BD13: =IF($BD$5=1,VLOOKUP($D13,'Petro Ref'!$F$10:$J$77,5,FALSE),0) -> 0 | BF13: =IF($BF$3+$BF$4+$BF$5=0,0,VLOOKUP($D13,'onshore RMA'!$F$9:$Q$70,2,FALSE)+(VLOOKUP($D13,'onshore RMA'!$F$9:$Q$70,10,FALSE))/'onshore RMA'!$N$4*(Calculations!$BF$3-'onshore RMA'!$L$4)+(VLOOKUP($D13,'onshore RMA'!$F$9:$Q$70,11,FALSE))/'onshore RMA'!$N$5*(Calculations!$BF$4-'onshore RMA'!$L$5)+(VLOOKUP($D13,'onshore RMA'!$F$9:$Q$70,12,FALSE))/'onshore RMA'!$N$6*($BF$5-'onshore RMA'!$L$6)) -> 0 | BH13: =IF($BH$3+$BH$4+$BH$5=0,0,VLOOKUP($D13,'assoc RMA'!$F$9:$Q$70,2,FALSE)+(VLOOKUP($D13,'assoc RMA'!$F$9:$Q$70,10,FALSE))/'assoc RMA'!$N$4*(Calculations!$BH$3-'assoc RMA'!$L$4)+(VLOOKUP($D13,'assoc RMA'!$F$9:$Q$70,11,FALSE))/'assoc RMA'!$N$5*(Calculations!$BH$4-'assoc RMA'!$L$5)+(VLOOKUP($D13,'assoc RMA'!$F$9:$Q$70,12,FALSE))/'assoc RMA'!$N$6*($BH$5-'assoc RMA'!$L$6)) -> 0 | BJ13: =IF($BJ$3+$BJ$4+$BJ$5=0,0,VLOOKUP($D13,'offshore RMA'!$F$9:$Q$70,2,FALSE)+(VLOOKUP($D13,'offshore RMA'!$F$9:$Q$70,10,FALSE))/'offshore RMA'!$N$4*(Calculations!$BJ$3-'offshore RMA'!$L$4)+(VLOOKUP($D13,'offshore RMA'!$F$9:$Q$70,11,FALSE))/'offshore RMA'!$N$5*(Calculations!$BJ$4-'offshore RMA'!$L$5)+(VLOOKUP($D13,'offshore RMA'!$F$9:$Q$70,12,FALSE))/'offshore RMA'!$N$6*($BJ$5-'offshore RMA'!$L$6)) -> 0 | BL13: =IF($BL$3+$BL$4+$BL$5=0,0,VLOOKUP($D13,'barnett RMA'!$F$9:$Q$70,2,FALSE)+(VLOOKUP($D13,'barnett RMA'!$F$9:$Q$70,10,FALSE))/'barnett RMA'!$N$4*(Calculations!$BL$3-'barnett RMA'!$L$4)+(VLOOKUP($D13,'barnett RMA'!$F$9:$Q$70,11,FALSE))/'barnett RMA'!$N$5*(Calculations!$BL$4-'barnett RMA'!$L$5)+(VLOOKUP($D13,'barnett RMA'!$F$9:$Q$70,12,FALSE))/'barnett RMA'!$N$6*($BL$5-'barnett RMA'!$L$6)) -> 0 | BN13: =IF($BN$3+$BN$4+$BN$5=0,0,VLOOKUP($D13,'cbm RMA'!$F$9:$Q$70,2,FALSE)+(VLOOKUP($D13,'cbm RMA'!$F$9:$Q$70,10,FALSE))/'cbm RMA'!$N$4*(Calculations!$BN$3-'cbm RMA'!$L$4)+(VLOOKUP($D13,'cbm RMA'!$F$9:$Q$70,11,FALSE))/'cbm RMA'!$N$5*(Calculations!$BN$4-'cbm RMA'!$L$5)+(VLOOKUP($D13,'cbm RMA'!$F$9:$Q$70,12,FALSE))/'cbm RMA'!$N$6*($BN$5-'cbm RMA'!$L$6)) -> 0 | BP13: =IF($BP$3+$BP$4+$BP$5=0,0,VLOOKUP($D13,'Marc RMA'!$F$9:$Q$70,2,FALSE)+(VLOOKUP($D13,'Marc RMA'!$F$9:$Q$70,10,FALSE))/'Marc RMA'!$N$4*(Calculations!$BP$3-'Marc RMA'!$L$4)+(VLOOKUP($D13,'Marc RMA'!$F$9:$Q$70,11,FALSE))/'Marc RMA'!$N$5*(Calculations!$BP$4-'Marc RMA'!$L$5)+(VLOOKUP($D13,'Marc RMA'!$F$9:$Q$70,12,FALSE))/'Marc RMA'!$N$6*($BP$5-'Marc RMA'!$L$6)) -> 0 | BR13: =IF($BR$3+$BR$4+$BR$5=0,0,VLOOKUP($D13,'LNG RMA'!$F$9:$Q$70,2,FALSE)+(VLOOKUP($D13,'LNG RMA'!$F$9:$Q$70,10,FALSE))/'LNG RMA'!$N$4*(Calculations!$BR$3-'LNG RMA'!$L$4)+(VLOOKUP($D13,'LNG RMA'!$F$9:$Q$70,11,FALSE))/'LNG RMA'!$N$5*(Calculations!$BR$4-'LNG RMA'!$L$5)+(VLOOKUP($D13,'LNG RMA'!$F$9:$Q$70,12,FALSE))/'LNG RMA'!$N$6*($BR$5-'LNG RMA'!$L$6)) -> 0 | BT13: =IF($BT$3+$BT$4+$BT$5=0,0,VLOOKUP($D13,'tight RMA'!$F$9:$Q$70,2,FALSE)+(VLOOKUP($D13,'tight RMA'!$F$9:$Q$70,10,FALSE))/'tight RMA'!$N$4*(Calculations!$BT$3-'tight RMA'!$L$4)+(VLOOKUP($D13,'tight RMA'!$F$9:$Q$70,11,FALSE))/'tight RMA'!$N$5*(Calculations!$BT$4-'tight RMA'!$L$5)+(VLOOKUP($D13,'tight RMA'!$F$9:$Q$70,12,FALSE))/'tight RMA'!$N$6*($BT$5-'tight RMA'!$L$6)) -> 0 | BV13: =IF($BV$3+$BV$4+$BV$5=0,0,VLOOKUP($D13,'mix RMA'!$F$9:$Q$70,2,FALSE)+(VLOOKUP($D13,'mix RMA'!$F$9:$Q$70,10,FALSE))/'mix RMA'!$N$4*(Calculations!$BV$3-'mix RMA'!$L$4)+(VLOOKUP($D13,'mix RMA'!$F$9:$Q$70,11,FALSE))/'mix RMA'!$N$5*(Calculations!$BV$4-'mix RMA'!$L$5)+(VLOOKUP($D13,'mix RMA'!$F$9:$Q$70,12,FALSE))/'mix RMA'!$N$6*($BV$5-'mix RMA'!$L$6)) -> 3.989174851e-05
B14: 7 | C14: Carbon Monoxide (kg) | D14: Carbon monoxide | F14: =IF($F$4=0,0,VLOOKUP($D14,'I6 RMA'!$F$10:$O$82,2,FALSE)+(VLOOKUP($D14,'I6 RMA'!$F$10:$O$82,3,FALSE)-VLOOKUP($D14,'I6 RMA'!$F$10:$O$82,2,FALSE))/'I6 RMA'!$L$4*(Calculations!$F$4-'I6 RMA'!$J$4)) -> 2.339348389e-05 | H14: =IF($H$4=0,0,VLOOKUP($D14,'PRB RMA'!$F$10:$O$82,2,FALSE)+(VLOOKUP($D14,'PRB RMA'!$F$10:$O$82,3,FALSE)-VLOOKUP($D14,'PRB RMA'!$F$10:$O$82,2,FALSE))/'PRB RMA'!$L$4*(Calculations!$H$4-'PRB RMA'!$J$4)) -> 0 | J14: =IF($J$4=0,0,VLOOKUP($D14,'Coal TrainRMT'!$F$10:$O$82,2,FALSE)+(VLOOKUP($D14,'Coal TrainRMT'!$F$10:$O$82,3,FALSE)-VLOOKUP($D14,'Coal TrainRMT'!$F$10:$O$82,2,FALSE))/'Coal TrainRMT'!$L$4*(Calculations!$J$4-'Coal TrainRMT'!$J$4)) -> 3.767371031e-05 | L14: =IF($L$4+$L$5+$L$6=0,0,VLOOKUP($D14,#REF!,2,FALSE)+(VLOOKUP($D14,#REF!,6,FALSE)/#REF!*(#REF!-#REF!)+(VLOOKUP($D14,#REF!,8,FALSE))/#REF!*(#REF!-#REF!)+(VLOOKUP($D14,#REF!,10,FALSE))/#REF!*($L$6-#REF!))) ->  | N14: =IF($N$4=0,0,VLOOKUP($D14,'NG Pipeline RMT'!$F$10:$O$82,2,FALSE)+(VLOOKUP($D14,'NG Pipeline RMT'!$F$10:$O$82,3,FALSE)-VLOOKUP($D14,'NG Pipeline RMT'!$F$10:$O$82,2,FALSE))/'NG Pipeline RMT'!$L$4*(Calculations!$N$4-'NG Pipeline RMT'!$J$4)) -> 0 | P14: =IF($P$4=0,0,VLOOKUP($D14,'SG RMA'!$F$10:$O$82,2,FALSE)+(VLOOKUP($D14,'SG RMA'!$F$10:$O$82,3,FALSE)-VLOOKUP($D14,'SG RMA'!$F$10:$O$82,2,FALSE))/'SG RMA'!$L$4*(Calculations!$P$4-'SG RMA'!$J$4)) -> 0 | R14: =IF($R$4=0,0,VLOOKUP($D14,'Bale Truck RMT'!$F$10:$O$82,2,FALSE)+(VLOOKUP($D14,'Bale Truck RMT'!$F$10:$O$82,3,FALSE)-VLOOKUP($D14,'Bale Truck RMT'!$F$10:$O$82,2,FALSE))/'Bale Truck RMT'!$L$4*(Calculations!$R$4-'Bale Truck RMT'!$J$4)) -> 0 | T14: =IF($T$4=0,0,VLOOKUP($D14,'Cont Truck RMT'!$F$10:$O$82,2,FALSE)+(VLOOKUP($D14,'Cont Truck RMT'!$F$10:$O$82,3,FALSE)-VLOOKUP($D14,'Cont Truck RMT'!$F$10:$O$82,2,FALSE))/'Cont Truck RMT'!$L$4*(Calculations!$T$4-'Cont Truck RMT'!$J$4)) -> 0 | V14: =IF($V$4=0,0,VLOOKUP($D14,'SRWC RMA'!$F$10:$O$82,2,FALSE)+(VLOOKUP($D14,'SRWC RMA'!$F$10:$O$82,3,FALSE)-VLOOKUP($D14,'SRWC RMA'!$F$10:$O$82,2,FALSE))/'SRWC RMA'!$L$4*(Calculations!$V$4-'SRWC RMA'!$J$4)) -> 0 | X14: =IF($X$4+$X$5+$X$6=0,0,VLOOKUP($D14,'Stover RMA'!$F$9:$Q$70,2,FALSE)+(VLOOKUP($D14,'Stover RMA'!$F$9:$Q$70,10,FALSE))/'Stover RMA'!$N$4*(Calculations!$X$4-'Stover RMA'!$L$4)+(VLOOKUP($D14,'Stover RMA'!$F$9:$Q$70,11,FALSE))/'Stover RMA'!$N$5*(Calculations!$X$5-'Stover RMA'!$L$5)+(VLOOKUP($D14,'Stover RMA'!$F$9:$Q$70,12,FALSE))/'Stover RMA'!$N$6*($X$6-'Stover RMA'!$L$6)) -> 0 | Z14: =IF($Z$4=0,0,VLOOKUP($D14,'Corn RMA'!$F$10:$O$82,2,FALSE)+(VLOOKUP($D14,'Corn RMA'!$F$10:$O$82,3,FALSE)-VLOOKUP($D14,'Corn RMA'!$F$10:$O$82,2,FALSE))/'Corn RMA'!$L$4*(Calculations!$Z$4-'Corn RMA'!$J$4)) -> 0 | AB14: =HLOOKUP(1,'FT Diesel 2'!$H$11:$U$76,'FT Diesel 2'!V53,FALSE) ->  | AD14: =HLOOKUP(1,'Adv Ethanol'!$G$10:$O$79,'Adv Ethanol'!Q43,FALSE) ->  | AF14: =IF($AF$4+$AF$5>0,VLOOKUP(D14,Uranium!$F$10:$K$77,3,FALSE)*Calculations!$AF$4+VLOOKUP(D14,Uranium!$F$10:$K$77,4,FALSE)*$AF$5,0) -> 0 | AH14: =IF($AH$4=0,0,VLOOKUP($D14,'U RMT'!$F$9:$U$64,2,FALSE)+(VLOOKUP($D14,'U RMT'!$F$10:$U$64,3,FALSE)-VLOOKUP($D14,'U RMT'!$F$10:$U$64,2,FALSE))/'U RMT'!$U$2*(Calculations!$AH$4-'U RMT'!$O$2)) -> 0 | AJ14: =IF($AJ$4=0,0,VLOOKUP($D14,'U RMT'!$F$9:$U$64,4,FALSE)+(VLOOKUP($D14,'U RMT'!$F$10:$U$64,5,FALSE)-VLOOKUP($D14,'U RMT'!$F$10:$U$64,4,FALSE))/'U RMT'!$U$3*(Calculations!$AJ$4-'U RMT'!$Q$3)) -> 0 | AL14: =IF($AL$4=0,0,VLOOKUP($D14,'U RMT'!$F$9:$U$64,6,FALSE)+(VLOOKUP($D14,'U RMT'!$F$10:$U$64,7,FALSE)-VLOOKUP($D14,'U RMT'!$F$10:$U$64,6,FALSE))/'U RMT'!$U$4*(Calculations!$AL$4-'U RMT'!$S$4)) -> 0 | AN14: =IF($AN$4=0,0,VLOOKUP($D14,'Petro Transport'!$F$10:$Z$77,2,FALSE)+(VLOOKUP($D14,'Petro Transport'!$F$10:$Z$77,3,FALSE)-VLOOKUP($D14,'Petro Transport'!$F$10:$Z$77,2,FALSE))/'Petro Transport'!$V$3*(Calculations!$AN$4-'Petro Transport'!$N$3)) -> 0 | AP14: =IF($AP$4=0,0,VLOOKUP($D14,'Petro Transport'!$F$10:$Z$77,4,FALSE)+(VLOOKUP($D14,'Petro Transport'!$F$10:$Z$77,5,FALSE)-VLOOKUP($D14,'Petro Transport'!$F$10:$Z$77,4,FALSE))/'Petro Transport'!$V$4*(Calculations!$AP$4-'Petro Transport'!$P$4)) -> 0 | AR14: =IF($AR$4=0,0,VLOOKUP($D14,'Petro Transport'!$F$10:$Z$77,6,FALSE)+(VLOOKUP($D14,'Petro Transport'!$F$10:$Z$77,7,FALSE)-VLOOKUP($D14,'Petro Transport'!$F$10:$Z$77,6,FALSE))/'Petro Transport'!$V$5*(Calculations!$AR$4-'Petro Transport'!$R$5)) -> 0 | AT14: =IF($AT$4=0,0,VLOOKUP($D14,'Petro Transport'!$F$10:$Z$77,8,FALSE)+(VLOOKUP($D14,'Petro Transport'!$F$10:$Z$77,9,FALSE)-VLOOKUP($D14,'Petro Transport'!$F$10:$Z$77,8,FALSE))/'Petro Transport'!$V$6*(Calculations!$AT$4-'Petro Transport'!$T$6)) -> 0 | AV14: =VLOOKUP($D14,'Dom Petro'!$F$11:$J$65,3,FALSE)*Calculations!$AV$4+VLOOKUP($D14,'Dom Petro'!$F$11:$J$65,4,FALSE)*Calculations!$AV$5+VLOOKUP($D14,'Dom Petro'!$F$11:$J$65,5,FALSE)*Calculations!$AV$6 -> 0.0004209611365 | AX14: =VLOOKUP($D14,'For Petro'!$F$9:$K$77,3,FALSE)*Calculations!$AX$3+VLOOKUP($D14,'For Petro'!$F$9:$K$77,4,FALSE)*Calculations!$AX$4+VLOOKUP($D14,'For Petro'!$F$9:$K$77,5,FALSE)*Calculations!$AX$5+VLOOKUP($D14,'For Petro'!$F$9:$K$77,6,FALSE)*$AX$6 -> 0 | AZ14: =IF($AZ$5=1,VLOOKUP($D14,'Petro Ref'!$F$10:$J$77,3,FALSE),0) -> 0 | BB14: =IF($BB$5,VLOOKUP($D14,'Petro Ref'!$F$10:$J$77,4,FALSE),0) -> 0 | BD14: =IF($BD$5=1,VLOOKUP($D14,'Petro Ref'!$F$10:$J$77,5,FALSE),0) -> 0 | BF14: =IF($BF$3+$BF$4+$BF$5=0,0,VLOOKUP($D14,'onshore RMA'!$F$9:$Q$70,2,FALSE)+(VLOOKUP($D14,'onshore RMA'!$F$9:$Q$70,10,FALSE))/'onshore RMA'!$N$4*(Calculations!$BF$3-'onshore RMA'!$L$4)+(VLOOKUP($D14,'onshore RMA'!$F$9:$Q$70,11,FALSE))/'onshore RMA'!$N$5*(Calculations!$BF$4-'onshore RMA'!$L$5)+(VLOOKUP($D14,'onshore RMA'!$F$9:$Q$70,12,FALSE))/'onshore RMA'!$N$6*($BF$5-'onshore RMA'!$L$6)) -> 0 | BH14: =IF($BH$3+$BH$4+$BH$5=0,0,VLOOKUP($D14,'assoc RMA'!$F$9:$Q$70,2,FALSE)+(VLOOKUP($D14,'assoc RMA'!$F$9:$Q$70,10,FALSE))/'assoc RMA'!$N$4*(Calculations!$BH$3-'assoc RMA'!$L$4)+(VLOOKUP($D14,'assoc RMA'!$F$9:$Q$70,11,FALSE))/'assoc RMA'!$N$5*(Calculations!$BH$4-'assoc RMA'!$L$5)+(VLOOKUP($D14,'assoc RMA'!$F$9:$Q$70,12,FALSE))/'assoc RMA'!$N$6*($BH$5-'assoc RMA'!$L$6)) -> 0 | BJ14: =IF($BJ$3+$BJ$4+$BJ$5=0,0,VLOOKUP($D14,'offshore RMA'!$F$9:$Q$70,2,FALSE)+(VLOOKUP($D14,'offshore RMA'!$F$9:$Q$70,10,FALSE))/'offshore RMA'!$N$4*(Calculations!$BJ$3-'offshore RMA'!$L$4)+(VLOOKUP($D14,'offshore RMA'!$F$9:$Q$70,11,FALSE))/'offshore RMA'!$N$5*(Calculations!$BJ$4-'offshore RMA'!$L$5)+(VLOOKUP($D14,'offshore RMA'!$F$9:$Q$70,12,FALSE))/'offshore RMA'!$N$6*($BJ$5-'offshore RMA'!$L$6)) -> 0 | BL14: =IF($BL$3+$BL$4+$BL$5=0,0,VLOOKUP($D14,'barnett RMA'!$F$9:$Q$70,2,FALSE)+(VLOOKUP($D14,'barnett RMA'!$F$9:$Q$70,10,FALSE))/'barnett RMA'!$N$4*(Calculations!$BL$3-'barnett RMA'!$L$4)+(VLOOKUP($D14,'barnett RMA'!$F$9:$Q$70,11,FALSE))/'barnett RMA'!$N$5*(Calculations!$BL$4-'barnett RMA'!$L$5)+(VLOOKUP($D14,'barnett RMA'!$F$9:$Q$70,12,FALSE))/'barnett RMA'!$N$6*($BL$5-'barnett RMA'!$L$6)) -> 0 | BN14: =IF($BN$3+$BN$4+$BN$5=0,0,VLOOKUP($D14,'cbm RMA'!$F$9:$Q$70,2,FALSE)+(VLOOKUP($D14,'cbm RMA'!$F$9:$Q$70,10,FALSE))/'cbm RMA'!$N$4*(Calculations!$BN$3-'cbm RMA'!$L$4)+(VLOOKUP($D14,'cbm RMA'!$F$9:$Q$70,11,FALSE))/'cbm RMA'!$N$5*(Calculations!$BN$4-'cbm RMA'!$L$5)+(VLOOKUP($D14,'cbm RMA'!$F$9:$Q$70,12,FALSE))/'cbm RMA'!$N$6*($BN$5-'cbm RMA'!$L$6)) -> 0 | BP14: =IF($BP$3+$BP$4+$BP$5=0,0,VLOOKUP($D14,'Marc RMA'!$F$9:$Q$70,2,FALSE)+(VLOOKUP($D14,'Marc RMA'!$F$9:$Q$70,10,FALSE))/'Marc RMA'!$N$4*(Calculations!$BP$3-'Marc RMA'!$L$4)+(VLOOKUP($D14,'Marc RMA'!$F$9:$Q$70,11,FALSE))/'Marc RMA'!$N$5*(Calculations!$BP$4-'Marc RMA'!$L$5)+(VLOOKUP($D14,'Marc RMA'!$F$9:$Q$70,12,FALSE))/'Marc RMA'!$N$6*($BP$5-'Marc RMA'!$L$6)) -> 0 | BR14: =IF($BR$3+$BR$4+$BR$5=0,0,VLOOKUP($D14,'LNG RMA'!$F$9:$Q$70,2,FALSE)+(VLOOKUP($D14,'LNG RMA'!$F$9:$Q$70,10,FALSE))/'LNG RMA'!$N$4*(Calculations!$BR$3-'LNG RMA'!$L$4)+(VLOOKUP($D14,'LNG RMA'!$F$9:$Q$70,11,FALSE))/'LNG RMA'!$N$5*(Calculations!$BR$4-'LNG RMA'!$L$5)+(VLOOKUP($D14,'LNG RMA'!$F$9:$Q$70,12,FALSE))/'LNG RMA'!$N$6*($BR$5-'LNG RMA'!$L$6)) -> 0 | BT14: =IF($BT$3+$BT$4+$BT$5=0,0,VLOOKUP($D14,'tight RMA'!$F$9:$Q$70,2,FALSE)+(VLOOKUP($D14,'tight RMA'!$F$9:$Q$70,10,FALSE))/'tight RMA'!$N$4*(Calculations!$BT$3-'tight RMA'!$L$4)+(VLOOKUP($D14,'tight RMA'!$F$9:$Q$70,11,FALSE))/'tight RMA'!$N$5*(Calculations!$BT$4-'tight RMA'!$L$5)+(VLOOKUP($D14,'tight RMA'!$F$9:$Q$70,12,FALSE))/'tight RMA'!$N$6*($BT$5-'tight RMA'!$L$6)) -> 0 | BV14: =IF($BV$3+$BV$4+$BV$5=0,0,VLOOKUP($D14,'mix RMA'!$F$9:$Q$70,2,FALSE)+(VLOOKUP($D14,'mix RMA'!$F$9:$Q$70,10,FALSE))/'mix RMA'!$N$4*(Calculations!$BV$3-'mix RMA'!$L$4)+(VLOOKUP($D14,'mix RMA'!$F$9:$Q$70,11,FALSE))/'mix RMA'!$N$5*(Calculations!$BV$4-'mix RMA'!$L$5)+(VLOOKUP($D14,'mix RMA'!$F$9:$Q$70,12,FALSE))/'mix RMA'!$N$6*($BV$5-'mix RMA'!$L$6)) -> 0.0002954889731
B15: 8 | C15: Particulate Matter (kg) | D15: Dust (unspecified) | F15: =IF($F$4=0,0,VLOOKUP($D15,'I6 RMA'!$F$10:$O$82,2,FALSE)+(VLOOKUP($D15,'I6 RMA'!$F$10:$O$82,3,FALSE)-VLOOKUP($D15,'I6 RMA'!$F$10:$O$82,2,FALSE))/'I6 RMA'!$L$4*(Calculations!$F$4-'I6 RMA'!$J$4)) -> 2.74333773e-06 | H15: =IF($H$4=0,0,VLOOKUP($D15,'PRB RMA'!$F$10:$O$82,2,FALSE)+(VLOOKUP($D15,'PRB RMA'!$F$10:$O$82,3,FALSE)-VLOOKUP($D15,'PRB RMA'!$F$10:$O$82,2,FALSE))/'PRB RMA'!$L$4*(Calculations!$H$4-'PRB RMA'!$J$4)) -> 0 | J15: =IF($J$4=0,0,VLOOKUP($D15,'Coal TrainRMT'!$F$10:$O$82,2,FALSE)+(VLOOKUP($D15,'Coal TrainRMT'!$F$10:$O$82,3,FALSE)-VLOOKUP($D15,'Coal TrainRMT'!$F$10:$O$82,2,FALSE))/'Coal TrainRMT'!$L$4*(Calculations!$J$4-'Coal TrainRMT'!$J$4)) -> 4.114598253e-05 | L15: =IF($L$4+$L$5+$L$6=0,0,VLOOKUP($D15,#REF!,2,FALSE)+(VLOOKUP($D15,#REF!,6,FALSE)/#REF!*(#REF!-#REF!)+(VLOOKUP($D15,#REF!,8,FALSE))/#REF!*(#REF!-#REF!)+(VLOOKUP($D15,#REF!,10,FALSE))/#REF!*($L$6-#REF!))) ->  | N15: =IF($N$4=0,0,VLOOKUP($D15,'NG Pipeline RMT'!$F$10:$O$82,2,FALSE)+(VLOOKUP($D15,'NG Pipeline RMT'!$F$10:$O$82,3,FALSE)-VLOOKUP($D15,'NG Pipeline RMT'!$F$10:$O$82,2,FALSE))/'NG Pipeline RMT'!$L$4*(Calculations!$N$4-'NG Pipeline RMT'!$J$4)) -> 0 | P15: =IF($P$4=0,0,VLOOKUP($D15,'SG RMA'!$F$10:$O$82,2,FALSE)+(VLOOKUP($D15,'SG RMA'!$F$10:$O$82,3,FALSE)-VLOOKUP($D15,'SG RMA'!$F$10:$O$82,2,FALSE))/'SG RMA'!$L$4*(Calculations!$P$4-'SG RMA'!$J$4)) -> 0 | R15: =IF($R$4=0,0,VLOOKUP($D15,'Bale Truck RMT'!$F$10:$O$82,2,FALSE)+(VLOOKUP($D15,'Bale Truck RMT'!$F$10:$O$82,3,FALSE)-VLOOKUP($D15,'Bale Truck RMT'!$F$10:$O$82,2,FALSE))/'Bale Truck RMT'!$L$4*(Calculations!$R$4-'Bale Truck RMT'!$J$4)) -> 0 | T15: =IF($T$4=0,0,VLOOKUP($D15,'Cont Truck RMT'!$F$10:$O$82,2,FALSE)+(VLOOKUP($D15,'Cont Truck RMT'!$F$10:$O$82,3,FALSE)-VLOOKUP($D15,'Cont Truck RMT'!$F$10:$O$82,2,FALSE))/'Cont Truck RMT'!$L$4*(Calculations!$T$4-'Cont Truck RMT'!$J$4)) -> 0 | V15: =IF($V$4=0,0,VLOOKUP($D15,'SRWC RMA'!$F$10:$O$82,2,FALSE)+(VLOOKUP($D15,'SRWC RMA'!$F$10:$O$82,3,FALSE)-VLOOKUP($D15,'SRWC RMA'!$F$10:$O$82,2,FALSE))/'SRWC RMA'!$L$4*(Calculations!$V$4-'SRWC RMA'!$J$4)) -> 0 | X15: =IF($X$4+$X$5+$X$6=0,0,VLOOKUP($D15,'Stover RMA'!$F$9:$Q$70,2,FALSE)+(VLOOKUP($D15,'Stover RMA'!$F$9:$Q$70,10,FALSE))/'Stover RMA'!$N$4*(Calculations!$X$4-'Stover RMA'!$L$4)+(VLOOKUP($D15,'Stover RMA'!$F$9:$Q$70,11,FALSE))/'Stover RMA'!$N$5*(Calculations!$X$5-'Stover RMA'!$L$5)+(VLOOKUP($D15,'Stover RMA'!$F$9:$Q$70,12,FALSE))/'Stover RMA'!$N$6*($X$6-'Stover RMA'!$L$6)) -> 0 | Z15: =IF($Z$4=0,0,VLOOKUP($D15,'Corn RMA'!$F$10:$O$82,2,FALSE)+(VLOOKUP($D15,'Corn RMA'!$F$10:$O$82,3,FALSE)-VLOOKUP($D15,'Corn RMA'!$F$10:$O$82,2,FALSE))/'Corn RMA'!$L$4*(Calculations!$Z$4-'Corn RMA'!$J$4)) -> 0 | AB15: =HLOOKUP(1,'FT Diesel 2'!$H$11:$U$76,'FT Diesel 2'!V62,FALSE) ->  | AD15: =HLOOKUP(1,'Adv Ethanol'!$G$10:$O$79,'Adv Ethanol'!Q51,FALSE) ->  | AF15: =IF($AF$4+$AF$5>0,VLOOKUP(D15,Uranium!$F$10:$K$77,3,FALSE)*Calculations!$AF$4+VLOOKUP(D15,Uranium!$F$10:$K$77,4,FALSE)*$AF$5,0) -> 0 | AH15: =IF($AH$4=0,0,VLOOKUP($D15,'U RMT'!$F$9:$U$64,2,FALSE)+(VLOOKUP($D15,'U RMT'!$F$10:$U$64,3,FALSE)-VLOOKUP($D15,'U RMT'!$F$10:$U$64,2,FALSE))/'U RMT'!$U$2*(Calculations!$AH$4-'U RMT'!$O$2)) -> 0 | AJ15: =IF($AJ$4=0,0,VLOOKUP($D15,'U RMT'!$F$9:$U$64,4,FALSE)+(VLOOKUP($D15,'U RMT'!$F$10:$U$64,5,FALSE)-VLOOKUP($D15,'U RMT'!$F$10:$U$64,4,FALSE))/'U RMT'!$U$3*(Calculations!$AJ$4-'U RMT'!$Q$3)) -> 0 | AL15: =IF($AL$4=0,0,VLOOKUP($D15,'U RMT'!$F$9:$U$64,6,FALSE)+(VLOOKUP($D15,'U RMT'!$F$10:$U$64,7,FALSE)-VLOOKUP($D15,'U RMT'!$F$10:$U$64,6,FALSE))/'U RMT'!$U$4*(Calculations!$AL$4-'U RMT'!$S$4)) -> 0 | AN15: =IF($AN$4=0,0,VLOOKUP($D15,'Petro Transport'!$F$10:$Z$77,2,FALSE)+(VLOOKUP($D15,'Petro Transport'!$F$10:$Z$77,3,FALSE)-VLOOKUP($D15,'Petro Transport'!$F$10:$Z$77,2,FALSE))/'Petro Transport'!$V$3*(Calculations!$AN$4-'Petro Transport'!$N$3)) -> 0 | AP15: =IF($AP$4=0,0,VLOOKUP($D15,'Petro Transport'!$F$10:$Z$77,4,FALSE)+(VLOOKUP($D15,'Petro Transport'!$F$10:$Z$77,5,FALSE)-VLOOKUP($D15,'Petro Transport'!$F$10:$Z$77,4,FALSE))/'Petro Transport'!$V$4*(Calculations!$AP$4-'Petro Transport'!$P$4)) -> 0 | AR15: =IF($AR$4=0,0,VLOOKUP($D15,'Petro Transport'!$F$10:$Z$77,6,FALSE)+(VLOOKUP($D15,'Petro Transport'!$F$10:$Z$77,7,FALSE)-VLOOKUP($D15,'Petro Transport'!$F$10:$Z$77,6,FALSE))/'Petro Transport'!$V$5*(Calculations!$AR$4-'Petro Transport'!$R$5)) -> 0 | AT15: =IF($AT$4=0,0,VLOOKUP($D15,'Petro Transport'!$F$10:$Z$77,8,FALSE)+(VLOOKUP($D15,'Petro Transport'!$F$10:$Z$77,9,FALSE)-VLOOKUP($D15,'Petro Transport'!$F$10:$Z$77,8,FALSE))/'Petro Transport'!$V$6*(Calculations!$AT$4-'Petro Transport'!$T$6)) -> 0 | AV15: =VLOOKUP($D15,'Dom Petro'!$F$11:$J$65,3,FALSE)*Calculations!$AV$4+VLOOKUP($D15,'Dom Petro'!$F$11:$J$65,4,FALSE)*Calculations!$AV$5+VLOOKUP($D15,'Dom Petro'!$F$11:$J$65,5,FALSE)*Calculations!$AV$6 -> 1.125724644e-05 | AX15: =VLOOKUP($D15,'For Petro'!$F$9:$K$77,3,FALSE)*Calculations!$AX$3+VLOOKUP($D15,'For Petro'!$F$9:$K$77,4,FALSE)*Calculations!$AX$4+VLOOKUP($D15,'For Petro'!$F$9:$K$77,5,FALSE)*Calculations!$AX$5+VLOOKUP($D15,'For Petro'!$F$9:$K$77,6,FALSE)*$AX$6 -> 0 | AZ15: =IF($AZ$5=1,VLOOKUP($D15,'Petro Ref'!$F$10:$J$77,3,FALSE),0) -> 0 | BB15: =IF($BB$5,VLOOKUP($D15,'Petro Ref'!$F$10:$J$77,4,FALSE),0) -> 0 | BD15: =IF($BD$5=1,VLOOKUP($D15,'Petro Ref'!$F$10:$J$77,5,FALSE),0) -> 0 | BF15: =IF($BF$3+$BF$4+$BF$5=0,0,VLOOKUP($D15,'onshore RMA'!$F$9:$Q$70,2,FALSE)+(VLOOKUP($D15,'onshore RMA'!$F$9:$Q$70,10,FALSE))/'onshore RMA'!$N$4*(Calculations!$BF$3-'onshore RMA'!$L$4)+(VLOOKUP($D15,'onshore RMA'!$F$9:$Q$70,11,FALSE))/'onshore RMA'!$N$5*(Calculations!$BF$4-'onshore RMA'!$L$5)+(VLOOKUP($D15,'onshore RMA'!$F$9:$Q$70,12,FALSE))/'onshore RMA'!$N$6*($BF$5-'onshore RMA'!$L$6)) -> 0 | BH15: =IF($BH$3+$BH$4+$BH$5=0,0,VLOOKUP($D15,'assoc RMA'!$F$9:$Q$70,2,FALSE)+(VLOOKUP($D15,'assoc RMA'!$F$9:$Q$70,10,FALSE))/'assoc RMA'!$N$4*(Calculations!$BH$3-'assoc RMA'!$L$4)+(VLOOKUP($D15,'assoc RMA'!$F$9:$Q$70,11,FALSE))/'assoc RMA'!$N$5*(Calculations!$BH$4-'assoc RMA'!$L$5)+(VLOOKUP($D15,'assoc RMA'!$F$9:$Q$70,12,FALSE))/'assoc RMA'!$N$6*($BH$5-'assoc RMA'!$L$6)) -> 0 | BJ15: =IF($BJ$3+$BJ$4+$BJ$5=0,0,VLOOKUP($D15,'offshore RMA'!$F$9:$Q$70,2,FALSE)+(VLOOKUP($D15,'offshore RMA'!$F$9:$Q$70,10,FALSE))/'offshore RMA'!$N$4*(Calculations!$BJ$3-'offshore RMA'!$L$4)+(VLOOKUP($D15,'offshore RMA'!$F$9:$Q$70,11,FALSE))/'offshore RMA'!$N$5*(Calculations!$BJ$4-'offshore RMA'!$L$5)+(VLOOKUP($D15,'offshore RMA'!$F$9:$Q$70,12,FALSE))/'offshore RMA'!$N$6*($BJ$5-'offshore RMA'!$L$6)) -> 0 | BL15: =IF($BL$3+$BL$4+$BL$5=0,0,VLOOKUP($D15,'barnett RMA'!$F$9:$Q$70,2,FALSE)+(VLOOKUP($D15,'barnett RMA'!$F$9:$Q$70,10,FALSE))/'barnett RMA'!$N$4*(Calculations!$BL$3-'barnett RMA'!$L$4)+(VLOOKUP($D15,'barnett RMA'!$F$9:$Q$70,11,FALSE))/'barnett RMA'!$N$5*(Calculations!$BL$4-'barnett RMA'!$L$5)+(VLOOKUP($D15,'barnett RMA'!$F$9:$Q$70,12,FALSE))/'barnett RMA'!$N$6*($BL$5-'barnett RMA'!$L$6)) -> 0 | BN15: =IF($BN$3+$BN$4+$BN$5=0,0,VLOOKUP($D15,'cbm RMA'!$F$9:$Q$70,2,FALSE)+(VLOOKUP($D15,'cbm RMA'!$F$9:$Q$70,10,FALSE))/'cbm RMA'!$N$4*(Calculations!$BN$3-'cbm RMA'!$L$4)+(VLOOKUP($D15,'cbm RMA'!$F$9:$Q$70,11,FALSE))/'cbm RMA'!$N$5*(Calculations!$BN$4-'cbm RMA'!$L$5)+(VLOOKUP($D15,'cbm RMA'!$F$9:$Q$70,12,FALSE))/'cbm RMA'!$N$6*($BN$5-'cbm RMA'!$L$6)) -> 0 | BP15: =IF($BP$3+$BP$4+$BP$5=0,0,VLOOKUP($D15,'Marc RMA'!$F$9:$Q$70,2,FALSE)+(VLOOKUP($D15,'Marc RMA'!$F$9:$Q$70,10,FALSE))/'Marc RMA'!$N$4*(Calculations!$BP$3-'Marc RMA'!$L$4)+(VLOOKUP($D15,'Marc RMA'!$F$9:$Q$70,11,FALSE))/'Marc RMA'!$N$5*(Calculations!$BP$4-'Marc RMA'!$L$5)+(VLOOKUP($D15,'Marc RMA'!$F$9:$Q$70,12,FALSE))/'Marc RMA'!$N$6*($BP$5-'Marc RMA'!$L$6)) -> 0 | BR15: =IF($BR$3+$BR$4+$BR$5=0,0,VLOOKUP($D15,'LNG RMA'!$F$9:$Q$70,2,FALSE)+(VLOOKUP($D15,'LNG RMA'!$F$9:$Q$70,10,FALSE))/'LNG RMA'!$N$4*(Calculations!$BR$3-'LNG RMA'!$L$4)+(VLOOKUP($D15,'LNG RMA'!$F$9:$Q$70,11,FALSE))/'LNG RMA'!$N$5*(Calculations!$BR$4-'LNG RMA'!$L$5)+(VLOOKUP($D15,'LNG RMA'!$F$9:$Q$70,12,FALSE))/'LNG RMA'!$N$6*($BR$5-'LNG RMA'!$L$6)) -> 0 | BT15: =IF($BT$3+$BT$4+$BT$5=0,0,VLOOKUP($D15,'tight RMA'!$F$9:$Q$70,2,FALSE)+(VLOOKUP($D15,'tight RMA'!$F$9:$Q$70,10,FALSE))/'tight RMA'!$N$4*(Calculations!$BT$3-'tight RMA'!$L$4)+(VLOOKUP($D15,'tight RMA'!$F$9:$Q$70,11,FALSE))/'tight RMA'!$N$5*(Calculations!$BT$4-'tight RMA'!$L$5)+(VLOOKUP($D15,'tight RMA'!$F$9:$Q$70,12,FALSE))/'tight RMA'!$N$6*($BT$5-'tight RMA'!$L$6)) -> 0 | BV15: =IF($BV$3+$BV$4+$BV$5=0,0,VLOOKUP($D15,'mix RMA'!$F$9:$Q$70,2,FALSE)+(VLOOKUP($D15,'mix RMA'!$F$9:$Q$70,10,FALSE))/'mix RMA'!$N$4*(Calculations!$BV$3-'mix RMA'!$L$4)+(VLOOKUP($D15,'mix RMA'!$F$9:$Q$70,11,FALSE))/'mix RMA'!$N$5*(Calculations!$BV$4-'mix RMA'!$L$5)+(VLOOKUP($D15,'mix RMA'!$F$9:$Q$70,12,FALSE))/'mix RMA'!$N$6*($BV$5-'mix RMA'!$L$6)) -> 6.914558242e-06
B16: 9 | C16: Lead (kg) | D16: Lead (+II) | F16: =IF($F$4=0,0,VLOOKUP($D16,'I6 RMA'!$F$10:$O$82,2,FALSE)+(VLOOKUP($D16,'I6 RMA'!$F$10:$O$82,3,FALSE)-VLOOKUP($D16,'I6 RMA'!$F$10:$O$82,2,FALSE))/'I6 RMA'!$L$4*(Calculations!$F$4-'I6 RMA'!$J$4)) -> 3.455409114e-09 | H16: =IF($H$4=0,0,VLOOKUP($D16,'PRB RMA'!$F$10:$O$82,2,FALSE)+(VLOOKUP($D16,'PRB RMA'!$F$10:$O$82,3,FALSE)-VLOOKUP($D16,'PRB RMA'!$F$10:$O$82,2,FALSE))/'PRB RMA'!$L$4*(Calculations!$H$4-'PRB RMA'!$J$4)) -> 0 | J16: =IF($J$4=0,0,VLOOKUP($D16,'Coal TrainRMT'!$F$10:$O$82,2,FALSE)+(VLOOKUP($D16,'Coal TrainRMT'!$F$10:$O$82,3,FALSE)-VLOOKUP($D16,'Coal TrainRMT'!$F$10:$O$82,2,FALSE))/'Coal TrainRMT'!$L$4*(Calculations!$J$4-'Coal TrainRMT'!$J$4)) -> 1.283319329e-10 | L16: =IF($L$4+$L$5+$L$6=0,0,VLOOKUP($D16,#REF!,2,FALSE)+(VLOOKUP($D16,#REF!,6,FALSE)/#REF!*(#REF!-#REF!)+(VLOOKUP($D16,#REF!,8,FALSE))/#REF!*(#REF!-#REF!)+(VLOOKUP($D16,#REF!,10,FALSE))/#REF!*($L$6-#REF!))) ->  | N16: =IF($N$4=0,0,VLOOKUP($D16,'NG Pipeline RMT'!$F$10:$O$82,2,FALSE)+(VLOOKUP($D16,'NG Pipeline RMT'!$F$10:$O$82,3,FALSE)-VLOOKUP($D16,'NG Pipeline RMT'!$F$10:$O$82,2,FALSE))/'NG Pipeline RMT'!$L$4*(Calculations!$N$4-'NG Pipeline RMT'!$J$4)) -> 0 | P16: =IF($P$4=0,0,VLOOKUP($D16,'SG RMA'!$F$10:$O$82,2,FALSE)+(VLOOKUP($D16,'SG RMA'!$F$10:$O$82,3,FALSE)-VLOOKUP($D16,'SG RMA'!$F$10:$O$82,2,FALSE))/'SG RMA'!$L$4*(Calculations!$P$4-'SG RMA'!$J$4)) -> 0 | R16: =IF($R$4=0,0,VLOOKUP($D16,'Bale Truck RMT'!$F$10:$O$82,2,FALSE)+(VLOOKUP($D16,'Bale Truck RMT'!$F$10:$O$82,3,FALSE)-VLOOKUP($D16,'Bale Truck RMT'!$F$10:$O$82,2,FALSE))/'Bale Truck RMT'!$L$4*(Calculations!$R$4-'Bale Truck RMT'!$J$4)) -> 0 | T16: =IF($T$4=0,0,VLOOKUP($D16,'Cont Truck RMT'!$F$10:$O$82,2,FALSE)+(VLOOKUP($D16,'Cont Truck RMT'!$F$10:$O$82,3,FALSE)-VLOOKUP($D16,'Cont Truck RMT'!$F$10:$O$82,2,FALSE))/'Cont Truck RMT'!$L$4*(Calculations!$T$4-'Cont Truck RMT'!$J$4)) -> 0 | V16: =IF($V$4=0,0,VLOOKUP($D16,'SRWC RMA'!$F$10:$O$82,2,FALSE)+(VLOOKUP($D16,'SRWC RMA'!$F$10:$O$82,3,FALSE)-VLOOKUP($D16,'SRWC RMA'!$F$10:$O$82,2,FALSE))/'SRWC RMA'!$L$4*(Calculations!$V$4-'SRWC RMA'!$J$4)) -> 0 | X16: =IF($X$4+$X$5+$X$6=0,0,VLOOKUP($D16,'Stover RMA'!$F$9:$Q$70,2,FALSE)+(VLOOKUP($D16,'Stover RMA'!$F$9:$Q$70,10,FALSE))/'Stover RMA'!$N$4*(Calculations!$X$4-'Stover RMA'!$L$4)+(VLOOKUP($D16,'Stover RMA'!$F$9:$Q$70,11,FALSE))/'Stover RMA'!$N$5*(Calculations!$X$5-'Stover RMA'!$L$5)+(VLOOKUP($D16,'Stover RMA'!$F$9:$Q$70,12,FALSE))/'Stover RMA'!$N$6*($X$6-'Stover RMA'!$L$6)) -> 0 | Z16: =IF($Z$4=0,0,VLOOKUP($D16,'Corn RMA'!$F$10:$O$82,2,FALSE)+(VLOOKUP($D16,'Corn RMA'!$F$10:$O$82,3,FALSE)-VLOOKUP($D16,'Corn RMA'!$F$10:$O$82,2,FALSE))/'Corn RMA'!$L$4*(Calculations!$Z$4-'Corn RMA'!$J$4)) -> 0 | AB16: =HLOOKUP(1,'FT Diesel 2'!$H$11:$U$76,'FT Diesel 2'!V47,FALSE) ->  | AD16: =HLOOKUP(1,'Adv Ethanol'!$G$10:$O$79,'Adv Ethanol'!Q37,FALSE) ->  | AF16: =IF($AF$4+$AF$5>0,VLOOKUP(D16,Uranium!$F$10:$K$77,3,FALSE)*Calculations!$AF$4+VLOOKUP(D16,Uranium!$F$10:$K$77,4,FALSE)*$AF$5,0) -> 0 | AH16: =IF($AH$4=0,0,VLOOKUP($D16,'U RMT'!$F$9:$U$64,2,FALSE)+(VLOOKUP($D16,'U RMT'!$F$10:$U$64,3,FALSE)-VLOOKUP($D16,'U RMT'!$F$10:$U$64,2,FALSE))/'U RMT'!$U$2*(Calculations!$AH$4-'U RMT'!$O$2)) -> 0 | AJ16: =IF($AJ$4=0,0,VLOOKUP($D16,'U RMT'!$F$9:$U$64,4,FALSE)+(VLOOKUP($D16,'U RMT'!$F$10:$U$64,5,FALSE)-VLOOKUP($D16,'U RMT'!$F$10:$U$64,4,FALSE))/'U RMT'!$U$3*(Calculations!$AJ$4-'U RMT'!$Q$3)) -> 0 | AL16: =IF($AL$4=0,0,VLOOKUP($D16,'U RMT'!$F$9:$U$64,6,FALSE)+(VLOOKUP($D16,'U RMT'!$F$10:$U$64,7,FALSE)-VLOOKUP($D16,'U RMT'!$F$10:$U$64,6,FALSE))/'U RMT'!$U$4*(Calculations!$AL$4-'U RMT'!$S$4)) -> 0 | AN16: =IF($AN$4=0,0,VLOOKUP($D16,'Petro Transport'!$F$10:$Z$77,2,FALSE)+(VLOOKUP($D16,'Petro Transport'!$F$10:$Z$77,3,FALSE)-VLOOKUP($D16,'Petro Transport'!$F$10:$Z$77,2,FALSE))/'Petro Transport'!$V$3*(Calculations!$AN$4-'Petro Transport'!$N$3)) -> 0 | AP16: =IF($AP$4=0,0,VLOOKUP($D16,'Petro Transport'!$F$10:$Z$77,4,FALSE)+(VLOOKUP($D16,'Petro Transport'!$F$10:$Z$77,5,FALSE)-VLOOKUP($D16,'Petro Transport'!$F$10:$Z$77,4,FALSE))/'Petro Transport'!$V$4*(Calculations!$AP$4-'Petro Transport'!$P$4)) -> 0 | AR16: =IF($AR$4=0,0,VLOOKUP($D16,'Petro Transport'!$F$10:$Z$77,6,FALSE)+(VLOOKUP($D16,'Petro Transport'!$F$10:$Z$77,7,FALSE)-VLOOKUP($D16,'Petro Transport'!$F$10:$Z$77,6,FALSE))/'Petro Transport'!$V$5*(Calculations!$AR$4-'Petro Transport'!$R$5)) -> 0 | AT16: =IF($AT$4=0,0,VLOOKUP($D16,'Petro Transport'!$F$10:$Z$77,8,FALSE)+(VLOOKUP($D16,'Petro Transport'!$F$10:$Z$77,9,FALSE)-VLOOKUP($D16,'Petro Transport'!$F$10:$Z$77,8,FALSE))/'Petro Transport'!$V$6*(Calculations!$AT$4-'Petro Transport'!$T$6)) -> 0 | AV16: =VLOOKUP($D16,'Dom Petro'!$F$11:$J$65,3,FALSE)*Calculations!$AV$4+VLOOKUP($D16,'Dom Petro'!$F$11:$J$65,4,FALSE)*Calculations!$AV$5+VLOOKUP($D16,'Dom Petro'!$F$11:$J$65,5,FALSE)*Calculations!$AV$6 -> 1.636019363e-08 | AX16: =VLOOKUP($D16,'For Petro'!$F$9:$K$77,3,FALSE)*Calculations!$AX$3+VLOOKUP($D16,'For Petro'!$F$9:$K$77,4,FALSE)*Calculations!$AX$4+VLOOKUP($D16,'For Petro'!$F$9:$K$77,5,FALSE)*Calculations!$AX$5+VLOOKUP($D16,'For Petro'!$F$9:$K$77,6,FALSE)*$AX$6 -> 0 | AZ16: =IF($AZ$5=1,VLOOKUP($D16,'Petro Ref'!$F$10:$J$77,3,FALSE),0) -> 0 | BB16: =IF($BB$5,VLOOKUP($D16,'Petro Ref'!$F$10:$J$77,4,FALSE),0) -> 0 | BD16: =IF($BD$5=1,VLOOKUP($D16,'Petro Ref'!$F$10:$J$77,5,FALSE),0) -> 0 | BF16: =IF($BF$3+$BF$4+$BF$5=0,0,VLOOKUP($D16,'onshore RMA'!$F$9:$Q$70,2,FALSE)+(VLOOKUP($D16,'onshore RMA'!$F$9:$Q$70,10,FALSE))/'onshore RMA'!$N$4*(Calculations!$BF$3-'onshore RMA'!$L$4)+(VLOOKUP($D16,'onshore RMA'!$F$9:$Q$70,11,FALSE))/'onshore RMA'!$N$5*(Calculations!$BF$4-'onshore RMA'!$L$5)+(VLOOKUP($D16,'onshore RMA'!$F$9:$Q$70,12,FALSE))/'onshore RMA'!$N$6*($BF$5-'onshore RMA'!$L$6)) -> 0 | BH16: =IF($BH$3+$BH$4+$BH$5=0,0,VLOOKUP($D16,'assoc RMA'!$F$9:$Q$70,2,FALSE)+(VLOOKUP($D16,'assoc RMA'!$F$9:$Q$70,10,FALSE))/'assoc RMA'!$N$4*(Calculations!$BH$3-'assoc RMA'!$L$4)+(VLOOKUP($D16,'assoc RMA'!$F$9:$Q$70,11,FALSE))/'assoc RMA'!$N$5*(Calculations!$BH$4-'assoc RMA'!$L$5)+(VLOOKUP($D16,'assoc RMA'!$F$9:$Q$70,12,FALSE))/'assoc RMA'!$N$6*($BH$5-'assoc RMA'!$L$6)) -> 0 | BJ16: =IF($BJ$3+$BJ$4+$BJ$5=0,0,VLOOKUP($D16,'offshore RMA'!$F$9:$Q$70,2,FALSE)+(VLOOKUP($D16,'offshore RMA'!$F$9:$Q$70,10,FALSE))/'offshore RMA'!$N$4*(Calculations!$BJ$3-'offshore RMA'!$L$4)+(VLOOKUP($D16,'offshore RMA'!$F$9:$Q$70,11,FALSE))/'offshore RMA'!$N$5*(Calculations!$BJ$4-'offshore RMA'!$L$5)+(VLOOKUP($D16,'offshore RMA'!$F$9:$Q$70,12,FALSE))/'offshore RMA'!$N$6*($BJ$5-'offshore RMA'!$L$6)) -> 0 | BL16: =IF($BL$3+$BL$4+$BL$5=0,0,VLOOKUP($D16,'barnett RMA'!$F$9:$Q$70,2,FALSE)+(VLOOKUP($D16,'barnett RMA'!$F$9:$Q$70,10,FALSE))/'barnett RMA'!$N$4*(Calculations!$BL$3-'barnett RMA'!$L$4)+(VLOOKUP($D16,'barnett RMA'!$F$9:$Q$70,11,FALSE))/'barnett RMA'!$N$5*(Calculations!$BL$4-'barnett RMA'!$L$5)+(VLOOKUP($D16,'barnett RMA'!$F$9:$Q$70,12,FALSE))/'barnett RMA'!$N$6*($BL$5-'barnett RMA'!$L$6)) -> 0 | BN16: =IF($BN$3+$BN$4+$BN$5=0,0,VLOOKUP($D16,'cbm RMA'!$F$9:$Q$70,2,FALSE)+(VLOOKUP($D16,'cbm RMA'!$F$9:$Q$70,10,FALSE))/'cbm RMA'!$N$4*(Calculations!$BN$3-'cbm RMA'!$L$4)+(VLOOKUP($D16,'cbm RMA'!$F$9:$Q$70,11,FALSE))/'cbm RMA'!$N$5*(Calculations!$BN$4-'cbm RMA'!$L$5)+(VLOOKUP($D16,'cbm RMA'!$F$9:$Q$70,12,FALSE))/'cbm RMA'!$N$6*($BN$5-'cbm RMA'!$L$6)) -> 0 | BP16: =IF($BP$3+$BP$4+$BP$5=0,0,VLOOKUP($D16,'Marc RMA'!$F$9:$Q$70,2,FALSE)+(VLOOKUP($D16,'Marc RMA'!$F$9:$Q$70,10,FALSE))/'Marc RMA'!$N$4*(Calculations!$BP$3-'Marc RMA'!$L$4)+(VLOOKUP($D16,'Marc RMA'!$F$9:$Q$70,11,FALSE))/'Marc RMA'!$N$5*(Calculations!$BP$4-'Marc RMA'!$L$5)+(VLOOKUP($D16,'Marc RMA'!$F$9:$Q$70,12,FALSE))/'Marc RMA'!$N$6*($BP$5-'Marc RMA'!$L$6)) -> 0 | BR16: =IF($BR$3+$BR$4+$BR$5=0,0,VLOOKUP($D16,'LNG RMA'!$F$9:$Q$70,2,FALSE)+(VLOOKUP($D16,'LNG RMA'!$F$9:$Q$70,10,FALSE))/'LNG RMA'!$N$4*(Calculations!$BR$3-'LNG RMA'!$L$4)+(VLOOKUP($D16,'LNG RMA'!$F$9:$Q$70,11,FALSE))/'LNG RMA'!$N$5*(Calculations!$BR$4-'LNG RMA'!$L$5)+(VLOOKUP($D16,'LNG RMA'!$F$9:$Q$70,12,FALSE))/'LNG RMA'!$N$6*($BR$5-'LNG RMA'!$L$6)) -> 0 | BT16: =IF($BT$3+$BT$4+$BT$5=0,0,VLOOKUP($D16,'tight RMA'!$F$9:$Q$70,2,FALSE)+(VLOOKUP($D16,'tight RMA'!$F$9:$Q$70,10,FALSE))/'tight RMA'!$N$4*(Calculations!$BT$3-'tight RMA'!$L$4)+(VLOOKUP($D16,'tight RMA'!$F$9:$Q$70,11,FALSE))/'tight RMA'!$N$5*(Calculations!$BT$4-'tight RMA'!$L$5)+(VLOOKUP($D16,'tight RMA'!$F$9:$Q$70,12,FALSE))/'tight RMA'!$N$6*($BT$5-'tight RMA'!$L$6)) -> 0 | BV16: =IF($BV$3+$BV$4+$BV$5=0,0,VLOOKUP($D16,'mix RMA'!$F$9:$Q$70,2,FALSE)+(VLOOKUP($D16,'mix RMA'!$F$9:$Q$70,10,FALSE))/'mix RMA'!$N$4*(Calculations!$BV$3-'mix RMA'!$L$4)+(VLOOKUP($D16,'mix RMA'!$F$9:$Q$70,11,FALSE))/'mix RMA'!$N$5*(Calculations!$BV$4-'mix RMA'!$L$5)+(VLOOKUP($D16,'mix RMA'!$F$9:$Q$70,12,FALSE))/'mix RMA'!$N$6*($BV$5-'mix RMA'!$L$6)) -> 1.318431093e-08
B17: 10 | C17: Mercury (kg) | D17: Mercury (+II) | F17: =IF($F$4=0,0,VLOOKUP($D17,'I6 RMA'!$F$10:$O$82,2,FALSE)+(VLOOKUP($D17,'I6 RMA'!$F$10:$O$82,3,FALSE)-VLOOKUP($D17,'I6 RMA'!$F$10:$O$82,2,FALSE))/'I6 RMA'!$L$4*(Calculations!$F$4-'I6 RMA'!$J$4)) -> 6.149341021e-10 | H17: =IF($H$4=0,0,VLOOKUP($D17,'PRB RMA'!$F$10:$O$82,2,FALSE)+(VLOOKUP($D17,'PRB RMA'!$F$10:$O$82,3,FALSE)-VLOOKUP($D17,'PRB RMA'!$F$10:$O$82,2,FALSE))/'PRB RMA'!$L$4*(Calculations!$H$4-'PRB RMA'!$J$4)) -> 0 | J17: =IF($J$4=0,0,VLOOKUP($D17,'Coal TrainRMT'!$F$10:$O$82,2,FALSE)+(VLOOKUP($D17,'Coal TrainRMT'!$F$10:$O$82,3,FALSE)-VLOOKUP($D17,'Coal TrainRMT'!$F$10:$O$82,2,FALSE))/'Coal TrainRMT'!$L$4*(Calculations!$J$4-'Coal TrainRMT'!$J$4)) -> 1.092706865e-11 | L17: =IF($L$4+$L$5+$L$6=0,0,VLOOKUP($D17,#REF!,2,FALSE)+(VLOOKUP($D17,#REF!,6,FALSE)/#REF!*(#REF!-#REF!)+(VLOOKUP($D17,#REF!,8,FALSE))/#REF!*(#REF!-#REF!)+(VLOOKUP($D17,#REF!,10,FALSE))/#REF!*($L$6-#REF!))) ->  | N17: =IF($N$4=0,0,VLOOKUP($D17,'NG Pipeline RMT'!$F$10:$O$82,2,FALSE)+(VLOOKUP($D17,'NG Pipeline RMT'!$F$10:$O$82,3,FALSE)-VLOOKUP($D17,'NG Pipeline RMT'!$F$10:$O$82,2,FALSE))/'NG Pipeline RMT'!$L$4*(Calculations!$N$4-'NG Pipeline RMT'!$J$4)) -> 0 | P17: =IF($P$4=0,0,VLOOKUP($D17,'SG RMA'!$F$10:$O$82,2,FALSE)+(VLOOKUP($D17,'SG RMA'!$F$10:$O$82,3,FALSE)-VLOOKUP($D17,'SG RMA'!$F$10:$O$82,2,FALSE))/'SG RMA'!$L$4*(Calculations!$P$4-'SG RMA'!$J$4)) -> 0 | R17: =IF($R$4=0,0,VLOOKUP($D17,'Bale Truck RMT'!$F$10:$O$82,2,FALSE)+(VLOOKUP($D17,'Bale Truck RMT'!$F$10:$O$82,3,FALSE)-VLOOKUP($D17,'Bale Truck RMT'!$F$10:$O$82,2,FALSE))/'Bale Truck RMT'!$L$4*(Calculations!$R$4-'Bale Truck RMT'!$J$4)) -> 0 | T17: =IF($T$4=0,0,VLOOKUP($D17,'Cont Truck RMT'!$F$10:$O$82,2,FALSE)+(VLOOKUP($D17,'Cont Truck RMT'!$F$10:$O$82,3,FALSE)-VLOOKUP($D17,'Cont Truck RMT'!$F$10:$O$82,2,FALSE))/'Cont Truck RMT'!$L$4*(Calculations!$T$4-'Cont Truck RMT'!$J$4)) -> 0 | V17: =IF($V$4=0,0,VLOOKUP($D17,'SRWC RMA'!$F$10:$O$82,2,FALSE)+(VLOOKUP($D17,'SRWC RMA'!$F$10:$O$82,3,FALSE)-VLOOKUP($D17,'SRWC RMA'!$F$10:$O$82,2,FALSE))/'SRWC RMA'!$L$4*(Calculations!$V$4-'SRWC RMA'!$J$4)) -> 0 | X17: =IF($X$4+$X$5+$X$6=0,0,VLOOKUP($D17,'Stover RMA'!$F$9:$Q$70,2,FALSE)+(VLOOKUP($D17,'Stover RMA'!$F$9:$Q$70,10,FALSE))/'Stover RMA'!$N$4*(Calculations!$X$4-'Stover RMA'!$L$4)+(VLOOKUP($D17,'Stover RMA'!$F$9:$Q$70,11,FALSE))/'Stover RMA'!$N$5*(Calculations!$X$5-'Stover RMA'!$L$5)+(VLOOKUP($D17,'Stover RMA'!$F$9:$Q$70,12,FALSE))/'Stover RMA'!$N$6*($X$6-'Stover RMA'!$L$6)) -> 0 | Z17: =IF($Z$4=0,0,VLOOKUP($D17,'Corn RMA'!$F$10:$O$82,2,FALSE)+(VLOOKUP($D17,'Corn RMA'!$F$10:$O$82,3,FALSE)-VLOOKUP($D17,'Corn RMA'!$F$10:$O$82,2,FALSE))/'Corn RMA'!$L$4*(Calculations!$Z$4-'Corn RMA'!$J$4)) -> 0 | AB17: =HLOOKUP(1,'FT Diesel 2'!$H$11:$U$76,'FT Diesel 2'!V48,FALSE) ->  | AD17: =HLOOKUP(1,'Adv Ethanol'!$G$10:$O$79,'Adv Ethanol'!Q38,FALSE) ->  | AF17: =IF($AF$4+$AF$5>0,VLOOKUP(D17,Uranium!$F$10:$K$77,3,FALSE)*Calculations!$AF$4+VLOOKUP(D17,Uranium!$F$10:$K$77,4,FALSE)*$AF$5,0) -> 0 | AH17: =IF($AH$4=0,0,VLOOKUP($D17,'U RMT'!$F$9:$U$64,2,FALSE)+(VLOOKUP($D17,'U RMT'!$F$10:$U$64,3,FALSE)-VLOOKUP($D17,'U RMT'!$F$10:$U$64,2,FALSE))/'U RMT'!$U$2*(Calculations!$AH$4-'U RMT'!$O$2)) -> 0 | AJ17: =IF($AJ$4=0,0,VLOOKUP($D17,'U RMT'!$F$9:$U$64,4,FALSE)+(VLOOKUP($D17,'U RMT'!$F$10:$U$64,5,FALSE)-VLOOKUP($D17,'U RMT'!$F$10:$U$64,4,FALSE))/'U RMT'!$U$3*(Calculations!$AJ$4-'U RMT'!$Q$3)) -> 0 | AL17: =IF($AL$4=0,0,VLOOKUP($D17,'U RMT'!$F$9:$U$64,6,FALSE)+(VLOOKUP($D17,'U RMT'!$F$10:$U$64,7,FALSE)-VLOOKUP($D17,'U RMT'!$F$10:$U$64,6,FALSE))/'U RMT'!$U$4*(Calculations!$AL$4-'U RMT'!$S$4)) -> 0 | AN17: =IF($AN$4=0,0,VLOOKUP($D17,'Petro Transport'!$F$10:$Z$77,2,FALSE)+(VLOOKUP($D17,'Petro Transport'!$F$10:$Z$77,3,FALSE)-VLOOKUP($D17,'Petro Transport'!$F$10:$Z$77,2,FALSE))/'Petro Transport'!$V$3*(Calculations!$AN$4-'Petro Transport'!$N$3)) -> 0 | AP17: =IF($AP$4=0,0,VLOOKUP($D17,'Petro Transport'!$F$10:$Z$77,4,FALSE)+(VLOOKUP($D17,'Petro Transport'!$F$10:$Z$77,5,FALSE)-VLOOKUP($D17,'Petro Transport'!$F$10:$Z$77,4,FALSE))/'Petro Transport'!$V$4*(Calculations!$AP$4-'Petro Transport'!$P$4)) -> 0 | AR17: =IF($AR$4=0,0,VLOOKUP($D17,'Petro Transport'!$F$10:$Z$77,6,FALSE)+(VLOOKUP($D17,'Petro Transport'!$F$10:$Z$77,7,FALSE)-VLOOKUP($D17,'Petro Transport'!$F$10:$Z$77,6,FALSE))/'Petro Transport'!$V$5*(Calculations!$AR$4-'Petro Transport'!$R$5)) -> 0 | AT17: =IF($AT$4=0,0,VLOOKUP($D17,'Petro Transport'!$F$10:$Z$77,8,FALSE)+(VLOOKUP($D17,'Petro Transport'!$F$10:$Z$77,9,FALSE)-VLOOKUP($D17,'Petro Transport'!$F$10:$Z$77,8,FALSE))/'Petro Transport'!$V$6*(Calculations!$AT$4-'Petro Transport'!$T$6)) -> 0 | AV17: =VLOOKUP($D17,'Dom Petro'!$F$11:$J$65,3,FALSE)*Calculations!$AV$4+VLOOKUP($D17,'Dom Petro'!$F$11:$J$65,4,FALSE)*Calculations!$AV$5+VLOOKUP($D17,'Dom Petro'!$F$11:$J$65,5,FALSE)*Calculations!$AV$6 -> 4.694138644e-10 | AX17: =VLOOKUP($D17,'For Petro'!$F$9:$K$77,3,FALSE)*Calculations!$AX$3+VLOOKUP($D17,'For Petro'!$F$9:$K$77,4,FALSE)*Calculations!$AX$4+VLOOKUP($D17,'For Petro'!$F$9:$K$77,5,FALSE)*Calculations!$AX$5+VLOOKUP($D17,'For Petro'!$F$9:$K$77,6,FALSE)*$AX$6 -> 0 | AZ17: =IF($AZ$5=1,VLOOKUP($D17,'Petro Ref'!$F$10:$J$77,3,FALSE),0) -> 0 | BB17: =IF($BB$5,VLOOKUP($D17,'Petro Ref'!$F$10:$J$77,4,FALSE),0) -> 0 | BD17: =IF($BD$5=1,VLOOKUP($D17,'Petro Ref'!$F$10:$J$77,5,FALSE),0) -> 0 | BF17: =IF($BF$3+$BF$4+$BF$5=0,0,VLOOKUP($D17,'onshore RMA'!$F$9:$Q$70,2,FALSE)+(VLOOKUP($D17,'onshore RMA'!$F$9:$Q$70,10,FALSE))/'onshore RMA'!$N$4*(Calculations!$BF$3-'onshore RMA'!$L$4)+(VLOOKUP($D17,'onshore RMA'!$F$9:$Q$70,11,FALSE))/'onshore RMA'!$N$5*(Calculations!$BF$4-'onshore RMA'!$L$5)+(VLOOKUP($D17,'onshore RMA'!$F$9:$Q$70,12,FALSE))/'onshore RMA'!$N$6*($BF$5-'onshore RMA'!$L$6)) -> 0 | BH17: =IF($BH$3+$BH$4+$BH$5=0,0,VLOOKUP($D17,'assoc RMA'!$F$9:$Q$70,2,FALSE)+(VLOOKUP($D17,'assoc RMA'!$F$9:$Q$70,10,FALSE))/'assoc RMA'!$N$4*(Calculations!$BH$3-'assoc RMA'!$L$4)+(VLOOKUP($D17,'assoc RMA'!$F$9:$Q$70,11,FALSE))/'assoc RMA'!$N$5*(Calculations!$BH$4-'assoc RMA'!$L$5)+(VLOOKUP($D17,'assoc RMA'!$F$9:$Q$70,12,FALSE))/'assoc RMA'!$N$6*($BH$5-'assoc RMA'!$L$6)) -> 0 | BJ17: =IF($BJ$3+$BJ$4+$BJ$5=0,0,VLOOKUP($D17,'offshore RMA'!$F$9:$Q$70,2,FALSE)+(VLOOKUP($D17,'offshore RMA'!$F$9:$Q$70,10,FALSE))/'offshore RMA'!$N$4*(Calculations!$BJ$3-'offshore RMA'!$L$4)+(VLOOKUP($D17,'offshore RMA'!$F$9:$Q$70,11,FALSE))/'offshore RMA'!$N$5*(Calculations!$BJ$4-'offshore RMA'!$L$5)+(VLOOKUP($D17,'offshore RMA'!$F$9:$Q$70,12,FALSE))/'offshore RMA'!$N$6*($BJ$5-'offshore RMA'!$L$6)) -> 0 | BL17: =IF($BL$3+$BL$4+$BL$5=0,0,VLOOKUP($D17,'barnett RMA'!$F$9:$Q$70,2,FALSE)+(VLOOKUP($D17,'barnett RMA'!$F$9:$Q$70,10,FALSE))/'barnett RMA'!$N$4*(Calculations!$BL$3-'barnett RMA'!$L$4)+(VLOOKUP($D17,'barnett RMA'!$F$9:$Q$70,11,FALSE))/'barnett RMA'!$N$5*(Calculations!$BL$4-'barnett RMA'!$L$5)+(VLOOKUP($D17,'barnett RMA'!$F$9:$Q$70,12,FALSE))/'barnett RMA'!$N$6*($BL$5-'barnett RMA'!$L$6)) -> 0 | BN17: =IF($BN$3+$BN$4+$BN$5=0,0,VLOOKUP($D17,'cbm RMA'!$F$9:$Q$70,2,FALSE)+(VLOOKUP($D17,'cbm RMA'!$F$9:$Q$70,10,FALSE))/'cbm RMA'!$N$4*(Calculations!$BN$3-'cbm RMA'!$L$4)+(VLOOKUP($D17,'cbm RMA'!$F$9:$Q$70,11,FALSE))/'cbm RMA'!$N$5*(Calculations!$BN$4-'cbm RMA'!$L$5)+(VLOOKUP($D17,'cbm RMA'!$F$9:$Q$70,12,FALSE))/'cbm RMA'!$N$6*($BN$5-'cbm RMA'!$L$6)) -> 0 | BP17: =IF($BP$3+$BP$4+$BP$5=0,0,VLOOKUP($D17,'Marc RMA'!$F$9:$Q$70,2,FALSE)+(VLOOKUP($D17,'Marc RMA'!$F$9:$Q$70,10,FALSE))/'Marc RMA'!$N$4*(Calculations!$BP$3-'Marc RMA'!$L$4)+(VLOOKUP($D17,'Marc RMA'!$F$9:$Q$70,11,FALSE))/'Marc RMA'!$N$5*(Calculations!$BP$4-'Marc RMA'!$L$5)+(VLOOKUP($D17,'Marc RMA'!$F$9:$Q$70,12,FALSE))/'Marc RMA'!$N$6*($BP$5-'Marc RMA'!$L$6)) -> 0 | BR17: =IF($BR$3+$BR$4+$BR$5=0,0,VLOOKUP($D17,'LNG RMA'!$F$9:$Q$70,2,FALSE)+(VLOOKUP($D17,'LNG RMA'!$F$9:$Q$70,10,FALSE))/'LNG RMA'!$N$4*(Calculations!$BR$3-'LNG RMA'!$L$4)+(VLOOKUP($D17,'LNG RMA'!$F$9:$Q$70,11,FALSE))/'LNG RMA'!$N$5*(Calculations!$BR$4-'LNG RMA'!$L$5)+(VLOOKUP($D17,'LNG RMA'!$F$9:$Q$70,12,FALSE))/'LNG RMA'!$N$6*($BR$5-'LNG RMA'!$L$6)) -> 0 | BT17: =IF($BT$3+$BT$4+$BT$5=0,0,VLOOKUP($D17,'tight RMA'!$F$9:$Q$70,2,FALSE)+(VLOOKUP($D17,'tight RMA'!$F$9:$Q$70,10,FALSE))/'tight RMA'!$N$4*(Calculations!$BT$3-'tight RMA'!$L$4)+(VLOOKUP($D17,'tight RMA'!$F$9:$Q$70,11,FALSE))/'tight RMA'!$N$5*(Calculations!$BT$4-'tight RMA'!$L$5)+(VLOOKUP($D17,'tight RMA'!$F$9:$Q$70,12,FALSE))/'tight RMA'!$N$6*($BT$5-'tight RMA'!$L$6)) -> 0 | BV17: =IF($BV$3+$BV$4+$BV$5=0,0,VLOOKUP($D17,'mix RMA'!$F$9:$Q$70,2,FALSE)+(VLOOKUP($D17,'mix RMA'!$F$9:$Q$70,10,FALSE))/'mix RMA'!$N$4*(Calculations!$BV$3-'mix RMA'!$L$4)+(VLOOKUP($D17,'mix RMA'!$F$9:$Q$70,11,FALSE))/'mix RMA'!$N$5*(Calculations!$BV$4-'mix RMA'!$L$5)+(VLOOKUP($D17,'mix RMA'!$F$9:$Q$70,12,FALSE))/'mix RMA'!$N$6*($BV$5-'mix RMA'!$L$6)) -> 4.879895164e-10
B18: 11 | C18: Ammonia (kg) | D18: Ammonia | F18: =IF($F$4=0,0,VLOOKUP($D18,'I6 RMA'!$F$10:$O$82,2,FALSE)+(VLOOKUP($D18,'I6 RMA'!$F$10:$O$82,3,FALSE)-VLOOKUP($D18,'I6 RMA'!$F$10:$O$82,2,FALSE))/'I6 RMA'!$L$4*(Calculations!$F$4-'I6 RMA'!$J$4)) -> 5.312926371e-08 | H18: =IF($H$4=0,0,VLOOKUP($D18,'PRB RMA'!$F$10:$O$82,2,FALSE)+(VLOOKUP($D18,'PRB RMA'!$F$10:$O$82,3,FALSE)-VLOOKUP($D18,'PRB RMA'!$F$10:$O$82,2,FALSE))/'PRB RMA'!$L$4*(Calculations!$H$4-'PRB RMA'!$J$4)) -> 0 | J18: =IF($J$4=0,0,VLOOKUP($D18,'Coal TrainRMT'!$F$10:$O$82,2,FALSE)+(VLOOKUP($D18,'Coal TrainRMT'!$F$10:$O$82,3,FALSE)-VLOOKUP($D18,'Coal TrainRMT'!$F$10:$O$82,2,FALSE))/'Coal TrainRMT'!$L$4*(Calculations!$J$4-'Coal TrainRMT'!$J$4)) -> 4.450664111e-07 | L18: =IF($L$4+$L$5+$L$6=0,0,VLOOKUP($D18,#REF!,2,FALSE)+(VLOOKUP($D18,#REF!,6,FALSE)/#REF!*(#REF!-#REF!)+(VLOOKUP($D18,#REF!,8,FALSE))/#REF!*(#REF!-#REF!)+(VLOOKUP($D18,#REF!,10,FALSE))/#REF!*($L$6-#REF!))) ->  | N18: =IF($N$4=0,0,VLOOKUP($D18,'NG Pipeline RMT'!$F$10:$O$82,2,FALSE)+(VLOOKUP($D18,'NG Pipeline RMT'!$F$10:$O$82,3,FALSE)-VLOOKUP($D18,'NG Pipeline RMT'!$F$10:$O$82,2,FALSE))/'NG Pipeline RMT'!$L$4*(Calculations!$N$4-'NG Pipeline RMT'!$J$4)) -> 0 | P18: =IF($P$4=0,0,VLOOKUP($D18,'SG RMA'!$F$10:$O$82,2,FALSE)+(VLOOKUP($D18,'SG RMA'!$F$10:$O$82,3,FALSE)-VLOOKUP($D18,'SG RMA'!$F$10:$O$82,2,FALSE))/'SG RMA'!$L$4*(Calculations!$P$4-'SG RMA'!$J$4)) -> 0 | R18: =IF($R$4=0,0,VLOOKUP($D18,'Bale Truck RMT'!$F$10:$O$82,2,FALSE)+(VLOOKUP($D18,'Bale Truck RMT'!$F$10:$O$82,3,FALSE)-VLOOKUP($D18,'Bale Truck RMT'!$F$10:$O$82,2,FALSE))/'Bale Truck RMT'!$L$4*(Calculations!$R$4-'Bale Truck RMT'!$J$4)) -> 0 | T18: =IF($T$4=0,0,VLOOKUP($D18,'Cont Truck RMT'!$F$10:$O$82,2,FALSE)+(VLOOKUP($D18,'Cont Truck RMT'!$F$10:$O$82,3,FALSE)-VLOOKUP($D18,'Cont Truck RMT'!$F$10:$O$82,2,FALSE))/'Cont Truck RMT'!$L$4*(Calculations!$T$4-'Cont Truck RMT'!$J$4)) -> 0 | V18: =IF($V$4=0,0,VLOOKUP($D18,'SRWC RMA'!$F$10:$O$82,2,FALSE)+(VLOOKUP($D18,'SRWC RMA'!$F$10:$O$82,3,FALSE)-VLOOKUP($D18,'SRWC RMA'!$F$10:$O$82,2,FALSE))/'SRWC RMA'!$L$4*(Calculations!$V$4-'SRWC RMA'!$J$4)) -> 0 | X18: =IF($X$4+$X$5+$X$6=0,0,VLOOKUP($D18,'Stover RMA'!$F$9:$Q$70,2,FALSE)+(VLOOKUP($D18,'Stover RMA'!$F$9:$Q$70,10,FALSE))/'Stover RMA'!$N$4*(Calculations!$X$4-'Stover RMA'!$L$4)+(VLOOKUP($D18,'Stover RMA'!$F$9:$Q$70,11,FALSE))/'Stover RMA'!$N$5*(Calculations!$X$5-'Stover RMA'!$L$5)+(VLOOKUP($D18,'Stover RMA'!$F$9:$Q$70,12,FALSE))/'Stover RMA'!$N$6*($X$6-'Stover RMA'!$L$6)) -> 0 | Z18: =IF($Z$4=0,0,VLOOKUP($D18,'Corn RMA'!$F$10:$O$82,2,FALSE)+(VLOOKUP($D18,'Corn RMA'!$F$10:$O$82,3,FALSE)-VLOOKUP($D18,'Corn RMA'!$F$10:$O$82,2,FALSE))/'Corn RMA'!$L$4*(Calculations!$Z$4-'Corn RMA'!$J$4)) -> 0 | AB18: =HLOOKUP(1,'FT Diesel 2'!$H$11:$U$76,'FT Diesel 2'!V50,FALSE) ->  | AD18: =HLOOKUP(1,'Adv Ethanol'!$G$10:$O$79,'Adv Ethanol'!Q40,FALSE) ->  | AF18: =IF($AF$4+$AF$5>0,VLOOKUP(D18,Uranium!$F$10:$K$77,3,FALSE)*Calculations!$AF$4+VLOOKUP(D18,Uranium!$F$10:$K$77,4,FALSE)*$AF$5,0) -> 0 | AH18: =IF($AH$4=0,0,VLOOKUP($D18,'U RMT'!$F$9:$U$64,2,FALSE)+(VLOOKUP($D18,'U RMT'!$F$10:$U$64,3,FALSE)-VLOOKUP($D18,'U RMT'!$F$10:$U$64,2,FALSE))/'U RMT'!$U$2*(Calculations!$AH$4-'U RMT'!$O$2)) -> 0 | AJ18: =IF($AJ$4=0,0,VLOOKUP($D18,'U RMT'!$F$9:$U$64,4,FALSE)+(VLOOKUP($D18,'U RMT'!$F$10:$U$64,5,FALSE)-VLOOKUP($D18,'U RMT'!$F$10:$U$64,4,FALSE))/'U RMT'!$U$3*(Calculations!$AJ$4-'U RMT'!$Q$3)) -> 0 | AL18: =IF($AL$4=0,0,VLOOKUP($D18,'U RMT'!$F$9:$U$64,6,FALSE)+(VLOOKUP($D18,'U RMT'!$F$10:$U$64,7,FALSE)-VLOOKUP($D18,'U RMT'!$F$10:$U$64,6,FALSE))/'U RMT'!$U$4*(Calculations!$AL$4-'U RMT'!$S$4)) -> 0 | AN18: =IF($AN$4=0,0,VLOOKUP($D18,'Petro Transport'!$F$10:$Z$77,2,FALSE)+(VLOOKUP($D18,'Petro Transport'!$F$10:$Z$77,3,FALSE)-VLOOKUP($D18,'Petro Transport'!$F$10:$Z$77,2,FALSE))/'Petro Transport'!$V$3*(Calculations!$AN$4-'Petro Transport'!$N$3)) -> 0 | AP18: =IF($AP$4=0,0,VLOOKUP($D18,'Petro Transport'!$F$10:$Z$77,4,FALSE)+(VLOOKUP($D18,'Petro Transport'!$F$10:$Z$77,5,FALSE)-VLOOKUP($D18,'Petro Transport'!$F$10:$Z$77,4,FALSE))/'Petro Transport'!$V$4*(Calculations!$AP$4-'Petro Transport'!$P$4)) -> 0 | AR18: =IF($AR$4=0,0,VLOOKUP($D18,'Petro Transport'!$F$10:$Z$77,6,FALSE)+(VLOOKUP($D18,'Petro Transport'!$F$10:$Z$77,7,FALSE)-VLOOKUP($D18,'Petro Transport'!$F$10:$Z$77,6,FALSE))/'Petro Transport'!$V$5*(Calculations!$AR$4-'Petro Transport'!$R$5)) -> 0 | AT18: =IF($AT$4=0,0,VLOOKUP($D18,'Petro Transport'!$F$10:$Z$77,8,FALSE)+(VLOOKUP($D18,'Petro Transport'!$F$10:$Z$77,9,FALSE)-VLOOKUP($D18,'Petro Transport'!$F$10:$Z$77,8,FALSE))/'Petro Transport'!$V$6*(Calculations!$AT$4-'Petro Transport'!$T$6)) -> 0 | AV18: =VLOOKUP($D18,'Dom Petro'!$F$11:$J$65,3,FALSE)*Calculations!$AV$4+VLOOKUP($D18,'Dom Petro'!$F$11:$J$65,4,FALSE)*Calculations!$AV$5+VLOOKUP($D18,'Dom Petro'!$F$11:$J$65,5,FALSE)*Calculations!$AV$6 -> 2.094583648e-07 | AX18: =VLOOKUP($D18,'For Petro'!$F$9:$K$77,3,FALSE)*Calculations!$AX$3+VLOOKUP($D18,'For Petro'!$F$9:$K$77,4,FALSE)*Calculations!$AX$4+VLOOKUP($D18,'For Petro'!$F$9:$K$77,5,FALSE)*Calculations!$AX$5+VLOOKUP($D18,'For Petro'!$F$9:$K$77,6,FALSE)*$AX$6 -> 0 | AZ18: =IF($AZ$5=1,VLOOKUP($D18,'Petro Ref'!$F$10:$J$77,3,FALSE),0) -> 0 | BB18: =IF($BB$5,VLOOKUP($D18,'Petro Ref'!$F$10:$J$77,4,FALSE),0) -> 0 | BD18: =IF($BD$5=1,VLOOKUP($D18,'Petro Ref'!$F$10:$J$77,5,FALSE),0) -> 0 | BF18: =IF($BF$3+$BF$4+$BF$5=0,0,VLOOKUP($D18,'onshore RMA'!$F$9:$Q$70,2,FALSE)+(VLOOKUP($D18,'onshore RMA'!$F$9:$Q$70,10,FALSE))/'onshore RMA'!$N$4*(Calculations!$BF$3-'onshore RMA'!$L$4)+(VLOOKUP($D18,'onshore RMA'!$F$9:$Q$70,11,FALSE))/'onshore RMA'!$N$5*(Calculations!$BF$4-'onshore RMA'!$L$5)+(VLOOKUP($D18,'onshore RMA'!$F$9:$Q$70,12,FALSE))/'onshore RMA'!$N$6*($BF$5-'onshore RMA'!$L$6)) -> 0 | BH18: =IF($BH$3+$BH$4+$BH$5=0,0,VLOOKUP($D18,'assoc RMA'!$F$9:$Q$70,2,FALSE)+(VLOOKUP($D18,'assoc RMA'!$F$9:$Q$70,10,FALSE))/'assoc RMA'!$N$4*(Calculations!$BH$3-'assoc RMA'!$L$4)+(VLOOKUP($D18,'assoc RMA'!$F$9:$Q$70,11,FALSE))/'assoc RMA'!$N$5*(Calculations!$BH$4-'assoc RMA'!$L$5)+(VLOOKUP($D18,'assoc RMA'!$F$9:$Q$70,12,FALSE))/'assoc RMA'!$N$6*($BH$5-'assoc RMA'!$L$6)) -> 0 | BJ18: =IF($BJ$3+$BJ$4+$BJ$5=0,0,VLOOKUP($D18,'offshore RMA'!$F$9:$Q$70,2,FALSE)+(VLOOKUP($D18,'offshore RMA'!$F$9:$Q$70,10,FALSE))/'offshore RMA'!$N$4*(Calculations!$BJ$3-'offshore RMA'!$L$4)+(VLOOKUP($D18,'offshore RMA'!$F$9:$Q$70,11,FALSE))/'offshore RMA'!$N$5*(Calculations!$BJ$4-'offshore RMA'!$L$5)+(VLOOKUP($D18,'offshore RMA'!$F$9:$Q$70,12,FALSE))/'offshore RMA'!$N$6*($BJ$5-'offshore RMA'!$L$6)) -> 0 | BL18: =IF($BL$3+$BL$4+$BL$5=0,0,VLOOKUP($D18,'barnett RMA'!$F$9:$Q$70,2,FALSE)+(VLOOKUP($D18,'barnett RMA'!$F$9:$Q$70,10,FALSE))/'barnett RMA'!$N$4*(Calculations!$BL$3-'barnett RMA'!$L$4)+(VLOOKUP($D18,'barnett RMA'!$F$9:$Q$70,11,FALSE))/'barnett RMA'!$N$5*(Calculations!$BL$4-'barnett RMA'!$L$5)+(VLOOKUP($D18,'barnett RMA'!$F$9:$Q$70,12,FALSE))/'barnett RMA'!$N$6*($BL$5-'barnett RMA'!$L$6)) -> 0 | BN18: =IF($BN$3+$BN$4+$BN$5=0,0,VLOOKUP($D18,'cbm RMA'!$F$9:$Q$70,2,FALSE)+(VLOOKUP($D18,'cbm RMA'!$F$9:$Q$70,10,FALSE))/'cbm RMA'!$N$4*(Calculations!$BN$3-'cbm RMA'!$L$4)+(VLOOKUP($D18,'cbm RMA'!$F$9:$Q$70,11,FALSE))/'cbm RMA'!$N$5*(Calculations!$BN$4-'cbm RMA'!$L$5)+(VLOOKUP($D18,'cbm RMA'!$F$9:$Q$70,12,FALSE))/'cbm RMA'!$N$6*($BN$5-'cbm RMA'!$L$6)) -> 0 | BP18: =IF($BP$3+$BP$4+$BP$5=0,0,VLOOKUP($D18,'Marc RMA'!$F$9:$Q$70,2,FALSE)+(VLOOKUP($D18,'Marc RMA'!$F$9:$Q$70,10,FALSE))/'Marc RMA'!$N$4*(Calculations!$BP$3-'Marc RMA'!$L$4)+(VLOOKUP($D18,'Marc RMA'!$F$9:$Q$70,11,FALSE))/'Marc RMA'!$N$5*(Calculations!$BP$4-'Marc RMA'!$L$5)+(VLOOKUP($D18,'Marc RMA'!$F$9:$Q$70,12,FALSE))/'Marc RMA'!$N$6*($BP$5-'Marc RMA'!$L$6)) -> 0 | BR18: =IF($BR$3+$BR$4+$BR$5=0,0,VLOOKUP($D18,'LNG RMA'!$F$9:$Q$70,2,FALSE)+(VLOOKUP($D18,'LNG RMA'!$F$9:$Q$70,10,FALSE))/'LNG RMA'!$N$4*(Calculations!$BR$3-'LNG RMA'!$L$4)+(VLOOKUP($D18,'LNG RMA'!$F$9:$Q$70,11,FALSE))/'LNG RMA'!$N$5*(Calculations!$BR$4-'LNG RMA'!$L$5)+(VLOOKUP($D18,'LNG RMA'!$F$9:$Q$70,12,FALSE))/'LNG RMA'!$N$6*($BR$5-'LNG RMA'!$L$6)) -> 0 | BT18: =IF($BT$3+$BT$4+$BT$5=0,0,VLOOKUP($D18,'tight RMA'!$F$9:$Q$70,2,FALSE)+(VLOOKUP($D18,'tight RMA'!$F$9:$Q$70,10,FALSE))/'tight RMA'!$N$4*(Calculations!$BT$3-'tight RMA'!$L$4)+(VLOOKUP($D18,'tight RMA'!$F$9:$Q$70,11,FALSE))/'tight RMA'!$N$5*(Calculations!$BT$4-'tight RMA'!$L$5)+(VLOOKUP($D18,'tight RMA'!$F$9:$Q$70,12,FALSE))/'tight RMA'!$N$6*($BT$5-'tight RMA'!$L$6)) -> 0 | BV18: =IF($BV$3+$BV$4+$BV$5=0,0,VLOOKUP($D18,'mix RMA'!$F$9:$Q$70,2,FALSE)+(VLOOKUP($D18,'mix RMA'!$F$9:$Q$70,10,FALSE))/'mix RMA'!$N$4*(Calculations!$BV$3-'mix RMA'!$L$4)+(VLOOKUP($D18,'mix RMA'!$F$9:$Q$70,11,FALSE))/'mix RMA'!$N$5*(Calculations!$BV$4-'mix RMA'!$L$5)+(VLOOKUP($D18,'mix RMA'!$F$9:$Q$70,12,FALSE))/'mix RMA'!$N$6*($BV$5-'mix RMA'!$L$6)) -> 7.476931257e-09
B19: 12 | C19: Radiation (kg) | D19: Radioactive emissions to air | F19: =IF($F$4=0,0,VLOOKUP($D19,'I6 RMA'!$F$10:$O$82,2,FALSE)+(VLOOKUP($D19,'I6 RMA'!$F$10:$O$82,3,FALSE)-VLOOKUP($D19,'I6 RMA'!$F$10:$O$82,2,FALSE))/'I6 RMA'!$L$4*(Calculations!$F$4-'I6 RMA'!$J$4)) -> 6.300365709e-12 | H19: =IF($H$4=0,0,VLOOKUP($D19,'PRB RMA'!$F$10:$O$82,2,FALSE)+(VLOOKUP($D19,'PRB RMA'!$F$10:$O$82,3,FALSE)-VLOOKUP($D19,'PRB RMA'!$F$10:$O$82,2,FALSE))/'PRB RMA'!$L$4*(Calculations!$H$4-'PRB RMA'!$J$4)) -> 0 | J19: =IF($J$4=0,0,VLOOKUP($D19,'Coal TrainRMT'!$F$10:$O$82,2,FALSE)+(VLOOKUP($D19,'Coal TrainRMT'!$F$10:$O$82,3,FALSE)-VLOOKUP($D19,'Coal TrainRMT'!$F$10:$O$82,2,FALSE))/'Coal TrainRMT'!$L$4*(Calculations!$J$4-'Coal TrainRMT'!$J$4)) -> 3.852516498e-11 | L19: =IF($L$4+$L$5+$L$6=0,0,VLOOKUP($D19,#REF!,2,FALSE)+(VLOOKUP($D19,#REF!,6,FALSE)/#REF!*(#REF!-#REF!)+(VLOOKUP($D19,#REF!,8,FALSE))/#REF!*(#REF!-#REF!)+(VLOOKUP($D19,#REF!,10,FALSE))/#REF!*($L$6-#REF!))) ->  | N19: =IF($N$4=0,0,VLOOKUP($D19,'NG Pipeline RMT'!$F$10:$O$82,2,FALSE)+(VLOOKUP($D19,'NG Pipeline RMT'!$F$10:$O$82,3,FALSE)-VLOOKUP($D19,'NG Pipeline RMT'!$F$10:$O$82,2,FALSE))/'NG Pipeline RMT'!$L$4*(Calculations!$N$4-'NG Pipeline RMT'!$J$4)) -> 0 | P19: =IF($P$4=0,0,VLOOKUP($D19,'SG RMA'!$F$10:$O$82,2,FALSE)+(VLOOKUP($D19,'SG RMA'!$F$10:$O$82,3,FALSE)-VLOOKUP($D19,'SG RMA'!$F$10:$O$82,2,FALSE))/'SG RMA'!$L$4*(Calculations!$P$4-'SG RMA'!$J$4)) -> 0 | R19: =IF($R$4=0,0,VLOOKUP($D19,'Bale Truck RMT'!$F$10:$O$82,2,FALSE)+(VLOOKUP($D19,'Bale Truck RMT'!$F$10:$O$82,3,FALSE)-VLOOKUP($D19,'Bale Truck RMT'!$F$10:$O$82,2,FALSE))/'Bale Truck RMT'!$L$4*(Calculations!$R$4-'Bale Truck RMT'!$J$4)) -> 0 | T19: =IF($T$4=0,0,VLOOKUP($D19,'Cont Truck RMT'!$F$10:$O$82,2,FALSE)+(VLOOKUP($D19,'Cont Truck RMT'!$F$10:$O$82,3,FALSE)-VLOOKUP($D19,'Cont Truck RMT'!$F$10:$O$82,2,FALSE))/'Cont Truck RMT'!$L$4*(Calculations!$T$4-'Cont Truck RMT'!$J$4)) -> 0 | V19: =IF($V$4=0,0,VLOOKUP($D19,'SRWC RMA'!$F$10:$O$82,2,FALSE)+(VLOOKUP($D19,'SRWC RMA'!$F$10:$O$82,3,FALSE)-VLOOKUP($D19,'SRWC RMA'!$F$10:$O$82,2,FALSE))/'SRWC RMA'!$L$4*(Calculations!$V$4-'SRWC RMA'!$J$4)) -> 0 | X19: =IF($X$4+$X$5+$X$6=0,0,VLOOKUP($D19,'Stover RMA'!$F$9:$Q$70,2,FALSE)+(VLOOKUP($D19,'Stover RMA'!$F$9:$Q$70,10,FALSE))/'Stover RMA'!$N$4*(Calculations!$X$4-'Stover RMA'!$L$4)+(VLOOKUP($D19,'Stover RMA'!$F$9:$Q$70,11,FALSE))/'Stover RMA'!$N$5*(Calculations!$X$5-'Stover RMA'!$L$5)+(VLOOKUP($D19,'Stover RMA'!$F$9:$Q$70,12,FALSE))/'Stover RMA'!$N$6*($X$6-'Stover RMA'!$L$6)) -> 0 | Z19: =IF($Z$4=0,0,VLOOKUP($D19,'Corn RMA'!$F$10:$O$82,2,FALSE)+(VLOOKUP($D19,'Corn RMA'!$F$10:$O$82,3,FALSE)-VLOOKUP($D19,'Corn RMA'!$F$10:$O$82,2,FALSE))/'Corn RMA'!$L$4*(Calculations!$Z$4-'Corn RMA'!$J$4)) -> 0 | AB19: =HLOOKUP(1,'FT Diesel 2'!$H$11:$U$76,'FT Diesel 2'!V63,FALSE) ->  | AD19: =HLOOKUP(1,'Adv Ethanol'!$G$10:$O$79,'Adv Ethanol'!Q53,FALSE) ->  | AF19: =IF($AF$4+$AF$5>0,VLOOKUP(D19,Uranium!$F$10:$K$77,3,FALSE)*Calculations!$AF$4+VLOOKUP(D19,Uranium!$F$10:$K$77,4,FALSE)*$AF$5,0) -> 0 | AH19: =IF($AH$4=0,0,VLOOKUP($D19,'U RMT'!$F$9:$U$64,2,FALSE)+(VLOOKUP($D19,'U RMT'!$F$10:$U$64,3,FALSE)-VLOOKUP($D19,'U RMT'!$F$10:$U$64,2,FALSE))/'U RMT'!$U$2*(Calculations!$AH$4-'U RMT'!$O$2)) -> 0 | AJ19: =IF($AJ$4=0,0,VLOOKUP($D19,'U RMT'!$F$9:$U$64,4,FALSE)+(VLOOKUP($D19,'U RMT'!$F$10:$U$64,5,FALSE)-VLOOKUP($D19,'U RMT'!$F$10:$U$64,4,FALSE))/'U RMT'!$U$3*(Calculations!$AJ$4-'U RMT'!$Q$3)) -> 0 | AL19: =IF($AL$4=0,0,VLOOKUP($D19,'U RMT'!$F$9:$U$64,6,FALSE)+(VLOOKUP($D19,'U RMT'!$F$10:$U$64,7,FALSE)-VLOOKUP($D19,'U RMT'!$F$10:$U$64,6,FALSE))/'U RMT'!$U$4*(Calculations!$AL$4-'U RMT'!$S$4)) -> 0 | AN19: =IF($AN$4=0,0,VLOOKUP($D19,'Petro Transport'!$F$10:$Z$77,2,FALSE)+(VLOOKUP($D19,'Petro Transport'!$F$10:$Z$77,3,FALSE)-VLOOKUP($D19,'Petro Transport'!$F$10:$Z$77,2,FALSE))/'Petro Transport'!$V$3*(Calculations!$AN$4-'Petro Transport'!$N$3)) -> 0 | AP19: =IF($AP$4=0,0,VLOOKUP($D19,'Petro Transport'!$F$10:$Z$77,4,FALSE)+(VLOOKUP($D19,'Petro Transport'!$F$10:$Z$77,5,FALSE)-VLOOKUP($D19,'Petro Transport'!$F$10:$Z$77,4,FALSE))/'Petro Transport'!$V$4*(Calculations!$AP$4-'Petro Transport'!$P$4)) -> 0 | AR19: =IF($AR$4=0,0,VLOOKUP($D19,'Petro Transport'!$F$10:$Z$77,6,FALSE)+(VLOOKUP($D19,'Petro Transport'!$F$10:$Z$77,7,FALSE)-VLOOKUP($D19,'Petro Transport'!$F$10:$Z$77,6,FALSE))/'Petro Transport'!$V$5*(Calculations!$AR$4-'Petro Transport'!$R$5)) -> 0 | AT19: =IF($AT$4=0,0,VLOOKUP($D19,'Petro Transport'!$F$10:$Z$77,8,FALSE)+(VLOOKUP($D19,'Petro Transport'!$F$10:$Z$77,9,FALSE)-VLOOKUP($D19,'Petro Transport'!$F$10:$Z$77,8,FALSE))/'Petro Transport'!$V$6*(Calculations!$AT$4-'Petro Transport'!$T$6)) -> 0 | AV19: =VLOOKUP($D19,'Dom Petro'!$F$11:$J$65,3,FALSE)*Calculations!$AV$4+VLOOKUP($D19,'Dom Petro'!$F$11:$J$65,4,FALSE)*Calculations!$AV$5+VLOOKUP($D19,'Dom Petro'!$F$11:$J$65,5,FALSE)*Calculations!$AV$6 -> 3.289737922e-10 | AX19: =VLOOKUP($D19,'For Petro'!$F$9:$K$77,3,FALSE)*Calculations!$AX$3+VLOOKUP($D19,'For Petro'!$F$9:$K$77,4,FALSE)*Calculations!$AX$4+VLOOKUP($D19,'For Petro'!$F$9:$K$77,5,FALSE)*Calculations!$AX$5+VLOOKUP($D19,'For Petro'!$F$9:$K$77,6,FALSE)*$AX$6 -> 0 | AZ19: =IF($AZ$5=1,VLOOKUP($D19,'Petro Ref'!$F$10:$J$77,3,FALSE),0) -> 0 | BB19: =IF($BB$5,VLOOKUP($D19,'Petro Ref'!$F$10:$J$77,4,FALSE),0) -> 0 | BD19: =IF($BD$5=1,VLOOKUP($D19,'Petro Ref'!$F$10:$J$77,5,FALSE),0) -> 0 | BF19: =IF($BF$3+$BF$4+$BF$5=0,0,VLOOKUP($D19,'onshore RMA'!$F$9:$Q$70,2,FALSE)+(VLOOKUP($D19,'onshore RMA'!$F$9:$Q$70,10,FALSE))/'onshore RMA'!$N$4*(Calculations!$BF$3-'onshore RMA'!$L$4)+(VLOOKUP($D19,'onshore RMA'!$F$9:$Q$70,11,FALSE))/'onshore RMA'!$N$5*(Calculations!$BF$4-'onshore RMA'!$L$5)+(VLOOKUP($D19,'onshore RMA'!$F$9:$Q$70,12,FALSE))/'onshore RMA'!$N$6*($BF$5-'onshore RMA'!$L$6)) -> 0 | BH19: =IF($BH$3+$BH$4+$BH$5=0,0,VLOOKUP($D19,'assoc RMA'!$F$9:$Q$70,2,FALSE)+(VLOOKUP($D19,'assoc RMA'!$F$9:$Q$70,10,FALSE))/'assoc RMA'!$N$4*(Calculations!$BH$3-'assoc RMA'!$L$4)+(VLOOKUP($D19,'assoc RMA'!$F$9:$Q$70,11,FALSE))/'assoc RMA'!$N$5*(Calculations!$BH$4-'assoc RMA'!$L$5)+(VLOOKUP($D19,'assoc RMA'!$F$9:$Q$70,12,FALSE))/'assoc RMA'!$N$6*($BH$5-'assoc RMA'!$L$6)) -> 0 | BJ19: =IF($BJ$3+$BJ$4+$BJ$5=0,0,VLOOKUP($D19,'offshore RMA'!$F$9:$Q$70,2,FALSE)+(VLOOKUP($D19,'offshore RMA'!$F$9:$Q$70,10,FALSE))/'offshore RMA'!$N$4*(Calculations!$BJ$3-'offshore RMA'!$L$4)+(VLOOKUP($D19,'offshore RMA'!$F$9:$Q$70,11,FALSE))/'offshore RMA'!$N$5*(Calculations!$BJ$4-'offshore RMA'!$L$5)+(VLOOKUP($D19,'offshore RMA'!$F$9:$Q$70,12,FALSE))/'offshore RMA'!$N$6*($BJ$5-'offshore RMA'!$L$6)) -> 0 | BL19: =IF($BL$3+$BL$4+$BL$5=0,0,VLOOKUP($D19,'barnett RMA'!$F$9:$Q$70,2,FALSE)+(VLOOKUP($D19,'barnett RMA'!$F$9:$Q$70,10,FALSE))/'barnett RMA'!$N$4*(Calculations!$BL$3-'barnett RMA'!$L$4)+(VLOOKUP($D19,'barnett RMA'!$F$9:$Q$70,11,FALSE))/'barnett RMA'!$N$5*(Calculations!$BL$4-'barnett RMA'!$L$5)+(VLOOKUP($D19,'barnett RMA'!$F$9:$Q$70,12,FALSE))/'barnett RMA'!$N$6*($BL$5-'barnett RMA'!$L$6)) -> 0 | BN19: =IF($BN$3+$BN$4+$BN$5=0,0,VLOOKUP($D19,'cbm RMA'!$F$9:$Q$70,2,FALSE)+(VLOOKUP($D19,'cbm RMA'!$F$9:$Q$70,10,FALSE))/'cbm RMA'!$N$4*(Calculations!$BN$3-'cbm RMA'!$L$4)+(VLOOKUP($D19,'cbm RMA'!$F$9:$Q$70,11,FALSE))/'cbm RMA'!$N$5*(Calculations!$BN$4-'cbm RMA'!$L$5)+(VLOOKUP($D19,'cbm RMA'!$F$9:$Q$70,12,FALSE))/'cbm RMA'!$N$6*($BN$5-'cbm RMA'!$L$6)) -> 0 | BP19: =IF($BP$3+$BP$4+$BP$5=0,0,VLOOKUP($D19,'Marc RMA'!$F$9:$Q$70,2,FALSE)+(VLOOKUP($D19,'Marc RMA'!$F$9:$Q$70,10,FALSE))/'Marc RMA'!$N$4*(Calculations!$BP$3-'Marc RMA'!$L$4)+(VLOOKUP($D19,'Marc RMA'!$F$9:$Q$70,11,FALSE))/'Marc RMA'!$N$5*(Calculations!$BP$4-'Marc RMA'!$L$5)+(VLOOKUP($D19,'Marc RMA'!$F$9:$Q$70,12,FALSE))/'Marc RMA'!$N$6*($BP$5-'Marc RMA'!$L$6)) -> 0 | BR19: =IF($BR$3+$BR$4+$BR$5=0,0,VLOOKUP($D19,'LNG RMA'!$F$9:$Q$70,2,FALSE)+(VLOOKUP($D19,'LNG RMA'!$F$9:$Q$70,10,FALSE))/'LNG RMA'!$N$4*(Calculations!$BR$3-'LNG RMA'!$L$4)+(VLOOKUP($D19,'LNG RMA'!$F$9:$Q$70,11,FALSE))/'LNG RMA'!$N$5*(Calculations!$BR$4-'LNG RMA'!$L$5)+(VLOOKUP($D19,'LNG RMA'!$F$9:$Q$70,12,FALSE))/'LNG RMA'!$N$6*($BR$5-'LNG RMA'!$L$6)) -> 0 | BT19: =IF($BT$3+$BT$4+$BT$5=0,0,VLOOKUP($D19,'tight RMA'!$F$9:$Q$70,2,FALSE)+(VLOOKUP($D19,'tight RMA'!$F$9:$Q$70,10,FALSE))/'tight RMA'!$N$4*(Calculations!$BT$3-'tight RMA'!$L$4)+(VLOOKUP($D19,'tight RMA'!$F$9:$Q$70,11,FALSE))/'tight RMA'!$N$5*(Calculations!$BT$4-'tight RMA'!$L$5)+(VLOOKUP($D19,'tight RMA'!$F$9:$Q$70,12,FALSE))/'tight RMA'!$N$6*($BT$5-'tight RMA'!$L$6)) -> 0 | BV19: =IF($BV$3+$BV$4+$BV$5=0,0,VLOOKUP($D19,'mix RMA'!$F$9:$Q$70,2,FALSE)+(VLOOKUP($D19,'mix RMA'!$F$9:$Q$70,10,FALSE))/'mix RMA'!$N$4*(Calculations!$BV$3-'mix RMA'!$L$4)+(VLOOKUP($D19,'mix RMA'!$F$9:$Q$70,11,FALSE))/'mix RMA'!$N$5*(Calculations!$BV$4-'mix RMA'!$L$5)+(VLOOKUP($D19,'mix RMA'!$F$9:$Q$70,12,FALSE))/'mix RMA'!$N$6*($BV$5-'mix RMA'!$L$6)) -> 3.531134379e-12
B20: 13 | C20: Non Methane VOC (kg) | D20: Group NMVOC to air | F20: =IF($F$4=0,0,VLOOKUP($D20,'I6 RMA'!$F$10:$O$82,2,FALSE)+(VLOOKUP($D20,'I6 RMA'!$F$10:$O$82,3,FALSE)-VLOOKUP($D20,'I6 RMA'!$F$10:$O$82,2,FALSE))/'I6 RMA'!$L$4*(Calculations!$F$4-'I6 RMA'!$J$4)) -> 6.349011726e-06 | H20: =IF($H$4=0,0,VLOOKUP($D20,'PRB RMA'!$F$10:$O$82,2,FALSE)+(VLOOKUP($D20,'PRB RMA'!$F$10:$O$82,3,FALSE)-VLOOKUP($D20,'PRB RMA'!$F$10:$O$82,2,FALSE))/'PRB RMA'!$L$4*(Calculations!$H$4-'PRB RMA'!$J$4)) -> 0 | J20: =IF($J$4=0,0,VLOOKUP($D20,'Coal TrainRMT'!$F$10:$O$82,2,FALSE)+(VLOOKUP($D20,'Coal TrainRMT'!$F$10:$O$82,3,FALSE)-VLOOKUP($D20,'Coal TrainRMT'!$F$10:$O$82,2,FALSE))/'Coal TrainRMT'!$L$4*(Calculations!$J$4-'Coal TrainRMT'!$J$4)) -> 2.50910157e-06 | L20: =IF($L$4+$L$5+$L$6=0,0,VLOOKUP($D20,#REF!,2,FALSE)+(VLOOKUP($D20,#REF!,6,FALSE)/#REF!*(#REF!-#REF!)+(VLOOKUP($D20,#REF!,8,FALSE))/#REF!*(#REF!-#REF!)+(VLOOKUP($D20,#REF!,10,FALSE))/#REF!*($L$6-#REF!))) ->  | N20: =IF($N$4=0,0,VLOOKUP($D20,'NG Pipeline RMT'!$F$10:$O$82,2,FALSE)+(VLOOKUP($D20,'NG Pipeline RMT'!$F$10:$O$82,3,FALSE)-VLOOKUP($D20,'NG Pipeline RMT'!$F$10:$O$82,2,FALSE))/'NG Pipeline RMT'!$L$4*(Calculations!$N$4-'NG Pipeline RMT'!$J$4)) -> 0 | P20: =IF($P$4=0,0,VLOOKUP($D20,'SG RMA'!$F$10:$O$82,2,FALSE)+(VLOOKUP($D20,'SG RMA'!$F$10:$O$82,3,FALSE)-VLOOKUP($D20,'SG RMA'!$F$10:$O$82,2,FALSE))/'SG RMA'!$L$4*(Calculations!$P$4-'SG RMA'!$J$4)) -> 0 | R20: =IF($R$4=0,0,VLOOKUP($D20,'Bale Truck RMT'!$F$10:$O$82,2,FALSE)+(VLOOKUP($D20,'Bale Truck RMT'!$F$10:$O$82,3,FALSE)-VLOOKUP($D20,'Bale Truck RMT'!$F$10:$O$82,2,FALSE))/'Bale Truck RMT'!$L$4*(Calculations!$R$4-'Bale Truck RMT'!$J$4)) -> 0 | T20: =IF($T$4=0,0,VLOOKUP($D20,'Cont Truck RMT'!$F$10:$O$82,2,FALSE)+(VLOOKUP($D20,'Cont Truck RMT'!$F$10:$O$82,3,FALSE)-VLOOKUP($D20,'Cont Truck RMT'!$F$10:$O$82,2,FALSE))/'Cont Truck RMT'!$L$4*(Calculations!$T$4-'Cont Truck RMT'!$J$4)) -> 0 | V20: =IF($V$4=0,0,VLOOKUP($D20,'SRWC RMA'!$F$10:$O$82,2,FALSE)+(VLOOKUP($D20,'SRWC RMA'!$F$10:$O$82,3,FALSE)-VLOOKUP($D20,'SRWC RMA'!$F$10:$O$82,2,FALSE))/'SRWC RMA'!$L$4*(Calculations!$V$4-'SRWC RMA'!$J$4)) -> 0 | X20: =IF($X$4+$X$5+$X$6=0,0,VLOOKUP($D20,'Stover RMA'!$F$9:$Q$70,2,FALSE)+(VLOOKUP($D20,'Stover RMA'!$F$9:$Q$70,10,FALSE))/'Stover RMA'!$N$4*(Calculations!$X$4-'Stover RMA'!$L$4)+(VLOOKUP($D20,'Stover RMA'!$F$9:$Q$70,11,FALSE))/'Stover RMA'!$N$5*(Calculations!$X$5-'Stover RMA'!$L$5)+(VLOOKUP($D20,'Stover RMA'!$F$9:$Q$70,12,FALSE))/'Stover RMA'!$N$6*($X$6-'Stover RMA'!$L$6)) -> 0 | Z20: =IF($Z$4=0,0,VLOOKUP($D20,'Corn RMA'!$F$10:$O$82,2,FALSE)+(VLOOKUP($D20,'Corn RMA'!$F$10:$O$82,3,FALSE)-VLOOKUP($D20,'Corn RMA'!$F$10:$O$82,2,FALSE))/'Corn RMA'!$L$4*(Calculations!$Z$4-'Corn RMA'!$J$4)) -> 0 | AB20: =HLOOKUP(1,'FT Diesel 2'!$H$11:$U$76,'FT Diesel 2'!V59,FALSE) ->  | AD20: =HLOOKUP(1,'Adv Ethanol'!$G$10:$O$79,'Adv Ethanol'!Q49,FALSE) ->  | AF20: =IF($AF$4+$AF$5>0,VLOOKUP(D20,Uranium!$F$10:$K$77,3,FALSE)*Calculations!$AF$4+VLOOKUP(D20,Uranium!$F$10:$K$77,4,FALSE)*$AF$5,0) -> 0 | AH20: =IF($AH$4=0,0,VLOOKUP($D20,'U RMT'!$F$9:$U$64,2,FALSE)+(VLOOKUP($D20,'U RMT'!$F$10:$U$64,3,FALSE)-VLOOKUP($D20,'U RMT'!$F$10:$U$64,2,FALSE))/'U RMT'!$U$2*(Calculations!$AH$4-'U RMT'!$O$2)) -> 0 | AJ20: =IF($AJ$4=0,0,VLOOKUP($D20,'U RMT'!$F$9:$U$64,4,FALSE)+(VLOOKUP($D20,'U RMT'!$F$10:$U$64,5,FALSE)-VLOOKUP($D20,'U RMT'!$F$10:$U$64,4,FALSE))/'U RMT'!$U$3*(Calculations!$AJ$4-'U RMT'!$Q$3)) -> 0 | AL20: =IF($AL$4=0,0,VLOOKUP($D20,'U RMT'!$F$9:$U$64,6,FALSE)+(VLOOKUP($D20,'U RMT'!$F$10:$U$64,7,FALSE)-VLOOKUP($D20,'U RMT'!$F$10:$U$64,6,FALSE))/'U RMT'!$U$4*(Calculations!$AL$4-'U RMT'!$S$4)) -> 0 | AN20: =IF($AN$4=0,0,VLOOKUP($D20,'Petro Transport'!$F$10:$Z$77,2,FALSE)+(VLOOKUP($D20,'Petro Transport'!$F$10:$Z$77,3,FALSE)-VLOOKUP($D20,'Petro Transport'!$F$10:$Z$77,2,FALSE))/'Petro Transport'!$V$3*(Calculations!$AN$4-'Petro Transport'!$N$3)) -> 0 | AP20: =IF($AP$4=0,0,VLOOKUP($D20,'Petro Transport'!$F$10:$Z$77,4,FALSE)+(VLOOKUP($D20,'Petro Transport'!$F$10:$Z$77,5,FALSE)-VLOOKUP($D20,'Petro Transport'!$F$10:$Z$77,4,FALSE))/'Petro Transport'!$V$4*(Calculations!$AP$4-'Petro Transport'!$P$4)) -> 0 | AR20: =IF($AR$4=0,0,VLOOKUP($D20,'Petro Transport'!$F$10:$Z$77,6,FALSE)+(VLOOKUP($D20,'Petro Transport'!$F$10:$Z$77,7,FALSE)-VLOOKUP($D20,'Petro Transport'!$F$10:$Z$77,6,FALSE))/'Petro Transport'!$V$5*(Calculations!$AR$4-'Petro Transport'!$R$5)) -> 0 | AT20: =IF($AT$4=0,0,VLOOKUP($D20,'Petro Transport'!$F$10:$Z$77,8,FALSE)+(VLOOKUP($D20,'Petro Transport'!$F$10:$Z$77,9,FALSE)-VLOOKUP($D20,'Petro Transport'!$F$10:$Z$77,8,FALSE))/'Petro Transport'!$V$6*(Calculations!$AT$4-'Petro Transport'!$T$6)) -> 0 | AV20: =VLOOKUP($D20,'Dom Petro'!$F$11:$J$65,3,FALSE)*Calculations!$AV$4+VLOOKUP($D20,'Dom Petro'!$F$11:$J$65,4,FALSE)*Calculations!$AV$5+VLOOKUP($D20,'Dom Petro'!$F$11:$J$65,5,FALSE)*Calculations!$AV$6 -> 0.0001826345056 | AX20: =VLOOKUP($D20,'For Petro'!$F$9:$K$77,3,FALSE)*Calculations!$AX$3+VLOOKUP($D20,'For Petro'!$F$9:$K$77,4,FALSE)*Calculations!$AX$4+VLOOKUP($D20,'For Petro'!$F$9:$K$77,5,FALSE)*Calculations!$AX$5+VLOOKUP($D20,'For Petro'!$F$9:$K$77,6,FALSE)*$AX$6 -> 0 | AZ20: =IF($AZ$5=1,VLOOKUP($D20,'Petro Ref'!$F$10:$J$77,3,FALSE),0) -> 0 | BB20: =IF($BB$5,VLOOKUP($D20,'Petro Ref'!$F$10:$J$77,4,FALSE),0) -> 0 | BD20: =IF($BD$5=1,VLOOKUP($D20,'Petro Ref'!$F$10:$J$77,5,FALSE),0) -> 0 | BF20: =IF($BF$3+$BF$4+$BF$5=0,0,VLOOKUP($D20,'onshore RMA'!$F$9:$Q$70,2,FALSE)+(VLOOKUP($D20,'onshore RMA'!$F$9:$Q$70,10,FALSE))/'onshore RMA'!$N$4*(Calculations!$BF$3-'onshore RMA'!$L$4)+(VLOOKUP($D20,'onshore RMA'!$F$9:$Q$70,11,FALSE))/'onshore RMA'!$N$5*(Calculations!$BF$4-'onshore RMA'!$L$5)+(VLOOKUP($D20,'onshore RMA'!$F$9:$Q$70,12,FALSE))/'onshore RMA'!$N$6*($BF$5-'onshore RMA'!$L$6)) -> 0 | BH20: =IF($BH$3+$BH$4+$BH$5=0,0,VLOOKUP($D20,'assoc RMA'!$F$9:$Q$70,2,FALSE)+(VLOOKUP($D20,'assoc RMA'!$F$9:$Q$70,10,FALSE))/'assoc RMA'!$N$4*(Calculations!$BH$3-'assoc RMA'!$L$4)+(VLOOKUP($D20,'assoc RMA'!$F$9:$Q$70,11,FALSE))/'assoc RMA'!$N$5*(Calculations!$BH$4-'assoc RMA'!$L$5)+(VLOOKUP($D20,'assoc RMA'!$F$9:$Q$70,12,FALSE))/'assoc RMA'!$N$6*($BH$5-'assoc RMA'!$L$6)) -> 0 | BJ20: =IF($BJ$3+$BJ$4+$BJ$5=0,0,VLOOKUP($D20,'offshore RMA'!$F$9:$Q$70,2,FALSE)+(VLOOKUP($D20,'offshore RMA'!$F$9:$Q$70,10,FALSE))/'offshore RMA'!$N$4*(Calculations!$BJ$3-'offshore RMA'!$L$4)+(VLOOKUP($D20,'offshore RMA'!$F$9:$Q$70,11,FALSE))/'offshore RMA'!$N$5*(Calculations!$BJ$4-'offshore RMA'!$L$5)+(VLOOKUP($D20,'offshore RMA'!$F$9:$Q$70,12,FALSE))/'offshore RMA'!$N$6*($BJ$5-'offshore RMA'!$L$6)) -> 0 | BL20: =IF($BL$3+$BL$4+$BL$5=0,0,VLOOKUP($D20,'barnett RMA'!$F$9:$Q$70,2,FALSE)+(VLOOKUP($D20,'barnett RMA'!$F$9:$Q$70,10,FALSE))/'barnett RMA'!$N$4*(Calculations!$BL$3-'barnett RMA'!$L$4)+(VLOOKUP($D20,'barnett RMA'!$F$9:$Q$70,11,FALSE))/'barnett RMA'!$N$5*(Calculations!$BL$4-'barnett RMA'!$L$5)+(VLOOKUP($D20,'barnett RMA'!$F$9:$Q$70,12,FALSE))/'barnett RMA'!$N$6*($BL$5-'barnett RMA'!$L$6)) -> 0 | BN20: =IF($BN$3+$BN$4+$BN$5=0,0,VLOOKUP($D20,'cbm RMA'!$F$9:$Q$70,2,FALSE)+(VLOOKUP($D20,'cbm RMA'!$F$9:$Q$70,10,FALSE))/'cbm RMA'!$N$4*(Calculations!$BN$3-'cbm RMA'!$L$4)+(VLOOKUP($D20,'cbm RMA'!$F$9:$Q$70,11,FALSE))/'cbm RMA'!$N$5*(Calculations!$BN$4-'cbm RMA'!$L$5)+(VLOOKUP($D20,'cbm RMA'!$F$9:$Q$70,12,FALSE))/'cbm RMA'!$N$6*($BN$5-'cbm RMA'!$L$6)) -> 0 | BP20: =IF($BP$3+$BP$4+$BP$5=0,0,VLOOKUP($D20,'Marc RMA'!$F$9:$Q$70,2,FALSE)+(VLOOKUP($D20,'Marc RMA'!$F$9:$Q$70,10,FALSE))/'Marc RMA'!$N$4*(Calculations!$BP$3-'Marc RMA'!$L$4)+(VLOOKUP($D20,'Marc RMA'!$F$9:$Q$70,11,FALSE))/'Marc RMA'!$N$5*(Calculations!$BP$4-'Marc RMA'!$L$5)+(VLOOKUP($D20,'Marc RMA'!$F$9:$Q$70,12,FALSE))/'Marc RMA'!$N$6*($BP$5-'Marc RMA'!$L$6)) -> 0 | BR20: =IF($BR$3+$BR$4+$BR$5=0,0,VLOOKUP($D20,'LNG RMA'!$F$9:$Q$70,2,FALSE)+(VLOOKUP($D20,'LNG RMA'!$F$9:$Q$70,10,FALSE))/'LNG RMA'!$N$4*(Calculations!$BR$3-'LNG RMA'!$L$4)+(VLOOKUP($D20,'LNG RMA'!$F$9:$Q$70,11,FALSE))/'LNG RMA'!$N$5*(Calculations!$BR$4-'LNG RMA'!$L$5)+(VLOOKUP($D20,'LNG RMA'!$F$9:$Q$70,12,FALSE))/'LNG RMA'!$N$6*($BR$5-'LNG RMA'!$L$6)) -> 0 | BT20: =IF($BT$3+$BT$4+$BT$5=0,0,VLOOKUP($D20,'tight RMA'!$F$9:$Q$70,2,FALSE)+(VLOOKUP($D20,'tight RMA'!$F$9:$Q$70,10,FALSE))/'tight RMA'!$N$4*(Calculations!$BT$3-'tight RMA'!$L$4)+(VLOOKUP($D20,'tight RMA'!$F$9:$Q$70,11,FALSE))/'tight RMA'!$N$5*(Calculations!$BT$4-'tight RMA'!$L$5)+(VLOOKUP($D20,'tight RMA'!$F$9:$Q$70,12,FALSE))/'tight RMA'!$N$6*($BT$5-'tight RMA'!$L$6)) -> 0 | BV20: =IF($BV$3+$BV$4+$BV$5=0,0,VLOOKUP($D20,'mix RMA'!$F$9:$Q$70,2,FALSE)+(VLOOKUP($D20,'mix RMA'!$F$9:$Q$70,10,FALSE))/'mix RMA'!$N$4*(Calculations!$BV$3-'mix RMA'!$L$4)+(VLOOKUP($D20,'mix RMA'!$F$9:$Q$70,11,FALSE))/'mix RMA'!$N$5*(Calculations!$BV$4-'mix RMA'!$L$5)+(VLOOKUP($D20,'mix RMA'!$F$9:$Q$70,12,FALSE))/'mix RMA'!$N$6*($BV$5-'mix RMA'!$L$6)) -> 0.002568016151
A21: Solid Waste | B21: 14 | C21: Heavy Metals to Soil (kg) | D21: Heavy metals to industrial soil | F21: =IF($F$4=0,0,VLOOKUP($D21,'I6 RMA'!$F$10:$O$82,2,FALSE)+(VLOOKUP($D21,'I6 RMA'!$F$10:$O$82,3,FALSE)-VLOOKUP($D21,'I6 RMA'!$F$10:$O$82,2,FALSE))/'I6 RMA'!$L$4*(Calculations!$F$4-'I6 RMA'!$J$4)) -> 0.0001486256029 | H21: =IF($H$4=0,0,VLOOKUP($D21,'PRB RMA'!$F$10:$O$82,2,FALSE)+(VLOOKUP($D21,'PRB RMA'!$F$10:$O$82,3,FALSE)-VLOOKUP($D21,'PRB RMA'!$F$10:$O$82,2,FALSE))/'PRB RMA'!$L$4*(Calculations!$H$4-'PRB RMA'!$J$4)) -> 0 | J21: =IF($J$4=0,0,VLOOKUP($D21,'Coal TrainRMT'!$F$10:$O$82,2,FALSE)+(VLOOKUP($D21,'Coal TrainRMT'!$F$10:$O$82,3,FALSE)-VLOOKUP($D21,'Coal TrainRMT'!$F$10:$O$82,2,FALSE))/'Coal TrainRMT'!$L$4*(Calculations!$J$4-'Coal TrainRMT'!$J$4)) -> 1.451597249e-08 | L21: =IF($L$4+$L$5+$L$6=0,0,VLOOKUP($D21,#REF!,2,FALSE)+(VLOOKUP($D21,#REF!,6,FALSE)/#REF!*(#REF!-#REF!)+(VLOOKUP($D21,#REF!,8,FALSE))/#REF!*(#REF!-#REF!)+(VLOOKUP($D21,#REF!,10,FALSE))/#REF!*($L$6-#REF!))) ->  | N21: =IF($N$4=0,0,VLOOKUP($D21,'NG Pipeline RMT'!$F$10:$O$82,2,FALSE)+(VLOOKUP($D21,'NG Pipeline RMT'!$F$10:$O$82,3,FALSE)-VLOOKUP($D21,'NG Pipeline RMT'!$F$10:$O$82,2,FALSE))/'NG Pipeline RMT'!$L$4*(Calculations!$N$4-'NG Pipeline RMT'!$J$4)) -> 0 | P21: =IF($P$4=0,0,VLOOKUP($D21,'SG RMA'!$F$10:$O$82,2,FALSE)+(VLOOKUP($D21,'SG RMA'!$F$10:$O$82,3,FALSE)-VLOOKUP($D21,'SG RMA'!$F$10:$O$82,2,FALSE))/'SG RMA'!$L$4*(Calculations!$P$4-'SG RMA'!$J$4)) -> 0 | R21: =IF($R$4=0,0,VLOOKUP($D21,'Bale Truck RMT'!$F$10:$O$82,2,FALSE)+(VLOOKUP($D21,'Bale Truck RMT'!$F$10:$O$82,3,FALSE)-VLOOKUP($D21,'Bale Truck RMT'!$F$10:$O$82,2,FALSE))/'Bale Truck RMT'!$L$4*(Calculations!$R$4-'Bale Truck RMT'!$J$4)) -> 0 | T21: =IF($T$4=0,0,VLOOKUP($D21,'Cont Truck RMT'!$F$10:$O$82,2,FALSE)+(VLOOKUP($D21,'Cont Truck RMT'!$F$10:$O$82,3,FALSE)-VLOOKUP($D21,'Cont Truck RMT'!$F$10:$O$82,2,FALSE))/'Cont Truck RMT'!$L$4*(Calculations!$T$4-'Cont Truck RMT'!$J$4)) -> 0 | V21: =IF($V$4=0,0,VLOOKUP($D21,'SRWC RMA'!$F$10:$O$82,2,FALSE)+(VLOOKUP($D21,'SRWC RMA'!$F$10:$O$82,3,FALSE)-VLOOKUP($D21,'SRWC RMA'!$F$10:$O$82,2,FALSE))/'SRWC RMA'!$L$4*(Calculations!$V$4-'SRWC RMA'!$J$4)) -> 0 | X21: =IF($X$4+$X$5+$X$6=0,0,VLOOKUP($D21,'Stover RMA'!$F$9:$Q$70,2,FALSE)+(VLOOKUP($D21,'Stover RMA'!$F$9:$Q$70,10,FALSE))/'Stover RMA'!$N$4*(Calculations!$X$4-'Stover RMA'!$L$4)+(VLOOKUP($D21,'Stover RMA'!$F$9:$Q$70,11,FALSE))/'Stover RMA'!$N$5*(Calculations!$X$5-'Stover RMA'!$L$5)+(VLOOKUP($D21,'Stover RMA'!$F$9:$Q$70,12,FALSE))/'Stover RMA'!$N$6*($X$6-'Stover RMA'!$L$6)) -> 0 | Z21: =IF($Z$4=0,0,VLOOKUP($D21,'Corn RMA'!$F$10:$O$82,2,FALSE)+(VLOOKUP($D21,'Corn RMA'!$F$10:$O$82,3,FALSE)-VLOOKUP($D21,'Corn RMA'!$F$10:$O$82,2,FALSE))/'Corn RMA'!$L$4*(Calculations!$Z$4-'Corn RMA'!$J$4)) -> 0 | AB21: =HLOOKUP(1,'FT Diesel 2'!$H$11:$U$76,'FT Diesel 2'!V76,FALSE) ->  | AD21: =HLOOKUP(1,'Adv Ethanol'!$G$10:$O$79,'Adv Ethanol'!Q66,FALSE) ->  | AF21: =IF($AF$4+$AF$5>0,VLOOKUP(D21,Uranium!$F$10:$K$77,3,FALSE)*Calculations!$AF$4+VLOOKUP(D21,Uranium!$F$10:$K$77,4,FALSE)*$AF$5,0) -> 0 | AH21: =IF($AH$4=0,0,VLOOKUP($D21,'U RMT'!$F$9:$U$64,2,FALSE)+(VLOOKUP($D21,'U RMT'!$F$10:$U$64,3,FALSE)-VLOOKUP($D21,'U RMT'!$F$10:$U$64,2,FALSE))/'U RMT'!$U$2*(Calculations!$AH$4-'U RMT'!$O$2)) -> 0 | AJ21: =IF($AJ$4=0,0,VLOOKUP($D21,'U RMT'!$F$9:$U$64,4,FALSE)+(VLOOKUP($D21,'U RMT'!$F$10:$U$64,5,FALSE)-VLOOKUP($D21,'U RMT'!$F$10:$U$64,4,FALSE))/'U RMT'!$U$3*(Calculations!$AJ$4-'U RMT'!$Q$3)) -> 0 | AL21: =IF($AL$4=0,0,VLOOKUP($D21,'U RMT'!$F$9:$U$64,6,FALSE)+(VLOOKUP($D21,'U RMT'!$F$10:$U$64,7,FALSE)-VLOOKUP($D21,'U RMT'!$F$10:$U$64,6,FALSE))/'U RMT'!$U$4*(Calculations!$AL$4-'U RMT'!$S$4)) -> 0 | AN21: =IF($AN$4=0,0,VLOOKUP($D21,'Petro Transport'!$F$10:$Z$77,2,FALSE)+(VLOOKUP($D21,'Petro Transport'!$F$10:$Z$77,3,FALSE)-VLOOKUP($D21,'Petro Transport'!$F$10:$Z$77,2,FALSE))/'Petro Transport'!$V$3*(Calculations!$AN$4-'Petro Transport'!$N$3)) -> 0 | AP21: =IF($AP$4=0,0,VLOOKUP($D21,'Petro Transport'!$F$10:$Z$77,4,FALSE)+(VLOOKUP($D21,'Petro Transport'!$F$10:$Z$77,5,FALSE)-VLOOKUP($D21,'Petro Transport'!$F$10:$Z$77,4,FALSE))/'Petro Transport'!$V$4*(Calculations!$AP$4-'Petro Transport'!$P$4)) -> 0 | AR21: =IF($AR$4=0,0,VLOOKUP($D21,'Petro Transport'!$F$10:$Z$77,6,FALSE)+(VLOOKUP($D21,'Petro Transport'!$F$10:$Z$77,7,FALSE)-VLOOKUP($D21,'Petro Transport'!$F$10:$Z$77,6,FALSE))/'Petro Transport'!$V$5*(Calculations!$AR$4-'Petro Transport'!$R$5)) -> 0 | AT21: =IF($AT$4=0,0,VLOOKUP($D21,'Petro Transport'!$F$10:$Z$77,8,FALSE)+(VLOOKUP($D21,'Petro Transport'!$F$10:$Z$77,9,FALSE)-VLOOKUP($D21,'Petro Transport'!$F$10:$Z$77,8,FALSE))/'Petro Transport'!$V$6*(Calculations!$AT$4-'Petro Transport'!$T$6)) -> 0 | AV21: =VLOOKUP($D21,'Dom Petro'!$F$11:$J$65,3,FALSE)*Calculations!$AV$4+VLOOKUP($D21,'Dom Petro'!$F$11:$J$65,4,FALSE)*Calculations!$AV$5+VLOOKUP($D21,'Dom Petro'!$F$11:$J$65,5,FALSE)*Calculations!$AV$6 -> 7.559964048e-06 | AX21: =VLOOKUP($D21,'For Petro'!$F$9:$K$77,3,FALSE)*Calculations!$AX$3+VLOOKUP($D21,'For Petro'!$F$9:$K$77,4,FALSE)*Calculations!$AX$4+VLOOKUP($D21,'For Petro'!$F$9:$K$77,5,FALSE)*Calculations!$AX$5+VLOOKUP($D21,'For Petro'!$F$9:$K$77,6,FALSE)*$AX$6 -> 0 | AZ21: =IF($AZ$5=1,VLOOKUP($D21,'Petro Ref'!$F$10:$J$77,3,FALSE),0) -> 0 | BB21: =IF($BB$5,VLOOKUP($D21,'Petro Ref'!$F$10:$J$77,4,FALSE),0) -> 0 | BD21: =IF($BD$5=1,VLOOKUP($D21,'Petro Ref'!$F$10:$J$77,5,FALSE),0) -> 0 | BF21: =IF($BF$3+$BF$4+$BF$5=0,0,VLOOKUP($D21,'onshore RMA'!$F$9:$Q$70,2,FALSE)+(VLOOKUP($D21,'onshore RMA'!$F$9:$Q$70,10,FALSE))/'onshore RMA'!$N$4*(Calculations!$BF$3-'onshore RMA'!$L$4)+(VLOOKUP($D21,'onshore RMA'!$F$9:$Q$70,11,FALSE))/'onshore RMA'!$N$5*(Calculations!$BF$4-'onshore RMA'!$L$5)+(VLOOKUP($D21,'onshore RMA'!$F$9:$Q$70,12,FALSE))/'onshore RMA'!$N$6*($BF$5-'onshore RMA'!$L$6)) -> 0 | BH21: =IF($BH$3+$BH$4+$BH$5=0,0,VLOOKUP($D21,'assoc RMA'!$F$9:$Q$70,2,FALSE)+(VLOOKUP($D21,'assoc RMA'!$F$9:$Q$70,10,FALSE))/'assoc RMA'!$N$4*(Calculations!$BH$3-'assoc RMA'!$L$4)+(VLOOKUP($D21,'assoc RMA'!$F$9:$Q$70,11,FALSE))/'assoc RMA'!$N$5*(Calculations!$BH$4-'assoc RMA'!$L$5)+(VLOOKUP($D21,'assoc RMA'!$F$9:$Q$70,12,FALSE))/'assoc RMA'!$N$6*($BH$5-'assoc RMA'!$L$6)) -> 0 | BJ21: =IF($BJ$3+$BJ$4+$BJ$5=0,0,VLOOKUP($D21,'offshore RMA'!$F$9:$Q$70,2,FALSE)+(VLOOKUP($D21,'offshore RMA'!$F$9:$Q$70,10,FALSE))/'offshore RMA'!$N$4*(Calculations!$BJ$3-'offshore RMA'!$L$4)+(VLOOKUP($D21,'offshore RMA'!$F$9:$Q$70,11,FALSE))/'offshore RMA'!$N$5*(Calculations!$BJ$4-'offshore RMA'!$L$5)+(VLOOKUP($D21,'offshore RMA'!$F$9:$Q$70,12,FALSE))/'offshore RMA'!$N$6*($BJ$5-'offshore RMA'!$L$6)) -> 0 | BL21: =IF($BL$3+$BL$4+$BL$5=0,0,VLOOKUP($D21,'barnett RMA'!$F$9:$Q$70,2,FALSE)+(VLOOKUP($D21,'barnett RMA'!$F$9:$Q$70,10,FALSE))/'barnett RMA'!$N$4*(Calculations!$BL$3-'barnett RMA'!$L$4)+(VLOOKUP($D21,'barnett RMA'!$F$9:$Q$70,11,FALSE))/'barnett RMA'!$N$5*(Calculations!$BL$4-'barnett RMA'!$L$5)+(VLOOKUP($D21,'barnett RMA'!$F$9:$Q$70,12,FALSE))/'barnett RMA'!$N$6*($BL$5-'barnett RMA'!$L$6)) -> 0 | BN21: =IF($BN$3+$BN$4+$BN$5=0,0,VLOOKUP($D21,'cbm RMA'!$F$9:$Q$70,2,FALSE)+(VLOOKUP($D21,'cbm RMA'!$F$9:$Q$70,10,FALSE))/'cbm RMA'!$N$4*(Calculations!$BN$3-'cbm RMA'!$L$4)+(VLOOKUP($D21,'cbm RMA'!$F$9:$Q$70,11,FALSE))/'cbm RMA'!$N$5*(Calculations!$BN$4-'cbm RMA'!$L$5)+(VLOOKUP($D21,'cbm RMA'!$F$9:$Q$70,12,FALSE))/'cbm RMA'!$N$6*($BN$5-'cbm RMA'!$L$6)) -> 0 | BP21: =IF($BP$3+$BP$4+$BP$5=0,0,VLOOKUP($D21,'Marc RMA'!$F$9:$Q$70,2,FALSE)+(VLOOKUP($D21,'Marc RMA'!$F$9:$Q$70,10,FALSE))/'Marc RMA'!$N$4*(Calculations!$BP$3-'Marc RMA'!$L$4)+(VLOOKUP($D21,'Marc RMA'!$F$9:$Q$70,11,FALSE))/'Marc RMA'!$N$5*(Calculations!$BP$4-'Marc RMA'!$L$5)+(VLOOKUP($D21,'Marc RMA'!$F$9:$Q$70,12,FALSE))/'Marc RMA'!$N$6*($BP$5-'Marc RMA'!$L$6)) -> 0 | BR21: =IF($BR$3+$BR$4+$BR$5=0,0,VLOOKUP($D21,'LNG RMA'!$F$9:$Q$70,2,FALSE)+(VLOOKUP($D21,'LNG RMA'!$F$9:$Q$70,10,FALSE))/'LNG RMA'!$N$4*(Calculations!$BR$3-'LNG RMA'!$L$4)+(VLOOKUP($D21,'LNG RMA'!$F$9:$Q$70,11,FALSE))/'LNG RMA'!$N$5*(Calculations!$BR$4-'LNG RMA'!$L$5)+(VLOOKUP($D21,'LNG RMA'!$F$9:$Q$70,12,FALSE))/'LNG RMA'!$N$6*($BR$5-'LNG RMA'!$L$6)) -> 0 | BT21: =IF($BT$3+$BT$4+$BT$5=0,0,VLOOKUP($D21,'tight RMA'!$F$9:$Q$70,2,FALSE)+(VLOOKUP($D21,'tight RMA'!$F$9:$Q$70,10,FALSE))/'tight RMA'!$N$4*(Calculations!$BT$3-'tight RMA'!$L$4)+(VLOOKUP($D21,'tight RMA'!$F$9:$Q$70,11,FALSE))/'tight RMA'!$N$5*(Calculations!$BT$4-'tight RMA'!$L$5)+(VLOOKUP($D21,'tight RMA'!$F$9:$Q$70,12,FALSE))/'tight RMA'!$N$6*($BT$5-'tight RMA'!$L$6)) -> 0 | BV21: =IF($BV$3+$BV$4+$BV$5=0,0,VLOOKUP($D21,'mix RMA'!$F$9:$Q$70,2,FALSE)+(VLOOKUP($D21,'mix RMA'!$F$9:$Q$70,10,FALSE))/'mix RMA'!$N$4*(Calculations!$BV$3-'mix RMA'!$L$4)+(VLOOKUP($D21,'mix RMA'!$F$9:$Q$70,11,FALSE))/'mix RMA'!$N$5*(Calculations!$BV$4-'mix RMA'!$L$5)+(VLOOKUP($D21,'mix RMA'!$F$9:$Q$70,12,FALSE))/'mix RMA'!$N$6*($BV$5-'mix RMA'!$L$6)) -> 4.977320793e-05
B22: 15 | C22: Solid Waste (kg) | D22: Waste (solid) | F22: =IF($F$4=0,0,VLOOKUP($D22,'I6 RMA'!$F$10:$O$82,2,FALSE)+(VLOOKUP($D22,'I6 RMA'!$F$10:$O$82,3,FALSE)-VLOOKUP($D22,'I6 RMA'!$F$10:$O$82,2,FALSE))/'I6 RMA'!$L$4*(Calculations!$F$4-'I6 RMA'!$J$4)) -> 9.176971629e-07 | H22: =IF($H$4=0,0,VLOOKUP($D22,'PRB RMA'!$F$10:$O$82,2,FALSE)+(VLOOKUP($D22,'PRB RMA'!$F$10:$O$82,3,FALSE)-VLOOKUP($D22,'PRB RMA'!$F$10:$O$82,2,FALSE))/'PRB RMA'!$L$4*(Calculations!$H$4-'PRB RMA'!$J$4)) -> 0 | J22: =IF($J$4=0,0,VLOOKUP($D22,'Coal TrainRMT'!$F$10:$O$82,2,FALSE)+(VLOOKUP($D22,'Coal TrainRMT'!$F$10:$O$82,3,FALSE)-VLOOKUP($D22,'Coal TrainRMT'!$F$10:$O$82,2,FALSE))/'Coal TrainRMT'!$L$4*(Calculations!$J$4-'Coal TrainRMT'!$J$4)) -> 9.048191063e-07 | L22: =IF($L$4+$L$5+$L$6=0,0,VLOOKUP($D22,#REF!,2,FALSE)+(VLOOKUP($D22,#REF!,6,FALSE)/#REF!*(#REF!-#REF!)+(VLOOKUP($D22,#REF!,8,FALSE))/#REF!*(#REF!-#REF!)+(VLOOKUP($D22,#REF!,10,FALSE))/#REF!*($L$6-#REF!))) ->  | N22: =IF($N$4=0,0,VLOOKUP($D22,'NG Pipeline RMT'!$F$10:$O$82,2,FALSE)+(VLOOKUP($D22,'NG Pipeline RMT'!$F$10:$O$82,3,FALSE)-VLOOKUP($D22,'NG Pipeline RMT'!$F$10:$O$82,2,FALSE))/'NG Pipeline RMT'!$L$4*(Calculations!$N$4-'NG Pipeline RMT'!$J$4)) -> 0 | P22: =IF($P$4=0,0,VLOOKUP($D22,'SG RMA'!$F$10:$O$82,2,FALSE)+(VLOOKUP($D22,'SG RMA'!$F$10:$O$82,3,FALSE)-VLOOKUP($D22,'SG RMA'!$F$10:$O$82,2,FALSE))/'SG RMA'!$L$4*(Calculations!$P$4-'SG RMA'!$J$4)) -> 0 | R22: =IF($R$4=0,0,VLOOKUP($D22,'Bale Truck RMT'!$F$10:$O$82,2,FALSE)+(VLOOKUP($D22,'Bale Truck RMT'!$F$10:$O$82,3,FALSE)-VLOOKUP($D22,'Bale Truck RMT'!$F$10:$O$82,2,FALSE))/'Bale Truck RMT'!$L$4*(Calculations!$R$4-'Bale Truck RMT'!$J$4)) -> 0 | T22: =IF($T$4=0,0,VLOOKUP($D22,'Cont Truck RMT'!$F$10:$O$82,2,FALSE)+(VLOOKUP($D22,'Cont Truck RMT'!$F$10:$O$82,3,FALSE)-VLOOKUP($D22,'Cont Truck RMT'!$F$10:$O$82,2,FALSE))/'Cont Truck RMT'!$L$4*(Calculations!$T$4-'Cont Truck RMT'!$J$4)) -> 0 | V22: =IF($V$4=0,0,VLOOKUP($D22,'SRWC RMA'!$F$10:$O$82,2,FALSE)+(VLOOKUP($D22,'SRWC RMA'!$F$10:$O$82,3,FALSE)-VLOOKUP($D22,'SRWC RMA'!$F$10:$O$82,2,FALSE))/'SRWC RMA'!$L$4*(Calculations!$V$4-'SRWC RMA'!$J$4)) -> 0 | X22: =IF($X$4+$X$5+$X$6=0,0,VLOOKUP($D22,'Stover RMA'!$F$9:$Q$70,2,FALSE)+(VLOOKUP($D22,'Stover RMA'!$F$9:$Q$70,10,FALSE))/'Stover RMA'!$N$4*(Calculations!$X$4-'Stover RMA'!$L$4)+(VLOOKUP($D22,'Stover RMA'!$F$9:$Q$70,11,FALSE))/'Stover RMA'!$N$5*(Calculations!$X$5-'Stover RMA'!$L$5)+(VLOOKUP($D22,'Stover RMA'!$F$9:$Q$70,12,FALSE))/'Stover RMA'!$N$6*($X$6-'Stover RMA'!$L$6)) -> 0 | Z22: =IF($Z$4=0,0,VLOOKUP($D22,'Corn RMA'!$F$10:$O$82,2,FALSE)+(VLOOKUP($D22,'Corn RMA'!$F$10:$O$82,3,FALSE)-VLOOKUP($D22,'Corn RMA'!$F$10:$O$82,2,FALSE))/'Corn RMA'!$L$4*(Calculations!$Z$4-'Corn RMA'!$J$4)) -> 0 | AB22: =HLOOKUP(1,'FT Diesel 2'!$H$11:$U$76,'FT Diesel 2'!V44,FALSE) ->  | AD22: =HLOOKUP(1,'Adv Ethanol'!$G$10:$O$79,'Adv Ethanol'!Q34,FALSE) ->  | AF22: =IF($AF$4+$AF$5>0,VLOOKUP(D22,Uranium!$F$10:$K$77,3,FALSE)*Calculations!$AF$4+VLOOKUP(D22,Uranium!$F$10:$K$77,4,FALSE)*$AF$5,0) -> 0 | AH22: =IF($AH$4=0,0,VLOOKUP($D22,'U RMT'!$F$9:$U$64,2,FALSE)+(VLOOKUP($D22,'U RMT'!$F$10:$U$64,3,FALSE)-VLOOKUP($D22,'U RMT'!$F$10:$U$64,2,FALSE))/'U RMT'!$U$2*(Calculations!$AH$4-'U RMT'!$O$2)) -> 0 | AJ22: =IF($AJ$4=0,0,VLOOKUP($D22,'U RMT'!$F$9:$U$64,4,FALSE)+(VLOOKUP($D22,'U RMT'!$F$10:$U$64,5,FALSE)-VLOOKUP($D22,'U RMT'!$F$10:$U$64,4,FALSE))/'U RMT'!$U$3*(Calculations!$AJ$4-'U RMT'!$Q$3)) -> 0 | AL22: =IF($AL$4=0,0,VLOOKUP($D22,'U RMT'!$F$9:$U$64,6,FALSE)+(VLOOKUP($D22,'U RMT'!$F$10:$U$64,7,FALSE)-VLOOKUP($D22,'U RMT'!$F$10:$U$64,6,FALSE))/'U RMT'!$U$4*(Calculations!$AL$4-'U RMT'!$S$4)) -> 0 | AN22: =IF($AN$4=0,0,VLOOKUP($D22,'Petro Transport'!$F$10:$Z$77,2,FALSE)+(VLOOKUP($D22,'Petro Transport'!$F$10:$Z$77,3,FALSE)-VLOOKUP($D22,'Petro Transport'!$F$10:$Z$77,2,FALSE))/'Petro Transport'!$V$3*(Calculations!$AN$4-'Petro Transport'!$N$3)) -> 0 | AP22: =IF($AP$4=0,0,VLOOKUP($D22,'Petro Transport'!$F$10:$Z$77,4,FALSE)+(VLOOKUP($D22,'Petro Transport'!$F$10:$Z$77,5,FALSE)-VLOOKUP($D22,'Petro Transport'!$F$10:$Z$77,4,FALSE))/'Petro Transport'!$V$4*(Calculations!$AP$4-'Petro Transport'!$P$4)) -> 0 | AR22: =IF($AR$4=0,0,VLOOKUP($D22,'Petro Transport'!$F$10:$Z$77,6,FALSE)+(VLOOKUP($D22,'Petro Transport'!$F$10:$Z$77,7,FALSE)-VLOOKUP($D22,'Petro Transport'!$F$10:$Z$77,6,FALSE))/'Petro Transport'!$V$5*(Calculations!$AR$4-'Petro Transport'!$R$5)) -> 0 | AT22: =IF($AT$4=0,0,VLOOKUP($D22,'Petro Transport'!$F$10:$Z$77,8,FALSE)+(VLOOKUP($D22,'Petro Transport'!$F$10:$Z$77,9,FALSE)-VLOOKUP($D22,'Petro Transport'!$F$10:$Z$77,8,FALSE))/'Petro Transport'!$V$6*(Calculations!$AT$4-'Petro Transport'!$T$6)) -> 0 | AV22: =VLOOKUP($D22,'Dom Petro'!$F$11:$J$65,3,FALSE)*Calculations!$AV$4+VLOOKUP($D22,'Dom Petro'!$F$11:$J$65,4,FALSE)*Calculations!$AV$5+VLOOKUP($D22,'Dom Petro'!$F$11:$J$65,5,FALSE)*Calculations!$AV$6 -> 0 | AX22: =VLOOKUP($D22,'For Petro'!$F$9:$K$77,3,FALSE)*Calculations!$AX$3+VLOOKUP($D22,'For Petro'!$F$9:$K$77,4,FALSE)*Calculations!$AX$4+VLOOKUP($D22,'For Petro'!$F$9:$K$77,5,FALSE)*Calculations!$AX$5+VLOOKUP($D22,'For Petro'!$F$9:$K$77,6,FALSE)*$AX$6 -> 0 | AZ22: =IF($AZ$5=1,VLOOKUP($D22,'Petro Ref'!$F$10:$J$77,3,FALSE),0) -> 0 | BB22: =IF($BB$5,VLOOKUP($D22,'Petro Ref'!$F$10:$J$77,4,FALSE),0) -> 0 | BD22: =IF($BD$5=1,VLOOKUP($D22,'Petro Ref'!$F$10:$J$77,5,FALSE),0) -> 0 | BF22: =IF($BF$3+$BF$4+$BF$5=0,0,VLOOKUP($D22,'onshore RMA'!$F$9:$Q$70,2,FALSE)+(VLOOKUP($D22,'onshore RMA'!$F$9:$Q$70,10,FALSE))/'onshore RMA'!$N$4*(Calculations!$BF$3-'onshore RMA'!$L$4)+(VLOOKUP($D22,'onshore RMA'!$F$9:$Q$70,11,FALSE))/'onshore RMA'!$N$5*(Calculations!$BF$4-'onshore RMA'!$L$5)+(VLOOKUP($D22,'onshore RMA'!$F$9:$Q$70,12,FALSE))/'onshore RMA'!$N$6*($BF$5-'onshore RMA'!$L$6)) -> 0 | BH22: =IF($BH$3+$BH$4+$BH$5=0,0,VLOOKUP($D22,'assoc RMA'!$F$9:$Q$70,2,FALSE)+(VLOOKUP($D22,'assoc RMA'!$F$9:$Q$70,10,FALSE))/'assoc RMA'!$N$4*(Calculations!$BH$3-'assoc RMA'!$L$4)+(VLOOKUP($D22,'assoc RMA'!$F$9:$Q$70,11,FALSE))/'assoc RMA'!$N$5*(Calculations!$BH$4-'assoc RMA'!$L$5)+(VLOOKUP($D22,'assoc RMA'!$F$9:$Q$70,12,FALSE))/'assoc RMA'!$N$6*($BH$5-'assoc RMA'!$L$6)) -> 0 | BJ22: =IF($BJ$3+$BJ$4+$BJ$5=0,0,VLOOKUP($D22,'offshore RMA'!$F$9:$Q$70,2,FALSE)+(VLOOKUP($D22,'offshore RMA'!$F$9:$Q$70,10,FALSE))/'offshore RMA'!$N$4*(Calculations!$BJ$3-'offshore RMA'!$L$4)+(VLOOKUP($D22,'offshore RMA'!$F$9:$Q$70,11,FALSE))/'offshore RMA'!$N$5*(Calculations!$BJ$4-'offshore RMA'!$L$5)+(VLOOKUP($D22,'offshore RMA'!$F$9:$Q$70,12,FALSE))/'offshore RMA'!$N$6*($BJ$5-'offshore RMA'!$L$6)) -> 0 | BL22: =IF($BL$3+$BL$4+$BL$5=0,0,VLOOKUP($D22,'barnett RMA'!$F$9:$Q$70,2,FALSE)+(VLOOKUP($D22,'barnett RMA'!$F$9:$Q$70,10,FALSE))/'barnett RMA'!$N$4*(Calculations!$BL$3-'barnett RMA'!$L$4)+(VLOOKUP($D22,'barnett RMA'!$F$9:$Q$70,11,FALSE))/'barnett RMA'!$N$5*(Calculations!$BL$4-'barnett RMA'!$L$5)+(VLOOKUP($D22,'barnett RMA'!$F$9:$Q$70,12,FALSE))/'barnett RMA'!$N$6*($BL$5-'barnett RMA'!$L$6)) -> 0 | BN22: =IF($BN$3+$BN$4+$BN$5=0,0,VLOOKUP($D22,'cbm RMA'!$F$9:$Q$70,2,FALSE)+(VLOOKUP($D22,'cbm RMA'!$F$9:$Q$70,10,FALSE))/'cbm RMA'!$N$4*(Calculations!$BN$3-'cbm RMA'!$L$4)+(VLOOKUP($D22,'cbm RMA'!$F$9:$Q$70,11,FALSE))/'cbm RMA'!$N$5*(Calculations!$BN$4-'cbm RMA'!$L$5)+(VLOOKUP($D22,'cbm RMA'!$F$9:$Q$70,12,FALSE))/'cbm RMA'!$N$6*($BN$5-'cbm RMA'!$L$6)) -> 0 | BP22: =IF($BP$3+$BP$4+$BP$5=0,0,VLOOKUP($D22,'Marc RMA'!$F$9:$Q$70,2,FALSE)+(VLOOKUP($D22,'Marc RMA'!$F$9:$Q$70,10,FALSE))/'Marc RMA'!$N$4*(Calculations!$BP$3-'Marc RMA'!$L$4)+(VLOOKUP($D22,'Marc RMA'!$F$9:$Q$70,11,FALSE))/'Marc RMA'!$N$5*(Calculations!$BP$4-'Marc RMA'!$L$5)+(VLOOKUP($D22,'Marc RMA'!$F$9:$Q$70,12,FALSE))/'Marc RMA'!$N$6*($BP$5-'Marc RMA'!$L$6)) -> 0 | BR22: =IF($BR$3+$BR$4+$BR$5=0,0,VLOOKUP($D22,'LNG RMA'!$F$9:$Q$70,2,FALSE)+(VLOOKUP($D22,'LNG RMA'!$F$9:$Q$70,10,FALSE))/'LNG RMA'!$N$4*(Calculations!$BR$3-'LNG RMA'!$L$4)+(VLOOKUP($D22,'LNG RMA'!$F$9:$Q$70,11,FALSE))/'LNG RMA'!$N$5*(Calculations!$BR$4-'LNG RMA'!$L$5)+(VLOOKUP($D22,'LNG RMA'!$F$9:$Q$70,12,FALSE))/'LNG RMA'!$N$6*($BR$5-'LNG RMA'!$L$6)) -> 0 | BT22: =IF($BT$3+$BT$4+$BT$5=0,0,VLOOKUP($D22,'tight RMA'!$F$9:$Q$70,2,FALSE)+(VLOOKUP($D22,'tight RMA'!$F$9:$Q$70,10,FALSE))/'tight RMA'!$N$4*(Calculations!$BT$3-'tight RMA'!$L$4)+(VLOOKUP($D22,'tight RMA'!$F$9:$Q$70,11,FALSE))/'tight RMA'!$N$5*(Calculations!$BT$4-'tight RMA'!$L$5)+(VLOOKUP($D22,'tight RMA'!$F$9:$Q$70,12,FALSE))/'tight RMA'!$N$6*($BT$5-'tight RMA'!$L$6)) -> 0 | BV22: =IF($BV$3+$BV$4+$BV$5=0,0,VLOOKUP($D22,'mix RMA'!$F$9:$Q$70,2,FALSE)+(VLOOKUP($D22,'mix RMA'!$F$9:$Q$70,10,FALSE))/'mix RMA'!$N$4*(Calculations!$BV$3-'mix RMA'!$L$4)+(VLOOKUP($D22,'mix RMA'!$F$9:$Q$70,11,FALSE))/'mix RMA'!$N$5*(Calculations!$BV$4-'mix RMA'!$L$5)+(VLOOKUP($D22,'mix RMA'!$F$9:$Q$70,12,FALSE))/'mix RMA'!$N$6*($BV$5-'mix RMA'!$L$6)) -> 2.146321844e-07
A23: Water Emissions | B23: 16 | C23: Aluminum (kg) | D23: Aluminum (+III) | F23: =IF($F$4=0,0,VLOOKUP($D23,'I6 RMA'!$F$10:$O$82,2,FALSE)+(VLOOKUP($D23,'I6 RMA'!$F$10:$O$82,3,FALSE)-VLOOKUP($D23,'I6 RMA'!$F$10:$O$82,2,FALSE))/'I6 RMA'!$L$4*(Calculations!$F$4-'I6 RMA'!$J$4)) -> 1.134390293e-08 | H23: =IF($H$4=0,0,VLOOKUP($D23,'PRB RMA'!$F$10:$O$82,2,FALSE)+(VLOOKUP($D23,'PRB RMA'!$F$10:$O$82,3,FALSE)-VLOOKUP($D23,'PRB RMA'!$F$10:$O$82,2,FALSE))/'PRB RMA'!$L$4*(Calculations!$H$4-'PRB RMA'!$J$4)) -> 0 | J23: =IF($J$4=0,0,VLOOKUP($D23,'Coal TrainRMT'!$F$10:$O$82,2,FALSE)+(VLOOKUP($D23,'Coal TrainRMT'!$F$10:$O$82,3,FALSE)-VLOOKUP($D23,'Coal TrainRMT'!$F$10:$O$82,2,FALSE))/'Coal TrainRMT'!$L$4*(Calculations!$J$4-'Coal TrainRMT'!$J$4)) -> 3.037039668e-09 | L23: =IF($L$4+$L$5+$L$6=0,0,VLOOKUP($D23,#REF!,2,FALSE)+(VLOOKUP($D23,#REF!,6,FALSE)/#REF!*(#REF!-#REF!)+(VLOOKUP($D23,#REF!,8,FALSE))/#REF!*(#REF!-#REF!)+(VLOOKUP($D23,#REF!,10,FALSE))/#REF!*($L$6-#REF!))) ->  | N23: =IF($N$4=0,0,VLOOKUP($D23,'NG Pipeline RMT'!$F$10:$O$82,2,FALSE)+(VLOOKUP($D23,'NG Pipeline RMT'!$F$10:$O$82,3,FALSE)-VLOOKUP($D23,'NG Pipeline RMT'!$F$10:$O$82,2,FALSE))/'NG Pipeline RMT'!$L$4*(Calculations!$N$4-'NG Pipeline RMT'!$J$4)) -> 0 | P23: =IF($P$4=0,0,VLOOKUP($D23,'SG RMA'!$F$10:$O$82,2,FALSE)+(VLOOKUP($D23,'SG RMA'!$F$10:$O$82,3,FALSE)-VLOOKUP($D23,'SG RMA'!$F$10:$O$82,2,FALSE))/'SG RMA'!$L$4*(Calculations!$P$4-'SG RMA'!$J$4)) -> 0 | R23: =IF($R$4=0,0,VLOOKUP($D23,'Bale Truck RMT'!$F$10:$O$82,2,FALSE)+(VLOOKUP($D23,'Bale Truck RMT'!$F$10:$O$82,3,FALSE)-VLOOKUP($D23,'Bale Truck RMT'!$F$10:$O$82,2,FALSE))/'Bale Truck RMT'!$L$4*(Calculations!$R$4-'Bale Truck RMT'!$J$4)) -> 0 | T23: =IF($T$4=0,0,VLOOKUP($D23,'Cont Truck RMT'!$F$10:$O$82,2,FALSE)+(VLOOKUP($D23,'Cont Truck RMT'!$F$10:$O$82,3,FALSE)-VLOOKUP($D23,'Cont Truck RMT'!$F$10:$O$82,2,FALSE))/'Cont Truck RMT'!$L$4*(Calculations!$T$4-'Cont Truck RMT'!$J$4)) -> 0 | V23: =IF($V$4=0,0,VLOOKUP($D23,'SRWC RMA'!$F$10:$O$82,2,FALSE)+(VLOOKUP($D23,'SRWC RMA'!$F$10:$O$82,3,FALSE)-VLOOKUP($D23,'SRWC RMA'!$F$10:$O$82,2,FALSE))/'SRWC RMA'!$L$4*(Calculations!$V$4-'SRWC RMA'!$J$4)) -> 0 | X23: =IF($X$4+$X$5+$X$6=0,0,VLOOKUP($D23,'Stover RMA'!$F$9:$Q$70,2,FALSE)+(VLOOKUP($D23,'Stover RMA'!$F$9:$Q$70,10,FALSE))/'Stover RMA'!$N$4*(Calculations!$X$4-'Stover RMA'!$L$4)+(VLOOKUP($D23,'Stover RMA'!$F$9:$Q$70,11,FALSE))/'Stover RMA'!$N$5*(Calculations!$X$5-'Stover RMA'!$L$5)+(VLOOKUP($D23,'Stover RMA'!$F$9:$Q$70,12,FALSE))/'Stover RMA'!$N$6*($X$6-'Stover RMA'!$L$6)) -> 0 | Z23: =IF($Z$4=0,0,VLOOKUP($D23,'Corn RMA'!$F$10:$O$82,2,FALSE)+(VLOOKUP($D23,'Corn RMA'!$F$10:$O$82,3,FALSE)-VLOOKUP($D23,'Corn RMA'!$F$10:$O$82,2,FALSE))/'Corn RMA'!$L$4*(Calculations!$Z$4-'Corn RMA'!$J$4)) -> 0 | AB23: =HLOOKUP(1,'FT Diesel 2'!$H$11:$U$76,'FT Diesel 2'!V67,FALSE) ->  | AD23: =HLOOKUP(1,'Adv Ethanol'!$G$10:$O$79,'Adv Ethanol'!Q57,FALSE) ->  | AF23: =IF($AF$4+$AF$5>0,VLOOKUP(D23,Uranium!$F$10:$K$77,3,FALSE)*Calculations!$AF$4+VLOOKUP(D23,Uranium!$F$10:$K$77,4,FALSE)*$AF$5,0) -> 0 | AH23: =IF($AH$4=0,0,VLOOKUP($D23,'U RMT'!$F$9:$U$64,2,FALSE)+(VLOOKUP($D23,'U RMT'!$F$10:$U$64,3,FALSE)-VLOOKUP($D23,'U RMT'!$F$10:$U$64,2,FALSE))/'U RMT'!$U$2*(Calculations!$AH$4-'U RMT'!$O$2)) -> 0 | AJ23: =IF($AJ$4=0,0,VLOOKUP($D23,'U RMT'!$F$9:$U$64,4,FALSE)+(VLOOKUP($D23,'U RMT'!$F$10:$U$64,5,FALSE)-VLOOKUP($D23,'U RMT'!$F$10:$U$64,4,FALSE))/'U RMT'!$U$3*(Calculations!$AJ$4-'U RMT'!$Q$3)) -> 0 | AL23: =IF($AL$4=0,0,VLOOKUP($D23,'U RMT'!$F$9:$U$64,6,FALSE)+(VLOOKUP($D23,'U RMT'!$F$10:$U$64,7,FALSE)-VLOOKUP($D23,'U RMT'!$F$10:$U$64,6,FALSE))/'U RMT'!$U$4*(Calculations!$AL$4-'U RMT'!$S$4)) -> 0 | AN23: =IF($AN$4=0,0,VLOOKUP($D23,'Petro Transport'!$F$10:$Z$77,2,FALSE)+(VLOOKUP($D23,'Petro Transport'!$F$10:$Z$77,3,FALSE)-VLOOKUP($D23,'Petro Transport'!$F$10:$Z$77,2,FALSE))/'Petro Transport'!$V$3*(Calculations!$AN$4-'Petro Transport'!$N$3)) -> 0 | AP23: =IF($AP$4=0,0,VLOOKUP($D23,'Petro Transport'!$F$10:$Z$77,4,FALSE)+(VLOOKUP($D23,'Petro Transport'!$F$10:$Z$77,5,FALSE)-VLOOKUP($D23,'Petro Transport'!$F$10:$Z$77,4,FALSE))/'Petro Transport'!$V$4*(Calculations!$AP$4-'Petro Transport'!$P$4)) -> 0 | AR23: =IF($AR$4=0,0,VLOOKUP($D23,'Petro Transport'!$F$10:$Z$77,6,FALSE)+(VLOOKUP($D23,'Petro Transport'!$F$10:$Z$77,7,FALSE)-VLOOKUP($D23,'Petro Transport'!$F$10:$Z$77,6,FALSE))/'Petro Transport'!$V$5*(Calculations!$AR$4-'Petro Transport'!$R$5)) -> 0 | AT23: =IF($AT$4=0,0,VLOOKUP($D23,'Petro Transport'!$F$10:$Z$77,8,FALSE)+(VLOOKUP($D23,'Petro Transport'!$F$10:$Z$77,9,FALSE)-VLOOKUP($D23,'Petro Transport'!$F$10:$Z$77,8,FALSE))/'Petro Transport'!$V$6*(Calculations!$AT$4-'Petro Transport'!$T$6)) -> 0 | AV23: =VLOOKUP($D23,'Dom Petro'!$F$11:$J$65,3,FALSE)*Calculations!$AV$4+VLOOKUP($D23,'Dom Petro'!$F$11:$J$65,4,FALSE)*Calculations!$AV$5+VLOOKUP($D23,'Dom Petro'!$F$11:$J$65,5,FALSE)*Calculations!$AV$6 -> 2.880112648e-08 | AX23: =VLOOKUP($D23,'For Petro'!$F$9:$K$77,3,FALSE)*Calculations!$AX$3+VLOOKUP($D23,'For Petro'!$F$9:$K$77,4,FALSE)*Calculations!$AX$4+VLOOKUP($D23,'For Petro'!$F$9:$K$77,5,FALSE)*Calculations!$AX$5+VLOOKUP($D23,'For Petro'!$F$9:$K$77,6,FALSE)*$AX$6 -> 0 | AZ23: =IF($AZ$5=1,VLOOKUP($D23,'Petro Ref'!$F$10:$J$77,3,FALSE),0) -> 0 | BB23: =IF($BB$5,VLOOKUP($D23,'Petro Ref'!$F$10:$J$77,4,FALSE),0) -> 0 | BD23: =IF($BD$5=1,VLOOKUP($D23,'Petro Ref'!$F$10:$J$77,5,FALSE),0) -> 0 | BF23: =IF($BF$3+$BF$4+$BF$5=0,0,VLOOKUP($D23,'onshore RMA'!$F$9:$Q$70,2,FALSE)+(VLOOKUP($D23,'onshore RMA'!$F$9:$Q$70,10,FALSE))/'onshore RMA'!$N$4*(Calculations!$BF$3-'onshore RMA'!$L$4)+(VLOOKUP($D23,'onshore RMA'!$F$9:$Q$70,11,FALSE))/'onshore RMA'!$N$5*(Calculations!$BF$4-'onshore RMA'!$L$5)+(VLOOKUP($D23,'onshore RMA'!$F$9:$Q$70,12,FALSE))/'onshore RMA'!$N$6*($BF$5-'onshore RMA'!$L$6)) -> 0 | BH23: =IF($BH$3+$BH$4+$BH$5=0,0,VLOOKUP($D23,'assoc RMA'!$F$9:$Q$70,2,FALSE)+(VLOOKUP($D23,'assoc RMA'!$F$9:$Q$70,10,FALSE))/'assoc RMA'!$N$4*(Calculations!$BH$3-'assoc RMA'!$L$4)+(VLOOKUP($D23,'assoc RMA'!$F$9:$Q$70,11,FALSE))/'assoc RMA'!$N$5*(Calculations!$BH$4-'assoc RMA'!$L$5)+(VLOOKUP($D23,'assoc RMA'!$F$9:$Q$70,12,FALSE))/'assoc RMA'!$N$6*($BH$5-'assoc RMA'!$L$6)) -> 0 | BJ23: =IF($BJ$3+$BJ$4+$BJ$5=0,0,VLOOKUP($D23,'offshore RMA'!$F$9:$Q$70,2,FALSE)+(VLOOKUP($D23,'offshore RMA'!$F$9:$Q$70,10,FALSE))/'offshore RMA'!$N$4*(Calculations!$BJ$3-'offshore RMA'!$L$4)+(VLOOKUP($D23,'offshore RMA'!$F$9:$Q$70,11,FALSE))/'offshore RMA'!$N$5*(Calculations!$BJ$4-'offshore RMA'!$L$5)+(VLOOKUP($D23,'offshore RMA'!$F$9:$Q$70,12,FALSE))/'offshore RMA'!$N$6*($BJ$5-'offshore RMA'!$L$6)) -> 0 | BL23: =IF($BL$3+$BL$4+$BL$5=0,0,VLOOKUP($D23,'barnett RMA'!$F$9:$Q$70,2,FALSE)+(VLOOKUP($D23,'barnett RMA'!$F$9:$Q$70,10,FALSE))/'barnett RMA'!$N$4*(Calculations!$BL$3-'barnett RMA'!$L$4)+(VLOOKUP($D23,'barnett RMA'!$F$9:$Q$70,11,FALSE))/'barnett RMA'!$N$5*(Calculations!$BL$4-'barnett RMA'!$L$5)+(VLOOKUP($D23,'barnett RMA'!$F$9:$Q$70,12,FALSE))/'barnett RMA'!$N$6*($BL$5-'barnett RMA'!$L$6)) -> 0 | BN23: =IF($BN$3+$BN$4+$BN$5=0,0,VLOOKUP($D23,'cbm RMA'!$F$9:$Q$70,2,FALSE)+(VLOOKUP($D23,'cbm RMA'!$F$9:$Q$70,10,FALSE))/'cbm RMA'!$N$4*(Calculations!$BN$3-'cbm RMA'!$L$4)+(VLOOKUP($D23,'cbm RMA'!$F$9:$Q$70,11,FALSE))/'cbm RMA'!$N$5*(Calculations!$BN$4-'cbm RMA'!$L$5)+(VLOOKUP($D23,'cbm RMA'!$F$9:$Q$70,12,FALSE))/'cbm RMA'!$N$6*($BN$5-'cbm RMA'!$L$6)) -> 0 | BP23: =IF($BP$3+$BP$4+$BP$5=0,0,VLOOKUP($D23,'Marc RMA'!$F$9:$Q$70,2,FALSE)+(VLOOKUP($D23,'Marc RMA'!$F$9:$Q$70,10,FALSE))/'Marc RMA'!$N$4*(Calculations!$BP$3-'Marc RMA'!$L$4)+(VLOOKUP($D23,'Marc RMA'!$F$9:$Q$70,11,FALSE))/'Marc RMA'!$N$5*(Calculations!$BP$4-'Marc RMA'!$L$5)+(VLOOKUP($D23,'Marc RMA'!$F$9:$Q$70,12,FALSE))/'Marc RMA'!$N$6*($BP$5-'Marc RMA'!$L$6)) -> 0 | BR23: =IF($BR$3+$BR$4+$BR$5=0,0,VLOOKUP($D23,'LNG RMA'!$F$9:$Q$70,2,FALSE)+(VLOOKUP($D23,'LNG RMA'!$F$9:$Q$70,10,FALSE))/'LNG RMA'!$N$4*(Calculations!$BR$3-'LNG RMA'!$L$4)+(VLOOKUP($D23,'LNG RMA'!$F$9:$Q$70,11,FALSE))/'LNG RMA'!$N$5*(Calculations!$BR$4-'LNG RMA'!$L$5)+(VLOOKUP($D23,'LNG RMA'!$F$9:$Q$70,12,FALSE))/'LNG RMA'!$N$6*($BR$5-'LNG RMA'!$L$6)) -> 0 | BT23: =IF($BT$3+$BT$4+$BT$5=0,0,VLOOKUP($D23,'tight RMA'!$F$9:$Q$70,2,FALSE)+(VLOOKUP($D23,'tight RMA'!$F$9:$Q$70,10,FALSE))/'tight RMA'!$N$4*(Calculations!$BT$3-'tight RMA'!$L$4)+(VLOOKUP($D23,'tight RMA'!$F$9:$Q$70,11,FALSE))/'tight RMA'!$N$5*(Calculations!$BT$4-'tight RMA'!$L$5)+(VLOOKUP($D23,'tight RMA'!$F$9:$Q$70,12,FALSE))/'tight RMA'!$N$6*($BT$5-'tight RMA'!$L$6)) -> 0 | BV23: =IF($BV$3+$BV$4+$BV$5=0,0,VLOOKUP($D23,'mix RMA'!$F$9:$Q$70,2,FALSE)+(VLOOKUP($D23,'mix RMA'!$F$9:$Q$70,10,FALSE))/'mix RMA'!$N$4*(Calculations!$BV$3-'mix RMA'!$L$4)+(VLOOKUP($D23,'mix RMA'!$F$9:$Q$70,11,FALSE))/'mix RMA'!$N$5*(Calculations!$BV$4-'mix RMA'!$L$5)+(VLOOKUP($D23,'mix RMA'!$F$9:$Q$70,12,FALSE))/'mix RMA'!$N$6*($BV$5-'mix RMA'!$L$6)) -> 3.892637715e-09
B24: 17 | C24: Ammonium/ammonia (kg) | D24: Ammonium / ammonia | F24: =IF($F$4=0,0,VLOOKUP($D24,'I6 RMA'!$F$10:$O$82,4,FALSE)+(VLOOKUP($D24,'I6 RMA'!$F$10:$O$82,5,FALSE)-VLOOKUP($D24,'I6 RMA'!$F$10:$O$82,4,FALSE))/'I6 RMA'!$L$4*(Calculations!$F$4-'I6 RMA'!$J$4)) -> 3.73464551e-06 | H24: =IF($H$4=0,0,VLOOKUP($D24,'PRB RMA'!$F$10:$O$82,4,FALSE)+(VLOOKUP($D24,'PRB RMA'!$F$10:$O$82,5,FALSE)-VLOOKUP($D24,'PRB RMA'!$F$10:$O$82,4,FALSE))/'PRB RMA'!$L$4*(Calculations!$H$4-'PRB RMA'!$J$4)) -> 0 | J24: =IF($J$4=0,0,VLOOKUP($D24,'Coal TrainRMT'!$F$10:$O$82,4,FALSE)+(VLOOKUP($D24,'Coal TrainRMT'!$F$10:$O$82,5,FALSE)-VLOOKUP($D24,'Coal TrainRMT'!$F$10:$O$82,4,FALSE))/'Coal TrainRMT'!$L$4*(Calculations!$J$4-'Coal TrainRMT'!$J$4)) -> 4.346915387e-09 | L24: =IF($L$4+$L$5+$L$6=0,0,VLOOKUP($D24,#REF!,6,FALSE)+(VLOOKUP($D24,#REF!,10,FALSE))/#REF!*(#REF!-#REF!)+(VLOOKUP($D24,#REF!,11,FALSE))/#REF!*(#REF!-#REF!)+(VLOOKUP($D24,#REF!,10,FALSE))/#REF!*($L$4-#REF!)) ->  | N24: =IF($N$4=0,0,VLOOKUP($D24,'NG Pipeline RMT'!$F$10:$O$82,4,FALSE)+(VLOOKUP($D24,'NG Pipeline RMT'!$F$10:$O$82,5,FALSE)-VLOOKUP($D24,'NG Pipeline RMT'!$F$10:$O$82,4,FALSE))/'NG Pipeline RMT'!$L$4*(Calculations!$N$4-'NG Pipeline RMT'!$J$4)) -> 0 | P24: =IF($P$4=0,0,VLOOKUP($D24,'SG RMA'!$F$10:$O$82,4,FALSE)+(VLOOKUP($D24,'SG RMA'!$F$10:$O$82,5,FALSE)-VLOOKUP($D24,'SG RMA'!$F$10:$O$82,4,FALSE))/'SG RMA'!$L$4*(Calculations!$P$4-'SG RMA'!$J$4)) -> 0 | R24: =IF($R$4=0,0,VLOOKUP($D24,'Bale Truck RMT'!$F$10:$O$82,4,FALSE)+(VLOOKUP($D24,'Bale Truck RMT'!$F$10:$O$82,5,FALSE)-VLOOKUP($D24,'Bale Truck RMT'!$F$10:$O$82,4,FALSE))/'Bale Truck RMT'!$L$4*(Calculations!$R$4-'Bale Truck RMT'!$J$4)) -> 0 | T24: =IF($T$4=0,0,VLOOKUP($D24,'Cont Truck RMT'!$F$10:$O$82,4,FALSE)+(VLOOKUP($D24,'Cont Truck RMT'!$F$10:$O$82,5,FALSE)-VLOOKUP($D24,'Cont Truck RMT'!$F$10:$O$82,4,FALSE))/'Cont Truck RMT'!$L$4*(Calculations!$R$4-'Cont Truck RMT'!$J$4)) -> 0 | V24: =IF($V$4=0,0,VLOOKUP($D24,'SRWC RMA'!$F$10:$O$82,4,FALSE)+(VLOOKUP($D24,'SRWC RMA'!$F$10:$O$82,5,FALSE)-VLOOKUP($D24,'SRWC RMA'!$F$10:$O$82,4,FALSE))/'SRWC RMA'!$L$4*(Calculations!$V$4-'SRWC RMA'!$J$4)) -> 0 | X24: =IF($X$4+$X$5+$X$6=0,0,VLOOKUP($D24,'Stover RMA'!$F$9:$Q$70,6,FALSE)+(VLOOKUP($D24,'Stover RMA'!$F$9:$Q$70,10,FALSE))/'Stover RMA'!$N$4*($X$4-'Stover RMA'!$L$4)+(VLOOKUP($D24,'Stover RMA'!$F$9:$Q$70,11,FALSE))/'Stover RMA'!$N$5*($X$5-'Stover RMA'!$L$5)+(VLOOKUP($D24,'Stover RMA'!$F$9:$Q$70,12,FALSE))/'Stover RMA'!$N$6*($X$6-'Stover RMA'!$L$6)) -> 0 | Z24: =IF($Z$4=0,0,VLOOKUP($D24,'Corn RMA'!$F$10:$O$82,4,FALSE)+(VLOOKUP($D24,'Corn RMA'!$F$10:$O$82,5,FALSE)-VLOOKUP($D24,'Corn RMA'!$F$10:$O$82,4,FALSE))/'Corn RMA'!$L$4*(Calculations!$Z$4-'Corn RMA'!$J$4)) -> 0 | AB24: =HLOOKUP(1,'FT Diesel 2'!$H$11:$U$76,'FT Diesel 2'!V68,FALSE)+HLOOKUP(1,'FT Diesel 2'!$H$11:$U$76,'FT Diesel 2'!V69,FALSE) ->  | AD24: =HLOOKUP(1,'Adv Ethanol'!$G$10:$O$79,'Adv Ethanol'!Q49,FALSE)+HLOOKUP(1,'Adv Ethanol'!$G$10:$L$79,'Adv Ethanol'!Q50,FALSE) ->  | AF24: =IF($AF$4+$AF$5>0,VLOOKUP(D24,Uranium!$F$10:$K$77,5,FALSE)*Calculations!$AF$4+VLOOKUP(D24,Uranium!$F$10:$K$77,6,FALSE)*$AF$5,0) -> 0 | AH24: =IF($AH$4=0,0,VLOOKUP($D24,'U RMT'!$F$9:$U$64,8,FALSE)+(VLOOKUP($D24,'U RMT'!$F$10:$U$64,9,FALSE)-VLOOKUP($D24,'U RMT'!$F$10:$U$64,8,FALSE))/'U RMT'!$U$2*(Calculations!$AH$4-'U RMT'!$O$2)) -> 0 | AJ24: =IF($AJ$4=0,0,VLOOKUP($D24,'U RMT'!$F$9:$U$64,10,FALSE)+(VLOOKUP($D24,'U RMT'!$F$10:$U$64,11,FALSE)-VLOOKUP($D24,'U RMT'!$F$10:$U$64,10,FALSE))/'U RMT'!$U$3*(Calculations!$AJ$4-'U RMT'!$Q$3)) -> 0 | AL24: =IF($AL$4=0,0,VLOOKUP($D24,'U RMT'!$F$9:$U$64,12,FALSE)+(VLOOKUP($D24,'U RMT'!$F$10:$U$64,13,FALSE)-VLOOKUP($D24,'U RMT'!$F$10:$U$64,12,FALSE))/'U RMT'!$U$4*(Calculations!$AL$4-'U RMT'!$S$4)) -> 0 | AN24: =IF($AN$4=0,0,VLOOKUP($D24,'Petro Transport'!$F$10:$Z$77,10,FALSE)+(VLOOKUP($D24,'Petro Transport'!$F$10:$Z$77,11,FALSE)-VLOOKUP($D24,'Petro Transport'!$F$10:$Z$77,10,FALSE))/'Petro Transport'!$V$3*(Calculations!$AN$4-'Petro Transport'!$N$3)) -> 0 | AP24: =IF($AP$4=0,0,VLOOKUP($D24,'Petro Transport'!$F$10:$Z$77,12,FALSE)+(VLOOKUP($D24,'Petro Transport'!$F$10:$Z$77,13,FALSE)-VLOOKUP($D24,'Petro Transport'!$F$10:$Z$77,12,FALSE))/'Petro Transport'!$V$4*(Calculations!$AP$4-'Petro Transport'!$P$4)) -> 0 | AR24: =IF($AR$4=0,0,VLOOKUP($D24,'Petro Transport'!$F$10:$Z$77,14,FALSE)+(VLOOKUP($D24,'Petro Transport'!$F$10:$Z$77,15,FALSE)-VLOOKUP($D24,'Petro Transport'!$F$10:$Z$77,14,FALSE))/'Petro Transport'!$V$5*(Calculations!$AR$4-'Petro Transport'!$R$5)) -> 0 | AT24: =IF($AT$4=0,0,VLOOKUP($D24,'Petro Transport'!$F$10:$Z$77,16,FALSE)+(VLOOKUP($D24,'Petro Transport'!$F$10:$Z$77,17,FALSE)-VLOOKUP($D24,'Petro Transport'!$F$10:$Z$77,16,FALSE))/'Petro Transport'!$V$6*(Calculations!$AT$4-'Petro Transport'!$T$6)) -> 0 | AV24: =VLOOKUP($D24,'Dom Petro'!$F$11:$J$65,3,FALSE)*Calculations!$AV$4+VLOOKUP($D24,'Dom Petro'!$F$11:$J$65,4,FALSE)*Calculations!$AV$5+VLOOKUP($D24,'Dom Petro'!$F$11:$J$65,5,FALSE)*Calculations!$AV$6 -> 5.685262199e-07 | AX24: =VLOOKUP($D24,'For Petro'!$F$9:$K$77,3,FALSE)*Calculations!$AX$3+VLOOKUP($D24,'For Petro'!$F$9:$K$77,4,FALSE)*Calculations!$AX$4+VLOOKUP($D24,'For Petro'!$F$9:$K$77,5,FALSE)*Calculations!$AX$5+VLOOKUP($D24,'For Petro'!$F$9:$K$77,6,FALSE)*$AX$6 -> 0 | AZ24: =IF($AZ$5=1,VLOOKUP($D24,'Petro Ref'!$F$10:$M$77,6,FALSE),0) -> 0 | BB24: =IF($BB$5,VLOOKUP($D24,'Petro Ref'!$F$10:$M$77,7,FALSE),0) -> 0 | BD24: =IF($BD$5=1,VLOOKUP($D24,'Petro Ref'!$F$10:$M$77,8,FALSE),0) -> 0 | BF24: =IF($BF$3+$BF$4+$BF$5=0,0,VLOOKUP($D24,'onshore RMA'!$F$9:$Q$70,6,FALSE)+(VLOOKUP($D24,'onshore RMA'!$F$9:$Q$70,10,FALSE))/'onshore RMA'!$N$4*(Calculations!$BF$3-'onshore RMA'!$L$4)+(VLOOKUP($D24,'onshore RMA'!$F$9:$Q$70,11,FALSE))/'onshore RMA'!$N$5*(Calculations!$BF$4-'onshore RMA'!$L$5)+(VLOOKUP($D24,'onshore RMA'!$F$9:$Q$70,12,FALSE))/'onshore RMA'!$N$6*($BF$5-'onshore RMA'!$L$6)) -> 0 | BH24: =IF($BH$3+$BH$4+$BH$5=0,0,VLOOKUP($D24,'assoc RMA'!$F$9:$Q$70,6,FALSE)+(VLOOKUP($D24,'assoc RMA'!$F$9:$Q$70,10,FALSE))/'assoc RMA'!$N$4*(Calculations!$BH$3-'assoc RMA'!$L$4)+(VLOOKUP($D24,'assoc RMA'!$F$9:$Q$70,11,FALSE))/'assoc RMA'!$N$5*(Calculations!$BH$4-'assoc RMA'!$L$5)+(VLOOKUP($D24,'assoc RMA'!$F$9:$Q$70,12,FALSE))/'assoc RMA'!$N$6*($BH$5-'assoc RMA'!$L$6)) -> 0 | BJ24: =IF($BJ$3+$BJ$4+$BJ$5=0,0,VLOOKUP($D24,'offshore RMA'!$F$9:$Q$70,6,FALSE)+(VLOOKUP($D24,'offshore RMA'!$F$9:$Q$70,10,FALSE))/'offshore RMA'!$N$4*(Calculations!$BJ$3-'offshore RMA'!$L$4)+(VLOOKUP($D24,'offshore RMA'!$F$9:$Q$70,11,FALSE))/'offshore RMA'!$N$5*(Calculations!$BJ$4-'offshore RMA'!$L$5)+(VLOOKUP($D24,'offshore RMA'!$F$9:$Q$70,12,FALSE))/'offshore RMA'!$N$6*($BJ$5-'offshore RMA'!$L$6)) -> 0 | BL24: =IF($BL$3+$BL$4+$BL$5=0,0,VLOOKUP($D24,'barnett RMA'!$F$9:$Q$70,6,FALSE)+(VLOOKUP($D24,'barnett RMA'!$F$9:$Q$70,10,FALSE))/'barnett RMA'!$N$4*(Calculations!$BL$3-'barnett RMA'!$L$4)+(VLOOKUP($D24,'barnett RMA'!$F$9:$Q$70,11,FALSE))/'barnett RMA'!$N$5*(Calculations!$BL$4-'barnett RMA'!$L$5)+(VLOOKUP($D24,'barnett RMA'!$F$9:$Q$70,12,FALSE))/'barnett RMA'!$N$6*($BL$5-'barnett RMA'!$L$6)) -> 0 | BN24: =IF($BN$3+$BN$4+$BN$5=0,0,VLOOKUP($D24,'cbm RMA'!$F$9:$Q$70,6,FALSE)+(VLOOKUP($D24,'cbm RMA'!$F$9:$Q$70,10,FALSE))/'cbm RMA'!$N$4*(Calculations!$BN$3-'cbm RMA'!$L$4)+(VLOOKUP($D24,'cbm RMA'!$F$9:$Q$70,11,FALSE))/'cbm RMA'!$N$5*(Calculations!$BN$4-'cbm RMA'!$L$5)+(VLOOKUP($D24,'cbm RMA'!$F$9:$Q$70,12,FALSE))/'cbm RMA'!$N$6*($BN$5-'cbm RMA'!$L$6)) -> 0 | BP24: =IF($BP$3+$BP$4+$BP$5=0,0,VLOOKUP($D24,'Marc RMA'!$F$9:$Q$70,6,FALSE)+(VLOOKUP($D24,'Marc RMA'!$F$9:$Q$70,10,FALSE))/'Marc RMA'!$N$4*(Calculations!$BP$3-'Marc RMA'!$L$4)+(VLOOKUP($D24,'Marc RMA'!$F$9:$Q$70,11,FALSE))/'Marc RMA'!$N$5*(Calculations!$BP$4-'Marc RMA'!$L$5)+(VLOOKUP($D24,'Marc RMA'!$F$9:$Q$70,12,FALSE))/'Marc RMA'!$N$6*($BP$5-'Marc RMA'!$L$6)) -> 0 | BR24: =IF($BR$3+$BR$4+$BR$5=0,0,VLOOKUP($D24,'LNG RMA'!$F$9:$Q$70,6,FALSE)+(VLOOKUP($D24,'LNG RMA'!$F$9:$Q$70,10,FALSE))/'LNG RMA'!$N$4*(Calculations!$BR$3-'LNG RMA'!$L$4)+(VLOOKUP($D24,'LNG RMA'!$F$9:$Q$70,11,FALSE))/'LNG RMA'!$N$5*(Calculations!$BR$4-'LNG RMA'!$L$5)+(VLOOKUP($D24,'LNG RMA'!$F$9:$Q$70,12,FALSE))/'LNG RMA'!$N$6*($BR$5-'LNG RMA'!$L$6)) -> 0 | BT24: =IF($BT$3+$BT$4+$BT$5=0,0,VLOOKUP($D24,'tight RMA'!$F$9:$Q$70,6,FALSE)+(VLOOKUP($D24,'tight RMA'!$F$9:$Q$70,10,FALSE))/'tight RMA'!$N$4*(Calculations!$BT$3-'tight RMA'!$L$4)+(VLOOKUP($D24,'tight RMA'!$F$9:$Q$70,11,FALSE))/'tight RMA'!$N$5*(Calculations!$BT$4-'tight RMA'!$L$5)+(VLOOKUP($D24,'tight RMA'!$F$9:$Q$70,12,FALSE))/'tight RMA'!$N$6*($BT$5-'tight RMA'!$L$6)) -> 0 | BV24: =IF($BV$3+$BV$4+$BV$5=0,0,VLOOKUP($D24,'mix RMA'!$F$9:$Q$70,6,FALSE)+(VLOOKUP($D24,'mix RMA'!$F$9:$Q$70,10,FALSE))/'mix RMA'!$N$4*(Calculations!$BV$3-'mix RMA'!$L$4)+(VLOOKUP($D24,'mix RMA'!$F$9:$Q$70,11,FALSE))/'mix RMA'!$N$5*(Calculations!$BV$4-'mix RMA'!$L$5)+(VLOOKUP($D24,'mix RMA'!$F$9:$Q$70,12,FALSE))/'mix RMA'!$N$6*($BV$5-'mix RMA'!$L$6)) -> 1.465949068e-06
B25: 18 | C25: Heavy Metals (kg) | D25: Heavy metals to fresh water | F25: =VLOOKUP($D25,'I6 RMA'!$F$10:$O$82,2,FALSE)+(VLOOKUP($D25,'I6 RMA'!$F$10:$O$82,3,FALSE)-VLOOKUP($D25,'I6 RMA'!$F$10:$O$82,2,FALSE))/'I6 RMA'!$L$4*(Calculations!$F$4-'I6 RMA'!$J$4) -> 3.563279898e-06 | H25: =IF($H$4=0,0,VLOOKUP($D25,'PRB RMA'!$F$10:$O$82,2,FALSE)+(VLOOKUP($D25,'PRB RMA'!$F$10:$O$82,3,FALSE)-VLOOKUP($D25,'PRB RMA'!$F$10:$O$82,2,FALSE))/'PRB RMA'!$L$4*(Calculations!$H$4-'PRB RMA'!$J$4)) -> 0 | J25: =IF($J$4=0,0,VLOOKUP($D25,'Coal TrainRMT'!$F$10:$O$82,2,FALSE)+(VLOOKUP($D25,'Coal TrainRMT'!$F$10:$O$82,3,FALSE)-VLOOKUP($D25,'Coal TrainRMT'!$F$10:$O$82,2,FALSE))/'Coal TrainRMT'!$L$4*(Calculations!$J$4-'Coal TrainRMT'!$J$4)) -> 7.081002951e-06 | L25: =IF($L$4+$L$5+$L$6=0,0,VLOOKUP($D25,#REF!,2,FALSE)+(VLOOKUP($D25,#REF!,6,FALSE)/#REF!*(#REF!-#REF!)+(VLOOKUP($D25,#REF!,8,FALSE))/#REF!*(#REF!-#REF!)+(VLOOKUP($D25,#REF!,10,FALSE))/#REF!*($L$6-#REF!))) ->  | N25: =IF($N$4=0,0,VLOOKUP($D25,'NG Pipeline RMT'!$F$10:$O$82,2,FALSE)+(VLOOKUP($D25,'NG Pipeline RMT'!$F$10:$O$82,3,FALSE)-VLOOKUP($D25,'NG Pipeline RMT'!$F$10:$O$82,2,FALSE))/'NG Pipeline RMT'!$L$4*(Calculations!$N$4-'NG Pipeline RMT'!$J$4)) -> 0 | P25: =IF($P$4=0,0,VLOOKUP($D25,'SG RMA'!$F$10:$O$82,2,FALSE)+(VLOOKUP($D25,'SG RMA'!$F$10:$O$82,3,FALSE)-VLOOKUP($D25,'SG RMA'!$F$10:$O$82,2,FALSE))/'SG RMA'!$L$4*(Calculations!$P$4-'SG RMA'!$J$4)) -> 0 | R25: =IF($R$4=0,0,VLOOKUP($D25,'Bale Truck RMT'!$F$10:$O$82,2,FALSE)+(VLOOKUP($D25,'Bale Truck RMT'!$F$10:$O$82,3,FALSE)-VLOOKUP($D25,'Bale Truck RMT'!$F$10:$O$82,2,FALSE))/'Bale Truck RMT'!$L$4*(Calculations!$R$4-'Bale Truck RMT'!$J$4)) -> 0 | T25: =IF($T$4=0,0,VLOOKUP($D25,'Cont Truck RMT'!$F$10:$O$82,2,FALSE)+(VLOOKUP($D25,'Cont Truck RMT'!$F$10:$O$82,3,FALSE)-VLOOKUP($D25,'Cont Truck RMT'!$F$10:$O$82,2,FALSE))/'Cont Truck RMT'!$L$4*(Calculations!$T$4-'Cont Truck RMT'!$J$4)) -> 0 | V25: =IF($V$4=0,0,VLOOKUP($D25,'SRWC RMA'!$F$10:$O$82,2,FALSE)+(VLOOKUP($D25,'SRWC RMA'!$F$10:$O$82,3,FALSE)-VLOOKUP($D25,'SRWC RMA'!$F$10:$O$82,2,FALSE))/'SRWC RMA'!$L$4*(Calculations!$V$4-'SRWC RMA'!$J$4)) -> 0 | X25: =IF($X$4+$X$5+$X$6=0,0,VLOOKUP($D25,'Stover RMA'!$F$9:$Q$70,2,FALSE)+(VLOOKUP($D25,'Stover RMA'!$F$9:$Q$70,10,FALSE))/'Stover RMA'!$N$4*(Calculations!$X$4-'Stover RMA'!$L$4)+(VLOOKUP($D25,'Stover RMA'!$F$9:$Q$70,11,FALSE))/'Stover RMA'!$N$5*(Calculations!$X$5-'Stover RMA'!$L$5)+(VLOOKUP($D25,'Stover RMA'!$F$9:$Q$70,12,FALSE))/'Stover RMA'!$N$6*($X$6-'Stover RMA'!$L$6)) -> 0 | Z25: =IF($Z$4=0,0,VLOOKUP($D25,'Corn RMA'!$F$10:$O$82,2,FALSE)+(VLOOKUP($D25,'Corn RMA'!$F$10:$O$82,3,FALSE)-VLOOKUP($D25,'Corn RMA'!$F$10:$O$82,2,FALSE))/'Corn RMA'!$L$4*(Calculations!$Z$4-'Corn RMA'!$J$4)) -> 0 | AB25: =HLOOKUP(1,'FT Diesel 2'!$H$11:$U$76,'FT Diesel 2'!V65,FALSE) ->  | AD25: =HLOOKUP(1,'Adv Ethanol'!$G$10:$O$79,'Adv Ethanol'!Q55,FALSE) ->  | AF25: =IF($AF$4+$AF$5>0,VLOOKUP(D25,Uranium!$F$10:$K$77,3,FALSE)*Calculations!$AF$4+VLOOKUP(D25,Uranium!$F$10:$K$77,4,FALSE)*$AF$5,0) -> 0 | AH25: =IF($AH$4=0,0,VLOOKUP($D25,'U RMT'!$F$9:$U$64,2,FALSE)+(VLOOKUP($D25,'U RMT'!$F$10:$U$64,3,FALSE)-VLOOKUP($D25,'U RMT'!$F$10:$U$64,2,FALSE))/'U RMT'!$U$2*(Calculations!$AH$4-'U RMT'!$O$2)) -> 0 | AJ25: =IF($AJ$4=0,0,VLOOKUP($D25,'U RMT'!$F$9:$U$64,4,FALSE)+(VLOOKUP($D25,'U RMT'!$F$10:$U$64,5,FALSE)-VLOOKUP($D25,'U RMT'!$F$10:$U$64,4,FALSE))/'U RMT'!$U$3*(Calculations!$AJ$4-'U RMT'!$Q$3)) -> 0 | AL25: =IF($AL$4=0,0,VLOOKUP($D25,'U RMT'!$F$9:$U$64,6,FALSE)+(VLOOKUP($D25,'U RMT'!$F$10:$U$64,7,FALSE)-VLOOKUP($D25,'U RMT'!$F$10:$U$64,6,FALSE))/'U RMT'!$U$4*(Calculations!$AL$4-'U RMT'!$S$4)) -> 0 | AN25: =IF($AN$4=0,0,VLOOKUP($D25,'Petro Transport'!$F$10:$Z$77,2,FALSE)+(VLOOKUP($D25,'Petro Transport'!$F$10:$Z$77,3,FALSE)-VLOOKUP($D25,'Petro Transport'!$F$10:$Z$77,2,FALSE))/'Petro Transport'!$V$3*(Calculations!$AN$4-'Petro Transport'!$N$3)) -> 0 | AP25: =IF($AP$4=0,0,VLOOKUP($D25,'Petro Transport'!$F$10:$Z$77,4,FALSE)+(VLOOKUP($D25,'Petro Transport'!$F$10:$Z$77,5,FALSE)-VLOOKUP($D25,'Petro Transport'!$F$10:$Z$77,4,FALSE))/'Petro Transport'!$V$4*(Calculations!$AP$4-'Petro Transport'!$P$4)) -> 0 | AR25: =IF($AR$4=0,0,VLOOKUP($D25,'Petro Transport'!$F$10:$Z$77,6,FALSE)+(VLOOKUP($D25,'Petro Transport'!$F$10:$Z$77,7,FALSE)-VLOOKUP($D25,'Petro Transport'!$F$10:$Z$77,6,FALSE))/'Petro Transport'!$V$5*(Calculations!$AR$4-'Petro Transport'!$R$5)) -> 0 | AT25: =IF($AT$4=0,0,VLOOKUP($D25,'Petro Transport'!$F$10:$Z$77,8,FALSE)+(VLOOKUP($D25,'Petro Transport'!$F$10:$Z$77,9,FALSE)-VLOOKUP($D25,'Petro Transport'!$F$10:$Z$77,8,FALSE))/'Petro Transport'!$V$6*(Calculations!$AT$4-'Petro Transport'!$T$6)) -> 0 | AV25: =VLOOKUP($D25,'Dom Petro'!$F$11:$J$65,3,FALSE)*Calculations!$AV$4+VLOOKUP($D25,'Dom Petro'!$F$11:$J$65,4,FALSE)*Calculations!$AV$5+VLOOKUP($D25,'Dom Petro'!$F$11:$J$65,5,FALSE)*Calculations!$AV$6 -> 4.591845353e-06 | AX25: =VLOOKUP($D25,'For Petro'!$F$9:$K$77,3,FALSE)*Calculations!$AX$3+VLOOKUP($D25,'For Petro'!$F$9:$K$77,4,FALSE)*Calculations!$AX$4+VLOOKUP($D25,'For Petro'!$F$9:$K$77,5,FALSE)*Calculations!$AX$5+VLOOKUP($D25,'For Petro'!$F$9:$K$77,6,FALSE)*$AX$6 -> 0 | AZ25: =IF($AZ$5=1,VLOOKUP($D25,'Petro Ref'!$F$10:$J$77,3,FALSE),0) -> 0 | BB25: =IF($BB$5,VLOOKUP($D25,'Petro Ref'!$F$10:$J$77,4,FALSE),0) -> 0 | BD25: =IF($BD$5=1,VLOOKUP($D25,'Petro Ref'!$F$10:$J$77,5,FALSE),0) -> 0 | BF25: =IF($BF$3+$BF$4+$BF$5=0,0,VLOOKUP($D25,'onshore RMA'!$F$9:$Q$70,2,FALSE)+(VLOOKUP($D25,'onshore RMA'!$F$9:$Q$70,10,FALSE))/'onshore RMA'!$N$4*(Calculations!$BF$3-'onshore RMA'!$L$4)+(VLOOKUP($D25,'onshore RMA'!$F$9:$Q$70,11,FALSE))/'onshore RMA'!$N$5*(Calculations!$BF$4-'onshore RMA'!$L$5)+(VLOOKUP($D25,'onshore RMA'!$F$9:$Q$70,12,FALSE))/'onshore RMA'!$N$6*($BF$5-'onshore RMA'!$L$6)) -> 0 | BH25: =IF($BF$3+$BF$4+$BF$5=0,0,VLOOKUP($D25,'onshore RMA'!$F$9:$Q$70,2,FALSE)+(VLOOKUP($D25,'onshore RMA'!$F$9:$Q$70,10,FALSE))/'onshore RMA'!$N$4*(Calculations!$BF$3-'onshore RMA'!$L$4)+(VLOOKUP($D25,'onshore RMA'!$F$9:$Q$70,11,FALSE))/'onshore RMA'!$N$5*(Calculations!$BF$4-'onshore RMA'!$L$5)+(VLOOKUP($D25,'onshore RMA'!$F$9:$Q$70,12,FALSE))/'onshore RMA'!$N$6*($BF$5-'onshore RMA'!$L$6)) -> 0 | BJ25: =IF($BJ$3+$BJ$4+$BJ$5=0,0,VLOOKUP($D25,'offshore RMA'!$F$9:$Q$70,2,FALSE)+(VLOOKUP($D25,'offshore RMA'!$F$9:$Q$70,10,FALSE))/'offshore RMA'!$N$4*(Calculations!$BJ$3-'offshore RMA'!$L$4)+(VLOOKUP($D25,'offshore RMA'!$F$9:$Q$70,11,FALSE))/'offshore RMA'!$N$5*(Calculations!$BJ$4-'offshore RMA'!$L$5)+(VLOOKUP($D25,'offshore RMA'!$F$9:$Q$70,12,FALSE))/'offshore RMA'!$N$6*($BJ$5-'offshore RMA'!$L$6)) -> 0 | BL25: =IF($BL$3+$BL$4+$BL$5=0,0,VLOOKUP($D25,'barnett RMA'!$F$9:$Q$70,2,FALSE)+(VLOOKUP($D25,'barnett RMA'!$F$9:$Q$70,10,FALSE))/'barnett RMA'!$N$4*(Calculations!$BL$3-'barnett RMA'!$L$4)+(VLOOKUP($D25,'barnett RMA'!$F$9:$Q$70,11,FALSE))/'barnett RMA'!$N$5*(Calculations!$BL$4-'barnett RMA'!$L$5)+(VLOOKUP($D25,'barnett RMA'!$F$9:$Q$70,12,FALSE))/'barnett RMA'!$N$6*($BL$5-'barnett RMA'!$L$6)) -> 0 | BN25: =IF($BN$3+$BN$4+$BN$5=0,0,VLOOKUP($D25,'cbm RMA'!$F$9:$Q$70,2,FALSE)+(VLOOKUP($D25,'cbm RMA'!$F$9:$Q$70,10,FALSE))/'cbm RMA'!$N$4*(Calculations!$BN$3-'cbm RMA'!$L$4)+(VLOOKUP($D25,'cbm RMA'!$F$9:$Q$70,11,FALSE))/'cbm RMA'!$N$5*(Calculations!$BN$4-'cbm RMA'!$L$5)+(VLOOKUP($D25,'cbm RMA'!$F$9:$Q$70,12,FALSE))/'cbm RMA'!$N$6*($BN$5-'cbm RMA'!$L$6)) -> 0 | BP25: =IF($BP$3+$BP$4+$BP$5=0,0,VLOOKUP($D25,'Marc RMA'!$F$9:$Q$70,2,FALSE)+(VLOOKUP($D25,'Marc RMA'!$F$9:$Q$70,10,FALSE))/'Marc RMA'!$N$4*(Calculations!$BP$3-'Marc RMA'!$L$4)+(VLOOKUP($D25,'Marc RMA'!$F$9:$Q$70,11,FALSE))/'Marc RMA'!$N$5*(Calculations!$BP$4-'Marc RMA'!$L$5)+(VLOOKUP($D25,'Marc RMA'!$F$9:$Q$70,12,FALSE))/'Marc RMA'!$N$6*($BP$5-'Marc RMA'!$L$6)) -> 0 | BR25: =IF($BR$3+$BR$4+$BR$5=0,0,VLOOKUP($D25,'LNG RMA'!$F$9:$Q$70,2,FALSE)+(VLOOKUP($D25,'LNG RMA'!$F$9:$Q$70,10,FALSE))/'LNG RMA'!$N$4*(Calculations!$BR$3-'LNG RMA'!$L$4)+(VLOOKUP($D25,'LNG RMA'!$F$9:$Q$70,11,FALSE))/'LNG RMA'!$N$5*(Calculations!$BR$4-'LNG RMA'!$L$5)+(VLOOKUP($D25,'LNG RMA'!$F$9:$Q$70,12,FALSE))/'LNG RMA'!$N$6*($BR$5-'LNG RMA'!$L$6)) -> 0 | BT25: =IF($BT$3+$BT$4+$BT$5=0,0,VLOOKUP($D25,'tight RMA'!$F$9:$Q$70,2,FALSE)+(VLOOKUP($D25,'tight RMA'!$F$9:$Q$70,10,FALSE))/'tight RMA'!$N$4*(Calculations!$BT$3-'tight RMA'!$L$4)+(VLOOKUP($D25,'tight RMA'!$F$9:$Q$70,11,FALSE))/'tight RMA'!$N$5*(Calculations!$BT$4-'tight RMA'!$L$5)+(VLOOKUP($D25,'tight RMA'!$F$9:$Q$70,12,FALSE))/'tight RMA'!$N$6*($BT$5-'tight RMA'!$L$6)) -> 0 | BV25: =IF($BV$3+$BV$4+$BV$5=0,0,VLOOKUP($D25,'mix RMA'!$F$9:$Q$70,2,FALSE)+(VLOOKUP($D25,'mix RMA'!$F$9:$Q$70,10,FALSE))/'mix RMA'!$N$4*(Calculations!$BV$3-'mix RMA'!$L$4)+(VLOOKUP($D25,'mix RMA'!$F$9:$Q$70,11,FALSE))/'mix RMA'!$N$5*(Calculations!$BV$4-'mix RMA'!$L$5)+(VLOOKUP($D25,'mix RMA'!$F$9:$Q$70,12,FALSE))/'mix RMA'!$N$6*($BV$5-'mix RMA'!$L$6)) -> 2.317566156e-05
B26: 19 | C26: Nitrate (kg) | D26: Nitrate | F26: =IF($F$4=0,0,VLOOKUP($D26,'I6 RMA'!$F$10:$O$82,2,FALSE)+(VLOOKUP($D26,'I6 RMA'!$F$10:$O$82,3,FALSE)-VLOOKUP($D26,'I6 RMA'!$F$10:$O$82,2,FALSE))/'I6 RMA'!$L$4*(Calculations!$F$4-'I6 RMA'!$J$4)) -> 2.888252063e-08 | H26: =IF($H$4=0,0,VLOOKUP($D26,'PRB RMA'!$F$10:$O$82,2,FALSE)+(VLOOKUP($D26,'PRB RMA'!$F$10:$O$82,3,FALSE)-VLOOKUP($D26,'PRB RMA'!$F$10:$O$82,2,FALSE))/'PRB RMA'!$L$4*(Calculations!$H$4-'PRB RMA'!$J$4)) -> 0 | J26: =IF($J$4=0,0,VLOOKUP($D26,'Coal TrainRMT'!$F$10:$O$82,2,FALSE)+(VLOOKUP($D26,'Coal TrainRMT'!$F$10:$O$82,3,FALSE)-VLOOKUP($D26,'Coal TrainRMT'!$F$10:$O$82,2,FALSE))/'Coal TrainRMT'!$L$4*(Calculations!$J$4-'Coal TrainRMT'!$J$4)) -> 1.198204613e-08 | L26: =IF($L$4+$L$5+$L$6=0,0,VLOOKUP($D26,#REF!,2,FALSE)+(VLOOKUP($D26,#REF!,6,FALSE)/#REF!*(#REF!-#REF!)+(VLOOKUP($D26,#REF!,8,FALSE))/#REF!*(#REF!-#REF!)+(VLOOKUP($D26,#REF!,10,FALSE))/#REF!*($L$6-#REF!))) ->  | N26: =IF($N$4=0,0,VLOOKUP($D26,'NG Pipeline RMT'!$F$10:$O$82,2,FALSE)+(VLOOKUP($D26,'NG Pipeline RMT'!$F$10:$O$82,3,FALSE)-VLOOKUP($D26,'NG Pipeline RMT'!$F$10:$O$82,2,FALSE))/'NG Pipeline RMT'!$L$4*(Calculations!$N$4-'NG Pipeline RMT'!$J$4)) -> 0 | P26: =IF($P$4=0,0,VLOOKUP($D26,'SG RMA'!$F$10:$O$82,2,FALSE)+(VLOOKUP($D26,'SG RMA'!$F$10:$O$82,3,FALSE)-VLOOKUP($D26,'SG RMA'!$F$10:$O$82,2,FALSE))/'SG RMA'!$L$4*(Calculations!$P$4-'SG RMA'!$J$4)) -> 0 | R26: =IF($R$4=0,0,VLOOKUP($D26,'Bale Truck RMT'!$F$10:$O$82,2,FALSE)+(VLOOKUP($D26,'Bale Truck RMT'!$F$10:$O$82,3,FALSE)-VLOOKUP($D26,'Bale Truck RMT'!$F$10:$O$82,2,FALSE))/'Bale Truck RMT'!$L$4*(Calculations!$R$4-'Bale Truck RMT'!$J$4)) -> 0 | T26: =IF($T$4=0,0,VLOOKUP($D26,'Cont Truck RMT'!$F$10:$O$82,2,FALSE)+(VLOOKUP($D26,'Cont Truck RMT'!$F$10:$O$82,3,FALSE)-VLOOKUP($D26,'Cont Truck RMT'!$F$10:$O$82,2,FALSE))/'Cont Truck RMT'!$L$4*(Calculations!$T$4-'Cont Truck RMT'!$J$4)) -> 0 | V26: =IF($V$4=0,0,VLOOKUP($D26,'SRWC RMA'!$F$10:$O$82,2,FALSE)+(VLOOKUP($D26,'SRWC RMA'!$F$10:$O$82,3,FALSE)-VLOOKUP($D26,'SRWC RMA'!$F$10:$O$82,2,FALSE))/'SRWC RMA'!$L$4*(Calculations!$V$4-'SRWC RMA'!$J$4)) -> 0 | X26: =IF($X$4+$X$5+$X$6=0,0,VLOOKUP($D26,'Stover RMA'!$F$9:$Q$70,2,FALSE)+(VLOOKUP($D26,'Stover RMA'!$F$9:$Q$70,10,FALSE))/'Stover RMA'!$N$4*(Calculations!$X$4-'Stover RMA'!$L$4)+(VLOOKUP($D26,'Stover RMA'!$F$9:$Q$70,11,FALSE))/'Stover RMA'!$N$5*(Calculations!$X$5-'Stover RMA'!$L$5)+(VLOOKUP($D26,'Stover RMA'!$F$9:$Q$70,12,FALSE))/'Stover RMA'!$N$6*($X$6-'Stover RMA'!$L$6)) -> 0 | Z26: =IF($Z$4=0,0,VLOOKUP($D26,'Corn RMA'!$F$10:$O$82,2,FALSE)+(VLOOKUP($D26,'Corn RMA'!$F$10:$O$82,3,FALSE)-VLOOKUP($D26,'Corn RMA'!$F$10:$O$82,2,FALSE))/'Corn RMA'!$L$4*(Calculations!$Z$4-'Corn RMA'!$J$4)) -> 0 | AB26: =HLOOKUP(1,'FT Diesel 2'!$H$11:$U$76,'FT Diesel 2'!V70,FALSE) ->  | AD26: =HLOOKUP(1,'Adv Ethanol'!$G$10:$O$79,'Adv Ethanol'!Q60,FALSE) ->  | AF26: =IF($AF$4+$AF$5>0,VLOOKUP(D26,Uranium!$F$10:$K$77,3,FALSE)*Calculations!$AF$4+VLOOKUP(D26,Uranium!$F$10:$K$77,4,FALSE)*$AF$5,0) -> 0 | AH26: =IF($AH$4=0,0,VLOOKUP($D26,'U RMT'!$F$9:$U$64,2,FALSE)+(VLOOKUP($D26,'U RMT'!$F$10:$U$64,3,FALSE)-VLOOKUP($D26,'U RMT'!$F$10:$U$64,2,FALSE))/'U RMT'!$U$2*(Calculations!$AH$4-'U RMT'!$O$2)) -> 0 | AJ26: =IF($AJ$4=0,0,VLOOKUP($D26,'U RMT'!$F$9:$U$64,4,FALSE)+(VLOOKUP($D26,'U RMT'!$F$10:$U$64,5,FALSE)-VLOOKUP($D26,'U RMT'!$F$10:$U$64,4,FALSE))/'U RMT'!$U$3*(Calculations!$AJ$4-'U RMT'!$Q$3)) -> 0 | AL26: =IF($AL$4=0,0,VLOOKUP($D26,'U RMT'!$F$9:$U$64,6,FALSE)+(VLOOKUP($D26,'U RMT'!$F$10:$U$64,7,FALSE)-VLOOKUP($D26,'U RMT'!$F$10:$U$64,6,FALSE))/'U RMT'!$U$4*(Calculations!$AL$4-'U RMT'!$S$4)) -> 0 | AN26: =IF($AN$4=0,0,VLOOKUP($D26,'Petro Transport'!$F$10:$Z$77,2,FALSE)+(VLOOKUP($D26,'Petro Transport'!$F$10:$Z$77,3,FALSE)-VLOOKUP($D26,'Petro Transport'!$F$10:$Z$77,2,FALSE))/'Petro Transport'!$V$3*(Calculations!$AN$4-'Petro Transport'!$N$3)) -> 0 | AP26: =IF($AP$4=0,0,VLOOKUP($D26,'Petro Transport'!$F$10:$Z$77,4,FALSE)+(VLOOKUP($D26,'Petro Transport'!$F$10:$Z$77,5,FALSE)-VLOOKUP($D26,'Petro Transport'!$F$10:$Z$77,4,FALSE))/'Petro Transport'!$V$4*(Calculations!$AP$4-'Petro Transport'!$P$4)) -> 0 | AR26: =IF($AR$4=0,0,VLOOKUP($D26,'Petro Transport'!$F$10:$Z$77,6,FALSE)+(VLOOKUP($D26,'Petro Transport'!$F$10:$Z$77,7,FALSE)-VLOOKUP($D26,'Petro Transport'!$F$10:$Z$77,6,FALSE))/'Petro Transport'!$V$5*(Calculations!$AR$4-'Petro Transport'!$R$5)) -> 0 | AT26: =IF($AT$4=0,0,VLOOKUP($D26,'Petro Transport'!$F$10:$Z$77,8,FALSE)+(VLOOKUP($D26,'Petro Transport'!$F$10:$Z$77,9,FALSE)-VLOOKUP($D26,'Petro Transport'!$F$10:$Z$77,8,FALSE))/'Petro Transport'!$V$6*(Calculations!$AT$4-'Petro Transport'!$T$6)) -> 0 | AV26: =VLOOKUP($D26,'Dom Petro'!$F$11:$J$65,3,FALSE)*Calculations!$AV$4+VLOOKUP($D26,'Dom Petro'!$F$11:$J$65,4,FALSE)*Calculations!$AV$5+VLOOKUP($D26,'Dom Petro'!$F$11:$J$65,5,FALSE)*Calculations!$AV$6 -> 1.067205788e-07 | AX26: =VLOOKUP($D26,'For Petro'!$F$9:$K$77,3,FALSE)*Calculations!$AX$3+VLOOKUP($D26,'For Petro'!$F$9:$K$77,4,FALSE)*Calculations!$AX$4+VLOOKUP($D26,'For Petro'!$F$9:$K$77,5,FALSE)*Calculations!$AX$5+VLOOKUP($D26,'For Petro'!$F$9:$K$77,6,FALSE)*$AX$6 -> 0 | AZ26: =IF($AZ$5=1,VLOOKUP($D26,'Petro Ref'!$F$10:$J$77,3,FALSE),0) -> 0 | BB26: =IF($BB$5,VLOOKUP($D26,'Petro Ref'!$F$10:$J$77,4,FALSE),0) -> 0 | BD26: =IF($BD$5=1,VLOOKUP($D26,'Petro Ref'!$F$10:$J$77,5,FALSE),0) -> 0 | BF26: =IF($BF$3+$BF$4+$BF$5=0,0,VLOOKUP($D26,'onshore RMA'!$F$9:$Q$70,2,FALSE)+(VLOOKUP($D26,'onshore RMA'!$F$9:$Q$70,10,FALSE))/'onshore RMA'!$N$4*(Calculations!$BF$3-'onshore RMA'!$L$4)+(VLOOKUP($D26,'onshore RMA'!$F$9:$Q$70,11,FALSE))/'onshore RMA'!$N$5*(Calculations!$BF$4-'onshore RMA'!$L$5)+(VLOOKUP($D26,'onshore RMA'!$F$9:$Q$70,12,FALSE))/'onshore RMA'!$N$6*($BF$5-'onshore RMA'!$L$6)) -> 0 | BH26: =IF($BF$3+$BF$4+$BF$5=0,0,VLOOKUP($D26,'onshore RMA'!$F$9:$Q$70,2,FALSE)+(VLOOKUP($D26,'onshore RMA'!$F$9:$Q$70,10,FALSE))/'onshore RMA'!$N$4*(Calculations!$BF$3-'onshore RMA'!$L$4)+(VLOOKUP($D26,'onshore RMA'!$F$9:$Q$70,11,FALSE))/'onshore RMA'!$N$5*(Calculations!$BF$4-'onshore RMA'!$L$5)+(VLOOKUP($D26,'onshore RMA'!$F$9:$Q$70,12,FALSE))/'onshore RMA'!$N$6*($BF$5-'onshore RMA'!$L$6)) -> 0 | BJ26: =IF($BJ$3+$BJ$4+$BJ$5=0,0,VLOOKUP($D26,'offshore RMA'!$F$9:$Q$70,2,FALSE)+(VLOOKUP($D26,'offshore RMA'!$F$9:$Q$70,10,FALSE))/'offshore RMA'!$N$4*(Calculations!$BJ$3-'offshore RMA'!$L$4)+(VLOOKUP($D26,'offshore RMA'!$F$9:$Q$70,11,FALSE))/'offshore RMA'!$N$5*(Calculations!$BJ$4-'offshore RMA'!$L$5)+(VLOOKUP($D26,'offshore RMA'!$F$9:$Q$70,12,FALSE))/'offshore RMA'!$N$6*($BJ$5-'offshore RMA'!$L$6)) -> 0 | BL26: =IF($BL$3+$BL$4+$BL$5=0,0,VLOOKUP($D26,'barnett RMA'!$F$9:$Q$70,2,FALSE)+(VLOOKUP($D26,'barnett RMA'!$F$9:$Q$70,10,FALSE))/'barnett RMA'!$N$4*(Calculations!$BL$3-'barnett RMA'!$L$4)+(VLOOKUP($D26,'barnett RMA'!$F$9:$Q$70,11,FALSE))/'barnett RMA'!$N$5*(Calculations!$BL$4-'barnett RMA'!$L$5)+(VLOOKUP($D26,'barnett RMA'!$F$9:$Q$70,12,FALSE))/'barnett RMA'!$N$6*($BL$5-'barnett RMA'!$L$6)) -> 0 | BN26: =IF($BN$3+$BN$4+$BN$5=0,0,VLOOKUP($D26,'cbm RMA'!$F$9:$Q$70,2,FALSE)+(VLOOKUP($D26,'cbm RMA'!$F$9:$Q$70,10,FALSE))/'cbm RMA'!$N$4*(Calculations!$BN$3-'cbm RMA'!$L$4)+(VLOOKUP($D26,'cbm RMA'!$F$9:$Q$70,11,FALSE))/'cbm RMA'!$N$5*(Calculations!$BN$4-'cbm RMA'!$L$5)+(VLOOKUP($D26,'cbm RMA'!$F$9:$Q$70,12,FALSE))/'cbm RMA'!$N$6*($BN$5-'cbm RMA'!$L$6)) -> 0 | BP26: =IF($BP$3+$BP$4+$BP$5=0,0,VLOOKUP($D26,'Marc RMA'!$F$9:$Q$70,2,FALSE)+(VLOOKUP($D26,'Marc RMA'!$F$9:$Q$70,10,FALSE))/'Marc RMA'!$N$4*(Calculations!$BP$3-'Marc RMA'!$L$4)+(VLOOKUP($D26,'Marc RMA'!$F$9:$Q$70,11,FALSE))/'Marc RMA'!$N$5*(Calculations!$BP$4-'Marc RMA'!$L$5)+(VLOOKUP($D26,'Marc RMA'!$F$9:$Q$70,12,FALSE))/'Marc RMA'!$N$6*($BP$5-'Marc RMA'!$L$6)) -> 0 | BR26: =IF($BR$3+$BR$4+$BR$5=0,0,VLOOKUP($D26,'LNG RMA'!$F$9:$Q$70,2,FALSE)+(VLOOKUP($D26,'LNG RMA'!$F$9:$Q$70,10,FALSE))/'LNG RMA'!$N$4*(Calculations!$BR$3-'LNG RMA'!$L$4)+(VLOOKUP($D26,'LNG RMA'!$F$9:$Q$70,11,FALSE))/'LNG RMA'!$N$5*(Calculations!$BR$4-'LNG RMA'!$L$5)+(VLOOKUP($D26,'LNG RMA'!$F$9:$Q$70,12,FALSE))/'LNG RMA'!$N$6*($BR$5-'LNG RMA'!$L$6)) -> 0 | BT26: =IF($BT$3+$BT$4+$BT$5=0,0,VLOOKUP($D26,'tight RMA'!$F$9:$Q$70,2,FALSE)+(VLOOKUP($D26,'tight RMA'!$F$9:$Q$70,10,FALSE))/'tight RMA'!$N$4*(Calculations!$BT$3-'tight RMA'!$L$4)+(VLOOKUP($D26,'tight RMA'!$F$9:$Q$70,11,FALSE))/'tight RMA'!$N$5*(Calculations!$BT$4-'tight RMA'!$L$5)+(VLOOKUP($D26,'tight RMA'!$F$9:$Q$70,12,FALSE))/'tight RMA'!$N$6*($BT$5-'tight RMA'!$L$6)) -> 0 | BV26: =IF($BV$3+$BV$4+$BV$5=0,0,VLOOKUP($D26,'mix RMA'!$F$9:$Q$70,2,FALSE)+(VLOOKUP($D26,'mix RMA'!$F$9:$Q$70,10,FALSE))/'mix RMA'!$N$4*(Calculations!$BV$3-'mix RMA'!$L$4)+(VLOOKUP($D26,'mix RMA'!$F$9:$Q$70,11,FALSE))/'mix RMA'!$N$5*(Calculations!$BV$4-'mix RMA'!$L$5)+(VLOOKUP($D26,'mix RMA'!$F$9:$Q$70,12,FALSE))/'mix RMA'!$N$6*($BV$5-'mix RMA'!$L$6)) -> 9.564452767e-09
B27: 20 | C27: Nitrogen (kg) | D27: Nitrogen | F27: =IF($F$4=0,0,VLOOKUP($D27,'I6 RMA'!$F$10:$O$82,2,FALSE)+(VLOOKUP($D27,'I6 RMA'!$F$10:$O$82,3,FALSE)-VLOOKUP($D27,'I6 RMA'!$F$10:$O$82,2,FALSE))/'I6 RMA'!$L$4*(Calculations!$F$4-'I6 RMA'!$J$4)) -> 1.140913327e-07 | H27: =IF($H$4=0,0,VLOOKUP($D27,'PRB RMA'!$F$10:$O$82,2,FALSE)+(VLOOKUP($D27,'PRB RMA'!$F$10:$O$82,3,FALSE)-VLOOKUP($D27,'PRB RMA'!$F$10:$O$82,2,FALSE))/'PRB RMA'!$L$4*(Calculations!$H$4-'PRB RMA'!$J$4)) -> 0 | J27: =IF($J$4=0,0,VLOOKUP($D27,'Coal TrainRMT'!$F$10:$O$82,2,FALSE)+(VLOOKUP($D27,'Coal TrainRMT'!$F$10:$O$82,3,FALSE)-VLOOKUP($D27,'Coal TrainRMT'!$F$10:$O$82,2,FALSE))/'Coal TrainRMT'!$L$4*(Calculations!$J$4-'Coal TrainRMT'!$J$4)) -> 7.944364841e-11 | L27: =IF($L$4+$L$5+$L$6=0,0,VLOOKUP($D27,#REF!,2,FALSE)+(VLOOKUP($D27,#REF!,6,FALSE)/#REF!*(#REF!-#REF!)+(VLOOKUP($D27,#REF!,8,FALSE))/#REF!*(#REF!-#REF!)+(VLOOKUP($D27,#REF!,10,FALSE))/#REF!*($L$6-#REF!))) ->  | N27: =IF($N$4=0,0,VLOOKUP($D27,'NG Pipeline RMT'!$F$10:$O$82,2,FALSE)+(VLOOKUP($D27,'NG Pipeline RMT'!$F$10:$O$82,3,FALSE)-VLOOKUP($D27,'NG Pipeline RMT'!$F$10:$O$82,2,FALSE))/'NG Pipeline RMT'!$L$4*(Calculations!$N$4-'NG Pipeline RMT'!$J$4)) -> 0 | P27: =IF($P$4=0,0,VLOOKUP($D27,'SG RMA'!$F$10:$O$82,2,FALSE)+(VLOOKUP($D27,'SG RMA'!$F$10:$O$82,3,FALSE)-VLOOKUP($D27,'SG RMA'!$F$10:$O$82,2,FALSE))/'SG RMA'!$L$4*(Calculations!$P$4-'SG RMA'!$J$4)) -> 0 | R27: =IF($R$4=0,0,VLOOKUP($D27,'Bale Truck RMT'!$F$10:$O$82,2,FALSE)+(VLOOKUP($D27,'Bale Truck RMT'!$F$10:$O$82,3,FALSE)-VLOOKUP($D27,'Bale Truck RMT'!$F$10:$O$82,2,FALSE))/'Bale Truck RMT'!$L$4*(Calculations!$R$4-'Bale Truck RMT'!$J$4)) -> 0 | T27: =IF($T$4=0,0,VLOOKUP($D27,'Cont Truck RMT'!$F$10:$O$82,2,FALSE)+(VLOOKUP($D27,'Cont Truck RMT'!$F$10:$O$82,3,FALSE)-VLOOKUP($D27,'Cont Truck RMT'!$F$10:$O$82,2,FALSE))/'Cont Truck RMT'!$L$4*(Calculations!$T$4-'Cont Truck RMT'!$J$4)) -> 0 | V27: =IF($V$4=0,0,VLOOKUP($D27,'SRWC RMA'!$F$10:$O$82,2,FALSE)+(VLOOKUP($D27,'SRWC RMA'!$F$10:$O$82,3,FALSE)-VLOOKUP($D27,'SRWC RMA'!$F$10:$O$82,2,FALSE))/'SRWC RMA'!$L$4*(Calculations!$V$4-'SRWC RMA'!$J$4)) -> 0 | X27: =IF($X$4+$X$5+$X$6=0,0,VLOOKUP($D27,'Stover RMA'!$F$9:$Q$70,2,FALSE)+(VLOOKUP($D27,'Stover RMA'!$F$9:$Q$70,10,FALSE))/'Stover RMA'!$N$4*(Calculations!$X$4-'Stover RMA'!$L$4)+(VLOOKUP($D27,'Stover RMA'!$F$9:$Q$70,11,FALSE))/'Stover RMA'!$N$5*(Calculations!$X$5-'Stover RMA'!$L$5)+(VLOOKUP($D27,'Stover RMA'!$F$9:$Q$70,12,FALSE))/'Stover RMA'!$N$6*($X$6-'Stover RMA'!$L$6)) -> 0 | Z27: =IF($Z$4=0,0,VLOOKUP($D27,'Corn RMA'!$F$10:$O$82,2,FALSE)+(VLOOKUP($D27,'Corn RMA'!$F$10:$O$82,3,FALSE)-VLOOKUP($D27,'Corn RMA'!$F$10:$O$82,2,FALSE))/'Corn RMA'!$L$4*(Calculations!$Z$4-'Corn RMA'!$J$4)) -> 0 | AB27: =HLOOKUP(1,'FT Diesel 2'!$H$11:$U$76,'FT Diesel 2'!V71,FALSE) ->  | AD27: =HLOOKUP(1,'Adv Ethanol'!$G$10:$O$79,'Adv Ethanol'!Q61,FALSE) ->  | AF27: =IF($AF$4+$AF$5>0,VLOOKUP(D27,Uranium!$F$10:$K$77,3,FALSE)*Calculations!$AF$4+VLOOKUP(D27,Uranium!$F$10:$K$77,4,FALSE)*$AF$5,0) -> 0 | AH27: =IF($AH$4=0,0,VLOOKUP($D27,'U RMT'!$F$9:$U$64,2,FALSE)+(VLOOKUP($D27,'U RMT'!$F$10:$U$64,3,FALSE)-VLOOKUP($D27,'U RMT'!$F$10:$U$64,2,FALSE))/'U RMT'!$U$2*(Calculations!$AH$4-'U RMT'!$O$2)) -> 0 | AJ27: =IF($AJ$4=0,0,VLOOKUP($D27,'U RMT'!$F$9:$U$64,4,FALSE)+(VLOOKUP($D27,'U RMT'!$F$10:$U$64,5,FALSE)-VLOOKUP($D27,'U RMT'!$F$10:$U$64,4,FALSE))/'U RMT'!$U$3*(Calculations!$AJ$4-'U RMT'!$Q$3)) -> 0 | AL27: =IF($AL$4=0,0,VLOOKUP($D27,'U RMT'!$F$9:$U$64,6,FALSE)+(VLOOKUP($D27,'U RMT'!$F$10:$U$64,7,FALSE)-VLOOKUP($D27,'U RMT'!$F$10:$U$64,6,FALSE))/'U RMT'!$U$4*(Calculations!$AL$4-'U RMT'!$S$4)) -> 0 | AN27: =IF($AN$4=0,0,VLOOKUP($D27,'Petro Transport'!$F$10:$Z$77,2,FALSE)+(VLOOKUP($D27,'Petro Transport'!$F$10:$Z$77,3,FALSE)-VLOOKUP($D27,'Petro Transport'!$F$10:$Z$77,2,FALSE))/'Petro Transport'!$V$3*(Calculations!$AN$4-'Petro Transport'!$N$3)) -> 0 | AP27: =IF($AP$4=0,0,VLOOKUP($D27,'Petro Transport'!$F$10:$Z$77,4,FALSE)+(VLOOKUP($D27,'Petro Transport'!$F$10:$Z$77,5,FALSE)-VLOOKUP($D27,'Petro Transport'!$F$10:$Z$77,4,FALSE))/'Petro Transport'!$V$4*(Calculations!$AP$4-'Petro Transport'!$P$4)) -> 0 | AR27: =IF($AR$4=0,0,VLOOKUP($D27,'Petro Transport'!$F$10:$Z$77,6,FALSE)+(VLOOKUP($D27,'Petro Transport'!$F$10:$Z$77,7,FALSE)-VLOOKUP($D27,'Petro Transport'!$F$10:$Z$77,6,FALSE))/'Petro Transport'!$V$5*(Calculations!$AR$4-'Petro Transport'!$R$5)) -> 0 | AT27: =IF($AT$4=0,0,VLOOKUP($D27,'Petro Transport'!$F$10:$Z$77,8,FALSE)+(VLOOKUP($D27,'Petro Transport'!$F$10:$Z$77,9,FALSE)-VLOOKUP($D27,'Petro Transport'!$F$10:$Z$77,8,FALSE))/'Petro Transport'!$V$6*(Calculations!$AT$4-'Petro Transport'!$T$6)) -> 0 | AV27: =VLOOKUP($D27,'Dom Petro'!$F$11:$J$65,3,FALSE)*Calculations!$AV$4+VLOOKUP($D27,'Dom Petro'!$F$11:$J$65,4,FALSE)*Calculations!$AV$5+VLOOKUP($D27,'Dom Petro'!$F$11:$J$65,5,FALSE)*Calculations!$AV$6 -> 0 | AX27: =VLOOKUP($D27,'For Petro'!$F$9:$K$77,3,FALSE)*Calculations!$AX$3+VLOOKUP($D27,'For Petro'!$F$9:$K$77,4,FALSE)*Calculations!$AX$4+VLOOKUP($D27,'For Petro'!$F$9:$K$77,5,FALSE)*Calculations!$AX$5+VLOOKUP($D27,'For Petro'!$F$9:$K$77,6,FALSE)*$AX$6 -> 0 | AZ27: =IF($AZ$5=1,VLOOKUP($D27,'Petro Ref'!$F$10:$J$77,3,FALSE),0) -> 0 | BB27: =IF($BB$5,VLOOKUP($D27,'Petro Ref'!$F$10:$J$77,4,FALSE),0) -> 0 | BD27: =IF($BD$5=1,VLOOKUP($D27,'Petro Ref'!$F$10:$J$77,5,FALSE),0) -> 0 | BF27: =IF($BF$3+$BF$4+$BF$5=0,0,VLOOKUP($D27,'onshore RMA'!$F$9:$Q$70,2,FALSE)+(VLOOKUP($D27,'onshore RMA'!$F$9:$Q$70,10,FALSE))/'onshore RMA'!$N$4*(Calculations!$BF$3-'onshore RMA'!$L$4)+(VLOOKUP($D27,'onshore RMA'!$F$9:$Q$70,11,FALSE))/'onshore RMA'!$N$5*(Calculations!$BF$4-'onshore RMA'!$L$5)+(VLOOKUP($D27,'onshore RMA'!$F$9:$Q$70,12,FALSE))/'onshore RMA'!$N$6*($BF$5-'onshore RMA'!$L$6)) -> 0 | BH27: =IF($BF$3+$BF$4+$BF$5=0,0,VLOOKUP($D27,'onshore RMA'!$F$9:$Q$70,2,FALSE)+(VLOOKUP($D27,'onshore RMA'!$F$9:$Q$70,10,FALSE))/'onshore RMA'!$N$4*(Calculations!$BF$3-'onshore RMA'!$L$4)+(VLOOKUP($D27,'onshore RMA'!$F$9:$Q$70,11,FALSE))/'onshore RMA'!$N$5*(Calculations!$BF$4-'onshore RMA'!$L$5)+(VLOOKUP($D27,'onshore RMA'!$F$9:$Q$70,12,FALSE))/'onshore RMA'!$N$6*($BF$5-'onshore RMA'!$L$6)) -> 0 | BJ27: =IF($BJ$3+$BJ$4+$BJ$5=0,0,VLOOKUP($D27,'offshore RMA'!$F$9:$Q$70,2,FALSE)+(VLOOKUP($D27,'offshore RMA'!$F$9:$Q$70,10,FALSE))/'offshore RMA'!$N$4*(Calculations!$BJ$3-'offshore RMA'!$L$4)+(VLOOKUP($D27,'offshore RMA'!$F$9:$Q$70,11,FALSE))/'offshore RMA'!$N$5*(Calculations!$BJ$4-'offshore RMA'!$L$5)+(VLOOKUP($D27,'offshore RMA'!$F$9:$Q$70,12,FALSE))/'offshore RMA'!$N$6*($BJ$5-'offshore RMA'!$L$6)) -> 0 | BL27: =IF($BL$3+$BL$4+$BL$5=0,0,VLOOKUP($D27,'barnett RMA'!$F$9:$Q$70,2,FALSE)+(VLOOKUP($D27,'barnett RMA'!$F$9:$Q$70,10,FALSE))/'barnett RMA'!$N$4*(Calculations!$BL$3-'barnett RMA'!$L$4)+(VLOOKUP($D27,'barnett RMA'!$F$9:$Q$70,11,FALSE))/'barnett RMA'!$N$5*(Calculations!$BL$4-'barnett RMA'!$L$5)+(VLOOKUP($D27,'barnett RMA'!$F$9:$Q$70,12,FALSE))/'barnett RMA'!$N$6*($BL$5-'barnett RMA'!$L$6)) -> 0 | BN27: =IF($BN$3+$BN$4+$BN$5=0,0,VLOOKUP($D27,'cbm RMA'!$F$9:$Q$70,2,FALSE)+(VLOOKUP($D27,'cbm RMA'!$F$9:$Q$70,10,FALSE))/'cbm RMA'!$N$4*(Calculations!$BN$3-'cbm RMA'!$L$4)+(VLOOKUP($D27,'cbm RMA'!$F$9:$Q$70,11,FALSE))/'cbm RMA'!$N$5*(Calculations!$BN$4-'cbm RMA'!$L$5)+(VLOOKUP($D27,'cbm RMA'!$F$9:$Q$70,12,FALSE))/'cbm RMA'!$N$6*($BN$5-'cbm RMA'!$L$6)) -> 0 | BP27: =IF($BP$3+$BP$4+$BP$5=0,0,VLOOKUP($D27,'Marc RMA'!$F$9:$Q$70,2,FALSE)+(VLOOKUP($D27,'Marc RMA'!$F$9:$Q$70,10,FALSE))/'Marc RMA'!$N$4*(Calculations!$BP$3-'Marc RMA'!$L$4)+(VLOOKUP($D27,'Marc RMA'!$F$9:$Q$70,11,FALSE))/'Marc RMA'!$N$5*(Calculations!$BP$4-'Marc RMA'!$L$5)+(VLOOKUP($D27,'Marc RMA'!$F$9:$Q$70,12,FALSE))/'Marc RMA'!$N$6*($BP$5-'Marc RMA'!$L$6)) -> 0 | BR27: =IF($BR$3+$BR$4+$BR$5=0,0,VLOOKUP($D27,'LNG RMA'!$F$9:$Q$70,2,FALSE)+(VLOOKUP($D27,'LNG RMA'!$F$9:$Q$70,10,FALSE))/'LNG RMA'!$N$4*(Calculations!$BR$3-'LNG RMA'!$L$4)+(VLOOKUP($D27,'LNG RMA'!$F$9:$Q$70,11,FALSE))/'LNG RMA'!$N$5*(Calculations!$BR$4-'LNG RMA'!$L$5)+(VLOOKUP($D27,'LNG RMA'!$F$9:$Q$70,12,FALSE))/'LNG RMA'!$N$6*($BR$5-'LNG RMA'!$L$6)) -> 0 | BT27: =IF($BT$3+$BT$4+$BT$5=0,0,VLOOKUP($D27,'tight RMA'!$F$9:$Q$70,2,FALSE)+(VLOOKUP($D27,'tight RMA'!$F$9:$Q$70,10,FALSE))/'tight RMA'!$N$4*(Calculations!$BT$3-'tight RMA'!$L$4)+(VLOOKUP($D27,'tight RMA'!$F$9:$Q$70,11,FALSE))/'tight RMA'!$N$5*(Calculations!$BT$4-'tight RMA'!$L$5)+(VLOOKUP($D27,'tight RMA'!$F$9:$Q$70,12,FALSE))/'tight RMA'!$N$6*($BT$5-'tight RMA'!$L$6)) -> 0 | BV27: =IF($BV$3+$BV$4+$BV$5=0,0,VLOOKUP($D27,'mix RMA'!$F$9:$Q$70,2,FALSE)+(VLOOKUP($D27,'mix RMA'!$F$9:$Q$70,10,FALSE))/'mix RMA'!$N$4*(Calculations!$BV$3-'mix RMA'!$L$4)+(VLOOKUP($D27,'mix RMA'!$F$9:$Q$70,11,FALSE))/'mix RMA'!$N$5*(Calculations!$BV$4-'mix RMA'!$L$5)+(VLOOKUP($D27,'mix RMA'!$F$9:$Q$70,12,FALSE))/'mix RMA'!$N$6*($BV$5-'mix RMA'!$L$6)) -> 3.799699594e-08
B28: 21 | C28: Phosphate (kg) | D28: Phosphate | F28: =IF($F$4=0,0,VLOOKUP($D28,'I6 RMA'!$F$10:$O$82,2,FALSE)+(VLOOKUP($D28,'I6 RMA'!$F$10:$O$82,3,FALSE)-VLOOKUP($D28,'I6 RMA'!$F$10:$O$82,2,FALSE))/'I6 RMA'!$L$4*(Calculations!$F$4-'I6 RMA'!$J$4)) -> 2.857915516e-10 | H28: =IF($H$4=0,0,VLOOKUP($D28,'PRB RMA'!$F$10:$O$82,2,FALSE)+(VLOOKUP($D28,'PRB RMA'!$F$10:$O$82,3,FALSE)-VLOOKUP($D28,'PRB RMA'!$F$10:$O$82,2,FALSE))/'PRB RMA'!$L$4*(Calculations!$H$4-'PRB RMA'!$J$4)) -> 0 | J28: =IF($J$4=0,0,VLOOKUP($D28,'Coal TrainRMT'!$F$10:$O$82,2,FALSE)+(VLOOKUP($D28,'Coal TrainRMT'!$F$10:$O$82,3,FALSE)-VLOOKUP($D28,'Coal TrainRMT'!$F$10:$O$82,2,FALSE))/'Coal TrainRMT'!$L$4*(Calculations!$J$4-'Coal TrainRMT'!$J$4)) -> 1.348449055e-10 | L28: =IF($L$4+$L$5+$L$6=0,0,VLOOKUP($D28,#REF!,2,FALSE)+(VLOOKUP($D28,#REF!,6,FALSE)/#REF!*(#REF!-#REF!)+(VLOOKUP($D28,#REF!,8,FALSE))/#REF!*(#REF!-#REF!)+(VLOOKUP($D28,#REF!,10,FALSE))/#REF!*($L$6-#REF!))) ->  | N28: =IF($N$4=0,0,VLOOKUP($D28,'NG Pipeline RMT'!$F$10:$O$82,2,FALSE)+(VLOOKUP($D28,'NG Pipeline RMT'!$F$10:$O$82,3,FALSE)-VLOOKUP($D28,'NG Pipeline RMT'!$F$10:$O$82,2,FALSE))/'NG Pipeline RMT'!$L$4*(Calculations!$N$4-'NG Pipeline RMT'!$J$4)) -> 0 | P28: =IF($P$4=0,0,VLOOKUP($D28,'SG RMA'!$F$10:$O$82,2,FALSE)+(VLOOKUP($D28,'SG RMA'!$F$10:$O$82,3,FALSE)-VLOOKUP($D28,'SG RMA'!$F$10:$O$82,2,FALSE))/'SG RMA'!$L$4*(Calculations!$P$4-'SG RMA'!$J$4)) -> 0 | R28: =IF($R$4=0,0,VLOOKUP($D28,'Bale Truck RMT'!$F$10:$O$82,2,FALSE)+(VLOOKUP($D28,'Bale Truck RMT'!$F$10:$O$82,3,FALSE)-VLOOKUP($D28,'Bale Truck RMT'!$F$10:$O$82,2,FALSE))/'Bale Truck RMT'!$L$4*(Calculations!$R$4-'Bale Truck RMT'!$J$4)) -> 0 | T28: =IF($T$4=0,0,VLOOKUP($D28,'Cont Truck RMT'!$F$10:$O$82,2,FALSE)+(VLOOKUP($D28,'Cont Truck RMT'!$F$10:$O$82,3,FALSE)-VLOOKUP($D28,'Cont Truck RMT'!$F$10:$O$82,2,FALSE))/'Cont Truck RMT'!$L$4*(Calculations!$T$4-'Cont Truck RMT'!$J$4)) -> 0 | V28: =IF($V$4=0,0,VLOOKUP($D28,'SRWC RMA'!$F$10:$O$82,2,FALSE)+(VLOOKUP($D28,'SRWC RMA'!$F$10:$O$82,3,FALSE)-VLOOKUP($D28,'SRWC RMA'!$F$10:$O$82,2,FALSE))/'SRWC RMA'!$L$4*(Calculations!$V$4-'SRWC RMA'!$J$4)) -> 0 | X28: =IF($X$4+$X$5+$X$6=0,0,VLOOKUP($D28,'Stover RMA'!$F$9:$Q$70,2,FALSE)+(VLOOKUP($D28,'Stover RMA'!$F$9:$Q$70,10,FALSE))/'Stover RMA'!$N$4*(Calculations!$X$4-'Stover RMA'!$L$4)+(VLOOKUP($D28,'Stover RMA'!$F$9:$Q$70,11,FALSE))/'Stover RMA'!$N$5*(Calculations!$X$5-'Stover RMA'!$L$5)+(VLOOKUP($D28,'Stover RMA'!$F$9:$Q$70,12,FALSE))/'Stover RMA'!$N$6*($X$6-'Stover RMA'!$L$6)) -> 0 | Z28: =IF($Z$4=0,0,VLOOKUP($D28,'Corn RMA'!$F$10:$O$82,2,FALSE)+(VLOOKUP($D28,'Corn RMA'!$F$10:$O$82,3,FALSE)-VLOOKUP($D28,'Corn RMA'!$F$10:$O$82,2,FALSE))/'Corn RMA'!$L$4*(Calculations!$Z$4-'Corn RMA'!$J$4)) -> 0 | AB28: =HLOOKUP(1,'FT Diesel 2'!$H$11:$U$76,'FT Diesel 2'!V72,FALSE) ->  | AD28: =HLOOKUP(1,'Adv Ethanol'!$G$10:$O$79,'Adv Ethanol'!Q62,FALSE) ->  | AF28: =IF($AF$4+$AF$5>0,VLOOKUP(D28,Uranium!$F$10:$K$77,3,FALSE)*Calculations!$AF$4+VLOOKUP(D28,Uranium!$F$10:$K$77,4,FALSE)*$AF$5,0) -> 0 | AH28: =IF($AH$4=0,0,VLOOKUP($D28,'U RMT'!$F$9:$U$64,2,FALSE)+(VLOOKUP($D28,'U RMT'!$F$10:$U$64,3,FALSE)-VLOOKUP($D28,'U RMT'!$F$10:$U$64,2,FALSE))/'U RMT'!$U$2*(Calculations!$AH$4-'U RMT'!$O$2)) -> 0 | AJ28: =IF($AJ$4=0,0,VLOOKUP($D28,'U RMT'!$F$9:$U$64,4,FALSE)+(VLOOKUP($D28,'U RMT'!$F$10:$U$64,5,FALSE)-VLOOKUP($D28,'U RMT'!$F$10:$U$64,4,FALSE))/'U RMT'!$U$3*(Calculations!$AJ$4-'U RMT'!$Q$3)) -> 0 | AL28: =IF($AL$4=0,0,VLOOKUP($D28,'U RMT'!$F$9:$U$64,6,FALSE)+(VLOOKUP($D28,'U RMT'!$F$10:$U$64,7,FALSE)-VLOOKUP($D28,'U RMT'!$F$10:$U$64,6,FALSE))/'U RMT'!$U$4*(Calculations!$AL$4-'U RMT'!$S$4)) -> 0 | AN28: =IF($AN$4=0,0,VLOOKUP($D28,'Petro Transport'!$F$10:$Z$77,2,FALSE)+(VLOOKUP($D28,'Petro Transport'!$F$10:$Z$77,3,FALSE)-VLOOKUP($D28,'Petro Transport'!$F$10:$Z$77,2,FALSE))/'Petro Transport'!$V$3*(Calculations!$AN$4-'Petro Transport'!$N$3)) -> 0 | AP28: =IF($AP$4=0,0,VLOOKUP($D28,'Petro Transport'!$F$10:$Z$77,4,FALSE)+(VLOOKUP($D28,'Petro Transport'!$F$10:$Z$77,5,FALSE)-VLOOKUP($D28,'Petro Transport'!$F$10:$Z$77,4,FALSE))/'Petro Transport'!$V$4*(Calculations!$AP$4-'Petro Transport'!$P$4)) -> 0 | AR28: =IF($AR$4=0,0,VLOOKUP($D28,'Petro Transport'!$F$10:$Z$77,6,FALSE)+(VLOOKUP($D28,'Petro Transport'!$F$10:$Z$77,7,FALSE)-VLOOKUP($D28,'Petro Transport'!$F$10:$Z$77,6,FALSE))/'Petro Transport'!$V$5*(Calculations!$AR$4-'Petro Transport'!$R$5)) -> 0 | AT28: =IF($AT$4=0,0,VLOOKUP($D28,'Petro Transport'!$F$10:$Z$77,8,FALSE)+(VLOOKUP($D28,'Petro Transport'!$F$10:$Z$77,9,FALSE)-VLOOKUP($D28,'Petro Transport'!$F$10:$Z$77,8,FALSE))/'Petro Transport'!$V$6*(Calculations!$AT$4-'Petro Transport'!$T$6)) -> 0 | AV28: =VLOOKUP($D28,'Dom Petro'!$F$11:$J$65,3,FALSE)*Calculations!$AV$4+VLOOKUP($D28,'Dom Petro'!$F$11:$J$65,4,FALSE)*Calculations!$AV$5+VLOOKUP($D28,'Dom Petro'!$F$11:$J$65,5,FALSE)*Calculations!$AV$6 -> 1.350046079e-08 | AX28: =VLOOKUP($D28,'For Petro'!$F$9:$K$77,3,FALSE)*Calculations!$AX$3+VLOOKUP($D28,'For Petro'!$F$9:$K$77,4,FALSE)*Calculations!$AX$4+VLOOKUP($D28,'For Petro'!$F$9:$K$77,5,FALSE)*Calculations!$AX$5+VLOOKUP($D28,'For Petro'!$F$9:$K$77,6,FALSE)*$AX$6 -> 0 | AZ28: =IF($AZ$5=1,VLOOKUP($D28,'Petro Ref'!$F$10:$J$77,3,FALSE),0) -> 0 | BB28: =IF($BB$5,VLOOKUP($D28,'Petro Ref'!$F$10:$J$77,4,FALSE),0) -> 0 | BD28: =IF($BD$5=1,VLOOKUP($D28,'Petro Ref'!$F$10:$J$77,5,FALSE),0) -> 0 | BF28: =IF($BF$3+$BF$4+$BF$5=0,0,VLOOKUP($D28,'onshore RMA'!$F$9:$Q$70,2,FALSE)+(VLOOKUP($D28,'onshore RMA'!$F$9:$Q$70,10,FALSE))/'onshore RMA'!$N$4*(Calculations!$BF$3-'onshore RMA'!$L$4)+(VLOOKUP($D28,'onshore RMA'!$F$9:$Q$70,11,FALSE))/'onshore RMA'!$N$5*(Calculations!$BF$4-'onshore RMA'!$L$5)+(VLOOKUP($D28,'onshore RMA'!$F$9:$Q$70,12,FALSE))/'onshore RMA'!$N$6*($BF$5-'onshore RMA'!$L$6)) -> 0 | BH28: =IF($BF$3+$BF$4+$BF$5=0,0,VLOOKUP($D28,'onshore RMA'!$F$9:$Q$70,2,FALSE)+(VLOOKUP($D28,'onshore RMA'!$F$9:$Q$70,10,FALSE))/'onshore RMA'!$N$4*(Calculations!$BF$3-'onshore RMA'!$L$4)+(VLOOKUP($D28,'onshore RMA'!$F$9:$Q$70,11,FALSE))/'onshore RMA'!$N$5*(Calculations!$BF$4-'onshore RMA'!$L$5)+(VLOOKUP($D28,'onshore RMA'!$F$9:$Q$70,12,FALSE))/'onshore RMA'!$N$6*($BF$5-'onshore RMA'!$L$6)) -> 0 | BJ28: =IF($BJ$3+$BJ$4+$BJ$5=0,0,VLOOKUP($D28,'offshore RMA'!$F$9:$Q$70,2,FALSE)+(VLOOKUP($D28,'offshore RMA'!$F$9:$Q$70,10,FALSE))/'offshore RMA'!$N$4*(Calculations!$BJ$3-'offshore RMA'!$L$4)+(VLOOKUP($D28,'offshore RMA'!$F$9:$Q$70,11,FALSE))/'offshore RMA'!$N$5*(Calculations!$BJ$4-'offshore RMA'!$L$5)+(VLOOKUP($D28,'offshore RMA'!$F$9:$Q$70,12,FALSE))/'offshore RMA'!$N$6*($BJ$5-'offshore RMA'!$L$6)) -> 0 | BL28: =IF($BL$3+$BL$4+$BL$5=0,0,VLOOKUP($D28,'barnett RMA'!$F$9:$Q$70,2,FALSE)+(VLOOKUP($D28,'barnett RMA'!$F$9:$Q$70,10,FALSE))/'barnett RMA'!$N$4*(Calculations!$BL$3-'barnett RMA'!$L$4)+(VLOOKUP($D28,'barnett RMA'!$F$9:$Q$70,11,FALSE))/'barnett RMA'!$N$5*(Calculations!$BL$4-'barnett RMA'!$L$5)+(VLOOKUP($D28,'barnett RMA'!$F$9:$Q$70,12,FALSE))/'barnett RMA'!$N$6*($BL$5-'barnett RMA'!$L$6)) -> 0 | BN28: =IF($BN$3+$BN$4+$BN$5=0,0,VLOOKUP($D28,'cbm RMA'!$F$9:$Q$70,2,FALSE)+(VLOOKUP($D28,'cbm RMA'!$F$9:$Q$70,10,FALSE))/'cbm RMA'!$N$4*(Calculations!$BN$3-'cbm RMA'!$L$4)+(VLOOKUP($D28,'cbm RMA'!$F$9:$Q$70,11,FALSE))/'cbm RMA'!$N$5*(Calculations!$BN$4-'cbm RMA'!$L$5)+(VLOOKUP($D28,'cbm RMA'!$F$9:$Q$70,12,FALSE))/'cbm RMA'!$N$6*($BN$5-'cbm RMA'!$L$6)) -> 0 | BP28: =IF($BP$3+$BP$4+$BP$5=0,0,VLOOKUP($D28,'Marc RMA'!$F$9:$Q$70,2,FALSE)+(VLOOKUP($D28,'Marc RMA'!$F$9:$Q$70,10,FALSE))/'Marc RMA'!$N$4*(Calculations!$BP$3-'Marc RMA'!$L$4)+(VLOOKUP($D28,'Marc RMA'!$F$9:$Q$70,11,FALSE))/'Marc RMA'!$N$5*(Calculations!$BP$4-'Marc RMA'!$L$5)+(VLOOKUP($D28,'Marc RMA'!$F$9:$Q$70,12,FALSE))/'Marc RMA'!$N$6*($BP$5-'Marc RMA'!$L$6)) -> 0 | BR28: =IF($BR$3+$BR$4+$BR$5=0,0,VLOOKUP($D28,'LNG RMA'!$F$9:$Q$70,2,FALSE)+(VLOOKUP($D28,'LNG RMA'!$F$9:$Q$70,10,FALSE))/'LNG RMA'!$N$4*(Calculations!$BR$3-'LNG RMA'!$L$4)+(VLOOKUP($D28,'LNG RMA'!$F$9:$Q$70,11,FALSE))/'LNG RMA'!$N$5*(Calculations!$BR$4-'LNG RMA'!$L$5)+(VLOOKUP($D28,'LNG RMA'!$F$9:$Q$70,12,FALSE))/'LNG RMA'!$N$6*($BR$5-'LNG RMA'!$L$6)) -> 0 | BT28: =IF($BT$3+$BT$4+$BT$5=0,0,VLOOKUP($D28,'tight RMA'!$F$9:$Q$70,2,FALSE)+(VLOOKUP($D28,'tight RMA'!$F$9:$Q$70,10,FALSE))/'tight RMA'!$N$4*(Calculations!$BT$3-'tight RMA'!$L$4)+(VLOOKUP($D28,'tight RMA'!$F$9:$Q$70,11,FALSE))/'tight RMA'!$N$5*(Calculations!$BT$4-'tight RMA'!$L$5)+(VLOOKUP($D28,'tight RMA'!$F$9:$Q$70,12,FALSE))/'tight RMA'!$N$6*($BT$5-'tight RMA'!$L$6)) -> 0 | BV28: =IF($BV$3+$BV$4+$BV$5=0,0,VLOOKUP($D28,'mix RMA'!$F$9:$Q$70,2,FALSE)+(VLOOKUP($D28,'mix RMA'!$F$9:$Q$70,10,FALSE))/'mix RMA'!$N$4*(Calculations!$BV$3-'mix RMA'!$L$4)+(VLOOKUP($D28,'mix RMA'!$F$9:$Q$70,11,FALSE))/'mix RMA'!$N$5*(Calculations!$BV$4-'mix RMA'!$L$5)+(VLOOKUP($D28,'mix RMA'!$F$9:$Q$70,12,FALSE))/'mix RMA'!$N$6*($BV$5-'mix RMA'!$L$6)) -> 5.013974464e-11
B29: 22 | C29: Phosphorus (kg) | D29: Phosphorus | F29: =IF($F$4=0,0,VLOOKUP($D29,'I6 RMA'!$F$10:$O$82,2,FALSE)+(VLOOKUP($D29,'I6 RMA'!$F$10:$O$82,3,FALSE)-VLOOKUP($D29,'I6 RMA'!$F$10:$O$82,2,FALSE))/'I6 RMA'!$L$4*(Calculations!$F$4-'I6 RMA'!$J$4)) -> 1.459359221e-07 | H29: =IF($H$4=0,0,VLOOKUP($D29,'PRB RMA'!$F$10:$O$82,2,FALSE)+(VLOOKUP($D29,'PRB RMA'!$F$10:$O$82,3,FALSE)-VLOOKUP($D29,'PRB RMA'!$F$10:$O$82,2,FALSE))/'PRB RMA'!$L$4*(Calculations!$H$4-'PRB RMA'!$J$4)) -> 0 | J29: =IF($J$4=0,0,VLOOKUP($D29,'Coal TrainRMT'!$F$10:$O$82,2,FALSE)+(VLOOKUP($D29,'Coal TrainRMT'!$F$10:$O$82,3,FALSE)-VLOOKUP($D29,'Coal TrainRMT'!$F$10:$O$82,2,FALSE))/'Coal TrainRMT'!$L$4*(Calculations!$J$4-'Coal TrainRMT'!$J$4)) -> 1.472655945e-06 | L29: =IF($L$4+$L$5+$L$6=0,0,VLOOKUP($D29,#REF!,2,FALSE)+(VLOOKUP($D29,#REF!,6,FALSE)/#REF!*(#REF!-#REF!)+(VLOOKUP($D29,#REF!,8,FALSE))/#REF!*(#REF!-#REF!)+(VLOOKUP($D29,#REF!,10,FALSE))/#REF!*($L$6-#REF!))) ->  | N29: =IF($N$4=0,0,VLOOKUP($D29,'NG Pipeline RMT'!$F$10:$O$82,2,FALSE)+(VLOOKUP($D29,'NG Pipeline RMT'!$F$10:$O$82,3,FALSE)-VLOOKUP($D29,'NG Pipeline RMT'!$F$10:$O$82,2,FALSE))/'NG Pipeline RMT'!$L$4*(Calculations!$N$4-'NG Pipeline RMT'!$J$4)) -> 0 | P29: =IF($P$4=0,0,VLOOKUP($D29,'SG RMA'!$F$10:$O$82,2,FALSE)+(VLOOKUP($D29,'SG RMA'!$F$10:$O$82,3,FALSE)-VLOOKUP($D29,'SG RMA'!$F$10:$O$82,2,FALSE))/'SG RMA'!$L$4*(Calculations!$P$4-'SG RMA'!$J$4)) -> 0 | R29: =IF($R$4=0,0,VLOOKUP($D29,'Bale Truck RMT'!$F$10:$O$82,2,FALSE)+(VLOOKUP($D29,'Bale Truck RMT'!$F$10:$O$82,3,FALSE)-VLOOKUP($D29,'Bale Truck RMT'!$F$10:$O$82,2,FALSE))/'Bale Truck RMT'!$L$4*(Calculations!$R$4-'Bale Truck RMT'!$J$4)) -> 0 | T29: =IF($T$4=0,0,VLOOKUP($D29,'Cont Truck RMT'!$F$10:$O$82,2,FALSE)+(VLOOKUP($D29,'Cont Truck RMT'!$F$10:$O$82,3,FALSE)-VLOOKUP($D29,'Cont Truck RMT'!$F$10:$O$82,2,FALSE))/'Cont Truck RMT'!$L$4*(Calculations!$T$4-'Cont Truck RMT'!$J$4)) -> 0 | V29: =IF($V$4=0,0,VLOOKUP($D29,'SRWC RMA'!$F$10:$O$82,2,FALSE)+(VLOOKUP($D29,'SRWC RMA'!$F$10:$O$82,3,FALSE)-VLOOKUP($D29,'SRWC RMA'!$F$10:$O$82,2,FALSE))/'SRWC RMA'!$L$4*(Calculations!$V$4-'SRWC RMA'!$J$4)) -> 0 | X29: =IF($X$4+$X$5+$X$6=0,0,VLOOKUP($D29,'Stover RMA'!$F$9:$Q$70,2,FALSE)+(VLOOKUP($D29,'Stover RMA'!$F$9:$Q$70,10,FALSE))/'Stover RMA'!$N$4*(Calculations!$X$4-'Stover RMA'!$L$4)+(VLOOKUP($D29,'Stover RMA'!$F$9:$Q$70,11,FALSE))/'Stover RMA'!$N$5*(Calculations!$X$5-'Stover RMA'!$L$5)+(VLOOKUP($D29,'Stover RMA'!$F$9:$Q$70,12,FALSE))/'Stover RMA'!$N$6*($X$6-'Stover RMA'!$L$6)) -> 0 | Z29: =IF($Z$4=0,0,VLOOKUP($D29,'Corn RMA'!$F$10:$O$82,2,FALSE)+(VLOOKUP($D29,'Corn RMA'!$F$10:$O$82,3,FALSE)-VLOOKUP($D29,'Corn RMA'!$F$10:$O$82,2,FALSE))/'Corn RMA'!$L$4*(Calculations!$Z$4-'Corn RMA'!$J$4)) -> 0 | AB29: =HLOOKUP(1,'FT Diesel 2'!$H$11:$U$76,'FT Diesel 2'!V73,FALSE) ->  | AD29: =HLOOKUP(1,'Adv Ethanol'!$G$10:$O$79,'Adv Ethanol'!Q63,FALSE) ->  | AF29: =IF($AF$4+$AF$5>0,VLOOKUP(D29,Uranium!$F$10:$K$77,3,FALSE)*Calculations!$AF$4+VLOOKUP(D29,Uranium!$F$10:$K$77,4,FALSE)*$AF$5,0) -> 0 | AH29: =IF($AH$4=0,0,VLOOKUP($D29,'U RMT'!$F$9:$U$64,2,FALSE)+(VLOOKUP($D29,'U RMT'!$F$10:$U$64,3,FALSE)-VLOOKUP($D29,'U RMT'!$F$10:$U$64,2,FALSE))/'U RMT'!$U$2*(Calculations!$AH$4-'U RMT'!$O$2)) -> 0 | AJ29: =IF($AJ$4=0,0,VLOOKUP($D29,'U RMT'!$F$9:$U$64,4,FALSE)+(VLOOKUP($D29,'U RMT'!$F$10:$U$64,5,FALSE)-VLOOKUP($D29,'U RMT'!$F$10:$U$64,4,FALSE))/'U RMT'!$U$3*(Calculations!$AJ$4-'U RMT'!$Q$3)) -> 0 | AL29: =IF($AL$4=0,0,VLOOKUP($D29,'U RMT'!$F$9:$U$64,6,FALSE)+(VLOOKUP($D29,'U RMT'!$F$10:$U$64,7,FALSE)-VLOOKUP($D29,'U RMT'!$F$10:$U$64,6,FALSE))/'U RMT'!$U$4*(Calculations!$AL$4-'U RMT'!$S$4)) -> 0 | AN29: =IF($AN$4=0,0,VLOOKUP($D29,'Petro Transport'!$F$10:$Z$77,2,FALSE)+(VLOOKUP($D29,'Petro Transport'!$F$10:$Z$77,3,FALSE)-VLOOKUP($D29,'Petro Transport'!$F$10:$Z$77,2,FALSE))/'Petro Transport'!$V$3*(Calculations!$AN$4-'Petro Transport'!$N$3)) -> 0 | AP29: =IF($AP$4=0,0,VLOOKUP($D29,'Petro Transport'!$F$10:$Z$77,4,FALSE)+(VLOOKUP($D29,'Petro Transport'!$F$10:$Z$77,5,FALSE)-VLOOKUP($D29,'Petro Transport'!$F$10:$Z$77,4,FALSE))/'Petro Transport'!$V$4*(Calculations!$AP$4-'Petro Transport'!$P$4)) -> 0 | AR29: =IF($AR$4=0,0,VLOOKUP($D29,'Petro Transport'!$F$10:$Z$77,6,FALSE)+(VLOOKUP($D29,'Petro Transport'!$F$10:$Z$77,7,FALSE)-VLOOKUP($D29,'Petro Transport'!$F$10:$Z$77,6,FALSE))/'Petro Transport'!$V$5*(Calculations!$AR$4-'Petro Transport'!$R$5)) -> 0 | AT29: =IF($AT$4=0,0,VLOOKUP($D29,'Petro Transport'!$F$10:$Z$77,8,FALSE)+(VLOOKUP($D29,'Petro Transport'!$F$10:$Z$77,9,FALSE)-VLOOKUP($D29,'Petro Transport'!$F$10:$Z$77,8,FALSE))/'Petro Transport'!$V$6*(Calculations!$AT$4-'Petro Transport'!$T$6)) -> 0 | AV29: =VLOOKUP($D29,'Dom Petro'!$F$11:$J$65,3,FALSE)*Calculations!$AV$4+VLOOKUP($D29,'Dom Petro'!$F$11:$J$65,4,FALSE)*Calculations!$AV$5+VLOOKUP($D29,'Dom Petro'!$F$11:$J$65,5,FALSE)*Calculations!$AV$6 -> 5.910383713e-08 | AX29: =VLOOKUP($D29,'For Petro'!$F$9:$K$77,3,FALSE)*Calculations!$AX$3+VLOOKUP($D29,'For Petro'!$F$9:$K$77,4,FALSE)*Calculations!$AX$4+VLOOKUP($D29,'For Petro'!$F$9:$K$77,5,FALSE)*Calculations!$AX$5+VLOOKUP($D29,'For Petro'!$F$9:$K$77,6,FALSE)*$AX$6 -> 0 | AZ29: =IF($AZ$5=1,VLOOKUP($D29,'Petro Ref'!$F$10:$J$77,3,FALSE),0) -> 0 | BB29: =IF($BB$5,VLOOKUP($D29,'Petro Ref'!$F$10:$J$77,4,FALSE),0) -> 0 | BD29: =IF($BD$5=1,VLOOKUP($D29,'Petro Ref'!$F$10:$J$77,5,FALSE),0) -> 0 | BF29: =IF($BF$3+$BF$4+$BF$5=0,0,VLOOKUP($D29,'onshore RMA'!$F$9:$Q$70,2,FALSE)+(VLOOKUP($D29,'onshore RMA'!$F$9:$Q$70,10,FALSE))/'onshore RMA'!$N$4*(Calculations!$BF$3-'onshore RMA'!$L$4)+(VLOOKUP($D29,'onshore RMA'!$F$9:$Q$70,11,FALSE))/'onshore RMA'!$N$5*(Calculations!$BF$4-'onshore RMA'!$L$5)+(VLOOKUP($D29,'onshore RMA'!$F$9:$Q$70,12,FALSE))/'onshore RMA'!$N$6*($BF$5-'onshore RMA'!$L$6)) -> 0 | BH29: =IF($BF$3+$BF$4+$BF$5=0,0,VLOOKUP($D29,'onshore RMA'!$F$9:$Q$70,2,FALSE)+(VLOOKUP($D29,'onshore RMA'!$F$9:$Q$70,10,FALSE))/'onshore RMA'!$N$4*(Calculations!$BF$3-'onshore RMA'!$L$4)+(VLOOKUP($D29,'onshore RMA'!$F$9:$Q$70,11,FALSE))/'onshore RMA'!$N$5*(Calculations!$BF$4-'onshore RMA'!$L$5)+(VLOOKUP($D29,'onshore RMA'!$F$9:$Q$70,12,FALSE))/'onshore RMA'!$N$6*($BF$5-'onshore RMA'!$L$6)) -> 0 | BJ29: =IF($BJ$3+$BJ$4+$BJ$5=0,0,VLOOKUP($D29,'offshore RMA'!$F$9:$Q$70,2,FALSE)+(VLOOKUP($D29,'offshore RMA'!$F$9:$Q$70,10,FALSE))/'offshore RMA'!$N$4*(Calculations!$BJ$3-'offshore RMA'!$L$4)+(VLOOKUP($D29,'offshore RMA'!$F$9:$Q$70,11,FALSE))/'offshore RMA'!$N$5*(Calculations!$BJ$4-'offshore RMA'!$L$5)+(VLOOKUP($D29,'offshore RMA'!$F$9:$Q$70,12,FALSE))/'offshore RMA'!$N$6*($BJ$5-'offshore RMA'!$L$6)) -> 0 | BL29: =IF($BL$3+$BL$4+$BL$5=0,0,VLOOKUP($D29,'barnett RMA'!$F$9:$Q$70,2,FALSE)+(VLOOKUP($D29,'barnett RMA'!$F$9:$Q$70,10,FALSE))/'barnett RMA'!$N$4*(Calculations!$BL$3-'barnett RMA'!$L$4)+(VLOOKUP($D29,'barnett RMA'!$F$9:$Q$70,11,FALSE))/'barnett RMA'!$N$5*(Calculations!$BL$4-'barnett RMA'!$L$5)+(VLOOKUP($D29,'barnett RMA'!$F$9:$Q$70,12,FALSE))/'barnett RMA'!$N$6*($BL$5-'barnett RMA'!$L$6)) -> 0 | BN29: =IF($BN$3+$BN$4+$BN$5=0,0,VLOOKUP($D29,'cbm RMA'!$F$9:$Q$70,2,FALSE)+(VLOOKUP($D29,'cbm RMA'!$F$9:$Q$70,10,FALSE))/'cbm RMA'!$N$4*(Calculations!$BN$3-'cbm RMA'!$L$4)+(VLOOKUP($D29,'cbm RMA'!$F$9:$Q$70,11,FALSE))/'cbm RMA'!$N$5*(Calculations!$BN$4-'cbm RMA'!$L$5)+(VLOOKUP($D29,'cbm RMA'!$F$9:$Q$70,12,FALSE))/'cbm RMA'!$N$6*($BN$5-'cbm RMA'!$L$6)) -> 0 | BP29: =IF($BP$3+$BP$4+$BP$5=0,0,VLOOKUP($D29,'Marc RMA'!$F$9:$Q$70,2,FALSE)+(VLOOKUP($D29,'Marc RMA'!$F$9:$Q$70,10,FALSE))/'Marc RMA'!$N$4*(Calculations!$BP$3-'Marc RMA'!$L$4)+(VLOOKUP($D29,'Marc RMA'!$F$9:$Q$70,11,FALSE))/'Marc RMA'!$N$5*(Calculations!$BP$4-'Marc RMA'!$L$5)+(VLOOKUP($D29,'Marc RMA'!$F$9:$Q$70,12,FALSE))/'Marc RMA'!$N$6*($BP$5-'Marc RMA'!$L$6)) -> 0 | BR29: =IF($BR$3+$BR$4+$BR$5=0,0,VLOOKUP($D29,'LNG RMA'!$F$9:$Q$70,2,FALSE)+(VLOOKUP($D29,'LNG RMA'!$F$9:$Q$70,10,FALSE))/'LNG RMA'!$N$4*(Calculations!$BR$3-'LNG RMA'!$L$4)+(VLOOKUP($D29,'LNG RMA'!$F$9:$Q$70,11,FALSE))/'LNG RMA'!$N$5*(Calculations!$BR$4-'LNG RMA'!$L$5)+(VLOOKUP($D29,'LNG RMA'!$F$9:$Q$70,12,FALSE))/'LNG RMA'!$N$6*($BR$5-'LNG RMA'!$L$6)) -> 0 | BT29: =IF($BT$3+$BT$4+$BT$5=0,0,VLOOKUP($D29,'tight RMA'!$F$9:$Q$70,2,FALSE)+(VLOOKUP($D29,'tight RMA'!$F$9:$Q$70,10,FALSE))/'tight RMA'!$N$4*(Calculations!$BT$3-'tight RMA'!$L$4)+(VLOOKUP($D29,'tight RMA'!$F$9:$Q$70,11,FALSE))/'tight RMA'!$N$5*(Calculations!$BT$4-'tight RMA'!$L$5)+(VLOOKUP($D29,'tight RMA'!$F$9:$Q$70,12,FALSE))/'tight RMA'!$N$6*($BT$5-'tight RMA'!$L$6)) -> 0 | BV29: =IF($BV$3+$BV$4+$BV$5=0,0,VLOOKUP($D29,'mix RMA'!$F$9:$Q$70,2,FALSE)+(VLOOKUP($D29,'mix RMA'!$F$9:$Q$70,10,FALSE))/'mix RMA'!$N$4*(Calculations!$BV$3-'mix RMA'!$L$4)+(VLOOKUP($D29,'mix RMA'!$F$9:$Q$70,11,FALSE))/'mix RMA'!$N$5*(Calculations!$BV$4-'mix RMA'!$L$5)+(VLOOKUP($D29,'mix RMA'!$F$9:$Q$70,12,FALSE))/'mix RMA'!$N$6*($BV$5-'mix RMA'!$L$6)) -> 3.704979694e-07
A30: Water | B30: 23 | C30: Water Withdrawal (kg) | D30: Water | F30: =IF($F$4=0,0,VLOOKUP($D30,'I6 RMA'!$F$10:$O$82,2,FALSE)+(VLOOKUP($D30,'I6 RMA'!$F$10:$O$82,3,FALSE)-VLOOKUP($D30,'I6 RMA'!$F$10:$O$82,2,FALSE))/'I6 RMA'!$L$4*(Calculations!$F$4-'I6 RMA'!$J$4)) -> 1.14459436 | H30: =IF($H$4=0,0,VLOOKUP($D30,'PRB RMA'!$F$10:$O$82,2,FALSE)+(VLOOKUP($D30,'PRB RMA'!$F$10:$O$82,3,FALSE)-VLOOKUP($D30,'PRB RMA'!$F$10:$O$82,2,FALSE))/'PRB RMA'!$L$4*(Calculations!$H$4-'PRB RMA'!$J$4)) -> 0 | J30: =IF($J$4=0,0,VLOOKUP($D30,'Coal TrainRMT'!$F$10:$O$82,2,FALSE)+(VLOOKUP($D30,'Coal TrainRMT'!$F$10:$O$82,3,FALSE)-VLOOKUP($D30,'Coal TrainRMT'!$F$10:$O$82,2,FALSE))/'Coal TrainRMT'!$L$4*(Calculations!$J$4-'Coal TrainRMT'!$J$4)) -> 0.0113441182 | L30: =IF($L$4+$L$5+$L$6=0,0,VLOOKUP($D30,#REF!,2,FALSE)+(VLOOKUP($D30,#REF!,6,FALSE)/#REF!*(#REF!-#REF!)+(VLOOKUP($D30,#REF!,8,FALSE))/#REF!*(#REF!-#REF!)+(VLOOKUP($D30,#REF!,10,FALSE))/#REF!*($L$6-#REF!))) ->  | N30: =IF($N$4=0,0,VLOOKUP($D30,'NG Pipeline RMT'!$F$25:$O$82,4,FALSE)+(VLOOKUP($D30,'NG Pipeline RMT'!$F$25:$O$82,5,FALSE)-VLOOKUP($D30,'NG Pipeline RMT'!$F$25:$O$82,4,FALSE))/'NG Pipeline RMT'!$L$4*(Calculations!$N$4-'NG Pipeline RMT'!$J$4)) -> 0 | P30: =IF($P$4=0,0,VLOOKUP($D30,'SG RMA'!$F$10:$O$82,2,FALSE)+(VLOOKUP($D30,'SG RMA'!$F$10:$O$82,3,FALSE)-VLOOKUP($D30,'SG RMA'!$F$10:$O$82,2,FALSE))/'SG RMA'!$L$4*(Calculations!$P$4-'SG RMA'!$J$4)) -> 0 | R30: =IF($R$4=0,0,VLOOKUP($D30,'Bale Truck RMT'!$F$10:$O$82,2,FALSE)+(VLOOKUP($D30,'Bale Truck RMT'!$F$10:$O$82,3,FALSE)-VLOOKUP($D30,'Bale Truck RMT'!$F$10:$O$82,2,FALSE))/'Bale Truck RMT'!$L$4*(Calculations!$R$4-'Bale Truck RMT'!$J$4)) -> 0 | T30: =IF($T$4=0,0,VLOOKUP($D30,'Cont Truck RMT'!$F$10:$O$82,2,FALSE)+(VLOOKUP($D30,'Cont Truck RMT'!$F$10:$O$82,3,FALSE)-VLOOKUP($D30,'Cont Truck RMT'!$F$10:$O$82,2,FALSE))/'Cont Truck RMT'!$L$4*(Calculations!$T$4-'Cont Truck RMT'!$J$4)) -> 0 | V30: =IF($V$4=0,0,VLOOKUP($D30,'SRWC RMA'!$F$10:$O$82,2,FALSE)+(VLOOKUP($D30,'SRWC RMA'!$F$10:$O$82,3,FALSE)-VLOOKUP($D30,'SRWC RMA'!$F$10:$O$82,2,FALSE))/'SRWC RMA'!$L$4*(Calculations!$V$4-'SRWC RMA'!$J$4)) -> 0 | X30: =IF($X$4+$X$5+$X$6=0,0,VLOOKUP($D30,'Stover RMA'!$F$9:$Q$70,2,FALSE)+(VLOOKUP($D30,'Stover RMA'!$F$9:$Q$70,10,FALSE))/'Stover RMA'!$N$4*(Calculations!$X$4-'Stover RMA'!$L$4)+(VLOOKUP($D30,'Stover RMA'!$F$9:$Q$70,11,FALSE))/'Stover RMA'!$N$5*(Calculations!$X$5-'Stover RMA'!$L$5)+(VLOOKUP($D30,'Stover RMA'!$F$9:$Q$70,12,FALSE))/'Stover RMA'!$N$6*($X$6-'Stover RMA'!$L$6)) -> 0 | Z30: =IF($Z$4=0,0,VLOOKUP($D30,'Corn RMA'!$F$10:$O$82,2,FALSE)+(VLOOKUP($D30,'Corn RMA'!$F$10:$O$82,3,FALSE)-VLOOKUP($D30,'Corn RMA'!$F$10:$O$82,2,FALSE))/'Corn RMA'!$L$4*(Calculations!$Z$4-'Corn RMA'!$J$4)) -> 0 | AB30: =HLOOKUP(1,'FT Diesel 2'!$H$11:$U$76,'FT Diesel 2'!V22,FALSE) ->  | AD30: =HLOOKUP(1,'Adv Ethanol'!$G$10:$O$79,'Adv Ethanol'!Q17,FALSE) ->  | AF30: =IF($AF$4+$AF$5>0,VLOOKUP(D30,Uranium!$F$10:$K$77,3,FALSE)*Calculations!$AF$4+VLOOKUP(D30,Uranium!$F$10:$K$77,4,FALSE)*$AF$5,0) -> 0 | AH30: =IF($AH$4=0,0,VLOOKUP($D30,'U RMT'!$F$9:$U$64,2,FALSE)+(VLOOKUP($D30,'U RMT'!$F$10:$U$64,3,FALSE)-VLOOKUP($D30,'U RMT'!$F$10:$U$64,2,FALSE))/'U RMT'!$U$2*(Calculations!$AH$4-'U RMT'!$O$2)) -> 0 | AJ30: =IF($AJ$4=0,0,VLOOKUP($D30,'U RMT'!$F$9:$U$64,4,FALSE)+(VLOOKUP($D30,'U RMT'!$F$10:$U$64,5,FALSE)-VLOOKUP($D30,'U RMT'!$F$10:$U$64,4,FALSE))/'U RMT'!$U$3*(Calculations!$AJ$4-'U RMT'!$Q$3)) -> 0 | AL30: =IF($AL$4=0,0,VLOOKUP($D30,'U RMT'!$F$9:$U$64,6,FALSE)+(VLOOKUP($D30,'U RMT'!$F$10:$U$64,7,FALSE)-VLOOKUP($D30,'U RMT'!$F$10:$U$64,6,FALSE))/'U RMT'!$U$4*(Calculations!$AL$4-'U RMT'!$S$4)) -> 0 | AN30: =IF($AN$4=0,0,VLOOKUP($D30,'Petro Transport'!$F$10:$Z$77,2,FALSE)+(VLOOKUP($D30,'Petro Transport'!$F$10:$Z$77,3,FALSE)-VLOOKUP($D30,'Petro Transport'!$F$10:$Z$77,2,FALSE))/'Petro Transport'!$V$3*(Calculations!$AN$4-'Petro Transport'!$N$3)) -> 0 | AP30: =IF($AP$4=0,0,VLOOKUP($D30,'Petro Transport'!$F$10:$Z$77,4,FALSE)+(VLOOKUP($D30,'Petro Transport'!$F$10:$Z$77,5,FALSE)-VLOOKUP($D30,'Petro Transport'!$F$10:$Z$77,4,FALSE))/'Petro Transport'!$V$4*(Calculations!$AP$4-'Petro Transport'!$P$4)) -> 0 | AR30: =IF($AR$4=0,0,VLOOKUP($D30,'Petro Transport'!$F$10:$Z$77,6,FALSE)+(VLOOKUP($D30,'Petro Transport'!$F$10:$Z$77,7,FALSE)-VLOOKUP($D30,'Petro Transport'!$F$10:$Z$77,6,FALSE))/'Petro Transport'!$V$5*(Calculations!$AR$4-'Petro Transport'!$R$5)) -> 0 | AT30: =IF($AT$4=0,0,VLOOKUP($D30,'Petro Transport'!$F$10:$Z$77,8,FALSE)+(VLOOKUP($D30,'Petro Transport'!$F$10:$Z$77,9,FALSE)-VLOOKUP($D30,'Petro Transport'!$F$10:$Z$77,8,FALSE))/'Petro Transport'!$V$6*(Calculations!$AT$4-'Petro Transport'!$T$6)) -> 0 | AV30: =VLOOKUP($D30,'Dom Petro'!$F$11:$J$65,3,FALSE)*Calculations!$AV$4+VLOOKUP($D30,'Dom Petro'!$F$11:$J$65,4,FALSE)*Calculations!$AV$5+VLOOKUP($D30,'Dom Petro'!$F$11:$J$65,5,FALSE)*Calculations!$AV$6 -> 0.1177391984 | AX30: =VLOOKUP($D30,'For Petro'!$F$9:$K$77,3,FALSE)*Calculations!$AX$3+VLOOKUP($D30,'For Petro'!$F$9:$K$77,4,FALSE)*Calculations!$AX$4+VLOOKUP($D30,'For Petro'!$F$9:$K$77,5,FALSE)*Calculations!$AX$5+VLOOKUP($D30,'For Petro'!$F$9:$K$77,6,FALSE)*$AX$6 -> 0 | AZ30: =IF($AZ$5=1,VLOOKUP($D30,'Petro Ref'!$F$10:$J$77,3,FALSE),0) -> 0 | BB30: =IF($BB$5,VLOOKUP($D30,'Petro Ref'!$F$10:$J$77,4,FALSE),0) -> 0 | BD30: =IF($BD$5=1,VLOOKUP($D30,'Petro Ref'!$F$10:$J$77,5,FALSE),0) -> 0 | BF30: =IF($BF$3+$BF$4+$BF$5=0,0,VLOOKUP($D30,'onshore RMA'!$F$9:$Q$70,2,FALSE)+(VLOOKUP($D30,'onshore RMA'!$F$9:$Q$70,10,FALSE))/'onshore RMA'!$N$4*(Calculations!$BF$3-'onshore RMA'!$L$4)+(VLOOKUP($D30,'onshore RMA'!$F$9:$Q$70,11,FALSE))/'onshore RMA'!$N$5*(Calculations!$BF$4-'onshore RMA'!$L$5)+(VLOOKUP($D30,'onshore RMA'!$F$9:$Q$70,12,FALSE))/'onshore RMA'!$N$6*($BF$5-'onshore RMA'!$L$6)) -> 0 | BH30: =IF($BF$3+$BF$4+$BF$5=0,0,VLOOKUP($D30,'onshore RMA'!$F$9:$Q$70,2,FALSE)+(VLOOKUP($D30,'onshore RMA'!$F$9:$Q$70,10,FALSE))/'onshore RMA'!$N$4*(Calculations!$BF$3-'onshore RMA'!$L$4)+(VLOOKUP($D30,'onshore RMA'!$F$9:$Q$70,11,FALSE))/'onshore RMA'!$N$5*(Calculations!$BF$4-'onshore RMA'!$L$5)+(VLOOKUP($D30,'onshore RMA'!$F$9:$Q$70,12,FALSE))/'onshore RMA'!$N$6*($BF$5-'onshore RMA'!$L$6)) -> 0 | BJ30: =IF($BJ$3+$BJ$4+$BJ$5=0,0,VLOOKUP($D30,'offshore RMA'!$F$9:$Q$70,2,FALSE)+(VLOOKUP($D30,'offshore RMA'!$F$9:$Q$70,10,FALSE))/'offshore RMA'!$N$4*(Calculations!$BJ$3-'offshore RMA'!$L$4)+(VLOOKUP($D30,'offshore RMA'!$F$9:$Q$70,11,FALSE))/'offshore RMA'!$N$5*(Calculations!$BJ$4-'offshore RMA'!$L$5)+(VLOOKUP($D30,'offshore RMA'!$F$9:$Q$70,12,FALSE))/'offshore RMA'!$N$6*($BJ$5-'offshore RMA'!$L$6)) -> 0 | BL30: =IF($BL$3+$BL$4+$BL$5=0,0,VLOOKUP($D30,'barnett RMA'!$F$9:$Q$70,2,FALSE)+(VLOOKUP($D30,'barnett RMA'!$F$9:$Q$70,10,FALSE))/'barnett RMA'!$N$4*(Calculations!$BL$3-'barnett RMA'!$L$4)+(VLOOKUP($D30,'barnett RMA'!$F$9:$Q$70,11,FALSE))/'barnett RMA'!$N$5*(Calculations!$BL$4-'barnett RMA'!$L$5)+(VLOOKUP($D30,'barnett RMA'!$F$9:$Q$70,12,FALSE))/'barnett RMA'!$N$6*($BL$5-'barnett RMA'!$L$6)) -> 0 | BN30: =IF($BN$3+$BN$4+$BN$5=0,0,VLOOKUP($D30,'cbm RMA'!$F$9:$Q$70,2,FALSE)+(VLOOKUP($D30,'cbm RMA'!$F$9:$Q$70,10,FALSE))/'cbm RMA'!$N$4*(Calculations!$BN$3-'cbm RMA'!$L$4)+(VLOOKUP($D30,'cbm RMA'!$F$9:$Q$70,11,FALSE))/'cbm RMA'!$N$5*(Calculations!$BN$4-'cbm RMA'!$L$5)+(VLOOKUP($D30,'cbm RMA'!$F$9:$Q$70,12,FALSE))/'cbm RMA'!$N$6*($BN$5-'cbm RMA'!$L$6)) -> 0 | BP30: =IF($BP$3+$BP$4+$BP$5=0,0,VLOOKUP($D30,'Marc RMA'!$F$9:$Q$70,2,FALSE)+(VLOOKUP($D30,'Marc RMA'!$F$9:$Q$70,10,FALSE))/'Marc RMA'!$N$4*(Calculations!$BP$3-'Marc RMA'!$L$4)+(VLOOKUP($D30,'Marc RMA'!$F$9:$Q$70,11,FALSE))/'Marc RMA'!$N$5*(Calculations!$BP$4-'Marc RMA'!$L$5)+(VLOOKUP($D30,'Marc RMA'!$F$9:$Q$70,12,FALSE))/'Marc RMA'!$N$6*($BP$5-'Marc RMA'!$L$6)) -> 0 | BR30: =IF($BR$3+$BR$4+$BR$5=0,0,VLOOKUP($D30,'LNG RMA'!$F$9:$Q$70,2,FALSE)+(VLOOKUP($D30,'LNG RMA'!$F$9:$Q$70,10,FALSE))/'LNG RMA'!$N$4*(Calculations!$BR$3-'LNG RMA'!$L$4)+(VLOOKUP($D30,'LNG RMA'!$F$9:$Q$70,11,FALSE))/'LNG RMA'!$N$5*(Calculations!$BR$4-'LNG RMA'!$L$5)+(VLOOKUP($D30,'LNG RMA'!$F$9:$Q$70,12,FALSE))/'LNG RMA'!$N$6*($BR$5-'LNG RMA'!$L$6)) -> 0 | BT30: =IF($BT$3+$BT$4+$BT$5=0,0,VLOOKUP($D30,'tight RMA'!$F$9:$Q$70,2,FALSE)+(VLOOKUP($D30,'tight RMA'!$F$9:$Q$70,10,FALSE))/'tight RMA'!$N$4*(Calculations!$BT$3-'tight RMA'!$L$4)+(VLOOKUP($D30,'tight RMA'!$F$9:$Q$70,11,FALSE))/'tight RMA'!$N$5*(Calculations!$BT$4-'tight RMA'!$L$5)+(VLOOKUP($D30,'tight RMA'!$F$9:$Q$70,12,FALSE))/'tight RMA'!$N$6*($BT$5-'tight RMA'!$L$6)) -> 0 | BV30: =IF($BV$3+$BV$4+$BV$5=0,0,VLOOKUP($D30,'mix RMA'!$F$9:$Q$70,2,FALSE)+(VLOOKUP($D30,'mix RMA'!$F$9:$Q$70,10,FALSE))/'mix RMA'!$N$4*(Calculations!$BV$3-'mix RMA'!$L$4)+(VLOOKUP($D30,'mix RMA'!$F$9:$Q$70,11,FALSE))/'mix RMA'!$N$5*(Calculations!$BV$4-'mix RMA'!$L$5)+(VLOOKUP($D30,'mix RMA'!$F$9:$Q$70,12,FALSE))/'mix RMA'!$N$6*($BV$5-'mix RMA'!$L$6)) -> 1.227020996
B31: 24 | C31: Water Consumption (kg) | D31: Water | F31: =IF($F$4=0,0,VLOOKUP($D31,'I6 RMA'!$F$25:$O$82,4,FALSE)+(VLOOKUP($D31,'I6 RMA'!$F$25:$O$82,5,FALSE)-VLOOKUP($D31,'I6 RMA'!$F$25:$O$82,4,FALSE))/'I6 RMA'!$L$4*(Calculations!$F$4-'I6 RMA'!$J$4)) -> -0.5791812563 | H31: =IF($H$4=0,0,VLOOKUP($D31,'PRB RMA'!$F$25:$O$82,4,FALSE)+(VLOOKUP($D31,'PRB RMA'!$F$25:$O$82,5,FALSE)-VLOOKUP($D31,'PRB RMA'!$F$25:$O$82,4,FALSE))/'PRB RMA'!$L$4*(Calculations!$H$4-'PRB RMA'!$J$4)) -> 0 | J31: =IF($J$4=0,0,VLOOKUP($D31,'Coal TrainRMT'!$F$25:$O$82,4,FALSE)+(VLOOKUP($D31,'Coal TrainRMT'!$F$25:$O$82,5,FALSE)-VLOOKUP($D31,'Coal TrainRMT'!$F$25:$O$82,4,FALSE))/'Coal TrainRMT'!$L$4*(Calculations!$J$4-'Coal TrainRMT'!$J$4)) -> 0.004817714251 | L31: =IF($L$4+$L$5+$L$6=0,0,VLOOKUP($D31,#REF!,6,FALSE)+(VLOOKUP($D31,#REF!,10,FALSE))/#REF!*(#REF!-#REF!)+(VLOOKUP($D31,#REF!,11,FALSE))/#REF!*(#REF!-#REF!)+(VLOOKUP($D31,#REF!,10,FALSE))/#REF!*($L$4-#REF!)) ->  | N31: =IF($N$4=0,0,VLOOKUP($D31,'NG Pipeline RMT'!$F$25:$O$82,2,FALSE)+(VLOOKUP($D31,'NG Pipeline RMT'!$F$25:$O$82,3,FALSE)-VLOOKUP($D31,'NG Pipeline RMT'!$F$25:$O$82,2,FALSE))/'NG Pipeline RMT'!$L$4*(Calculations!$N$4-'NG Pipeline RMT'!$J$4)) -> 0 | P31: =IF($P$4=0,0,VLOOKUP($D31,'SG RMA'!$F$25:$O$82,2,FALSE)+(VLOOKUP($D31,'SG RMA'!$F$25:$O$82,3,FALSE)-VLOOKUP($D31,'SG RMA'!$F$25:$O$82,2,FALSE))/'SG RMA'!$L$4*(Calculations!$P$4-'SG RMA'!$J$4)) -> 0 | R31: =IF($R$4=0,0,VLOOKUP($D31,'Bale Truck RMT'!$F$25:$O$82,4,FALSE)+(VLOOKUP($D31,'Bale Truck RMT'!$F$25:$O$82,5,FALSE)-VLOOKUP($D31,'Bale Truck RMT'!$F$25:$O$82,4,FALSE))/'Bale Truck RMT'!$L$4*(Calculations!$R$4-'Bale Truck RMT'!$J$4)) -> 0 | T31: =IF($T$4=0,0,VLOOKUP($D31,'Cont Truck RMT'!$F$25:$O$82,4,FALSE)+(VLOOKUP($D31,'Cont Truck RMT'!$F$25:$O$82,5,FALSE)-VLOOKUP($D31,'Cont Truck RMT'!$F$25:$O$82,4,FALSE))/'Cont Truck RMT'!$L$4*(Calculations!$R$4-'Cont Truck RMT'!$J$4)) -> 0 | V31: =IF($V$4=0,0,VLOOKUP($D31,'SRWC RMA'!$F$25:$O$82,4,FALSE)+(VLOOKUP($D31,'SRWC RMA'!$F$25:$O$82,5,FALSE)-VLOOKUP($D31,'SRWC RMA'!$F$25:$O$82,4,FALSE))/'SRWC RMA'!$L$4*(Calculations!$V$4-'SRWC RMA'!$J$4)) -> 0 | X31: =IF($X$4+$X$5+$X$6=0,0,VLOOKUP($D31,'Stover RMA'!$F$20:$Q$70,6,FALSE)+(VLOOKUP($D31,'Stover RMA'!$F$20:$Q$70,10,FALSE))/'Stover RMA'!$N$4*($X$4-'Stover RMA'!$L$4)+(VLOOKUP($D31,'Stover RMA'!$F$20:$Q$70,11,FALSE))/'Stover RMA'!$N$5*($X$5-'Stover RMA'!$L$5)+(VLOOKUP($D31,'Stover RMA'!$F$20:$Q$70,12,FALSE))/'Stover RMA'!$N$6*($X$6-'Stover RMA'!$L$6)) -> 0 | Z31: =IF($Z$4=0,0,VLOOKUP($D31,'Corn RMA'!$F$25:$O$82,4,FALSE)+(VLOOKUP($D31,'Corn RMA'!$F$25:$O$82,5,FALSE)-VLOOKUP($D31,'Corn RMA'!$F$25:$O$82,4,FALSE))/'Corn RMA'!$L$4*(Calculations!$Z$4-'Corn RMA'!$J$4)) -> 0 | AB31: =HLOOKUP(1,'FT Diesel 2'!$H$11:$U$76,'FT Diesel 2'!V22,FALSE)-HLOOKUP(1,'FT Diesel 2'!$H$11:$U$76,'FT Diesel 2'!V37,FALSE) ->  | AD31: =HLOOKUP(1,'Adv Ethanol'!$G$10:$O$79,'Adv Ethanol'!Q17,FALSE)-HLOOKUP(1,'Adv Ethanol'!$G$10:$L$79,'Adv Ethanol'!Q27,FALSE) ->  | AF31: =IF($AF$4+$AF$5>0,VLOOKUP(D31,Uranium!$F$20:$K$77,5,FALSE)*Calculations!$AF$4+VLOOKUP(D31,Uranium!$F$20:$K$77,6,FALSE)*$AF$5,0) -> 0 | AH31: =IF($AH$4=0,0,VLOOKUP($D31,'U RMT'!$F$20:$U$64,2,FALSE)+(VLOOKUP($D31,'U RMT'!$F$20:$U$64,3,FALSE)-VLOOKUP($D31,'U RMT'!$F$20:$U$64,2,FALSE))/'U RMT'!$U$2*(Calculations!$AH$4-'U RMT'!$O$2)) -> 0 | AJ31: =IF($AJ$4=0,0,VLOOKUP($D31,'U RMT'!$F$20:$U$64,4,FALSE)+(VLOOKUP($D31,'U RMT'!$F$20:$U$64,5,FALSE)-VLOOKUP($D31,'U RMT'!$F$20:$U$64,4,FALSE))/'U RMT'!$U$3*(Calculations!$AJ$4-'U RMT'!$Q$3)) -> 0 | AL31: =IF($AL$4=0,0,VLOOKUP($D31,'U RMT'!$F$20:$U$64,6,FALSE)+(VLOOKUP($D31,'U RMT'!$F$20:$U$64,7,FALSE)-VLOOKUP($D31,'U RMT'!$F$20:$U$64,6,FALSE))/'U RMT'!$U$4*(Calculations!$AL$4-'U RMT'!$S$4)) -> 0 | AN31: =IF($AN$4=0,0,VLOOKUP($D31,'Petro Transport'!$F$20:$Z$77,10,FALSE)+(VLOOKUP($D31,'Petro Transport'!$F$20:$Z$77,11,FALSE)-VLOOKUP($D31,'Petro Transport'!$F$10:$Z$77,10,FALSE))/'Petro Transport'!$V$3*(Calculations!$AN$4-'Petro Transport'!$N$3)) -> 0 | AP31: =IF($AP$4=0,0,VLOOKUP($D31,'Petro Transport'!$F$20:$Z$77,12,FALSE)+(VLOOKUP($D31,'Petro Transport'!$F$20:$Z$77,13,FALSE)-VLOOKUP($D31,'Petro Transport'!$F$20:$Z$77,12,FALSE))/'Petro Transport'!$V$4*(Calculations!$AP$4-'Petro Transport'!$P$4)) -> 0 | AR31: =IF($AR$4=0,0,VLOOKUP($D31,'Petro Transport'!$F$20:$Z$77,14,FALSE)+(VLOOKUP($D31,'Petro Transport'!$F$20:$Z$77,15,FALSE)-VLOOKUP($D31,'Petro Transport'!$F$20:$Z$77,14,FALSE))/'Petro Transport'!$V$5*(Calculations!$AR$4-'Petro Transport'!$R$5)) -> 0 | AT31: =IF($AT$4=0,0,VLOOKUP($D31,'Petro Transport'!$F$20:$Z$77,16,FALSE)+(VLOOKUP($D31,'Petro Transport'!$F$20:$Z$77,17,FALSE)-VLOOKUP($D31,'Petro Transport'!$F$20:$Z$77,16,FALSE))/'Petro Transport'!$V$6*(Calculations!$AT$4-'Petro Transport'!$T$6)) -> 0 | AV31: =VLOOKUP($D31,'Dom Petro'!$F$20:$J$65,3,FALSE)*Calculations!$AV$4+VLOOKUP($D31,'Dom Petro'!$F$20:$J$65,4,FALSE)*Calculations!$AV$5+VLOOKUP($D31,'Dom Petro'!$F$20:$J$65,5,FALSE)*Calculations!$AV$6 -> 0.06215638812 | AX31: =VLOOKUP($D31,'For Petro'!$F$20:$K$77,3,FALSE)*Calculations!$AX$3+VLOOKUP($D31,'For Petro'!$F$20:$K$77,4,FALSE)*Calculations!$AX$4+VLOOKUP($D31,'For Petro'!$F$20:$K$77,5,FALSE)*Calculations!$AX$5+VLOOKUP($D31,'For Petro'!$F$20:$K$77,6,FALSE)*$AX$6 -> 0 | AZ31: =IF($AZ$5=1,VLOOKUP($D31,'Petro Ref'!$F$20:$M$77,6,FALSE),0) -> 0 | BB31: =IF($BB$5=1,VLOOKUP($D31,'Petro Ref'!$F$20:$M$77,7,FALSE),0) -> 0 | BD31: =IF($BD$5=1,VLOOKUP($D31,'Petro Ref'!$F$20:$M$77,8,FALSE),0) -> 0 | BF31: =IF($BF$3+$BF$4+$BF$5=0,0,VLOOKUP($D31,'onshore RMA'!$F$20:$Q$70,6,FALSE)+(VLOOKUP($D31,'onshore RMA'!$F$20:$Q$70,10,FALSE))/'onshore RMA'!$N$4*(Calculations!$BF$3-'onshore RMA'!$L$4)+(VLOOKUP($D31,'onshore RMA'!$F$20:$Q$70,11,FALSE))/'onshore RMA'!$N$5*(Calculations!$BF$4-'onshore RMA'!$L$5)+(VLOOKUP($D31,'onshore RMA'!$F$20:$Q$70,12,FALSE))/'onshore RMA'!$N$6*($BF$5-'onshore RMA'!$L$6)) -> 0 | BH31: =IF($BH$3+$BH$4+$BH$5=0,0,VLOOKUP($D31,'assoc RMA'!$F$20:$Q$70,6,FALSE)+(VLOOKUP($D31,'assoc RMA'!$F$20:$Q$70,10,FALSE))/'assoc RMA'!$N$4*(Calculations!$BH$3-'assoc RMA'!$L$4)+(VLOOKUP($D31,'assoc RMA'!$F$20:$Q$70,11,FALSE))/'assoc RMA'!$N$5*(Calculations!$BH$4-'assoc RMA'!$L$5)+(VLOOKUP($D31,'assoc RMA'!$F$20:$Q$70,12,FALSE))/'assoc RMA'!$N$6*($BH$5-'assoc RMA'!$L$6)) -> 0 | BJ31: =IF($BJ$3+$BJ$4+$BJ$5=0,0,VLOOKUP($D31,'offshore RMA'!$F$20:$Q$70,6,FALSE)+(VLOOKUP($D31,'offshore RMA'!$F$20:$Q$70,10,FALSE))/'offshore RMA'!$N$4*(Calculations!$BJ$3-'offshore RMA'!$L$4)+(VLOOKUP($D31,'offshore RMA'!$F$20:$Q$70,11,FALSE))/'offshore RMA'!$N$5*(Calculations!$BJ$4-'offshore RMA'!$L$5)+(VLOOKUP($D31,'offshore RMA'!$F$20:$Q$70,12,FALSE))/'offshore RMA'!$N$6*($BJ$5-'offshore RMA'!$L$6)) -> 0 | BL31: =IF($BL$3+$BL$4+$BL$5=0,0,VLOOKUP($D31,'barnett RMA'!$F$20:$Q$70,6,FALSE)+(VLOOKUP($D31,'barnett RMA'!$F$20:$Q$70,10,FALSE))/'barnett RMA'!$N$4*(Calculations!$BL$3-'barnett RMA'!$L$4)+(VLOOKUP($D31,'barnett RMA'!$F$20:$Q$70,11,FALSE))/'barnett RMA'!$N$5*(Calculations!$BL$4-'barnett RMA'!$L$5)+(VLOOKUP($D31,'barnett RMA'!$F$20:$Q$70,12,FALSE))/'barnett RMA'!$N$6*($BL$5-'barnett RMA'!$L$6)) -> 0 | BN31: =IF($BN$3+$BN$4+$BN$5=0,0,VLOOKUP($D31,'cbm RMA'!$F$20:$Q$70,6,FALSE)+(VLOOKUP($D31,'cbm RMA'!$F$20:$Q$70,10,FALSE))/'cbm RMA'!$N$4*(Calculations!$BN$3-'cbm RMA'!$L$4)+(VLOOKUP($D31,'cbm RMA'!$F$20:$Q$70,11,FALSE))/'cbm RMA'!$N$5*(Calculations!$BN$4-'cbm RMA'!$L$5)+(VLOOKUP($D31,'cbm RMA'!$F$20:$Q$70,12,FALSE))/'cbm RMA'!$N$6*($BN$5-'cbm RMA'!$L$6)) -> 0 | BP31: =IF($BP$3+$BP$4+$BP$5=0,0,VLOOKUP($D31,'Marc RMA'!$F$20:$Q$70,6,FALSE)+(VLOOKUP($D31,'Marc RMA'!$F$20:$Q$70,10,FALSE))/'Marc RMA'!$N$4*(Calculations!$BP$3-'Marc RMA'!$L$4)+(VLOOKUP($D31,'Marc RMA'!$F$20:$Q$70,11,FALSE))/'Marc RMA'!$N$5*(Calculations!$BP$4-'Marc RMA'!$L$5)+(VLOOKUP($D31,'Marc RMA'!$F$20:$Q$70,12,FALSE))/'Marc RMA'!$N$6*($BP$5-'Marc RMA'!$L$6)) -> 0 | BR31: =IF($BR$3+$BR$4+$BR$5=0,0,VLOOKUP($D31,'LNG RMA'!$F$20:$Q$70,6,FALSE)+(VLOOKUP($D31,'LNG RMA'!$F$20:$Q$70,10,FALSE))/'LNG RMA'!$N$4*(Calculations!$BR$3-'LNG RMA'!$L$4)+(VLOOKUP($D31,'LNG RMA'!$F$20:$Q$70,11,FALSE))/'LNG RMA'!$N$5*(Calculations!$BR$4-'LNG RMA'!$L$5)+(VLOOKUP($D31,'LNG RMA'!$F$20:$Q$70,12,FALSE))/'LNG RMA'!$N$6*($BR$5-'LNG RMA'!$L$6)) -> 0 | BT31: =IF($BT$3+$BT$4+$BT$5=0,0,VLOOKUP($D31,'tight RMA'!$F$20:$Q$70,6,FALSE)+(VLOOKUP($D31,'tight RMA'!$F$20:$Q$70,10,FALSE))/'tight RMA'!$N$4*(Calculations!$BT$3-'tight RMA'!$L$4)+(VLOOKUP($D31,'tight RMA'!$F$20:$Q$70,11,FALSE))/'tight RMA'!$N$5*(Calculations!$BT$4-'tight RMA'!$L$5)+(VLOOKUP($D31,'tight RMA'!$F$20:$Q$70,12,FALSE))/'tight RMA'!$N$6*($BT$5-'tight RMA'!$L$6)) -> 0 | BV31: =IF($BV$3+$BV$4+$BV$5=0,0,VLOOKUP($D31,'mix RMA'!$F$20:$Q$70,6,FALSE)+(VLOOKUP($D31,'mix RMA'!$F$20:$Q$70,10,FALSE))/'mix RMA'!$N$4*(Calculations!$BV$3-'mix RMA'!$L$4)+(VLOOKUP($D31,'mix RMA'!$F$20:$Q$70,11,FALSE))/'mix RMA'!$N$5*(Calculations!$BV$4-'mix RMA'!$L$5)+(VLOOKUP($D31,'mix RMA'!$F$20:$Q$70,12,FALSE))/'mix RMA'!$N$6*($BV$5-'mix RMA'!$L$6)) -> -0.2092484911
A32: Land Use | B32: 25 | C32: Acreage Change (m2/kg) | F32: 1.393157638e-05 | H32: 5.97380418e-05 | J32: =AVERAGE(N32:AK32) ->  | N32: 0.001297715086 | P32: 0.06530505608 | R32: 0 | T32: 0 | V32: 0.06554052311 | X32: 0.04116166649 | Z32: 0.04526685034 | AB32: =IF(AB5>0,AB38,AB37) ->  | AD32: =IF(1=HLOOKUP(1,'Adv Ethanol'!G10:O18,9,FALSE),AD37,AD38) ->  | AF32: 0.7198111808 | AH32: 0 | AJ32: 0 | AL32: 0 | AN32: 0 | AP32: 0 | AR32: 0 | AT32: 0 | AZ32: 0 | BB32: 0 | BD32: 0 | BF32: 0.0002795659697 | BH32: 0.0002795659697 | BJ32: 0 | BL32: 0.000572177837 | BN32: 1.670592225e-05 | BP32: 0.0001184161042 | BR32: 0.0005417243943 | BT32: 0.002851012796 | BV32: 0.002851012796
A33: EROI | B33: 26 | C33: Energy Input (MJ) | D33: Energy resources | F33: =IF($F$4=0,0,VLOOKUP($D33,'I6 RMA'!$F$10:$O$82,2,FALSE)+(VLOOKUP($D33,'I6 RMA'!$F$10:$O$82,3,FALSE)-VLOOKUP($D33,'I6 RMA'!$F$10:$O$82,2,FALSE))/'I6 RMA'!$L$4*(Calculations!$F$4-'I6 RMA'!$J$4)) -> 0.1671724641 | H33: =IF($H$4=0,0,VLOOKUP($D33,'PRB RMA'!$F$10:$O$82,2,FALSE)+(VLOOKUP($D33,'PRB RMA'!$F$10:$O$82,3,FALSE)-VLOOKUP($D33,'PRB RMA'!$F$10:$O$82,2,FALSE))/'PRB RMA'!$L$4*(Calculations!$H$4-'PRB RMA'!$J$4)) -> 0 | J33: =IF($J$4=0,0,VLOOKUP($D33,'Coal TrainRMT'!$F$10:$O$82,2,FALSE)+(VLOOKUP($D33,'Coal TrainRMT'!$F$10:$O$82,3,FALSE)-VLOOKUP($D33,'Coal TrainRMT'!$F$10:$O$82,2,FALSE))/'Coal TrainRMT'!$L$4*(Calculations!$J$4-'Coal TrainRMT'!$J$4)) -> 0.06044703989 | L33: =IF($L$4+$L$5+$L$6=0,0,VLOOKUP($D33,#REF!,2,FALSE)+(VLOOKUP($D33,#REF!,6,FALSE)/#REF!*(#REF!-#REF!)+(VLOOKUP($D33,#REF!,8,FALSE))/#REF!*(#REF!-#REF!)+(VLOOKUP($D33,#REF!,10,FALSE))/#REF!*($L$6-#REF!))) ->  | N33: =IF($N$4=0,0,VLOOKUP($D33,'NG Pipeline RMT'!$F$10:$O$82,2,FALSE)+(VLOOKUP($D33,'NG Pipeline RMT'!$F$10:$O$82,3,FALSE)-VLOOKUP($D33,'NG Pipeline RMT'!$F$10:$O$82,2,FALSE))/'NG Pipeline RMT'!$L$4*(Calculations!$N$4-'NG Pipeline RMT'!$J$4)) -> 0 | P33: =IF($P$4=0,0,VLOOKUP($D33,'SG RMA'!$F$10:$O$82,2,FALSE)+(VLOOKUP($D33,'SG RMA'!$F$10:$O$82,3,FALSE)-VLOOKUP($D33,'SG RMA'!$F$10:$O$82,2,FALSE))/'SG RMA'!$L$4*(Calculations!$P$4-'SG RMA'!$J$4)) -> 0 | R33: =IF($R$4=0,0,VLOOKUP($D33,'Bale Truck RMT'!$F$10:$O$82,2,FALSE)+(VLOOKUP($D33,'Bale Truck RMT'!$F$10:$O$82,3,FALSE)-VLOOKUP($D33,'Bale Truck RMT'!$F$10:$O$82,2,FALSE))/'Bale Truck RMT'!$L$4*(Calculations!$R$4-'Bale Truck RMT'!$J$4)) -> 0 | T33: =IF($T$4=0,0,VLOOKUP($D33,'Cont Truck RMT'!$F$10:$O$82,2,FALSE)+(VLOOKUP($D33,'Cont Truck RMT'!$F$10:$O$82,3,FALSE)-VLOOKUP($D33,'Cont Truck RMT'!$F$10:$O$82,2,FALSE))/'Cont Truck RMT'!$L$4*(Calculations!$T$4-'Cont Truck RMT'!$J$4)) -> 0 | V33: =IF($V$4=0,0,VLOOKUP($D33,'SRWC RMA'!$F$10:$O$82,2,FALSE)+(VLOOKUP($D33,'SRWC RMA'!$F$10:$O$82,3,FALSE)-VLOOKUP($D33,'SRWC RMA'!$F$10:$O$82,2,FALSE))/'SRWC RMA'!$L$4*(Calculations!$V$4-'SRWC RMA'!$J$4)) -> 0 | X33: =IF($X$4+$X$5+$X$6=0,0,VLOOKUP($D33,'Stover RMA'!$F$9:$Q$70,2,FALSE)+(VLOOKUP($D33,'Stover RMA'!$F$9:$Q$70,10,FALSE))/'Stover RMA'!$N$4*(Calculations!$X$4-'Stover RMA'!$L$4)+(VLOOKUP($D33,'Stover RMA'!$F$9:$Q$70,11,FALSE))/'Stover RMA'!$N$5*(Calculations!$X$5-'Stover RMA'!$L$5)+(VLOOKUP($D33,'Stover RMA'!$F$9:$Q$70,12,FALSE))/'Stover RMA'!$N$6*($X$6-'Stover RMA'!$L$6)) -> 0 | Z33: =IF($Z$4=0,0,VLOOKUP($D33,'Corn RMA'!$F$10:$O$82,2,FALSE)+(VLOOKUP($D33,'Corn RMA'!$F$10:$O$82,3,FALSE)-VLOOKUP($D33,'Corn RMA'!$F$10:$O$82,2,FALSE))/'Corn RMA'!$L$4*(Calculations!$Z$4-'Corn RMA'!$J$4)) -> 0 | AB33: =HLOOKUP(1,'FT Diesel 2'!$H$11:$U$76,'FT Diesel 2'!V19,FALSE) ->  | AD33: =HLOOKUP(1,'Adv Ethanol'!$G$10:$O$79,'Adv Ethanol'!Q14,FALSE) ->  | AF33: =IF($AF$4+$AF$5>0,VLOOKUP(D33,Uranium!$F$10:$K$77,3,FALSE)*Calculations!$AF$4+VLOOKUP(D33,Uranium!$F$10:$K$77,4,FALSE)*$AF$5,0) -> 0 | AH33: =IF($AH$4=0,0,VLOOKUP($D33,'U RMT'!$F$9:$U$64,2,FALSE)+(VLOOKUP($D33,'U RMT'!$F$10:$U$64,3,FALSE)-VLOOKUP($D33,'U RMT'!$F$10:$U$64,2,FALSE))/'U RMT'!$U$2*(Calculations!$AH$4-'U RMT'!$O$2)) -> 0 | AJ33: =IF($AJ$4=0,0,VLOOKUP($D33,'U RMT'!$F$9:$U$64,4,FALSE)+(VLOOKUP($D33,'U RMT'!$F$10:$U$64,5,FALSE)-VLOOKUP($D33,'U RMT'!$F$10:$U$64,4,FALSE))/'U RMT'!$U$3*(Calculations!$AJ$4-'U RMT'!$Q$3)) -> 0 | AL33: =IF($AL$4=0,0,VLOOKUP($D33,'U RMT'!$F$9:$U$64,6,FALSE)+(VLOOKUP($D33,'U RMT'!$F$10:$U$64,7,FALSE)-VLOOKUP($D33,'U RMT'!$F$10:$U$64,6,FALSE))/'U RMT'!$U$4*(Calculations!$AL$4-'U RMT'!$S$4)) -> 0 | AN33: =IF($AN$4=0,0,VLOOKUP($D33,'Petro Transport'!$F$10:$Z$77,2,FALSE)+(VLOOKUP($D33,'Petro Transport'!$F$10:$Z$77,3,FALSE)-VLOOKUP($D33,'Petro Transport'!$F$10:$Z$77,2,FALSE))/'Petro Transport'!$V$3*(Calculations!$AN$4-'Petro Transport'!$N$3)) -> 0 | AP33: =IF($AP$4=0,0,VLOOKUP($D33,'Petro Transport'!$F$10:$Z$77,4,FALSE)+(VLOOKUP($D33,'Petro Transport'!$F$10:$Z$77,5,FALSE)-VLOOKUP($D33,'Petro Transport'!$F$10:$Z$77,4,FALSE))/'Petro Transport'!$V$4*(Calculations!$AP$4-'Petro Transport'!$P$4)) -> 0 | AR33: =IF($AR$4=0,0,VLOOKUP($D33,'Petro Transport'!$F$10:$Z$77,6,FALSE)+(VLOOKUP($D33,'Petro Transport'!$F$10:$Z$77,7,FALSE)-VLOOKUP($D33,'Petro Transport'!$F$10:$Z$77,6,FALSE))/'Petro Transport'!$V$5*(Calculations!$AR$4-'Petro Transport'!$R$5)) -> 0 | AT33: =IF($AT$4=0,0,VLOOKUP($D33,'Petro Transport'!$F$10:$Z$77,8,FALSE)+(VLOOKUP($D33,'Petro Transport'!$F$10:$Z$77,9,FALSE)-VLOOKUP($D33,'Petro Transport'!$F$10:$Z$77,8,FALSE))/'Petro Transport'!$V$6*(Calculations!$AT$4-'Petro Transport'!$T$6)) -> 0 | AV33: =VLOOKUP($D33,'Dom Petro'!$F$11:$J$65,3,FALSE)*Calculations!$AV$4+VLOOKUP($D33,'Dom Petro'!$F$11:$J$65,4,FALSE)*Calculations!$AV$5+VLOOKUP($D33,'Dom Petro'!$F$11:$J$65,5,FALSE)*Calculations!$AV$6 -> 44.3879 | AX33: =VLOOKUP($D33,'For Petro'!$F$9:$K$77,3,FALSE)*Calculations!$AX$3+VLOOKUP($D33,'For Petro'!$F$9:$K$77,4,FALSE)*Calculations!$AX$4+VLOOKUP($D33,'For Petro'!$F$9:$K$77,5,FALSE)*Calculations!$AX$5+VLOOKUP($D33,'For Petro'!$F$9:$K$77,6,FALSE)*$AX$6 -> 0 | AZ33: =IF($AZ$5=1,VLOOKUP($D33,'Petro Ref'!$F$10:$J$77,3,FALSE),0) -> 0 | BB33: =IF($BB$5,VLOOKUP($D33,'Petro Ref'!$F$10:$J$77,4,FALSE),0) -> 0 | BD33: =IF($BD$5=1,VLOOKUP($D33,'Petro Ref'!$F$10:$J$77,5,FALSE),0) -> 0 | BF33: =IF($BF$3+$BF$4+$BF$5=0,0,VLOOKUP($D33,'onshore RMA'!$F$9:$Q$70,2,FALSE)+(VLOOKUP($D33,'onshore RMA'!$F$9:$Q$70,10,FALSE))/'onshore RMA'!$N$4*(Calculations!$BF$3-'onshore RMA'!$L$4)+(VLOOKUP($D33,'onshore RMA'!$F$9:$Q$70,11,FALSE))/'onshore RMA'!$N$5*(Calculations!$BF$4-'onshore RMA'!$L$5)+(VLOOKUP($D33,'onshore RMA'!$F$9:$Q$70,12,FALSE))/'onshore RMA'!$N$6*($BF$5-'onshore RMA'!$L$6)) -> 0 | BH33: =IF($BF$3+$BF$4+$BF$5=0,0,VLOOKUP($D33,'onshore RMA'!$F$9:$Q$70,2,FALSE)+(VLOOKUP($D33,'onshore RMA'!$F$9:$Q$70,10,FALSE))/'onshore RMA'!$N$4*(Calculations!$BF$3-'onshore RMA'!$L$4)+(VLOOKUP($D33,'onshore RMA'!$F$9:$Q$70,11,FALSE))/'onshore RMA'!$N$5*(Calculations!$BF$4-'onshore RMA'!$L$5)+(VLOOKUP($D33,'onshore RMA'!$F$9:$Q$70,12,FALSE))/'onshore RMA'!$N$6*($BF$5-'onshore RMA'!$L$6)) -> 0 | BJ33: =IF($BJ$3+$BJ$4+$BJ$5=0,0,VLOOKUP($D33,'offshore RMA'!$F$9:$Q$70,2,FALSE)+(VLOOKUP($D33,'offshore RMA'!$F$9:$Q$70,10,FALSE))/'offshore RMA'!$N$4*(Calculations!$BJ$3-'offshore RMA'!$L$4)+(VLOOKUP($D33,'offshore RMA'!$F$9:$Q$70,11,FALSE))/'offshore RMA'!$N$5*(Calculations!$BJ$4-'offshore RMA'!$L$5)+(VLOOKUP($D33,'offshore RMA'!$F$9:$Q$70,12,FALSE))/'offshore RMA'!$N$6*($BJ$5-'offshore RMA'!$L$6)) -> 0 | BL33: =IF($BL$3+$BL$4+$BL$5=0,0,VLOOKUP($D33,'barnett RMA'!$F$9:$Q$70,2,FALSE)+(VLOOKUP($D33,'barnett RMA'!$F$9:$Q$70,10,FALSE))/'barnett RMA'!$N$4*(Calculations!$BL$3-'barnett RMA'!$L$4)+(VLOOKUP($D33,'barnett RMA'!$F$9:$Q$70,11,FALSE))/'barnett RMA'!$N$5*(Calculations!$BL$4-'barnett RMA'!$L$5)+(VLOOKUP($D33,'barnett RMA'!$F$9:$Q$70,12,FALSE))/'barnett RMA'!$N$6*($BL$5-'barnett RMA'!$L$6)) -> 0 | BN33: =IF($BN$3+$BN$4+$BN$5=0,0,VLOOKUP($D33,'cbm RMA'!$F$9:$Q$70,2,FALSE)+(VLOOKUP($D33,'cbm RMA'!$F$9:$Q$70,10,FALSE))/'cbm RMA'!$N$4*(Calculations!$BN$3-'cbm RMA'!$L$4)+(VLOOKUP($D33,'cbm RMA'!$F$9:$Q$70,11,FALSE))/'cbm RMA'!$N$5*(Calculations!$BN$4-'cbm RMA'!$L$5)+(VLOOKUP($D33,'cbm RMA'!$F$9:$Q$70,12,FALSE))/'cbm RMA'!$N$6*($BN$5-'cbm RMA'!$L$6)) -> 0 | BP33: =IF($BP$3+$BP$4+$BP$5=0,0,VLOOKUP($D33,'Marc RMA'!$F$9:$Q$70,2,FALSE)+(VLOOKUP($D33,'Marc RMA'!$F$9:$Q$70,10,FALSE))/'Marc RMA'!$N$4*(Calculations!$BP$3-'Marc RMA'!$L$4)+(VLOOKUP($D33,'Marc RMA'!$F$9:$Q$70,11,FALSE))/'Marc RMA'!$N$5*(Calculations!$BP$4-'Marc RMA'!$L$5)+(VLOOKUP($D33,'Marc RMA'!$F$9:$Q$70,12,FALSE))/'Marc RMA'!$N$6*($BP$5-'Marc RMA'!$L$6)) -> 0 | BR33: =IF($BR$3+$BR$4+$BR$5=0,0,VLOOKUP($D33,'LNG RMA'!$F$9:$Q$70,2,FALSE)+(VLOOKUP($D33,'LNG RMA'!$F$9:$Q$70,10,FALSE))/'LNG RMA'!$N$4*(Calculations!$BR$3-'LNG RMA'!$L$4)+(VLOOKUP($D33,'LNG RMA'!$F$9:$Q$70,11,FALSE))/'LNG RMA'!$N$5*(Calculations!$BR$4-'LNG RMA'!$L$5)+(VLOOKUP($D33,'LNG RMA'!$F$9:$Q$70,12,FALSE))/'LNG RMA'!$N$6*($BR$5-'LNG RMA'!$L$6)) -> 0 | BT33: =IF($BT$3+$BT$4+$BT$5=0,0,VLOOKUP($D33,'tight RMA'!$F$9:$Q$70,2,FALSE)+(VLOOKUP($D33,'tight RMA'!$F$9:$Q$70,10,FALSE))/'tight RMA'!$N$4*(Calculations!$BT$3-'tight RMA'!$L$4)+(VLOOKUP($D33,'tight RMA'!$F$9:$Q$70,11,FALSE))/'tight RMA'!$N$5*(Calculations!$BT$4-'tight RMA'!$L$5)+(VLOOKUP($D33,'tight RMA'!$F$9:$Q$70,12,FALSE))/'tight RMA'!$N$6*($BT$5-'tight RMA'!$L$6)) -> 0 | BV33: =IF($BV$3+$BV$4+$BV$5=0,0,VLOOKUP($D33,'mix RMA'!$F$9:$Q$70,2,FALSE)+(VLOOKUP($D33,'mix RMA'!$F$9:$Q$70,10,FALSE))/'mix RMA'!$N$4*(Calculations!$BV$3-'mix RMA'!$L$4)+(VLOOKUP($D33,'mix RMA'!$F$9:$Q$70,11,FALSE))/'mix RMA'!$N$5*(Calculations!$BV$4-'mix RMA'!$L$5)+(VLOOKUP($D33,'mix RMA'!$F$9:$Q$70,12,FALSE))/'mix RMA'!$N$6*($BV$5-'mix RMA'!$L$6)) -> 64.22547121
X35: =VLOOKUP($D8,#REF!,6,FALSE) -> 
A36: IPCC 2007 | C36: 100 Year | Z36: =HLOOKUP(1,'FT Diesel 2'!$H$11:$U$77,'FT Diesel 2'!V51,FALSE) -> 
A37: CO2 | C37: 1 | AB37: 3.355336209e-05 | AD37: 0.0005002936135
A38: CH4 | C38: 25 | AB38: 0.000144253968 | AD38: 5.808029688e-05
A39: N2O | C39: 298
X40: =(VLOOKUP($D8,#REF!,10,FALSE))/#REF!*($X$4-#REF!) -> 

Sheet Data (hidden)
D1: Sum | E1: Stage 1 | F1: Stage 2 | G1: Stage 3 | H1: ECF | I1: RMA | J1: RMA | K1: RMT | L1: RMT | M1: RMT | N1: RMT
H2: =IF(Dashboard!M3<>Parameters!D2,Dashboard!M3,Dashboard!M7) -> Not Set | I2: =Dashboard!C3 -> Illinois No. 6 Coal | J2: =IF(Dashboard!F2="On",Dashboard!F3,"") ->  | K2: =IF(Dashboard!$I$2="On",Dashboard!H7,"") -> Coal Train | L2: =IF(Dashboard!$I$2="On",Dashboard!H8,"") -> 0 | M2: =IF(Dashboard!$I$2="On",Dashboard!H9,"") -> 0 | N2: =IF(Dashboard!$I$2="On",Dashboard!H10,"") -> 0
C3: Factor1 (Biomass, Scaler) | H3: =IF(ISERROR(HLOOKUP(H$2,Calculations!$F$1:$BV$33,ROW(H3)+2,FALSE)),0,HLOOKUP(H$2,Calculations!$F$1:$BV$33,ROW(H3)+2,FALSE)) -> 0 | K3: =IF(ISERROR(HLOOKUP(K$2,Calculations!$F$1:$BV$33,ROW(K3)+3,FALSE)),0,HLOOKUP(K$2,Calculations!$F$1:$BV$33,ROW(K3)+3,FALSE)) -> 2.4454e-05 | L3: =IF(ISERROR(HLOOKUP(L$2,Calculations!$F$1:$BV$33,ROW(L3)+3,FALSE)),0,HLOOKUP(L$2,Calculations!$F$1:$BV$33,ROW(L3)+3,FALSE)) -> 0 | M3: =IF(ISERROR(HLOOKUP(M$2,Calculations!$F$1:$BV$33,ROW(M3)+3,FALSE)),0,HLOOKUP(M$2,Calculations!$F$1:$BV$33,ROW(M3)+3,FALSE)) -> 0 | N3: =IF(ISERROR(HLOOKUP(N$2,Calculations!$F$1:$BV$33,ROW(N3)+3,FALSE)),0,HLOOKUP(N$2,Calculations!$F$1:$BV$33,ROW(N3)+3,FALSE)) -> 0
C4: Factor2 (Fossil) | H4: =IF(ISERROR(HLOOKUP(H$2,Calculations!$F$1:$BV$33,ROW(H4)+2,FALSE)),0,HLOOKUP(H$2,Calculations!$F$1:$BV$33,ROW(H4)+2,FALSE)) -> 0
A6: 1 | B6: Air Emissions | C6: Carbon Dioxide (kg) | D6: =SUM(E6:G6) -> 0.03815635384 | E6: =IF($H$2=Parameters!$B$2,IF($J$2="",$H$3*I6*(1+$K$3)*(1+$L$3)*(1+$M$3)*(1+$N$3),$H$4*I6*(1+$K$3)+$H$3*J6*(1+$L$3)),IF($H$2="Not Set",1*I6*(1+$K$3)*(1+$L$3)*(1+$M$3)*(1+$N$3),$H$3*I6*(1+$K$3)*(1+$L$3)*(1+$M$3)*(1+$N$3))) -> 0.0255123351 | F6: =IF($H$2=Parameters!$B$2,IF($H$4=0,$H$3*(1+$K$3)*K6,$H$4*(1+$K$3)*K6+$H$3*(1+$L$3)*L6),IF($H$2=Parameters!$C$2,IF($H$4=0,$H$3*(1+$K$3)*K6,$H$4*(1+$K$3)*K6+$H$3*(1+$L$3)*L6),IF($H$2="Not Set",1*K6*(1+$L$3)*(1+$M$3)*(1+$N$3)+1*L6*(1+$M$3)*(1+$N$3)+1*M6*(1+$N$3)+N6,$H$3*K6*(1+$L$3)*(1+$M$3)*(1+$N$3)+$H$3*L6*(1+$M$3)*(1+$N$3)+$H$3*M6*(1+$N$3)+$H$3*N6))) -> 0.01264401873 | G6: =H6 -> 0 | H6: =IF(ISERROR(HLOOKUP(H$2,Calculations!$F$1:$BV$33,ROW(H6)+2,FALSE)),0,HLOOKUP(H$2,Calculations!$F$1:$BV$33,ROW(H6)+2,FALSE)) -> 0 | I6: =IF(ISERROR(HLOOKUP(I$2,Calculations!$F$1:$BV$33,ROW(I6)+2,FALSE)),0,HLOOKUP(I$2,Calculations!$F$1:$BV$33,ROW(I6)+2,FALSE)) -> 0.02551171124 | J6: =IF(ISERROR(HLOOKUP(J$2,Calculations!$F$1:$BV$33,ROW(J6)+2,FALSE)),0,HLOOKUP(J$2,Calculations!$F$1:$BV$33,ROW(J6)+2,FALSE)) -> 0 | K6: =IF(ISERROR(HLOOKUP(K$2,Calculations!$F$1:$BV$33,ROW(K6)+2,FALSE)),0,HLOOKUP(K$2,Calculations!$F$1:$BV$33,ROW(K6)+2,FALSE)) -> 0.01264401873 | L6: =IF(ISERROR(HLOOKUP(L$2,Calculations!$F$1:$BV$33,ROW(L6)+2,FALSE)),0,HLOOKUP(L$2,Calculations!$F$1:$BV$33,ROW(L6)+2,FALSE)) -> 0 | M6: =IF(ISERROR(HLOOKUP(M$2,Calculations!$F$1:$BV$33,ROW(M6)+2,FALSE)),0,HLOOKUP(M$2,Calculations!$F$1:$BV$33,ROW(M6)+2,FALSE)) -> 0 | N6: =IF(ISERROR(HLOOKUP(N$2,Calculations!$F$1:$BV$33,ROW(N6)+2,FALSE)),0,HLOOKUP(N$2,Calculations!$F$1:$BV$33,ROW(N6)+2,FALSE)) -> 0
A7: 2 | C7: Methane (kg) | D7: =SUM(E7:G7) -> 0.008967193511 | E7: =IF($H$2=Parameters!$B$2,IF($J$2="",$H$3*I7*(1+$K$3)*(1+$L$3)*(1+$M$3)*(1+$N$3),$H$4*I7*(1+$K$3)+$H$3*J7*(1+$L$3)),IF($H$2="Not Set",1*I7*(1+$K$3)*(1+$L$3)*(1+$M$3)*(1+$N$3),$H$3*I7*(1+$K$3)*(1+$L$3)*(1+$M$3)*(1+$N$3))) -> 0.008960309058 | F7: =IF($H$2=Parameters!$B$2,IF($H$4=0,$H$3*(1+$K$3)*K7,$H$4*(1+$K$3)*K7+$H$3*(1+$L$3)*L7),IF($H$2=Parameters!$C$2,IF($H$4=0,$H$3*(1+$K$3)*K7,$H$4*(1+$K$3)*K7+$H$3*(1+$L$3)*L7),IF($H$2="Not Set",1*K7*(1+$L$3)*(1+$M$3)*(1+$N$3)+1*L7*(1+$M$3)*(1+$N$3)+1*M7*(1+$N$3)+N7,$H$3*K7*(1+$L$3)*(1+$M$3)*(1+$N$3)+$H$3*L7*(1+$M$3)*(1+$N$3)+$H$3*M7*(1+$N$3)+$H$3*N7))) -> 6.884452696e-06 | G7: =H7 -> 0 | H7: =IF(ISERROR(HLOOKUP(H$2,Calculations!$F$1:$BV$33,ROW(H7)+2,FALSE)),0,HLOOKUP(H$2,Calculations!$F$1:$BV$33,ROW(H7)+2,FALSE)) -> 0 | I7: =IF(ISERROR(HLOOKUP(I$2,Calculations!$F$1:$BV$33,ROW(I7)+2,FALSE)),0,HLOOKUP(I$2,Calculations!$F$1:$BV$33,ROW(I7)+2,FALSE)) -> 0.008960089948 | J7: =IF(ISERROR(HLOOKUP(J$2,Calculations!$F$1:$BV$33,ROW(J7)+2,FALSE)),0,HLOOKUP(J$2,Calculations!$F$1:$BV$33,ROW(J7)+2,FALSE)) -> 0 | K7: =IF(ISERROR(HLOOKUP(K$2,Calculations!$F$1:$BV$33,ROW(K7)+2,FALSE)),0,HLOOKUP(K$2,Calculations!$F$1:$BV$33,ROW(K7)+2,FALSE)) -> 6.884452696e-06 | L7: =IF(ISERROR(HLOOKUP(L$2,Calculations!$F$1:$BV$33,ROW(L7)+2,FALSE)),0,HLOOKUP(L$2,Calculations!$F$1:$BV$33,ROW(L7)+2,FALSE)) -> 0 | M7: =IF(ISERROR(HLOOKUP(M$2,Calculations!$F$1:$BV$33,ROW(M7)+2,FALSE)),0,HLOOKUP(M$2,Calculations!$F$1:$BV$33,ROW(M7)+2,FALSE)) -> 0 | N7: =IF(ISERROR(HLOOKUP(N$2,Calculations!$F$1:$BV$33,ROW(N7)+2,FALSE)),0,HLOOKUP(N$2,Calculations!$F$1:$BV$33,ROW(N7)+2,FALSE)) -> 0
A8: 3 | C8: Nitrous Oxide (kg) | D8: 7.549728398e-07 | E8: =IF($H$2=Parameters!$B$2,IF($J$2="",$H$3*I8*(1+$K$3)*(1+$L$3)*(1+$M$3)*(1+$N$3),$H$4*I8*(1+$K$3)+$H$3*J8*(1+$L$3)),IF($H$2="Not Set",1*I8*(1+$K$3)*(1+$L$3)*(1+$M$3)*(1+$N$3),$H$3*I8*(1+$K$3)*(1+$L$3)*(1+$M$3)*(1+$N$3))) -> 4.490630708e-07 | F8: =IF($H$2=Parameters!$B$2,IF($H$4=0,$H$3*(1+$K$3)*K8,$H$4*(1+$K$3)*K8+$H$3*(1+$L$3)*L8),IF($H$2=Parameters!$C$2,IF($H$4=0,$H$3*(1+$K$3)*K8,$H$4*(1+$K$3)*K8+$H$3*(1+$L$3)*L8),IF($H$2="Not Set",1*K8*(1+$L$3)*(1+$M$3)*(1+$N$3)+1*L8*(1+$M$3)*(1+$N$3)+1*M8*(1+$N$3)+N8,$H$3*K8*(1+$L$3)*(1+$M$3)*(1+$N$3)+$H$3*L8*(1+$M$3)*(1+$N$3)+$H$3*M8*(1+$N$3)+$H$3*N8))) -> 3.05909769e-07 | G8: 0 | H8: =IF(ISERROR(HLOOKUP(H$2,Calculations!$F$1:$BV$33,ROW(H8)+2,FALSE)),0,HLOOKUP(H$2,Calculations!$F$1:$BV$33,ROW(H8)+2,FALSE)) -> 0 | I8: =IF(ISERROR(HLOOKUP(I$2,Calculations!$F$1:$BV$33,ROW(I8)+2,FALSE)),0,HLOOKUP(I$2,Calculations!$F$1:$BV$33,ROW(I8)+2,FALSE)) -> 4.490520897e-07 | J8: =IF(ISERROR(HLOOKUP(J$2,Calculations!$F$1:$BV$33,ROW(J8)+2,FALSE)),0,HLOOKUP(J$2,Calculations!$F$1:$BV$33,ROW(J8)+2,FALSE)) -> 0 | K8: =IF(ISERROR(HLOOKUP(K$2,Calculations!$F$1:$BV$33,ROW(K8)+2,FALSE)),0,HLOOKUP(K$2,Calculations!$F$1:$BV$33,ROW(K8)+2,FALSE)) -> 3.05909769e-07 | L8: =IF(ISERROR(HLOOKUP(L$2,Calculations!$F$1:$BV$33,ROW(L8)+2,FALSE)),0,HLOOKUP(L$2,Calculations!$F$1:$BV$33,ROW(L8)+2,FALSE)) -> 0 | M8: =IF(ISERROR(HLOOKUP(M$2,Calculations!$F$1:$BV$33,ROW(M8)+2,FALSE)),0,HLOOKUP(M$2,Calculations!$F$1:$BV$33,ROW(M8)+2,FALSE)) -> 0 | N8: =IF(ISERROR(HLOOKUP(N$2,Calculations!$F$1:$BV$33,ROW(N8)+2,FALSE)),0,HLOOKUP(N$2,Calculations!$F$1:$BV$33,ROW(N8)+2,FALSE)) -> 0
A9: 4 | C9: Total GWP (kg) | D9: =D6+D7*Calculations!$C$38+D8*Calculations!$C$39 -> 0.2625611735 | E9: =E6+E7*Calculations!$C$38+E8*Calculations!$C$39 -> 0.2496538823 | F9: =F6+F7*Calculations!$C$38+F8*Calculations!$C$39 -> 0.01290729116 | G9: =G6+G7*Calculations!$C$38+G8*Calculations!$C$39 -> 0 | H9: =IF(ISERROR(HLOOKUP(H$2,Calculations!$F$1:$BV$33,ROW(H9)+2,FALSE)),0,HLOOKUP(H$2,Calculations!$F$1:$BV$33,ROW(H9)+2,FALSE)) -> 0 | I9: =IF(ISERROR(HLOOKUP(I$2,Calculations!$F$1:$BV$33,ROW(I9)+2,FALSE)),0,HLOOKUP(I$2,Calculations!$F$1:$BV$33,ROW(I9)+2,FALSE)) -> 0.2496477775 | J9: =IF(ISERROR(HLOOKUP(J$2,Calculations!$F$1:$BV$33,ROW(J9)+2,FALSE)),0,HLOOKUP(J$2,Calculations!$F$1:$BV$33,ROW(J9)+2,FALSE)) -> 0 | K9: =IF(ISERROR(HLOOKUP(K$2,Calculations!$F$1:$BV$33,ROW(K9)+2,FALSE)),0,HLOOKUP(K$2,Calculations!$F$1:$BV$33,ROW(K9)+2,FALSE)) -> 0.01290729116 | L9: =IF(ISERROR(HLOOKUP(L$2,Calculations!$F$1:$BV$33,ROW(L9)+2,FALSE)),0,HLOOKUP(L$2,Calculations!$F$1:$BV$33,ROW(L9)+2,FALSE)) -> 0 | M9: =IF(ISERROR(HLOOKUP(M$2,Calculations!$F$1:$BV$33,ROW(M9)+2,FALSE)),0,HLOOKUP(M$2,Calculations!$F$1:$BV$33,ROW(M9)+2,FALSE)) -> 0 | N9: =IF(ISERROR(HLOOKUP(N$2,Calculations!$F$1:$BV$33,ROW(N9)+2,FALSE)),0,HLOOKUP(N$2,Calculations!$F$1:$BV$33,ROW(N9)+2,FALSE)) -> 0
A10: 5 | C10: Nitrogen Oxides (kg) | D10: 7.377539022e-05 | E10: =IF($H$2=Parameters!$B$2,IF($J$2="",$H$3*I10*(1+$K$3)*(1+$L$3)*(1+$M$3)*(1+$N$3),$H$4*I10*(1+$K$3)+$H$3*J10*(1+$L$3)),IF($H$2="Not Set",1*I10*(1+$K$3)*(1+$L$3)*(1+$M$3)*(1+$N$3),$H$3*I10*(1+$K$3)*(1+$L$3)*(1+$M$3)*(1+$N$3))) -> 4.243953092e-05 | F10: =IF($H$2=Parameters!$B$2,IF($H$4=0,$H$3*(1+$K$3)*K10,$H$4*(1+$K$3)*K10+$H$3*(1+$L$3)*L10),IF($H$2=Parameters!$C$2,IF($H$4=0,$H$3*(1+$K$3)*K10,$H$4*(1+$K$3)*K10+$H$3*(1+$L$3)*L10),IF($H$2="Not Set",1*K10*(1+$L$3)*(1+$M$3)*(1+$N$3)+1*L10*(1+$M$3)*(1+$N$3)+1*M10*(1+$N$3)+N10,$H$3*K10*(1+$L$3)*(1+$M$3)*(1+$N$3)+$H$3*L10*(1+$M$3)*(1+$N$3)+$H$3*M10*(1+$N$3)+$H$3*N10))) -> 3.133585931e-05 | G10: 0 | H10: =IF(ISERROR(HLOOKUP(H$2,Calculations!$F$1:$BV$33,ROW(H10)+2,FALSE)),0,HLOOKUP(H$2,Calculations!$F$1:$BV$33,ROW(H10)+2,FALSE)) -> 0 | I10: =IF(ISERROR(HLOOKUP(I$2,Calculations!$F$1:$BV$33,ROW(I10)+2,FALSE)),0,HLOOKUP(I$2,Calculations!$F$1:$BV$33,ROW(I10)+2,FALSE)) -> 4.243849313e-05 | J10: =IF(ISERROR(HLOOKUP(J$2,Calculations!$F$1:$BV$33,ROW(J10)+2,FALSE)),0,HLOOKUP(J$2,Calculations!$F$1:$BV$33,ROW(J10)+2,FALSE)) -> 0 | K10: =IF(ISERROR(HLOOKUP(K$2,Calculations!$F$1:$BV$33,ROW(K10)+2,FALSE)),0,HLOOKUP(K$2,Calculations!$F$1:$BV$33,ROW(K10)+2,FALSE)) -> 3.133585931e-05 | L10: =IF(ISERROR(HLOOKUP(L$2,Calculations!$F$1:$BV$33,ROW(L10)+2,FALSE)),0,HLOOKUP(L$2,Calculations!$F$1:$BV$33,ROW(L10)+2,FALSE)) -> 0 | M10: =IF(ISERROR(HLOOKUP(M$2,Calculations!$F$1:$BV$33,ROW(M10)+2,FALSE)),0,HLOOKUP(M$2,Calculations!$F$1:$BV$33,ROW(M10)+2,FALSE)) -> 0 | N10: =IF(ISERROR(HLOOKUP(N$2,Calculations!$F$1:$BV$33,ROW(N10)+2,FALSE)),0,HLOOKUP(N$2,Calculations!$F$1:$BV$33,ROW(N10)+2,FALSE)) -> 0
